{"text_format":"1","workbook":"xlsx","n_sheets":17,"sheets":["Ohjeistus","Tarkistuslista","1_Velvoiteluettelo","2B_Työkustannus","3_Muut kustannukset","4_Poikkeukset","5_Yhteenveto","Apu1_Yritystilastot","Apu2_Aika per tehtävä","Apu3_Laite tms kustannuksista","Apu4_Yksinkert. esim. laskelma","Apu5_Tietolähteitä","Annualisoitu NPV","Listat (älä muuta)","Taustatietoa ATI ja EKI","Taustatietoa palkat am lk","Päivityshistoria"],"not_rendered":{"charts":3,"images":9,"macros":1,"external_links":2,"defined_names":20,"comments":9,"pivot_tables":0},"unopened":[],"bounds":{"document_bytes":16777216,"sheet_cells":100000,"rows_first":2000,"rows_last":500,"rows_between":2000,"halvings":0,"cell_chars":16384,"cell_head_chars":4096},"cells_cut":0,"cells_raw":0,"read":"whole","date_system":"1900"}

{"sheet":"Ohjeistus","index":0,"n_rows":103,"n_cols":3,"rows_kept":103,"cut":false,"hidden":false,"merged":[[1,1,1,2],[5,5,7,5],[12,5,14,5],[33,2,34,2],[17,1,18,2],[5,2,12,2],[13,2,15,2]]}
[]
[null,"Sääntelytaakkalaskuri, versio 2025 (päivitetty 6.3.2025)"]
[]
[null,"Yrityksiin kohdistuvan sääntelytaakan arviointi ja Yksi yhdestä -periaatteen soveltaminen - Miksi ja mitä?"]
[]
[null,null,"Tarkoituksenmukainen sääntely on välttämätöntä toimivan yhteiskunnan ja kansantalouden turvaamiseksi. Sääntelystä yrityksille aiheutuvat kustannukset voivat kuitenkin heikentää kilpailukykyä ja työllisyyttä.* Siten on tärkeää, että sääntelyä sujuvoitetaan tunnistamalla ja keventämällä tarpeettoman raskaita menettelyitä. \n\nOrpon hallituksen hallitusohjelmassa Vahva ja välittävä Suomi on päätetty Yksi yhdestä -kokeilun laajentamisesta: Hallitus sitoutuu siihen, että yritysten hallinnollinen taakka ei hallituskauden aikana kasva. Hallitus sitoutuu koko valtioneuvoston tasolla ”yksi sisään, yksi ulos” -periaatteeseen, jolla huolehditaan, että uutta sääntelyä esitettäessä velvoitteita kevennetään muualta. Periaatetta on alettu soveltaa kaikissa ministeriöissä (Työllisyyden ja yrittäjyyden ministerityöryhmä 24.10.2023) kevätistuntokaudesta 2024 lähtien. Hallitusohjelmassa on linjattu, että sääntelyn keventämistavoitteen toteutumista seurataan Sääntelytaakkalaskurin kautta. Periaatetta on kokeiltu säännönmukaisesti työ- ja elinkeinoministeriössä vuodesta 2017 alkaen. \n\nHallitusohjelma edellyttää, että uuden sääntelyn vaikutukset yrityksiin kohdistuvaan sääntelytaakkaan arvioidaan kaikissa ministeriöissä yhdenmukaisesti. Vaikutukset arvioidaan myös mahdollisimman pitkälle euromääräisesti, vähintään kuitenkin hallinnollisen taakan osalta. Lisäksi tavoitteena on, että Yksi sisään, yksi ulos -periaatteen avulla pystytään hillitsemään sääntelytaakan kasvua. Laskemalla euromääräiset arviot sääntelytaakan lisäyksestä tai vähenemisestä* on ainoa keino nähdä sääntelytaakan suuruus ja kehityssuunta. \n"]
[]
[]
[]
[]
[]
[]
[]
[null,null,"Yksi yhdestä -periaatteen soveltamiseksi ja euromääräisen sääntelytaakan laskemiseksi TEM:ssä on laadittu tämä laskentapohja ja ohjeistus lainvalmistelijoille sekä vaikutusarviointeja tekeville. Laskurin on tarkoitus helpottaa lainvalmistelijoita vaikutusarvioinnin tekemisessä sekä edesauttaa arviointien yhdenmukaisuutta. Tätä laskuria voi käyttää yrityksiin kohdistuvan sääntelytaakan arviointiin siten kuin VN:n ohjeessa (2022:66) ohjeistetaan. "]
[]
[]
[]
[null,"Laskentapohjan käyttö: Yksityiskohtaisemmat ohjeet tämän laskentapohjan käyttöön ovat seuraavalla välilehdellä. Ohjeita on lisäksi välilehdillä sellaisissa soluissa, joissa on punainen kulma. Vie osoitin hiirellä punakulmasolun päälle, niin näet ohjeen. Kokeile esimerkkiä tässä solussa."]
[]
[null,null,"Toimi siis seuraavasti:"]
[null,"1.","Lue ohjeet ja tee tarvittavat merkinnät tarkistuslistaan välilehdellä \"Tarkistuslista\""]
[null,"2.","Täytä ohjeistuksen mukaisesti tarvittavat tiedot välilehdelle \"1_Velvoiteluettelo\""]
[null,"3.","Täytä ohjeistuksen mukaisesti tarvittavat tiedot välilehdelle \"2B_Työkustannus\""]
[null,"4.","Täytä ohjeistuksen mukaisesti tarvittavat tiedot välilehdelle \"3_Muut kustannukset\""]
[null,"5.","Katso yhteenveto välilehdeltä \"5_Yhteenveto\""]
[null,"6.","Täytä tarvittaessa tietoja välilehdelle \"4_Poikkeukset\" (vain tarvittaessa)"]
[]
[null,null,"Tietoja syötetään vain ruskeille välilehdille, ruskeisiin soluihin."]
[null,null,"Käytä tarvittaessa apuna välilehtiä \"Apu1_ … Apu5_ \""]
[null,null,"Älä tee mitään punaisille välilehdille \"Annualisoitu NPV\", \"Listat (älä muuta)\" ym. "]
[]
[null,null,"Katso ohjeeksi myös:"]
[null,null,"Lainvalmistelun vaikutusarviointiohje (VN:n ohje 2022:66)"]
[null,null,"Seuraa alla olevaa kaaviota sekä seuraavalla välilehdellä olevia ohjeita ja syötä tarvittavat tiedot tämän laskentapohjan välilehdille 1, 2 ja 3 (sekä tarvittaessa 4)"]
[]
[]
[]
[]
[]
[]
[]
[]
[]
[]
[]
[]
[]
[]
[]
[]
[]
[]
[]
[]
[]
[]
[]
[]
[]
[]
[]
[]
[]
[]
[]
[]
[]
[]
[]
[]
[]
[]
[]
[]
[]
[]
[]
[]
[]
[]
[]
[]
[]
[]
[]
[]
[null,null,"klikkaa kuvaa tai: http://lainvalmistelu.finlex.fi/"]
[]
[]
[]
[null,"*Lähteitä ja ohjeita"]
[null,null,"Honkatukia J ja Rauhanen T, 2011, Yritysten hallinnollisen taakan vähentämisen kokonaistaloudelliset vaikutukset. VATT."]
[null,null,"Kox H, 2005, Intra-EU differences in regulation-caused administrative burden for companies. CPB Netherlands Bureau for Economic Policy Analysis."]
[null,null,"Tang P and Verweij G, 2004, Reducing the administrative burden in the European Union. CPB Netherlands Bureau for Economic Policy Analysis."]
[null,null,"Lainvalmistelun vaikutusarviointiohje (VN:n ohje 2022:66)"]
[null,null,"SCM Network, 2005, International Standard Cost Model Manual, SCM Network. Saatavilla OECD:n www-sivustolta http://www.oecd.org/gov/regulatory-policy/34227698.pdf"]
[null,null,"Lainsäädännön arviointineuvoston lausunnot, http://vnk.fi/arviointineuvosto "]
[null,null,"Hyytinen A. ja Moisio M., 2017, Lainsäädännön arviointineuvosto – lainvalmistelun vaikutusarviointia, Kansantaloudellinen aikakauskirja, 113. vsk, 2/2017, sivu 211. "]
[null,null,"Valtiontalouden tarkastusvirasto VTV, 2017, EU-lainsäädännön täytäntöönpano, tarkastuskertomus 12/2017. https://www.vtv.fi/files/5808/12_2017_EU-lainsaadannon_taytantoonpano.pdf"]
[]
[null,"Laskuriversio 2025-1.22 (6.3.2025)"]
[null,"Kehittäjät:  Erno Mähönen ja Henrikki Oravainen"]
[null,"Julkaisija: työ- ja elinkeinoministeriö"]

{"sheet":"Tarkistuslista","index":1,"n_rows":45,"n_cols":7,"rows_kept":45,"cut":false,"hidden":false,"merged":[[30,2,30,4],[30,6,30,12],[29,2,29,4],[20,3,21,4],[20,6,20,12],[21,6,21,12],[23,6,23,12],[24,6,24,12],[25,6,25,12],[26,6,26,12],[28,6,28,12],[29,6,29,12],[27,6,27,12],[40,6,40,12],[31,2,31,4],[31,6,31,12],[33,6,33,12],[32,6,32,12],[38,2,39,4],[38,5,39,5],[38,6,39,12],[34,2,35,4],[32,2,32,4],[34,5,36,5],[34,6,36,12],[37,6,37,12],[17,6,17,12],[18,6,18,12],[22,6,22,12],[19,6,19,12],[9,6,9,12],[10,6,10,12],[11,6,11,12],[12,6,12,12],[13,6,13,12],[14,6,14,12],[15,6,15,12],[16,6,16,12],[8,6,8,12],[3,6,3,12],[4,6,4,12],[5,6,5,12],[6,6,6,12],[7,6,7,12]]}
[null,"Ohje: Yrityksiin kohdistuvien sääntelytaakkavaikutusten arviointi sekä Yksi yhdestä -periaatteen soveltaminen"]
[]
[null,"Yleisiä ohjeita",null,null,null,"Ok?","Lähde / lisäohje / tämän taulukon välilehtien käyttö"]
[null,"1.","Yksi yhdestä -periaatetta sovelletaan TEMissä kansallista alkuperää olevaan ja EU:n minimisääntelyn ylittävään lainsäädäntöön.",null,null,null,"Ks. TEM:n soveltamisohje"]
[null,"2.","Yritysvaikutukset on arvioitava normaaliin tapaan kaikissa esityksissä, myös niissä, jotka ovat EU:n minimisääntelyä. ",null,null,null,"Ks. VN:n ohje"]
[null,"3.","Kiinnitä huomiota yritysvaikutusten arviointiin mahdollisimman varhaisessa vaiheessa lain valmisteluprosessia. ",null,null,null,"Ks. Finlexin ohjeet lainvalmistelun prosessista"]
[null,"4.","Täytä tietoja vain ruskeaksi maalattuihin soluihin.",null,null,null,"Esimerkki ruskeasta täyttösolusta"]
[null,"5.","Tietoja tarvitsee syöttää vain välilehdille 1, 2 ja 3 (sekä tarvittaessa välilehdelle 4)",null,null,null,"Ks. Välilehdet 1, 2 ja 3 sekä tarvittaessa 4"]
[null,"Ks. ","välilehti 1_Velvoiteluettelo ",null,"ja hae vastauksia seuraaviin kysymyksiin:"]
[null,"6.","Onko lainsäädännöllä yritysvaikutuksia? Jos on, mitä tietoa vaikutusten tekemiseksi vaaditaan ja mistä saada tietoa?",null,null,null,"Ks. välilehti Apu5_Tietolähteitä"]
[null,"7.","Tunnista ja yksilöi HE:sta yrityksille lisätaakkaa tai kustannussäästöjä aiheuttavat yksittäiset pykälät/menettelyt.",null,null,null,"Ks. välilehti 1"]
[null,"8.","Tunnista, mitkä edellisistä ovat puhtaasti kansallista alkuperää ja mitkä EU-pohjaista.",null,null,null,"Ks. välilehti 1, sekä VTV:n tarkastuskeromus 12/2017"]
[null,"9.","Mitkä ovat kansallisen lainsäädännön yrityksille aiheuttamat taakanlisäykset tai taakankevennykset?",null,null,null,"Ks. välilehdet \"1_\" - \"5_\"."]
[null,"10.","Jos kyse on EU-direktiivin implementoinnista, arvioi vaihtoehtoja, joilla direktiivi voitaisiin implementoida."]
[null,null,"10.1","Aseta  vaihtoehdot järjestykseen yrityksille vähiten ja eniten taakkaa aiheuttavan vaihtoehdon mukaan"]
[null,null,"10.2","Mikä vaihtoehdoista valitaan"]
[null,null,"10.3","Valitaanko implementointiin yrityksille vähiten taakkaa aiheuttava vaihtoehto?"]
[null,null,"10.4","Perustele, miksi valitaan juuri kyseinen vaihtoehto."]
[null,null,"10.5","Jos valitaan vähiten taakkaa aiheuttava vaihtoehto, kyse on niin sanotusta EU-minimisääntelystä"]
[null,null,"10.6","Mitkä ovat EU-minimisääntelyn yrityksille aiheuttamat taakanlisäykset?",null,null,"Ks. välilehdet \"1_\" - \"5_\"."]
[null,null,"10.7","Mitkä ovat taakkavaikutukset, jotka aiheutuvat EU-minimisääntelyn ylittävästä osasta\n(ns. kansallinen lisä, gold plating)?",null,null,"Ks. välilehdet \"1_\" - \"5_\"."]
[]
[null,"11.","Nimeä velvoitteet ja täytä niiden voimaantulovuosi ja luonne välilehdelle 1_Velvoiteluettelo",null,null,null,"Ks. välilehti 1"]
[null,"Laske edellä olevista velvoitteista aiheutuvat kustannussäästöt tai kustannuslisäykset seuraavasti:"]
[null,"12.","Selvitä ja/tai arvioi, mitkä taakkavaikutukset ovat kertaluonteisia lain tullessa voimaan ja mitkä toistuvat vuosittain.",null,null,null,"Ks. välilehti 2B"]
[null,"13.","Selvitä toistuvien velvoitteiden osalta, kuinka monta kertaa vuodessa ne toistuvat (frekvenssi)",null,null,null,"HE:n sisällön mukaisesti"]
[null,"14.","Selvitä, kuinka montaa yritystä velvoite koskee (kohdejoukko)",null,null,null,"Ks. välilehti Apu5_Tietolähteitä"]
[null,"15.","Selvitä, onko velvoite osittain (tai jopa kokonaan) yrityksen omaehtoista toimintaa (Business-as-Usual), vai ei"]
[null,"16.","Selvitä ja/tai arvioi, vaatiiko velvoitteen hoitaminen työpanosta ja kuinka kauan yritykseltä kuluu kyseisen velvoitteen hoitamiseen",null,null,null,"Ks. välilehti 2B"]
[null,"17.","Käytä lähtökohtaisesti velvoitteen suorittajana 'Asiantuntijaa', kk-palkka 3600 eur. Tarvittaessa selvitä ja/tai arvioi, minkä vaativuustason ja palkkaluokan työntekijät suorittavat kyseistä velvoitetta.",null,null,null,"Ks. välilehti 2B"]
[null,"18.","Syötä edelliset tiedot välilehdelle 2B"]
[null,"19.","Kun kaikki tarvittavat tiedot on täydennetty välilehdelle 2, siirry välilehdelle 3"]
[null,"20.","Selvitä ja/tai arvioi velvoitteiden lisäyksistä tai niiden purkamisesta yrityksille aiheutuvat muut kustannukset. Sekä säästöt että kustannukset ilmoitetaan positiivisina lukuina. Laskuri muuttaa lopputuloksen etumerkin automaattisesti.",null,null,null,"Jos kyse esim, jostain lain edellyttämästä laitehankinnasta katso Apu3"]
[null,"21.","Syötä tiedot mahdollisista muista kustannuksista välilehdelle 3"]
[null,"22.","Ts. selvitä ja täytä välilehdille 2 ja 3 tarvittavat tiedot yhtäältä niin sanotun standardikustannusmallin (SCM) avulla ja toisaalta selvitä ja täytä myös kaikki muut lakiehdotuksen kustannuslisäykset (esim. vaadittavat investoinnit tai tietojärjestelmämuutokset) ja/tai -säästöt.",null,null,null,"Ks. VN:n ohje"]
[]
[null,"Katso yhteenveto ja kirjaa euromääräiset yritysvaikutukset HE:een"]
[null,"23.","Kun kaikki tarvittavat tiedot on täydennetty välilehdille 2 ja 3, siirry välilehdelle 5, jolla näet yhteenvedon"]
[null,"24.","Arvioi, näyttävätkö Yhteenvedon tiedot järkeviltä. Tarkista ja muuta tietoja tarvittaessa. Kirjaa yhteenvedosta euromääräiset yritysvaikutukset HE:een. Alustavaa arviota voi ja tulee tarkistaa lausuntokierroksella sidosryhmiltä saatavilla tiedoilla."]
[]
[null,"25.","Tarvittaessa täydennä vuosittaiset poikkeamat ja toimialan kasvuennuste välilehdelle 4"]
[]
[null,"Tarvittaessa saat lisätietoja ja -ohjeistusta"]
[null,null,"Erno Mähönen",null,"Puhelin 029 5047262, erno.mahonen@gov.fi"]
[null,null,"työ- ja elinkeinoministeriö "]

{"sheet":"1_Velvoiteluettelo","index":2,"n_rows":22,"n_cols":19,"rows_kept":22,"cut":false,"hidden":false,"merged":[[4,1,9,5],[10,1,10,5],[13,1,13,2],[13,3,13,6],[14,1,14,2]]}
["Luettelo uusista velvoitteista, jotka aiheuttavat yrityksille sääntelytaakkaa, tai sellaisten poistamisesta"]
[]
[]
[]
[null,"Erittele muutos yritysten näkökulmasta velvoite kerrallaan. Kirjaa tähän yksittäiset uudet velvoitteet ja poistettavat vanhat velvoitteet. Lisää tarvittaessa Velvoite-rivejä viereisellä painikkeella. Voit myös halutessasi eriyttää tietyn velvoitteen kahdeksi eri velvoitteeksi esim. pienten ja suurten yritysten välille, mikäli yritysvaikutukset ovat merkittävästi erilaiset erikokoisten yritysten välillä, tai eri toimialojen välillä. Kirjoita velvoitteelle 'Nimi' ja 'Kuvaus'. Valitse voimassaolon kesto ja voimaanastumisvuosi.  Valitse säädöksen luonne (Kansallinen, EU, lisäys, kevennys)."]
[]
[]
["Ohjeet"]
[]
[]
[null,"Kun olet täyttänyt tiedot, siirry välilehdelle 2B_Työkustannus"]
[]
["Perusvuosi*",2023,"*) Arvioi kustannukset valmisteluhetken nykyrahassa. Laskuri laskee Yksi yhdestä -kirjanpitoa varten valmisteluvuoden kustannuksista vertailukelpoiset arvot valittuun perusvuoteen."]
[null,"Lain nimi ja HE-numero:",null,"Laki puolustustarvikkeiden viennistä "]
[null,"Koko yrityskentän koko, jota lakimuutos koskee (valinnainen tieto**)",null,140,"**) Tiedon puuttuminen voi vääristää yrityskohtaisia tuloksia."]
[null,"Velvoite- numero","Nimi (vapaamuotoinen)","Kuvaus muutoksesta lain yritykselle aiheuttamassa velvoitteessa (vapaamuotoinen)","Voimassaolo-aika\nValitse solujen valikosta.","Voimaantulovuosi (ilmoita yhtenä lukuna esim. \"2024\")","Säädöksen luonne.\nValitse ao. solujen valikosta sopiva kuvailu. Sääntelyä vai sääntelyn keventämistä? EU-minimisääntelyä vai ei?",null,null,null,null,null,null,null,null,null,null,null,{"$f":"'Listat (älä muuta)'!G4+23","v":23}]
[{"$f":"IF(AND(ISTEXT(C17),ISNUMBER(F17),ISTEXT(G17)),\"ok\",IF(AND(ISBLANK(C17),ISBLANK(F17),ISBLANK(G17)),\"\",\"täydennä!\"))","v":"ok"},{"$f":"\"Velvoite\"&S17","v":"Velvoite1"},"Know Your Customer (KYC) -vaatimus","KYC-dokumentaation täyttäminen asiakkaista, joista ei ole aikaisemmin KYC-dokumenttia tehty.","toistaiseksi",2027,"Kansallista tai EU-minimin ylittävää lisäsääntelyä",null,null,null,null,null,null,null,null,null,null,null,1]
[{"$f":"IF(AND(ISTEXT(C18),ISNUMBER(F18),ISTEXT(G18)),\"ok\",IF(AND(ISBLANK(C18),ISBLANK(F18),ISBLANK(G18)),\"\",\"täydennä!\"))","v":"ok"},{"$f":"\"Velvoite\"&S18","v":"Velvoite2"},"Vastuullisuussuunnitelma","Vastuullisuussuunnitelma laadinta ja päivittäminen. Velvoitteen piiristä tarkoituksena rajata pois pienyritykset.","toistaiseksi",2027,"Kansallista tai EU-minimin ylittävää lisäsääntelyä",null,null,null,null,null,null,null,null,null,null,null,{"$f":"S17+1","v":2}]
[{"$f":"IF(AND(ISTEXT(C19),ISNUMBER(F19),ISTEXT(G19)),\"ok\",IF(AND(ISBLANK(C19),ISBLANK(F19),ISBLANK(G19)),\"\",\"täydennä!\"))","v":""},{"$f":"\"Velvoite\"&S19","v":"Velvoite3"},null,null,"toistaiseksi",null,null,null,null,null,null,null,null,null,null,null,null,null,{"$f":"S18+1","v":3}]
[{"$f":"IF(AND(ISTEXT(C20),ISNUMBER(F20),ISTEXT(G20)),\"ok\",IF(AND(ISBLANK(C20),ISBLANK(F20),ISBLANK(G20)),\"\",\"täydennä!\"))","v":""},{"$f":"\"Velvoite\"&S20","v":"Velvoite4"},null,null,"toistaiseksi",null,null,null,null,null,null,null,null,null,null,null,null,null,{"$f":"S19+1","v":4}]
[{"$f":"IF(AND(ISTEXT(C21),ISNUMBER(F21),ISTEXT(G21)),\"ok\",IF(AND(ISBLANK(C21),ISBLANK(F21),ISBLANK(G21)),\"\",\"täydennä!\"))","v":""},{"$f":"\"Velvoite\"&S21","v":"Velvoite5"},null,null,"toistaiseksi",null,null,null,null,null,null,null,null,null,null,null,null,null,{"$f":"S20+1","v":5}]
[null,null,null,null,null,null,null,null,null,null,null,null,null,null,null,null,null,null,{"$f":"S21+1","v":6}]

{"sheet":"2B_Työkustannus","index":3,"n_rows":109,"n_cols":12,"rows_kept":109,"cut":false,"hidden":false,"merged":[[64,2,66,4],[75,2,76,4],[6,2,6,4],[12,2,12,4],[10,2,10,4],[45,3,45,4],[47,3,47,4],[48,3,48,4],[49,3,49,4],[55,3,55,4],[57,3,57,4],[58,3,58,4],[59,3,59,4],[46,3,46,4],[56,3,56,4],[11,2,11,4],[15,5,15,8],[26,5,26,8],[37,3,39,7],[5,2,5,4],[4,2,4,4]]}
["Palkkaluokat ja velvoitteen vaatima työaika -> Velvoitteiden aiheuttama hallinnollinen taakka"]
[]
[]
[]
[null,null,"Täytä frekvenssi ja yritysten lukumäärä.",null,null,"Kirjoita tietoja vain ruskeaksi maalattuihin soluihin"]
["Ohjeet",null,"Täytä arviot vaadittavista työtunneista. Ks. ohjeita soluista, joissa punainen kulma.",null,null,"Älä muokkaa sinisellä pohjalla olevia soluja"]
[null,null,"Kun olet täyttänyt tuntitiedot, siirry välilehdelle 3_Muut kustannukset",null,null,{"$f":"IF(ISTEXT(OFFSET('1_Velvoiteluettelo'!B$21,5,0)),OFFSET('1_Velvoiteluettelo'!B$21,5,0),\"\")","v":""},{"$f":"IF(ISTEXT(OFFSET('1_Velvoiteluettelo'!C$21,5,0)),OFFSET('1_Velvoiteluettelo'!C$21,5,0),\"\")","v":""}]
[]
[null,"Laskentatekijät",null,null,"Velvoitteen nimi",{"$f":"IF(ISTEXT(OFFSET('1_Velvoiteluettelo'!$C17,F106,0)),(OFFSET('1_Velvoiteluettelo'!$C17,F106,0)),\"Velvoite\"&F106+1)","v":"Know Your Customer (KYC) -vaatimus"},{"$f":"IF(ISTEXT(OFFSET('1_Velvoiteluettelo'!$C17,G106,0)),(OFFSET('1_Velvoiteluettelo'!$C17,G106,0)),\"Velvoite\"&G106+1)","v":"Vastuullisuussuunnitelma"},{"$f":"IF(ISTEXT(OFFSET('1_Velvoiteluettelo'!$C17,H106,0)),(OFFSET('1_Velvoiteluettelo'!$C17,H106,0)),\"Velvoite\"&H106+1)","v":"Velvoite3"},{"$f":"IF(ISTEXT(OFFSET('1_Velvoiteluettelo'!$C17,I106,0)),(OFFSET('1_Velvoiteluettelo'!$C17,I106,0)),\"Velvoite\"&I106+1)","v":"Velvoite4"},{"$f":"IF(ISTEXT(OFFSET('1_Velvoiteluettelo'!$C17,J106,0)),(OFFSET('1_Velvoiteluettelo'!$C17,J106,0)),\"Velvoite\"&J106+1)","v":"Velvoite5"}]
[]
[null,"A1","Lukumäärä yrityksistä, joita muutos koskee (kohdejoukko)",null,null,100,60]
[null,"A2","Business-as-usual-osuus 0-100 % (oletus: 0 %)",null,null,0.5,0,0,0,0]
[null,"A3","Frekvenssi per vuosi*",null,null,3,1]
[]
[null,"B1","TOISTUVA HALLINNOLLINEN TAAKKA (1. VUOSI JA SEN JÄLKEEN)"]
[null,null,null,"Palkkaluokka","Kuukausipalkka","Toistuvat työTUNNIT (raportointi, luvat, yms.) per yritys*"]
[null,null,null,"Johtaja",{"$f":"ROUND(E90,-2)","v":7600},0,0,0,0,0]
[null,null,null,"Ylemmän tason asiantuntija, erityisasiantuntija",{"$f":"ROUND(E91,-2)","v":5000},0,0,0,0,0]
[null,null,"=>","Asiantuntija (oletus)",{"$f":"ROUND(E92,-2)","v":4000},1,2,0,0,0]
[null,null,null,"Yleissihteeri, palkanlaskija, tmv.",{"$f":"ROUND(E93,-2)","v":3200},0,0,0,0,0]
[null,null,null,"Toimistoavustaja, tallentaja",{"$f":"ROUND(E94,-2)","v":3000},0,0,0,0,0]
[null,null,null,"Muu, mikä?",null,0,0,0,0,0]
[null,null,null,{"$f":"D51","v":"Toistuva hallinnollinen taakka yht kohdeyrityksille p.a."},null,{"$f":"F51","v":5738.1559058518678},{"$f":"G51","v":4590.5247246814943},0,0,{"$f":"J51","v":0}]
[null,null,null,"Tarkistus",null,{"$f":"IF(ISNUMBER(F11),IF(AND(AND(F88>0,ISNUMBER(OFFSET('1_Velvoiteluettelo'!$F17,F106,0))),NOT(F13=0)),\"Ok!\",IF(AND(AND(F88>0,ISNUMBER(OFFSET('1_Velvoiteluettelo'!$F17,F106,0))),(F13=0)),\"Lisää frekvenssi!\",IF(AND(F88=0,ISBLANK(OFFSET('1_Velvoiteluettelo'!$F17,F106,0))),\"\",IF(AND(F88>0,ISBLANK(OFFSET('1_Velvoiteluettelo'!$F17,F106,0))),\"Tarkista voimaantulo!\",\"Lisää tunnit (jos tarpeen)\")))),IF(ISNUMBER(OFFSET('1_Velvoiteluettelo'!$F17,F106,0)),\"Lisää yritysten lukumäärä!\",\"\"))","v":"Ok!"},{"$f":"IF(ISNUMBER(G11),IF(AND(AND(G88>0,ISNUMBER(OFFSET('1_Velvoiteluettelo'!$F17,G106,0))),NOT(G13=0)),\"Ok!\",IF(AND(AND(G88>0,ISNUMBER(OFFSET('1_Velvoiteluettelo'!$F17,G106,0))),(G13=0)),\"Lisää frekvenssi!\",IF(AND(G88=0,ISBLANK(OFFSET('1_Velvoiteluettelo'!$F17,G106,0))),\"\",IF(AND(G88>0,ISBLANK(OFFSET('1_Velvoiteluettelo'!$F17,G106,0))),\"Tarkista voimaantulo!\",\"Lisää tunnit (jos tarpeen)\")))),IF(ISNUMBER(OFFSET('1_Velvoiteluettelo'!$F17,G106,0)),\"Lisää yritysten lukumäärä!\",\"\"))","v":"Ok!"},{"$f":"IF(ISNUMBER(H11),IF(AND(AND(H88>0,ISNUMBER(OFFSET('1_Velvoiteluettelo'!$F17,H106,0))),NOT(H13=0)),\"Ok!\",IF(AND(AND(H88>0,ISNUMBER(OFFSET('1_Velvoiteluettelo'!$F17,H106,0))),(H13=0)),\"Lisää frekvenssi!\",IF(AND(H88=0,ISBLANK(OFFSET('1_Velvoiteluettelo'!$F17,H106,0))),\"\",IF(AND(H88>0,ISBLANK(OFFSET('1_Velvoiteluettelo'!$F17,H106,0))),\"Tarkista voimaantulo!\",\"Lisää tunnit (jos tarpeen)\")))),IF(ISNUMBER(OFFSET('1_Velvoiteluettelo'!$F17,H106,0)),\"Lisää yritysten lukumäärä!\",\"\"))","v":""},{"$f":"IF(ISNUMBER(I11),IF(AND(AND(I88>0,ISNUMBER(OFFSET('1_Velvoiteluettelo'!$F17,I106,0))),NOT(I13=0)),\"Ok!\",IF(AND(AND(I88>0,ISNUMBER(OFFSET('1_Velvoiteluettelo'!$F17,I106,0))),(I13=0)),\"Lisää frekvenssi!\",IF(AND(I88=0,ISBLANK(OFFSET('1_Velvoiteluettelo'!$F17,I106,0))),\"\",IF(AND(I88>0,ISBLANK(OFFSET('1_Velvoiteluettelo'!$F17,I106,0))),\"Tarkista voimaantulo!\",\"Lisää tunnit (jos tarpeen)\")))),IF(ISNUMBER(OFFSET('1_Velvoiteluettelo'!$F17,I106,0)),\"Lisää yritysten lukumäärä!\",\"\"))","v":""},{"$f":"IF(ISNUMBER(J11),IF(AND(AND(J88>0,ISNUMBER(OFFSET('1_Velvoiteluettelo'!$F17,J106,0))),NOT(J13=0)),\"Ok!\",IF(AND(AND(J88>0,ISNUMBER(OFFSET('1_Velvoiteluettelo'!$F17,J106,0))),(J13=0)),\"Lisää frekvenssi!\",IF(AND(J88=0,ISBLANK(OFFSET('1_Velvoiteluettelo'!$F17,J106,0))),\"\",IF(AND(J88>0,ISBLANK(OFFSET('1_Velvoiteluettelo'!$F17,J106,0))),\"Tarkista voimaantulo!\",\"Lisää tunnit (jos tarpeen)\")))),IF(ISNUMBER(OFFSET('1_Velvoiteluettelo'!$F17,J106,0)),\"Lisää yritysten lukumäärä!\",\"\"))","v":""}]
[]
[null,"C1","KERTALUONTEINEN HALLINNOLLINEN TAAKKA (1. VUOSI, sopeutuminen)"]
[null,null,null,"Palkkaluokka","Kuukausipalkka","Sopeuttamisesta vain kerran koituvat työTUNNIT per yritys"]
[null,null,null,"Johtaja",{"$f":"E17","v":7600},0,0,0,0,0]
[null,null,null,"Ylemmän tason asiantuntija, erityisasiantuntija",{"$f":"E18","v":5000},0,0,0,0,0]
[null,null,"=>","Asiantuntija (oletus)",4000,0,4,0,0,0]
[null,null,null,"Yleissihteeri, palkanlaskija, tmv.",3200,0,0,0,0,0]
[null,null,null,"Toimistoavustaja, tallentaja",3000,0,0,0,0,0]
[null,null,null,"Muu, mikä?",null,0,0,0,0,0]
[null,null,null,"Kertaluonteinen hlöstökustannus yht kohdeyrityksille",null,{"$f":"F60","v":0},{"$f":"G60","v":9181.0494493629885},{"$f":"H60","v":0},{"$f":"I60","v":0},{"$f":"J60","v":0}]
[null,null,null,"Tarkistus",null,{"$f":"IF(AND(F97>0,ISNUMBER(OFFSET('1_Velvoiteluettelo'!$F17,F106,0))),\"Ok!\",IF(AND(F97=0,ISBLANK(OFFSET('1_Velvoiteluettelo'!$F17,F106,0))),\"\",IF(AND(F97>0,ISBLANK(OFFSET('1_Velvoiteluettelo'!$F17,F106,0))),\"Tarkista voimaantulo!\",\"Lisää tunnit jos tarpeen\")))","v":"Lisää tunnit jos tarpeen"},{"$f":"IF(AND(G97>0,ISNUMBER(OFFSET('1_Velvoiteluettelo'!$F17,G106,0))),\"Ok!\",IF(AND(G97=0,ISBLANK(OFFSET('1_Velvoiteluettelo'!$F17,G106,0))),\"\",IF(AND(G97>0,ISBLANK(OFFSET('1_Velvoiteluettelo'!$F17,G106,0))),\"Tarkista voimaantulo!\",\"Lisää tunnit jos tarpeen\")))","v":"Ok!"},{"$f":"IF(AND(H97>0,ISNUMBER(OFFSET('1_Velvoiteluettelo'!$F17,H106,0))),\"Ok!\",IF(AND(H97=0,ISBLANK(OFFSET('1_Velvoiteluettelo'!$F17,H106,0))),\"\",IF(AND(H97>0,ISBLANK(OFFSET('1_Velvoiteluettelo'!$F17,H106,0))),\"Tarkista voimaantulo!\",\"Lisää tunnit jos tarpeen\")))","v":""},{"$f":"IF(AND(I97>0,ISNUMBER(OFFSET('1_Velvoiteluettelo'!$F17,I106,0))),\"Ok!\",IF(AND(I97=0,ISBLANK(OFFSET('1_Velvoiteluettelo'!$F17,I106,0))),\"\",IF(AND(I97>0,ISBLANK(OFFSET('1_Velvoiteluettelo'!$F17,I106,0))),\"Tarkista voimaantulo!\",\"Lisää tunnit jos tarpeen\")))","v":""},{"$f":"IF(AND(J97>0,ISNUMBER(OFFSET('1_Velvoiteluettelo'!$F17,J106,0))),\"Ok!\",IF(AND(J97=0,ISBLANK(OFFSET('1_Velvoiteluettelo'!$F17,J106,0))),\"\",IF(AND(J97>0,ISBLANK(OFFSET('1_Velvoiteluettelo'!$F17,J106,0))),\"Tarkista voimaantulo!\",\"Lisää tunnit jos tarpeen\")))","v":""}]
[]
[null,null,null,"Kirjoita tähän perustelut ja kuinka tiedot on hankittu, lähdeviittaukset."]
[null,null,null,"Vuonna 2025 puolustustarvikkeiden vientilupia myönnettiin noin 90 yritykselle. Oletuksena velvoitteissa on käytetty 100 yritystä, jossa on huomioitu puolustusteollisuuden kasvu ja uusien yritysten lisääntyminen vuoteen 2027 mennessä. Vastuullisuussuunnitelman velvoite ei koskisi pienyrityksiä, joilla tarkoitetaan yrityksiä, joissa on alle 50 työntekijää ja joiden liikevaihto tai tase on alle 10 miljoonaa euroa (Komission suosituksen 2003/361/EY määritelmä). Muita kuin pienyrityksiä arvioidaan olevan 60 % kaikista puolustustarvikkeiden vientilupia hakevista yrityksistä ja näin ollen vastuullisuussuunnitelman arvioidaan koskevan vain 60 yritystä. KYC-velvoitteen osalta business-as-usual osuudeksi on arvioitu 50 %, sillä lähtökohtaisesti yritysten oletetaan tuntevan asiakkaansa. Yritysten arvioidaan joutuvan täyttämään KYC-lomakkeet 3 kertaa vuodessa ja kuhunkin täyttökertaa oletetaan kuluvan asiantuntijan aikaa yhteensä yksi tunti. Vastuullisuussuunnitelma tehtäisiin kerran, jonka jälkeen sitä päivitettäisiin vuosittain. Vastuullisuunnitelman kertaluontaiseksi eräksi arvioidaan neljä työtuntia, jonka jälkeen sen päivittämiseen ja lisäämiseen oletetaan käytettävän 2 työtuntia vuodessa. Vastuullisuussuunnitelman business-as-usual osuudeksi on oletettu 0 %, sillä tällaista velvoitetta ei tällä hetkellä ole olemassa."]
[]
[]
[]
[]
[null,null,"Taustalaskuja - nämä tiedoksi ja nähtäväksi, ei vaadi valmistelijalta toimenpiteitä. Jos yllä olevat tiedot täytetty, siirry seuraaville välilehdille."]
[]
[null,null,"B1","Toistuvat henkilöstökulut tai -säästöt",null,{"$f":"F9","v":"Know Your Customer (KYC) -vaatimus"},{"$f":"G9","v":"Vastuullisuussuunnitelma"},{"$f":"H9","v":"Velvoite3"},{"$f":"I9","v":"Velvoite4"},{"$f":"J9","v":"Velvoite5"}]
[null,null,null,"Käytetty keskipalkka (€/kk)",null,{"$f":"IF(ISNUMBER($E$22),F90*$E$90+F91*$E$91+F92*$E$92+F93*$E$93+F94*$E$94+F95*$E$22,F90*$E$90+F91*$E$91+F92*$E$92+F93*$E$93+F94*$E$94)","v":3996},{"$f":"IF(ISNUMBER($E$22),G90*$E$90+G91*$E$91+G92*$E$92+G93*$E$93+G94*$E$94+G95*$E$22,G90*$E$90+G91*$E$91+G92*$E$92+G93*$E$93+G94*$E$94)","v":3996},0,0,0]
[null,null,null,"Kk-työkustannus ml. palkan sivukulu ja yleiskulu",null,{"$f":"(1+$E$70)*F46","v":6377.616},{"$f":"(1+$E$70)*G46","v":6377.616},0,0,0]
[null,null,null,"Tuntitaksa sivu- ja yleiskuluineen (€/h)",null,{"$f":"F47/$E$79","v":38.254372705679117},{"$f":"G47/$E$79","v":38.254372705679117},0,0,0]
[null,null,null,"Tehtävään käytettävät tunnit p.a.",null,{"$f":"F88*F13","v":3},{"$f":"G88*G13","v":2},{"$f":"H88*H13","v":0},{"$f":"I88*I13","v":0},{"$f":"J88*J13","v":0}]
[null,null,null,"Kustannukset vuodessa per yritys",null,{"$f":"IF(OR(OFFSET('1_Velvoiteluettelo'!$G$17,F106,0)=\"EU-minimisääntelyä\",OFFSET('1_Velvoiteluettelo'!$G$17,F106,0)=\"Kansallista tai EU-minimin ylittävää lisäsääntelyä\"),F49*F48,IF(AND(ISBLANK(OFFSET('1_Velvoiteluettelo'!$G$17,F106,0)),F49>0),\"Täydennä sivu 1\",(-F49*F48)))","v":114.76311811703735},{"$f":"IF(OR(OFFSET('1_Velvoiteluettelo'!$G$17,G106,0)=\"EU-minimisääntelyä\",OFFSET('1_Velvoiteluettelo'!$G$17,G106,0)=\"Kansallista tai EU-minimin ylittävää lisäsääntelyä\"),G49*G48,IF(AND(ISBLANK(OFFSET('1_Velvoiteluettelo'!$G$17,G106,0)),G49>0),\"Täydennä sivu 1\",(-G49*G48)))","v":76.508745411358234},{"$f":"IF(OR(OFFSET('1_Velvoiteluettelo'!$G$17,H106,0)=\"EU-minimisääntelyä\",OFFSET('1_Velvoiteluettelo'!$G$17,H106,0)=\"Kansallista tai EU-minimin ylittävää lisäsääntelyä\"),H49*H48,IF(AND(ISBLANK(OFFSET('1_Velvoiteluettelo'!$G$17,H106,0)),H49>0),\"Täydennä sivu 1\",(-H49*H48)))","v":0},{"$f":"IF(OR(OFFSET('1_Velvoiteluettelo'!$G$17,I106,0)=\"EU-minimisääntelyä\",OFFSET('1_Velvoiteluettelo'!$G$17,I106,0)=\"Kansallista tai EU-minimin ylittävää lisäsääntelyä\"),I49*I48,IF(AND(ISBLANK(OFFSET('1_Velvoiteluettelo'!$G$17,I106,0)),I49>0),\"Täydennä sivu 1\",(-I49*I48)))","v":0},{"$f":"IF(OR(OFFSET('1_Velvoiteluettelo'!$G$17,J106,0)=\"EU-minimisääntelyä\",OFFSET('1_Velvoiteluettelo'!$G$17,J106,0)=\"Kansallista tai EU-minimin ylittävää lisäsääntelyä\"),J49*J48,IF(AND(ISBLANK(OFFSET('1_Velvoiteluettelo'!$G$17,J106,0)),J49>0),\"Täydennä sivu 1\",(-J49*J48)))","v":0}]
[null,null,null,"Toistuva hallinnollinen taakka yht kohdeyrityksille p.a.",null,{"$f":"F11*F50*(1-F12)","v":5738.1559058518678},{"$f":"G11*G50*(1-G12)","v":4590.5247246814943},0,0,{"$f":"J11*J50*(1-J12)","v":0}]
[]
[]
[null,null,"C1","Kertaluontoiset henkilöstökulut",null,{"$f":"F9","v":"Know Your Customer (KYC) -vaatimus"},{"$f":"G9","v":"Vastuullisuussuunnitelma"},{"$f":"H9","v":"Velvoite3"},{"$f":"I9","v":"Velvoite4"},{"$f":"J9","v":"Velvoite5"}]
[null,null,null,"Henkilöstökulut per yritys",null,{"$f":"F58*F59","v":0},{"$f":"G58*G59","v":153.01749082271647},0,0,0]
[null,null,null,"Käytetty keskipalkka (€/kk)",null,{"$f":"IF(ISNUMBER($E$33),F99*$E$90+F100*$E$91+F101*$E$92+F102*$E$93+F103*$E$94+F104*$E$33,F99*$E$90+F100*$E$91+F101*$E$92+F102*$E$93+F103*$E$94)","v":0},{"$f":"IF(ISNUMBER($E$33),G99*$E$90+G100*$E$91+G101*$E$92+G102*$E$93+G103*$E$94+G104*$E$33,G99*$E$90+G100*$E$91+G101*$E$92+G102*$E$93+G103*$E$94)","v":3996},0,0,0]
[null,null,null,"Kk-työkustannus ml. palkan sivukulu ja yleiskulu",null,{"$f":"(1+$E$70)*F56","v":0},{"$f":"(1+$E$70)*G56","v":6377.616},0,0,0]
[null,null,null,"Tuntitaksa sivu- ja yleiskuluineen (€/h)",null,{"$f":"F57/$E$79","v":0},{"$f":"G57/$E$79","v":38.254372705679117},0,0,0]
[null,null,null,"Tehtävään käytettävät tunnit vuodessa",null,{"$f":"F97","v":0},{"$f":"G97","v":4},0,0,0]
[null,null,null,"Kertaluonteinen hallinnollinen taakka yht. kohdeyrityksille",null,{"$f":"F55*F11*(1-F12)","v":0},{"$f":"G55*G11*(1-G12)","v":9181.0494493629885},0,0,0]
[]
[]
[]
[null,null,"Palkan sivukulu ja yleiskulu"]
[null,null,"Palkan sivukulu ja yleiskulu perustuvat … Tähän ei tarvitse syöttää tietoa, eikä tätä tarvitse kopioida. Tämä on vain tiedoksi kertoimesta, joka on valmiina laskukaavassa."]
[]
[]
[null,null,null,"Palkkojen sivukulu-%",0.34599999999999997]
[null,null,null,"Yleiskulu-%",0.25]
[null,null,null,"Yhteensä",{"$f":"E69+E68","v":0.59599999999999997},"Palkka kerrotaan kertoimella 1+(tämä %-luku)"]
[]
[]
[]
[]
[null,null,"Työtunnit (yksityinen sektori)"]
[null,null,"Tähän ei tarvitse syöttää tietoa, eikä tätä tarvitse kopioida. Tämä on vain tiedoksi jakajasta, joka on valmiina laskukaavassa."]
[]
[null,null,null,null,"Työtuntia"]
[null,null,null,"Kuukaudessa",{"$f":"E81*22","v":166.71600000000001},"Kuukausipalkka jaetaan tällä tuntimäärällä tuntipalkan laskemiseksi"]
[null,null,null,"Viikossa",37.89]
[null,null,null,"Päivässä",{"$f":"E80/5","v":7.5780000000000003}]
[]
[]
[]
[]
[]
[null,null,null,"Tarkat palkkasummat 2023 (säännöllisen työajan keskiansio)",null,"Taustalaskuja, älä muuta alla olevien solujen tietoja"]
[null,null,null,null,null,{"$f":"IF(ISNUMBER($E$22),SUM(F17:F22),SUM(F17:F21))","v":1},{"$f":"IF(ISNUMBER($E$22),SUM(G17:G22),SUM(G17:G21))","v":2},{"$f":"IF(ISNUMBER($E$22),SUM(H17:H22),SUM(H17:H21))","v":0},{"$f":"IF(ISNUMBER($E$22),SUM(I17:I22),SUM(I17:I21))","v":0},{"$f":"IF(ISNUMBER($E$22),SUM(J17:J22),SUM(J17:J21))","v":0}]
[null,null,null,"Palkkaluokka"]
[null,null,null,"Johtaja (1 AML 2010)",{"$f":"'Taustatietoa palkat am lk'!B5","v":7599},{"$f":"IF((F$88>0),(F17/F$88),0)","v":0},0,0,0,0]
[null,null,null,"Erityisasiantuntijat (2 AML 2010)",{"$f":"'Taustatietoa palkat am lk'!B51","v":5042},{"$f":"IF((F$88>0),(F18/F$88),0)","v":0},0,0,0,0]
[null,null,null,"Asiantuntija (3 AML 2010)",{"$f":"'Taustatietoa palkat am lk'!B193","v":3996},1,1,0,0,0]
[null,null,null,"Yleissihteeri, palkanlaskija (412, 431 AML 2010)",{"$f":"'Taustatietoa palkat am lk'!B606","v":3193.5},0,0,0,0,0]
[null,null,null,"Toimistoavustaja, tallentaja (411, 4132 AML 2010)",{"$f":"'Taustatietoa palkat am lk'!B607","v":3033},0,0,0,0,0]
[null,null,null,null,null,{"$f":"IF((F$88>0),(F22/F$88),0)","v":0},0,0,0,0]
[null,null,null,"Lähde: Tilastokeskus, palkat ja työvoimakustannukset yksityisellä sektorilla"]
[null,null,null,"Ks. välilehti Taustatietoa palkat am lk",null,{"$f":"IF(ISNUMBER($E$33),SUM(F28:F33),SUM(F28:F32))","v":0},{"$f":"IF(ISNUMBER($E$33),SUM(G28:G33),SUM(G28:G32))","v":4},{"$f":"IF(ISNUMBER($E$33),SUM(H28:H33),SUM(H28:H32))","v":0},{"$f":"IF(ISNUMBER($E$33),SUM(I28:I33),SUM(I28:I32))","v":0},{"$f":"IF(ISNUMBER($E$33),SUM(J28:J33),SUM(J28:J32))","v":0}]
[]
[null,null,null,null,null,{"$f":"IF((F$97>0),(F28/F$97),0)","v":0},{"$f":"IF((G$97>0),(G28/G$97),0)","v":0},0,0,0]
[null,null,null,null,null,0,0,0,0,0]
[null,null,null,null,null,0,1,0,0,0]
[null,null,null,null,null,0,0,0,0,0]
[null,null,null,null,null,0,0,0,0,0]
[null,null,null,null,null,0,0,0,0,0]
[]
[null,null,null,"Sarakelaskuri:",{"$f":"'Listat (älä muuta)'!G4+12","v":12},0,{"$f":"F106+1","v":1},{"$f":"G106+1","v":2},{"$f":"H106+1","v":3},{"$f":"I106+1","v":4},{"$f":"J106+1","v":5},4]
[]
[]
[null,null,null,null,null,0]

{"sheet":"3_Muut kustannukset","index":4,"n_rows":74,"n_cols":16,"rows_kept":74,"cut":false,"hidden":false,"merged":[[48,6,60,10],[20,0,20,1],[12,0,12,1],[35,6,35,7],[27,20,31,31],[23,20,24,30],[12,6,12,7],[14,6,14,7],[35,0,35,1],[44,6,44,7],[22,0,27,1],[37,0,42,1],[34,0,34,1],[13,6,13,7]]}
["Muut toistuvat ja kertaluonteiset kustannuserät -> Kaikki kustannukset yhteensä"]
[]
[]
[]
[null,"Tällä taulukon välilehdellä lasketaan sääntelytaakka kokonaisuudessaan yritys- ja tehtäväkohtaisesti sekä samalla koskien koko kohdejoukkoa."]
["Ohjeet","Täydennä alla laskentataulukkoon keltaisella pohjalla olevat kohdat B2 (toistuvat) ja C2 (kertaluonteiset) tarpeen mukaan. Ks. ohjeita soluista, joissa punainen kulma."]
[null,"Kun olet täyttänyt tiedot, siirry joko välilehdelle",null,null,null,null,null,null,"\"4_Poikkeukset\"","tai","\"5_Yhteenveto\""]
[]
[]
[null,null,null,null,null,null,null,null,{"$f":"IF(ISTEXT(OFFSET('1_Velvoiteluettelo'!$C17,I74,0)),(OFFSET('1_Velvoiteluettelo'!$C17,I74,0)),\"Velvoite\"&I74+1)","v":"Know Your Customer (KYC) -vaatimus"},{"$f":"IF(ISTEXT(OFFSET('1_Velvoiteluettelo'!$C17,J74,0)),(OFFSET('1_Velvoiteluettelo'!$C17,J74,0)),\"Velvoite\"&J74+1)","v":"Vastuullisuussuunnitelma"},{"$f":"IF(ISTEXT(OFFSET('1_Velvoiteluettelo'!$C17,K74,0)),(OFFSET('1_Velvoiteluettelo'!$C17,K74,0)),\"Velvoite\"&K74+1)","v":"Velvoite3"},{"$f":"IF(ISTEXT(OFFSET('1_Velvoiteluettelo'!$C17,L74,0)),(OFFSET('1_Velvoiteluettelo'!$C17,L74,0)),\"Velvoite\"&L74+1)","v":"Velvoite4"},{"$f":"IF(ISTEXT(OFFSET('1_Velvoiteluettelo'!$C17,M74,0)),(OFFSET('1_Velvoiteluettelo'!$C17,M74,0)),\"Velvoite\"&M74+1)","v":"Velvoite5"}]
[null,null,null,"A.","Perustiedot, eli kohdejoukko ja frekvenssi (tiedot siirtyy välilehdeltä 2B_työkustannus. Täydennä ja korjaa nämä tarvittaessa edelliselle välilehdelle.)"]
[]
[null,null,null,null,null,"A1","Kohdejoukko (yritysten lukumäärä)",null,{"$f":"OFFSET('2B_Työkustannus'!$F11,0,1*I74)","v":100},{"$f":"OFFSET('2B_Työkustannus'!$F11,0,1*J74)","v":60},{"$f":"OFFSET('2B_Työkustannus'!$F11,0,1*K74)","v":0},{"$f":"OFFSET('2B_Työkustannus'!$F11,0,1*L74)","v":0},{"$f":"OFFSET('2B_Työkustannus'!$F11,0,1*M74)","v":0}]
[null,null,null,null,null,"A3","Business-as-Usual-osuus",null,{"$f":"OFFSET('2B_Työkustannus'!$F12,0,1*I74)","v":0.5},{"$f":"OFFSET('2B_Työkustannus'!$F12,0,1*J74)","v":0},{"$f":"OFFSET('2B_Työkustannus'!$F12,0,1*K74)","v":0},{"$f":"OFFSET('2B_Työkustannus'!$F12,0,1*L74)","v":0},{"$f":"OFFSET('2B_Työkustannus'!$F12,0,1*M74)","v":0}]
[null,null,null,null,null,"A3","Frekvenssi per vuosi",null,{"$f":"OFFSET('2B_Työkustannus'!$F13,0,1*I74)","v":3},{"$f":"OFFSET('2B_Työkustannus'!$F13,0,1*J74)","v":1},{"$f":"OFFSET('2B_Työkustannus'!$F13,0,1*K74)","v":0},{"$f":"OFFSET('2B_Työkustannus'!$F13,0,1*L74)","v":0},{"$f":"OFFSET('2B_Työkustannus'!$F13,0,1*M74)","v":0}]
[]
[null,null,null,"B.","Toistuvat taakkavaikutukset (1. vuosi ja sen jälkeen)"]
[null,null,null,null,null,null,null,null,"Lain yritykselle aiheuttamat velvoitteet, joista suoria kustannuslisäyksiä tai velvoitteet, joiden purusta kustannussäästöjä"]
[]
[null,null,null,null,null,"B1","Toistuvat henkilöstökustannukset tai -säästöt",null,null,null,null,null,null,null,null,"Yhteensä"]
[null,null,null,null,null,null,"Toistuva hallinnollinen taakka yht kohdeyrityksille p.a.",null,{"$f":"OFFSET('2B_Työkustannus'!$F23,0,1*I74)","v":5738.1559058518678},{"$f":"OFFSET('2B_Työkustannus'!$F23,0,1*J74)","v":4590.5247246814943},{"$f":"OFFSET('2B_Työkustannus'!$F23,0,1*K74)","v":0},{"$f":"OFFSET('2B_Työkustannus'!$F23,0,1*L74)","v":0},{"$f":"OFFSET('2B_Työkustannus'!$F23,0,1*M74)","v":0},null,null,{"$f":"SUM(I21:N21)","v":10328.680630533363}]
[]
[null,null,null,null,null,"B2","Muut toistuvat kustannukset velvoitteista tai säästöt velvoitteiden purusta"]
[null,null,null,null,null,null,null,"Hankintakustannukset per frekvenssi",0,0,0,0,0]
[null,null,null,null,null,null,null,"Välinekustannukset per frekvenssi",0,0,0,0,0]
[null,null,null,null,null,null,null,"Muut kustannukset per frekvenssi",0,0,0,0,0]
[null,null,null,null,null,null,null,"Kustannukset yhteensä per yritys p.a.",{"$f":"IF(OR(OFFSET('1_Velvoiteluettelo'!$G$17,I74,0)=\"EU-minimisääntelyä\",OFFSET('1_Velvoiteluettelo'!$G$17,I74,0)=\"Kansallista tai EU-minimin ylittävää lisäsääntelyä\"),SUM(I24:I26)*I15,IF(AND(ISBLANK(OFFSET('1_Velvoiteluettelo'!$G$17,I74,0)),I24+I25+I26>0),\"Täydennä sivu 1\",(-SUM(I24:I26)*I15*(1-I14))))","v":0},{"$f":"IF(OR(OFFSET('1_Velvoiteluettelo'!$G$17,J74,0)=\"EU-minimisääntelyä\",OFFSET('1_Velvoiteluettelo'!$G$17,J74,0)=\"Kansallista tai EU-minimin ylittävää lisäsääntelyä\"),SUM(J24:J26)*J15,IF(AND(ISBLANK(OFFSET('1_Velvoiteluettelo'!$G$17,J74,0)),J24+J25+J26>0),\"Täydennä sivu 1\",(-SUM(J24:J26)*J15*(1-J14))))","v":0},{"$f":"IF(OR(OFFSET('1_Velvoiteluettelo'!$G$17,K74,0)=\"EU-minimisääntelyä\",OFFSET('1_Velvoiteluettelo'!$G$17,K74,0)=\"Kansallista tai EU-minimin ylittävää lisäsääntelyä\"),SUM(K24:K26)*K15,IF(AND(ISBLANK(OFFSET('1_Velvoiteluettelo'!$G$17,K74,0)),K24+K25+K26>0),\"Täydennä sivu 1\",(-SUM(K24:K26)*K15*(1-K14))))","v":0},{"$f":"IF(OR(OFFSET('1_Velvoiteluettelo'!$G$17,L74,0)=\"EU-minimisääntelyä\",OFFSET('1_Velvoiteluettelo'!$G$17,L74,0)=\"Kansallista tai EU-minimin ylittävää lisäsääntelyä\"),SUM(L24:L26)*L15,IF(AND(ISBLANK(OFFSET('1_Velvoiteluettelo'!$G$17,L74,0)),L24+L25+L26>0),\"Täydennä sivu 1\",(-SUM(L24:L26)*L15*(1-L14))))","v":0},{"$f":"IF(OR(OFFSET('1_Velvoiteluettelo'!$G$17,M74,0)=\"EU-minimisääntelyä\",OFFSET('1_Velvoiteluettelo'!$G$17,M74,0)=\"Kansallista tai EU-minimin ylittävää lisäsääntelyä\"),SUM(M24:M26)*M15,IF(AND(ISBLANK(OFFSET('1_Velvoiteluettelo'!$G$17,M74,0)),M24+M25+M26>0),\"Täydennä sivu 1\",(-SUM(M24:M26)*M15*(1-M14))))","v":0},null,null,{"$f":"SUM(I27:N27)","v":0}]
[null,null,null,null,null,null,"Muut toistuvat kustannukset yht kohdeyrityksille p.a.",null,{"$f":"IF(OR(OFFSET('1_Velvoiteluettelo'!$G$17,I74,0)=\"EU-minimisääntelyä\",OFFSET('1_Velvoiteluettelo'!$G$17,I74,0)=\"Kansallista tai EU-minimin ylittävää lisäsääntelyä\"),(I24+I25+I26)*I13*I15*(1-I14),IF(AND(ISBLANK(OFFSET('1_Velvoiteluettelo'!$G$17,I74,0)),I24+I25+I26>0),\"Täydennä sivu 1\",(-(I24+I25+I26)*I13*I15*(1-I14))))","v":0},{"$f":"IF(OR(OFFSET('1_Velvoiteluettelo'!$G$17,J74,0)=\"EU-minimisääntelyä\",OFFSET('1_Velvoiteluettelo'!$G$17,J74,0)=\"Kansallista tai EU-minimin ylittävää lisäsääntelyä\"),(J24+J25+J26)*J13*J15*(1-J14),IF(AND(ISBLANK(OFFSET('1_Velvoiteluettelo'!$G$17,J74,0)),J24+J25+J26>0),\"Täydennä sivu 1\",(-(J24+J25+J26)*J13*J15*(1-J14))))","v":0},{"$f":"IF(OR(OFFSET('1_Velvoiteluettelo'!$G$17,K74,0)=\"EU-minimisääntelyä\",OFFSET('1_Velvoiteluettelo'!$G$17,K74,0)=\"Kansallista tai EU-minimin ylittävää lisäsääntelyä\"),(K24+K25+K26)*K13*K15*(1-K14),IF(AND(ISBLANK(OFFSET('1_Velvoiteluettelo'!$G$17,K74,0)),K24+K25+K26>0),\"Täydennä sivu 1\",(-(K24+K25+K26)*K13*K15*(1-K14))))","v":0},{"$f":"IF(OR(OFFSET('1_Velvoiteluettelo'!$G$17,L74,0)=\"EU-minimisääntelyä\",OFFSET('1_Velvoiteluettelo'!$G$17,L74,0)=\"Kansallista tai EU-minimin ylittävää lisäsääntelyä\"),(L24+L25+L26)*L13*L15*(1-L14),IF(AND(ISBLANK(OFFSET('1_Velvoiteluettelo'!$G$17,L74,0)),L24+L25+L26>0),\"Täydennä sivu 1\",(-(L24+L25+L26)*L13*L15*(1-L14))))","v":0},{"$f":"IF(OR(OFFSET('1_Velvoiteluettelo'!$G$17,M74,0)=\"EU-minimisääntelyä\",OFFSET('1_Velvoiteluettelo'!$G$17,M74,0)=\"Kansallista tai EU-minimin ylittävää lisäsääntelyä\"),(M24+M25+M26)*M13*M15*(1-M14),IF(AND(ISBLANK(OFFSET('1_Velvoiteluettelo'!$G$17,M74,0)),M24+M25+M26>0),\"Täydennä sivu 1\",(-(M24+M25+M26)*M13*M15*(1-M14))))","v":0},null,null,{"$f":"SUM(I28:N28)","v":0}]
[]
[null,null,null,null,null,"B Yht","Toistuvat kustannukset yht kohdeyrityksille",null,{"$f":"I21+I28","v":5738.1559058518678},{"$f":"J21+J28","v":4590.5247246814943},{"$f":"K21+K28","v":0},{"$f":"L21+L28","v":0},{"$f":"M21+M28","v":0},null,null,{"$f":"SUM(I30:N30)","v":10328.680630533363}]
[]
[null,null,null,"C.","Kertaluonteiset taakkavaikutukset (1. vuosi)"]
[null,null,null,null,null,null,null,null,"Lain yritykselle aiheuttamat velvoitteet, joista suoria kustannuslisäyksiä tai velvoitteet, joiden purusta kustannussäästöjä"]
[]
[null,null,null,null,null,"C1","Kertaluonteiset henkilöstökustannukset",null,null,null,null,null,null,null,null,"Yhteensä"]
[null,null,null,null,null,null,"Kertaluontoinen henkilöstökustannus kaikille yrityksille yhteensä",null,{"$f":"OFFSET('2B_Työkustannus'!$F60,0,1*I74)","v":0},{"$f":"OFFSET('2B_Työkustannus'!$F60,0,1*J74)","v":9181.0494493629885},{"$f":"OFFSET('2B_Työkustannus'!$F60,0,1*K74)","v":0},{"$f":"OFFSET('2B_Työkustannus'!$F60,0,1*L74)","v":0},{"$f":"OFFSET('2B_Työkustannus'!$F60,0,1*M74)","v":0},null,null,{"$f":"SUM(I36:N36)","v":9181.0494493629885}]
[]
[null,null,null,null,null,"C2","Sääntelyn yritykselle aiheuttamat muut Kertaluonteiset kustannukset"]
[null,null,null,null,null,null,null,"Hankintakustannukset",0,0,0,0,0,null,null,{"$f":"SUM(I39:N39)","v":0}]
[null,null,null,null,null,null,null,"Välinekustannukset",0,0,0,0,0,null,null,{"$f":"SUM(I40:N40)","v":0}]
[null,null,null,null,null,null,null,"Muut kustannukset",0,0,0,0,0,null,null,{"$f":"SUM(I41:N41)","v":0}]
[null,null,null,null,null,null,null,"Kustannukset yhteensä per yritys",{"$f":"SUM(I39:I41)","v":0},{"$f":"SUM(J39:J41)","v":0},{"$f":"SUM(K39:K41)","v":0},{"$f":"SUM(L39:L41)","v":0},{"$f":"SUM(M39:M41)","v":0},null,null,{"$f":"SUM(I42:N42)","v":0}]
[null,null,null,null,null,null,"Kertaluonteiset muut kust. yht. kohdeyrityksille",null,{"$f":"IF(AND(ISBLANK(OFFSET('1_Velvoiteluettelo'!$G$17,I74,0)),I39+I40+I41>0),\"Täydennä sivu 1\",(SUM(I39:I41)))*I13*(1-I14)","v":0},{"$f":"IF(AND(ISBLANK(OFFSET('1_Velvoiteluettelo'!$G$17,J74,0)),J39+J40+J41>0),\"Täydennä sivu 1\",(SUM(J39:J41)))*J13*(1-J14)","v":0},{"$f":"IF(AND(ISBLANK(OFFSET('1_Velvoiteluettelo'!$G$17,K74,0)),K39+K40+K41>0),\"Täydennä sivu 1\",(SUM(K39:K41)))*K13*(1-K14)","v":0},{"$f":"IF(AND(ISBLANK(OFFSET('1_Velvoiteluettelo'!$G$17,L74,0)),L39+L40+L41>0),\"Täydennä sivu 1\",(SUM(L39:L41)))*L13*(1-L14)","v":0},{"$f":"IF(AND(ISBLANK(OFFSET('1_Velvoiteluettelo'!$G$17,M74,0)),M39+M40+M41>0),\"Täydennä sivu 1\",(SUM(M39:M41)))*M13*(1-M14)","v":0},null,null,{"$f":"SUM(I43:N43)","v":0}]
[]
[null,null,null,null,null,"C Yht","Kertaluonteiset kust. yht. kohdeyrityksille",null,{"$f":"I43+I36","v":0},{"$f":"J43+J36","v":9181.0494493629885},{"$f":"K43+K36","v":0},{"$f":"L43+L36","v":0},{"$f":"M43+M36","v":0},null,null,{"$f":"SUM(I45:N45)","v":9181.0494493629885}]
[]
[]
[null,null,null,null,null,null,"Kirjoita tähän perustelut ja kuinka tiedot on hankittu, lähdeviittaukset."]
[]
[]
[]
[]
[]
[]
[]
[]
[]
[]
[]
[]
[]
[]
[]
[]
[]
[]
[]
[]
[]
[]
[]
[]
[null,null,null,null,null,null,null,null,"Apuruutuja, älä muuta",{"$f":"'Listat (älä muuta)'!G4+15","v":15}]
[null,null,null,null,null,null,null,null,0,{"$f":"I74+1","v":1},{"$f":"J74+1","v":2},{"$f":"K74+1","v":3},{"$f":"L74+1","v":4},{"$f":"M74+1","v":5}]

{"sheet":"4_Poikkeukset","index":5,"n_rows":35,"n_cols":22,"rows_kept":35,"cut":false,"hidden":false,"merged":[[5,2,5,3],[5,4,5,5],[15,1,21,7],[5,7,6,8]]}
[]
[null,"POIKKEUS: kasvava tai supistuva yritysjoukko"]
[]
[null,"Käytä VAIN, mikäli on uskottavasti odotettavissa, että yritysjoukko, jota sääntely koskee, on merkittävästi joko kasvamassa tai supistumassa tulevaisuudessa",null,null,null,null,null,null,null,null,null,null,null,null,null,null,null,null,null,null,null,{"$f":"'Listat (älä muuta)'!G4+14","v":14}]
[]
[null,null,"Yritysjoukon kasvunopeus (%)",null,"Yritysten lukumäärä",null,null,{"$f":"IF(AND(SUM(C8:C13)=0,SUM(E8:E13)=SUM(F8:F13)),\"\",IF(ISBLANK(B16),\"Kirjoita perustelut!\",\"Ok!\"))","v":""}]
[null,null,"Vuodessa (täytä)","Kymmenessä vuodessa","Yrityksiä perusvuonna","Yrityksiä 10 vuoden päästä"]
[null,{"$f":"IF(ISTEXT('1_Velvoiteluettelo'!C17),'1_Velvoiteluettelo'!C17,'1_Velvoiteluettelo'!B17)","v":"Know Your Customer (KYC) -vaatimus"},0,{"$f":"((C8+1)^10)-1","v":0},{"$f":"OFFSET('3_Muut kustannukset'!$I$13,0,'1_Velvoiteluettelo'!S17-1)","v":100},{"$f":"E8+D8*E8","v":100}]
[null,{"$f":"IF(ISTEXT('1_Velvoiteluettelo'!C18),'1_Velvoiteluettelo'!C18,'1_Velvoiteluettelo'!B18)","v":"Vastuullisuussuunnitelma"},0,{"$f":"((C9+1)^10)-1","v":0},{"$f":"OFFSET('3_Muut kustannukset'!$I$13,0,'1_Velvoiteluettelo'!S18-1)","v":60},{"$f":"E9+D9*E9","v":60}]
[null,{"$f":"IF(ISTEXT('1_Velvoiteluettelo'!C19),'1_Velvoiteluettelo'!C19,'1_Velvoiteluettelo'!B19)","v":"Velvoite3"},0,{"$f":"((C10+1)^10)-1","v":0},{"$f":"OFFSET('3_Muut kustannukset'!$I$13,0,'1_Velvoiteluettelo'!S19-1)","v":0},{"$f":"E10+D10*E10","v":0}]
[null,{"$f":"IF(ISTEXT('1_Velvoiteluettelo'!C20),'1_Velvoiteluettelo'!C20,'1_Velvoiteluettelo'!B20)","v":"Velvoite4"},0,{"$f":"((C11+1)^10)-1","v":0},{"$f":"OFFSET('3_Muut kustannukset'!$I$13,0,'1_Velvoiteluettelo'!S20-1)","v":0},{"$f":"E11+D11*E11","v":0}]
[null,{"$f":"IF(ISTEXT('1_Velvoiteluettelo'!C21),'1_Velvoiteluettelo'!C21,'1_Velvoiteluettelo'!B21)","v":"Velvoite5"},0,{"$f":"((C12+1)^10)-1","v":0},{"$f":"OFFSET('3_Muut kustannukset'!$I$13,0,'1_Velvoiteluettelo'!S21-1)","v":0},{"$f":"E12+D12*E12","v":0}]
[]
[]
[null,"Perustelut (Miksi uskot yritysjoukon koon muuttuvan, lähdeviittaukset):"]
[null,"Yritysjoukko oletetaan vakioksi. Luvussa on jo huomioitu mahdollinen puolustusteollisuuden kasvu. Vuonna 2024 lupia myönnettiin 90 yritykselle ja lähtökohtana laskelmassa on käytetty 100 yritystä (11 % kasvu)."]
[]
[]
[]
[]
[]
[]
[]
[]
[null,null,"Palaa takaisin tai siirry"]
[null,null,"Ohjeisiin"]
[null,null,"Tarkistuslistaan","Ohjeet ja tarkistuslista"]
[null,null,"Välilehdelle 1","Velvoiteluettelo"]
[null,null,"Välilehdelle 2","Työkustannukset"]
[null,null,"Välilehdelle 3","Muut kustannuksen ja kustannukset yhteensä"]
[null,null,"Välilehdelle 5","Yhteenveto"]
[null,null,"Apu2","Tehtäväkohtainen aika - apu hahmottamiseen"]
[null,null,"Apu3","Laite tms kustannuksista"]
[null,null,"Apu4","Yksinkertainen esimerkkilaskelma"]
[null,null,"Apu5","Tietolähteitä"]

{"sheet":"5_Yhteenveto","index":6,"n_rows":26,"n_cols":35,"rows_kept":26,"cut":false,"hidden":false,"merged":[[23,1,23,4],[24,1,24,4],[25,5,25,6],[11,4,11,6],[4,1,8,6],[9,1,9,3],[9,7,9,9],[5,7,5,9],[8,7,8,9],[11,7,11,8],[6,7,6,9]]}
["Yhteenveto ja tiedot, jotka tulee kirjata hallituksen esitykseen"]
[]
[]
[]
[null,"Tälle välilehdelle ei täytetä mitään tietoja.\nTämä välilehti kerää muilta välilehdiltä yhteenvedon kaikista velvoitteiden aiheuttamista kustannuslisäyksistä ja -säästöistä.\nVälilehdellä on myös eriteltynä nettokustannukset EU-sääntelystä ja kansallisesta sääntelystä.\nKatso kohdat, joihin on merkitty \"Kirjaa nämä hallituksen esitykseen\" ja kirjoita nämä auki HE:n yritysvaikutusarvioinnin alle. Huom. ao. luvut pyöristettyjä. Kirjoita HE:een noin numeroarvon eteen.\nKatso tarvittaessa myös oikeusminiteriön ohje vaikutusarvioinnin laatimisesta sekä TEM:n laatima ohjeistus. (Linkit ohessa)",null,null,null,null,null,"Lisäohjeita:"]
[null,null,null,null,null,null,null,"Oikeusministeriön ohje (2007:6) vaikutusarvioinnin laatimisesta"]
[null,null,null,null,null,null,null,"Työ- ja elinkeinoministeriön raportit ja ohjeet"]
["Ohjeet"]
[null,null,null,null,null,null,null,"*Nettonykyarvo = Sääntelyn taakkavaikutus yrityskentälle nykyhetkestä tulevaisuuteen mitattuna perusvuoden rahassa (rahan arvo laskee 4 % vuosivauhtia)"]
[null,"Lopuksi, lähetä laskelma tarkistettavaksi ja tallennettavaksi (koskee TEMiä).",null,null,null,null,null,"*Nettonykyarvo vuositasolla = Sääntelyn keskimääräinen taakkavaikutus vuositasolla lain voimassaolon ajan (oletus: 10 vuotta)"]
[]
["Yhteenveto velvoitekohtaisesti",null,null,null,"Kirjaa nämä hallituksen esitykseen!",null,null,"Laskennallisia eriä",null,null,null,"Kustannukset per yritys",null,null,null,"Tarkat, ei pyöristetyt arvot",null,null,null,null,"per yritys, tarkat, ei pyöristetyt arvot",null,null,null,null,null,"Apulaskuruutu: EU-sääntelyosan ja kansallisen osan erottaminen",null,null,null,null,null,null,"Rivejä lisätty:",{"$f":"'Listat (älä muuta)'!G4","v":0}]
["Velvoite-numero","Velvoitteen nimi","Sääntelyn luonne","Kuinka kauan voimassa?","Yritysten määrä (A)","Kertakustannus nykyrahassa (C) ","Toistuvat kustannukset (+) / säästöt (-) nykyrahassa (B)","Kustannusten ja säästöjen kokonaissumman nettonykyarvo*","Nettonykyarvo vuositasolla*","Kannustin lainvalmistelijalle",null,"Velvoitteen nimi","Kertakustannus nykyrahassa","Toistuvat kustannukset (+) / säästöt (-) nykyrahassa vuosittain",null,"Kertakustannus nykyrahassa (C) ","Toistuvat kustannukset (+) / säästöt (-) nykyrahassa (B)","Kustannusten ja säästöjen kokonaissumman nettonykyarvo*","Nettonykyarvo vuositasolla*",null,"Velvoitteen nimi","Kertakustannus nykyrahassa","Toistuvat kustannukset (+) / säästöt (-) nykyrahassa vuosittain",null,null,null,"NPV:n EU-osuus","NPV:n Kansallinen osuus","Jos EU, arvo=1","Jos kans., arvo=1",null,"Kerta- kustannusten EU-osuus","Toistuvien kustannusten EU-osuus","Kerta- kustannusten kans. osuus","Toistuvien kustannusten kans. osuus"]
[{"$f":"'1_Velvoiteluettelo'!B17","v":"Velvoite1"},{"$f":"IF(ISTEXT('1_Velvoiteluettelo'!C17),'1_Velvoiteluettelo'!C17,\"\")","v":"Know Your Customer (KYC) -vaatimus"},{"$f":"IF(ISTEXT('1_Velvoiteluettelo'!G17),'1_Velvoiteluettelo'!G17,\"\")","v":"Kansallista tai EU-minimin ylittävää lisäsääntelyä"},{"$f":"'1_Velvoiteluettelo'!E17","v":"toistaiseksi"},{"$f":"IF(ISNUMBER(OFFSET('3_Muut kustannukset'!$I$13,0,AE14)),OFFSET('3_Muut kustannukset'!$I$13,0,AE14),(\"-\"))","v":100},{"$f":"IF(P14>0,IF(OR((P14=1000000),(P14<1000000)),MROUND(P14,1000),IF(P14<10000000,MROUND(P14,10000),MROUND(P14,100000))),IF(OR((ABS(P14)=1000000),(ABS(P14)<1000000)),MROUND(P14,-1000),IF(ABS(P14)<10000000,MROUND(P14,-10000),MROUND(P14,-100000))))","v":0},{"$f":"IF(Q14>0,IF(OR((Q14=1000000),(Q14<1000000)),MROUND(Q14,1000),IF(Q14<10000000,MROUND(Q14,10000),MROUND(Q14,100000))),IF(OR((ABS(Q14)=1000000),(ABS(Q14)<1000000)),MROUND(Q14,-1000),IF(ABS(Q14)<10000000,MROUND(Q14,-10000),MROUND(Q14,-100000))))","v":6000},{"$f":"IF(R14>0,IF(OR((R14=100000),(R14<100000)),MROUND(R14,1000),IF(R14<1000000,MROUND(R14,10000),MROUND(R14,100000))),IF(OR((ABS(R14)=100000),(ABS(R14)<100000)),MROUND(R14,-1000),IF(ABS(R14)<1000000,MROUND(R14,-10000),MROUND(R14,-100000))))","v":37000},{"$f":"IF(S14>0,IF(OR((S14=100000),(S14<100000)),MROUND(S14,1000),IF(S14<1000000,MROUND(S14,10000),MROUND(S14,100000))),IF(OR((ABS(S14)=100000),(ABS(S14)<100000)),MROUND(S14,-1000),IF(ABS(S14)<1000000,MROUND(S14,-10000),MROUND(S14,-100000))))","v":5000},{"$f":"IF(ISBLANK('1_Velvoiteluettelo'!G17),\"\",IF(S14>0,\"Voiko sääntelyä sujuvoittaa?\",IF(S14=0,\"\",\"Hyvä, sääntelytaakka kevenee!\")))","v":"Voiko sääntelyä sujuvoittaa?"},null,{"$f":"IF(ISTEXT('1_Velvoiteluettelo'!C17),'1_Velvoiteluettelo'!C17,\"\")","v":"Know Your Customer (KYC) -vaatimus"},{"$f":"IF(V14>0,IF(OR((V14=1000),(V14<1000)),MROUND(V14,10),IF(V14<100000,MROUND(V14,100),MROUND(V14,1000))),IF(OR((ABS(V14)=1000),(ABS(V14)<1000)),MROUND(V14,-10),IF(ABS(V14)<100000,MROUND(V14,-100),MROUND(V14,-1000))))","v":0},{"$f":"IF(W14>0,IF(OR((W14=1000),(W14<1000)),MROUND(W14,10),IF(W14<100000,MROUND(W14,100),MROUND(W14,1000))),IF(OR((ABS(W14)=1000),(ABS(W14)<1000)),MROUND(W14,-10),IF(ABS(W14)<100000,MROUND(W14,-100),MROUND(W14,-1000))))","v":60},null,{"$f":"OFFSET('3_Muut kustannukset'!I$45,0,AE14)","v":0},{"$f":"OFFSET('3_Muut kustannukset'!I$30,0,AE14)","v":5738.1559058518678},{"$f":"OFFSET('Annualisoitu NPV'!$D$38,0,AE14)","v":36913.657304357388},{"$f":"OFFSET('Annualisoitu NPV'!$D$40,0,AE14)","v":4551.1196677332591},null,{"$f":"IF(ISTEXT('1_Velvoiteluettelo'!C17),'1_Velvoiteluettelo'!C17,\"\")","v":"Know Your Customer (KYC) -vaatimus"},{"$f":"IF(AND(NOT(E14=0),(ISNUMBER(E14))),P14/E14,\"0\")","v":0},{"$f":"IF(AND(NOT(E14=0),(ISNUMBER(E14))),Q14/E14,\"0\")","v":57.381559058518675},null,null,null,{"$f":"R14*AC14","v":0},{"$f":"R14*AD14","v":36913.657304357388},{"$f":"IF(OR(C14=\"EU-minimisääntelyä\",C14=\"EU:n velvoittamaa sääntelyn keventämistä\"),1,IF(ISBLANK(C14),\"\",0))","v":0},{"$f":"IF(OR(C14=\"EU-minimisääntelyä\",C14=\"EU:n velvoittamaa sääntelyn keventämistä\"),0,IF(ISBLANK(C14),\"\",1))","v":1},0,{"$f":"P14*$AC14","v":0},{"$f":"Q14*$AC14","v":0},{"$f":"P14*$AD14","v":0},{"$f":"Q14*$AD14","v":5738.1559058518678}]
[{"$f":"'1_Velvoiteluettelo'!B18","v":"Velvoite2"},{"$f":"IF(ISTEXT('1_Velvoiteluettelo'!C18),'1_Velvoiteluettelo'!C18,\"\")","v":"Vastuullisuussuunnitelma"},{"$f":"IF(ISTEXT('1_Velvoiteluettelo'!G18),'1_Velvoiteluettelo'!G18,\"\")","v":"Kansallista tai EU-minimin ylittävää lisäsääntelyä"},{"$f":"'1_Velvoiteluettelo'!E18","v":"toistaiseksi"},{"$f":"IF(ISNUMBER(OFFSET('3_Muut kustannukset'!$I$13,0,AE15)),OFFSET('3_Muut kustannukset'!$I$13,0,AE15),(\"-\"))","v":60},{"$f":"IF(P15>0,IF(OR((P15=1000000),(P15<1000000)),MROUND(P15,1000),IF(P15<10000000,MROUND(P15,10000),MROUND(P15,100000))),IF(OR((ABS(P15)=1000000),(ABS(P15)<1000000)),MROUND(P15,-1000),IF(ABS(P15)<10000000,MROUND(P15,-10000),MROUND(P15,-100000))))","v":9000},{"$f":"IF(Q15>0,IF(OR((Q15=1000000),(Q15<1000000)),MROUND(Q15,1000),IF(Q15<10000000,MROUND(Q15,10000),MROUND(Q15,100000))),IF(OR((ABS(Q15)=1000000),(ABS(Q15)<1000000)),MROUND(Q15,-1000),IF(ABS(Q15)<10000000,MROUND(Q15,-10000),MROUND(Q15,-100000))))","v":5000},{"$f":"IF(R15>0,IF(OR((R15=100000),(R15<100000)),MROUND(R15,1000),IF(R15<1000000,MROUND(R15,10000),MROUND(R15,100000))),IF(OR((ABS(R15)=100000),(ABS(R15)<100000)),MROUND(R15,-1000),IF(ABS(R15)<1000000,MROUND(R15,-10000),MROUND(R15,-100000))))","v":37000},{"$f":"IF(S15>0,IF(OR((S15=100000),(S15<100000)),MROUND(S15,1000),IF(S15<1000000,MROUND(S15,10000),MROUND(S15,100000))),IF(OR((ABS(S15)=100000),(ABS(S15)<100000)),MROUND(S15,-1000),IF(ABS(S15)<1000000,MROUND(S15,-10000),MROUND(S15,-100000))))","v":5000},{"$f":"IF(ISBLANK('1_Velvoiteluettelo'!G18),\"\",IF(S15>0,\"Voiko sääntelyä sujuvoittaa?\",IF(S15=0,\"\",\"Hyvä, sääntelytaakka kevenee!\")))","v":"Voiko sääntelyä sujuvoittaa?"},null,{"$f":"IF(ISTEXT('1_Velvoiteluettelo'!C18),'1_Velvoiteluettelo'!C18,\"\")","v":"Vastuullisuussuunnitelma"},{"$f":"IF(V15>0,IF(OR((V15=1000),(V15<1000)),MROUND(V15,10),IF(V15<100000,MROUND(V15,100),MROUND(V15,1000))),IF(OR((ABS(V15)=1000),(ABS(V15)<1000)),MROUND(V15,-10),IF(ABS(V15)<100000,MROUND(V15,-100),MROUND(V15,-1000))))","v":150},{"$f":"IF(W15>0,IF(OR((W15=1000),(W15<1000)),MROUND(W15,10),IF(W15<100000,MROUND(W15,100),MROUND(W15,1000))),IF(OR((ABS(W15)=1000),(ABS(W15)<1000)),MROUND(W15,-10),IF(ABS(W15)<100000,MROUND(W15,-100),MROUND(W15,-1000))))","v":80},null,{"$f":"OFFSET('3_Muut kustannukset'!I$45,0,AE15)","v":9181.0494493629885},{"$f":"OFFSET('3_Muut kustannukset'!I$30,0,AE15)","v":4590.5247246814943},{"$f":"OFFSET('Annualisoitu NPV'!$D$38,0,AE15)","v":37043.042185498372},{"$f":"OFFSET('Annualisoitu NPV'!$D$40,0,AE15)","v":4567.0716519111729},null,{"$f":"IF(ISTEXT('1_Velvoiteluettelo'!C18),'1_Velvoiteluettelo'!C18,\"\")","v":"Vastuullisuussuunnitelma"},{"$f":"IF(AND(NOT(E15=0),(ISNUMBER(E15))),P15/E15,\"0\")","v":153.01749082271647},{"$f":"IF(AND(NOT(E15=0),(ISNUMBER(E15))),Q15/E15,\"0\")","v":76.508745411358234},null,null,null,{"$f":"R15*AC15","v":0},{"$f":"R15*AD15","v":37043.042185498372},{"$f":"IF(OR(C15=\"EU-minimisääntelyä\",C15=\"EU:n velvoittamaa sääntelyn keventämistä\"),1,IF(ISBLANK(C15),\"\",0))","v":0},{"$f":"IF(OR(C15=\"EU-minimisääntelyä\",C15=\"EU:n velvoittamaa sääntelyn keventämistä\"),0,IF(ISBLANK(C15),\"\",1))","v":1},{"$f":"AE14+1","v":1},{"$f":"P15*$AC15","v":0},{"$f":"Q15*$AC15","v":0},{"$f":"P15*$AD15","v":9181.0494493629885},{"$f":"Q15*$AD15","v":4590.5247246814943}]
[{"$f":"'1_Velvoiteluettelo'!B19","v":"Velvoite3"},{"$f":"IF(ISTEXT('1_Velvoiteluettelo'!C19),'1_Velvoiteluettelo'!C19,\"\")","v":""},{"$f":"IF(ISTEXT('1_Velvoiteluettelo'!G19),'1_Velvoiteluettelo'!G19,\"\")","v":""},{"$f":"'1_Velvoiteluettelo'!E19","v":"toistaiseksi"},{"$f":"IF(ISNUMBER(OFFSET('3_Muut kustannukset'!$I$13,0,AE16)),OFFSET('3_Muut kustannukset'!$I$13,0,AE16),(\"-\"))","v":0},0,0,0,0,{"$f":"IF(ISBLANK('1_Velvoiteluettelo'!G19),\"\",IF(S16>0,\"Voiko sääntelyä sujuvoittaa?\",IF(S16=0,\"\",\"Hyvä, sääntelytaakka kevenee!\")))","v":""},null,{"$f":"IF(ISTEXT('1_Velvoiteluettelo'!C19),'1_Velvoiteluettelo'!C19,\"\")","v":""},0,0,null,{"$f":"OFFSET('3_Muut kustannukset'!I$45,0,AE16)","v":0},{"$f":"OFFSET('3_Muut kustannukset'!I$30,0,AE16)","v":0},{"$f":"OFFSET('Annualisoitu NPV'!$D$38,0,AE16)","v":0},{"$f":"OFFSET('Annualisoitu NPV'!$D$40,0,AE16)","v":0},null,{"$f":"IF(ISTEXT('1_Velvoiteluettelo'!C19),'1_Velvoiteluettelo'!C19,\"\")","v":""},"0","0",null,null,null,0,0,0,1,{"$f":"AE15+1","v":2},0,0,0,0]
[{"$f":"'1_Velvoiteluettelo'!B20","v":"Velvoite4"},{"$f":"IF(ISTEXT('1_Velvoiteluettelo'!C20),'1_Velvoiteluettelo'!C20,\"\")","v":""},{"$f":"IF(ISTEXT('1_Velvoiteluettelo'!G20),'1_Velvoiteluettelo'!G20,\"\")","v":""},{"$f":"'1_Velvoiteluettelo'!E20","v":"toistaiseksi"},{"$f":"IF(ISNUMBER(OFFSET('3_Muut kustannukset'!$I$13,0,AE17)),OFFSET('3_Muut kustannukset'!$I$13,0,AE17),(\"-\"))","v":0},0,0,0,0,{"$f":"IF(ISBLANK('1_Velvoiteluettelo'!G20),\"\",IF(S17>0,\"Voiko sääntelyä sujuvoittaa?\",IF(S17=0,\"\",\"Hyvä, sääntelytaakka kevenee!\")))","v":""},null,{"$f":"IF(ISTEXT('1_Velvoiteluettelo'!C20),'1_Velvoiteluettelo'!C20,\"\")","v":""},0,0,null,{"$f":"OFFSET('3_Muut kustannukset'!I$45,0,AE17)","v":0},{"$f":"OFFSET('3_Muut kustannukset'!I$30,0,AE17)","v":0},{"$f":"OFFSET('Annualisoitu NPV'!$D$38,0,AE17)","v":0},{"$f":"OFFSET('Annualisoitu NPV'!$D$40,0,AE17)","v":0},null,{"$f":"IF(ISTEXT('1_Velvoiteluettelo'!C20),'1_Velvoiteluettelo'!C20,\"\")","v":""},"0","0",null,null,null,0,0,0,1,{"$f":"AE16+1","v":3},0,0,0,0]
[{"$f":"'1_Velvoiteluettelo'!B21","v":"Velvoite5"},{"$f":"IF(ISTEXT('1_Velvoiteluettelo'!C21),'1_Velvoiteluettelo'!C21,\"\")","v":""},{"$f":"IF(ISTEXT('1_Velvoiteluettelo'!G21),'1_Velvoiteluettelo'!G21,\"\")","v":""},{"$f":"'1_Velvoiteluettelo'!E21","v":"toistaiseksi"},{"$f":"IF(ISNUMBER(OFFSET('3_Muut kustannukset'!$I$13,0,AE18)),OFFSET('3_Muut kustannukset'!$I$13,0,AE18),(\"-\"))","v":0},{"$f":"IF(P18>0,IF(OR((P18=1000000),(P18<1000000)),MROUND(P18,1000),IF(P18<10000000,MROUND(P18,10000),MROUND(P18,100000))),IF(OR((ABS(P18)=1000000),(ABS(P18)<1000000)),MROUND(P18,-1000),IF(ABS(P18)<10000000,MROUND(P18,-10000),MROUND(P18,-100000))))","v":0},0,0,0,{"$f":"IF(ISBLANK('1_Velvoiteluettelo'!G21),\"\",IF(S18>0,\"Voiko sääntelyä sujuvoittaa?\",IF(S18=0,\"\",\"Hyvä, sääntelytaakka kevenee!\")))","v":""},null,{"$f":"IF(ISTEXT('1_Velvoiteluettelo'!C21),'1_Velvoiteluettelo'!C21,\"\")","v":""},{"$f":"IF(V18>0,IF(OR((V18=1000),(V18<1000)),MROUND(V18,10),IF(V18<100000,MROUND(V18,100),MROUND(V18,1000))),IF(OR((ABS(V18)=1000),(ABS(V18)<1000)),MROUND(V18,-10),IF(ABS(V18)<100000,MROUND(V18,-100),MROUND(V18,-1000))))","v":0},0,null,{"$f":"OFFSET('3_Muut kustannukset'!I$45,0,AE18)","v":0},{"$f":"OFFSET('3_Muut kustannukset'!I$30,0,AE18)","v":0},{"$f":"OFFSET('Annualisoitu NPV'!$D$38,0,AE18)","v":0},{"$f":"OFFSET('Annualisoitu NPV'!$D$40,0,AE18)","v":0},null,{"$f":"IF(ISTEXT('1_Velvoiteluettelo'!C21),'1_Velvoiteluettelo'!C21,\"\")","v":""},{"$f":"IF(AND(NOT(E18=0),(ISNUMBER(E18))),P18/E18,\"0\")","v":"0"},"0",null,null,null,0,0,0,1,{"$f":"AE17+1","v":4},0,0,0,0]
[null,null,null,null,null,null,null,null,null,null,null,null,null,null,null,null,null,null,null,null,null,null,null,null,null,null,null,null,null,null,{"$f":"AE18+1","v":5}]
["Yhteensä",null,null,null,{"$f":"IF(ISNUMBER('1_Velvoiteluettelo'!D15),'1_Velvoiteluettelo'!D15,MAX(E14:E19))","v":140},{"$f":"IF(P20>0,IF(OR((P20=1000000),(P20<1000000)),MROUND(P20,1000),IF(P20<10000000,MROUND(P20,10000),MROUND(P20,100000))),IF(OR((ABS(P20)=1000000),(ABS(P20)<1000000)),MROUND(P20,-1000),IF(ABS(P20)<10000000,MROUND(P20,-10000),MROUND(P20,-100000))))","v":9000},{"$f":"IF(Q20>0,IF(OR((Q20=1000000),(Q20<1000000)),MROUND(Q20,1000),IF(Q20<10000000,MROUND(Q20,10000),MROUND(Q20,100000))),IF(OR((ABS(Q20)=1000000),(ABS(Q20)<1000000)),MROUND(Q20,-1000),IF(ABS(Q20)<10000000,MROUND(Q20,-10000),MROUND(Q20,-100000))))","v":10000},{"$f":"IF(R20>0,IF(OR((R20=1000000),(R20<1000000)),MROUND(R20,1000),IF(R20<10000000,MROUND(R20,10000),MROUND(R20,100000))),IF(OR((ABS(R20)=1000000),(ABS(R20)<1000000)),MROUND(R20,-1000),IF(ABS(R20)<10000000,MROUND(R20,-10000),MROUND(R20,-100000))))","v":74000},{"$f":"IF(S20>0,IF(OR((S20=1000000),(S20<1000000)),MROUND(S20,1000),IF(S20<10000000,MROUND(S20,10000),MROUND(S20,100000))),IF(OR((ABS(S20)=1000000),(ABS(S20)<1000000)),MROUND(S20,-1000),IF(ABS(S20)<10000000,MROUND(S20,-10000),MROUND(S20,-100000))))","v":9000},{"$f":"IF(NOT(S20=0),IF(S20>0,\"VOISIKO SÄÄNTELYÄ SUJUVOITTAA?\",\"HYVÄ, SÄÄNTELYTAAKKA KEVENEE!\"),\"\")","v":"VOISIKO SÄÄNTELYÄ SUJUVOITTAA?"},null,"Yht. keskimäärin",{"$f":"IF(V20>0,IF(OR((V20=1000),(V20<1000)),MROUND(V20,10),IF(V20<100000,MROUND(V20,100),MROUND(V20,1000))),IF(OR((ABS(V20)=1000),(ABS(V20)<1000)),MROUND(V20,-10),IF(ABS(V20)<100000,MROUND(V20,-100),MROUND(V20,-1000))))","v":60},{"$f":"IF(W20>0,IF(OR((W20=1000),(W20<1000)),MROUND(W20,10),IF(W20<100000,MROUND(W20,100),MROUND(W20,1000))),IF(OR((ABS(W20)=1000),(ABS(W20)<1000)),MROUND(W20,-10),IF(ABS(W20)<100000,MROUND(W20,-100),MROUND(W20,-1000))))","v":70},null,{"$f":"SUM(P14:P19)","v":9181.0494493629885},{"$f":"SUM(Q14:Q19)","v":10328.680630533363},{"$f":"'Annualisoitu NPV'!$J$38","v":73956.69948985576},{"$f":"'Annualisoitu NPV'!$J$40","v":9118.191319644433},null,"Yht. keskimäärin",{"$f":"IF(AND(NOT(E20=0),(ISNUMBER(E20))),F20/E20,\"0\")","v":64.285714285714292},{"$f":"IF(AND(NOT(E20=0),(ISNUMBER(E20))),G20/E20,\"0\")","v":71.428571428571431},null,null,null,{"$f":"SUM(AA14:AA19)","v":0},{"$f":"SUM(AB14:AB19)","v":73956.69948985576},null,null,null,{"$f":"SUM(AF14:AF19)","v":0},{"$f":"SUM(AG14:AG19)","v":0},{"$f":"SUM(AH14:AH19)","v":9181.0494493629885},{"$f":"SUM(AI14:AI19)","v":10328.680630533363}]
[]
[null,"Kustannuslisäyksen / -säästön erittely EU-sääntelyn osalta ja kansallisen sääntelyn osalta",null,null,null,null,null,null,null,null,null,null,null,null,null,"Tarkat, ei pyöristetyt arvot"]
[null,null,null,null,null,"Kertakustannus nykyrahassa","Toistuvat kustannukset (+) / säästöt (-) nykyrahassa","Kustannusten ja säästöjen kokonaissumman nettonykyarvo*","Nettonykyarvo vuositasolla*","Kustannus vai kustannussäästö?",null,null,null,null,null,null,null,"Kustannusten ja säästöjen kokonaissumman nettonykyarvo*","Nettonykyarvo vuositasolla*"]
[null,"EU-sääntelyn taakkavaikutus yrityksille:",null,null,null,{"$f":"IF(AF20>0,IF(OR((AF20=100000),(AF20<100000)),MROUND(AF20,1000),IF(AF20<10000000,MROUND(AF20,10000),MROUND(AF20,100000))),IF(OR((ABS(AF20)=1000000),(ABS(AF20)<1000000)),MROUND(AF20,-1000),IF(ABS(AF20)<10000000,MROUND(AF20,-10000),MROUND(AF20,-100000))))","v":0},{"$f":"IF(AG20>0,IF(OR((AG20=100000),(AG20<100000)),MROUND(AG20,1000),IF(AG20<10000000,MROUND(AG20,10000),MROUND(AG20,100000))),IF(OR((ABS(AG20)=1000000),(ABS(AG20)<1000000)),MROUND(AG20,-1000),IF(ABS(AG20)<10000000,MROUND(AG20,-10000),MROUND(AG20,-100000))))","v":0},{"$f":"IF(R24>0,IF(OR((R24=100000),(R24<100000)),MROUND(R24,1000),IF(R24<1000000,MROUND(R24,10000),MROUND(R24,100000))),IF(OR((ABS(R24)=100000),(ABS(R24)<100000)),MROUND(R24,-1000),IF(ABS(R24)<1000000,MROUND(R24,-10000),MROUND(R24,-100000))))","v":0},{"$f":"IF(S24>0,IF(OR((S24=100000),(S24<100000)),MROUND(S24,1000),IF(S24<1000000,MROUND(S24,10000),MROUND(S24,100000))),IF(OR((ABS(S24)=100000),(ABS(S24)<100000)),MROUND(S24,-1000),IF(ABS(S24)<1000000,MROUND(S24,-10000),MROUND(S24,-100000))))","v":0},{"$f":"IF(H24>0,\"KUSTANNUS YRITYKSILLE\",IF(H24<0,\"SÄÄSTÖÄ YRITYKSILLE\",\"\"))","v":""},null,null,null,null,null,"EU-sääntely",null,{"$f":"AA20","v":0},{"$f":"(AA20*'Annualisoitu NPV'!$D$24)/(1-(1+'Annualisoitu NPV'!$D$24)^(-10))","v":0}]
[null,"Kansallisen sääntelyn taakkavaikutus yrityksille:",null,null,null,{"$f":"IF(AH20>0,IF(OR((AH20=100000),(AH20<100000)),MROUND(AH20,1000),IF(AH20<10000000,MROUND(AH20,10000),MROUND(AH20,100000))),IF(OR((ABS(AH20)=1000000),(ABS(AH20)<1000000)),MROUND(AH20,-1000),IF(ABS(AH20)<10000000,MROUND(AH20,-10000),MROUND(AH20,-100000))))","v":9000},{"$f":"IF(AI20>0,IF(OR((AI20=100000),(AI20<100000)),MROUND(AI20,1000),IF(AI20<1000000,MROUND(AI20,10000),MROUND(AI20,100000))),IF(OR((ABS(AI20)=1000000),(ABS(AI20)<1000000)),MROUND(AI20,-1000),IF(ABS(AI20)<1000000,MROUND(AI20,-10000),MROUND(AI20,-100000))))","v":10000},{"$f":"IF(R25>0,IF(OR((R25=100000),(R25<100000)),MROUND(R25,1000),IF(R25<1000000,MROUND(R25,10000),MROUND(R25,100000))),IF(OR((ABS(R25)=100000),(ABS(R25)<100000)),MROUND(R25,-1000),IF(ABS(R25)<1000000,MROUND(R25,-10000),MROUND(R25,-100000))))","v":74000},{"$f":"IF(S25>0,IF(OR((S25=100000),(S25<100000)),MROUND(S25,1000),IF(S25<1000000,MROUND(S25,10000),MROUND(S25,100000))),IF(OR((ABS(S25)=100000),(ABS(S25)<100000)),MROUND(S25,-1000),IF(ABS(S25)<1000000,MROUND(S25,-10000),MROUND(S25,-100000))))","v":9000},{"$f":"IF(H25>0,\"KUSTANNUS YRITYKSILLE\",IF(H25<0,\"SÄÄSTÖÄ YRITYKSILLE\",\"\"))","v":"KUSTANNUS YRITYKSILLE"},null,null,null,null,null,"Kansallinen",null,{"$f":"AB20","v":73956.69948985576},{"$f":"(AB20*'Annualisoitu NPV'!$D$24)/(1-(1+'Annualisoitu NPV'!$D$24)^(-10))","v":9118.1913196444311}]
[null,null,null,null,null,"Kirjaa nämä hallituksen esitykseen!"]

{"sheet":"Apu1_Yritystilastot","index":7,"n_rows":1754,"n_cols":15,"rows_kept":1754,"cut":false,"hidden":false,"merged":[[3,0,3,2],[1743,1,1743,2],[8,2,9,2],[8,6,8,14],[8,5,9,5],[8,3,9,3],[8,4,9,4]]}
["Yritykset toimialoittain muuttujina Tilastovuosi, Toimiala (TOL 2008) ja Tiedot"]
["Tiedot vuodelta: 2023 (vai vanhempia mikäli uusimpia tietoja ei saatavilla*)"]
[]
["Tämä apusivu sisältää Tilastokeskuksen toimialoittaiset yritystilastot. Niiden avulla voidaan arvioida, paljonko milläkin toimialalla on yrityksiä. Toimialaluokituksen selityksen (mm. esimerkkejä kuhunkin toimialaan kuuluvista yrityksistä) oheisesta linkistä. Lisäksi Tilastokeskuksen internet-sivuilta (linkki ohessa) voi tehdä tarkempia tilastohakuja mm. henkilöstön koon tai omistajatyypin mukaan."]
[null,"Linkki yritysten rakenne- ja tilinpäätöstietojen tietokantaan (Tilastokeskus)","Toimialaluokitus 2008"]
[]
["OHJE:","Käytä alla olevaa suodatintoimintoa haluttujen toimialojen valitsemiseen! Suodatin sisältää myös hakukentän."]
[]
[null,null,"Yritysten lukumäärä (Y-tunnus)","Liikevaihto yhteensä, 1000 eur","Henkilöstön lkm yhteensä",null,"Yritysten lukumäärä (Y-tunnus) henkilöstön koon mukaan"]
[null,"Toimiala",null,null,null,null,"0-4 hlö","5-9 hlö","10-19 hlö","20-49 hlö","50-99 hlö","100-249 hlö","250-499 hlö","500-999 hlö","yli 1000 hlö"]
[null,"Toimialat yhteensä",580397,564494235,1510073,null,542576,17532,10004,6375,2122,1075,411,167,135]
[null,"A Maatalous, metsätalous ja kalatalous (01-03)",124785,3594849,43816,null,123566,771,281,130,28,7,2,".","."]
[null,"01 Kasvinviljely ja kotieläintalous, riistatalous ja niihin liittyvät palvelut",56326,"...",31409,null,55641,483,133,52,13,3,1,".","."]
[null,"011 Yksivuotisten kasvien viljely",29564,"..",13519,null,"Tietoja ei ole saatavilla tällä toimialan tarkkuustasolla"]
[null,"0111 Viljakasvien (pl. riisin), palkokasvien ja öljysiemenkasvien viljely",24492,"..",7800,null,"Tietoja ei ole saatavilla tällä toimialan tarkkuustasolla"]
[null,"01110 Viljakasvien (pl. riisin), palkokasvien ja öljysiemenkasvien viljely",24492,"..",7800,null,"Tietoja ei ole saatavilla tällä toimialan tarkkuustasolla"]
[null,"0113 Vihannesten ja melonien, juuresten ja mukulakasvien viljely",1818,"..",4138,null,"Tietoja ei ole saatavilla tällä toimialan tarkkuustasolla"]
[null,"01131 Vihannesten viljely avomaalla (pl. peruna ja sokerijuurikas)",1110,"..",1786,null,"Tietoja ei ole saatavilla tällä toimialan tarkkuustasolla"]
[null,"01132 Vihannesten viljely kasvihuoneessa",470,"..",2137,null,"Tietoja ei ole saatavilla tällä toimialan tarkkuustasolla"]
[null,"01133 Perunan viljely",226,"..",212,null,"Tietoja ei ole saatavilla tällä toimialan tarkkuustasolla"]
[null,"01134 Sokerijuurikkaan viljely",12,"..",4,null,"Tietoja ei ole saatavilla tällä toimialan tarkkuustasolla"]
[null,"0114 Sokeriruo'on viljely",".",".",".",null,"Tietoja ei ole saatavilla tällä toimialan tarkkuustasolla"]
[null,"01140 Sokeriruo'on viljely",".",".",".",null,"Tietoja ei ole saatavilla tällä toimialan tarkkuustasolla"]
[null,"0115 Tupakan viljely",1,"..",0,null,"Tietoja ei ole saatavilla tällä toimialan tarkkuustasolla"]
[null,"01150 Tupakan viljely",1,"..",0,null,"Tietoja ei ole saatavilla tällä toimialan tarkkuustasolla"]
[null,"0116 Kuitukasvien viljely",2,"..",1,null,"Tietoja ei ole saatavilla tällä toimialan tarkkuustasolla"]
[null,"01160 Kuitukasvien viljely",2,"..",1,null,"Tietoja ei ole saatavilla tällä toimialan tarkkuustasolla"]
[null,"0119 Muu yksivuotisten ja koristekasvien viljely",3251,"..",1581,null,"Tietoja ei ole saatavilla tällä toimialan tarkkuustasolla"]
[null,"01191 Koristekasvien viljely",211,"..",798,null,"Tietoja ei ole saatavilla tällä toimialan tarkkuustasolla"]
[null,"01199 Muiden yksivuotisten kasvien viljely",3040,"..",783,null,"Tietoja ei ole saatavilla tällä toimialan tarkkuustasolla"]
[null,"012 Monivuotisten kasvien viljely",1863,"..",832,null,"Tietoja ei ole saatavilla tällä toimialan tarkkuustasolla"]
[null,"0121 Rypäleiden viljely",1,"..",0,null,"Tietoja ei ole saatavilla tällä toimialan tarkkuustasolla"]
[null,"01210 Rypäleiden viljely",1,"..",0,null,"Tietoja ei ole saatavilla tällä toimialan tarkkuustasolla"]
[null,"0123 Sitrushedelmien viljely",1,"..",0,null,"Tietoja ei ole saatavilla tällä toimialan tarkkuustasolla"]
[null,"01230 Sitrushedelmien viljely",1,"..",0,null,"Tietoja ei ole saatavilla tällä toimialan tarkkuustasolla"]
[null,"0124 Omenoiden, kirsikoiden, luumujen ym. kota- ja kivihedelmien viljely",33,"..",17,null,"Tietoja ei ole saatavilla tällä toimialan tarkkuustasolla"]
[null,"01240 Omenoiden, kirsikoiden, luumujen ym. kota- ja kivihedelmien viljely",33,"..",17,null,"Tietoja ei ole saatavilla tällä toimialan tarkkuustasolla"]
[null,"0125 Marjojen, pähkinöiden ja muiden puissa ja pensaissa kasvavien hedelmien viljely",334,"..",558,null,"Tietoja ei ole saatavilla tällä toimialan tarkkuustasolla"]
[null,"01250 Marjojen, pähkinöiden ja muiden puissa ja pensaissa kasvavien hedelmien viljely",334,"..",558,null,"Tietoja ei ole saatavilla tällä toimialan tarkkuustasolla"]
[null,"0127 Juomakasvien viljely",1,"..",0,null,"Tietoja ei ole saatavilla tällä toimialan tarkkuustasolla"]
[null,"01270 Juomakasvien viljely",1,"..",0,null,"Tietoja ei ole saatavilla tällä toimialan tarkkuustasolla"]
[null,"0128 Mauste-, aromi-, rohdos- ja lääkekasvien viljely",19,"..",30,null,"Tietoja ei ole saatavilla tällä toimialan tarkkuustasolla"]
[null,"01280 Mauste-, aromi-, rohdos- ja lääkekasvien viljely",19,"..",30,null,"Tietoja ei ole saatavilla tällä toimialan tarkkuustasolla"]
[null,"0129 Muu monivuotisten kasvien viljely",1474,"..",226,null,"Tietoja ei ole saatavilla tällä toimialan tarkkuustasolla"]
[null,"01290 Muu monivuotisten kasvien viljely",1474,"..",226,null,"Tietoja ei ole saatavilla tällä toimialan tarkkuustasolla"]
[null,"013 Taimien kasvatus ja muu kasvien lisääminen",104,"..",386,null,"Tietoja ei ole saatavilla tällä toimialan tarkkuustasolla"]
[null,"0130 Taimien kasvatus ja muu kasvien lisääminen",104,"..",386,null,"Tietoja ei ole saatavilla tällä toimialan tarkkuustasolla"]
[null,"01300 Taimien kasvatus ja muu kasvien lisääminen",104,"..",386,null,"Tietoja ei ole saatavilla tällä toimialan tarkkuustasolla"]
[null,"014 Kotieläintalous",13600,"..",12500,null,"Tietoja ei ole saatavilla tällä toimialan tarkkuustasolla"]
[null,"0141 Lypsykarjan kasvatus",5990,"..",7255,null,"Tietoja ei ole saatavilla tällä toimialan tarkkuustasolla"]
[null,"01410 Lypsykarjan kasvatus",5990,"..",7255,null,"Tietoja ei ole saatavilla tällä toimialan tarkkuustasolla"]
[null,"0142 Muun nautakarjan ja puhvelien kasvatus",2643,"..",2310,null,"Tietoja ei ole saatavilla tällä toimialan tarkkuustasolla"]
[null,"01420 Muun nautakarjan ja puhvelien kasvatus",2643,"..",2310,null,"Tietoja ei ole saatavilla tällä toimialan tarkkuustasolla"]
[null,"0143 Hevosten ja muiden hevoseläinten kasvatus",966,"..",400,null,"Tietoja ei ole saatavilla tällä toimialan tarkkuustasolla"]
[null,"01430 Hevosten ja muiden hevoseläinten kasvatus",966,"..",400,null,"Tietoja ei ole saatavilla tällä toimialan tarkkuustasolla"]
[null,"0144 Kamelien ja kamelieläinten kasvatus",8,"..",0,null,"Tietoja ei ole saatavilla tällä toimialan tarkkuustasolla"]
[null,"01440 Kamelien ja kamelieläinten kasvatus",8,"..",0,null,"Tietoja ei ole saatavilla tällä toimialan tarkkuustasolla"]
[null,"0145 Lampaiden ja vuohien kasvatus",512,"..",239,null,"Tietoja ei ole saatavilla tällä toimialan tarkkuustasolla"]
[null,"01450 Lampaiden ja vuohien kasvatus",512,"..",239,null,"Tietoja ei ole saatavilla tällä toimialan tarkkuustasolla"]
[null,"0146 Sikojen kasvatus",764,"..",1044,null,"Tietoja ei ole saatavilla tällä toimialan tarkkuustasolla"]
[null,"01461 Porsastuotanto",321,"..",531,null,"Tietoja ei ole saatavilla tällä toimialan tarkkuustasolla"]
[null,"01462 Lihasikojen kasvatus",443,"..",513,null,"Tietoja ei ole saatavilla tällä toimialan tarkkuustasolla"]
[null,"0147 Siipikarjan kasvatus",523,"..",682,null,"Tietoja ei ole saatavilla tällä toimialan tarkkuustasolla"]
[null,"01471 Kananmunien tuotanto",254,"..",317,null,"Tietoja ei ole saatavilla tällä toimialan tarkkuustasolla"]
[null,"01472 Broilerien tuotanto",187,"..",235,null,"Tietoja ei ole saatavilla tällä toimialan tarkkuustasolla"]
[null,"01479 Muu siipikarjatalous",82,"..",130,null,"Tietoja ei ole saatavilla tällä toimialan tarkkuustasolla"]
[null,"0149 Muiden eläinten kasvatus",2194,"..",571,null,"Tietoja ei ole saatavilla tällä toimialan tarkkuustasolla"]
[null,"01491 Turkistarhaus",912,"..",400,null,"Tietoja ei ole saatavilla tällä toimialan tarkkuustasolla"]
[null,"01492 Poronhoito",77,"..",7,null,"Tietoja ei ole saatavilla tällä toimialan tarkkuustasolla"]
[null,"01499 Muu eläinten hoito",1205,"..",164,null,"Tietoja ei ole saatavilla tällä toimialan tarkkuustasolla"]
[null,"015 Yhdistetty kasvinviljely ja kotieläintalous (sekatilat)",8440,"..",2890,null,"Tietoja ei ole saatavilla tällä toimialan tarkkuustasolla"]
[null,"0150 Yhdistetty kasvinviljely ja kotieläintalous (sekatilat)",8440,"..",2890,null,"Tietoja ei ole saatavilla tällä toimialan tarkkuustasolla"]
[null,"01500 Yhdistetty kasvinviljely ja kotieläintalous (sekatilat)",8440,"..",2890,null,"Tietoja ei ole saatavilla tällä toimialan tarkkuustasolla"]
[null,"016 Maataloutta palveleva toiminta",2696,"..",1259,null,"Tietoja ei ole saatavilla tällä toimialan tarkkuustasolla"]
[null,"0161 Kasvinviljelyä palveleva toiminta",1435,"..",450,null,"Tietoja ei ole saatavilla tällä toimialan tarkkuustasolla"]
[null,"01611 Kasvinviljelyn tukipalvelut",942,"..",405,null,"Tietoja ei ole saatavilla tällä toimialan tarkkuustasolla"]
[null,"01612 Maatalousmaan pitäminen viljelykelpoisena",493,"..",45,null,"Tietoja ei ole saatavilla tällä toimialan tarkkuustasolla"]
[null,"0162 Kotieläintaloutta palveleva toiminta",1153,"..",759,null,"Tietoja ei ole saatavilla tällä toimialan tarkkuustasolla"]
[null,"01620 Kotieläintaloutta palveleva toiminta",1153,"..",759,null,"Tietoja ei ole saatavilla tällä toimialan tarkkuustasolla"]
[null,"0163 Sadon jatkokäsittely",65,"..",28,null,"Tietoja ei ole saatavilla tällä toimialan tarkkuustasolla"]
[null,"01630 Sadon jatkokäsittely",65,"..",28,null,"Tietoja ei ole saatavilla tällä toimialan tarkkuustasolla"]
[null,"0164 Siementen käsittely kasvinviljelyä varten",43,"..",22,null,"Tietoja ei ole saatavilla tällä toimialan tarkkuustasolla"]
[null,"01640 Siementen käsittely kasvinviljelyä varten",43,"..",22,null,"Tietoja ei ole saatavilla tällä toimialan tarkkuustasolla"]
[null,"017 Metsästys ja sitä palveleva toiminta",59,"..",24,null,"Tietoja ei ole saatavilla tällä toimialan tarkkuustasolla"]
[null,"0170 Metsästys ja sitä palveleva toiminta",59,"..",24,null,"Tietoja ei ole saatavilla tällä toimialan tarkkuustasolla"]
[null,"01700 Metsästys ja sitä palveleva toiminta",59,"..",24,null,"Tietoja ei ole saatavilla tällä toimialan tarkkuustasolla"]
[null,"02 Metsätalous ja puunkorjuu",66936,"...",11705,null,66429,272,141,76,13,4,1,".","."]
[null,"021 Metsänhoito",53356,1246757,2937,null,"Tietoja ei ole saatavilla tällä toimialan tarkkuustasolla"]
[null,"0210 Metsänhoito",53356,1246757,2937,null,"Tietoja ei ole saatavilla tällä toimialan tarkkuustasolla"]
[null,"02100 Metsänhoito",53356,1246757,2937,null,"Tietoja ei ole saatavilla tällä toimialan tarkkuustasolla"]
[null,"022 Puunkorjuu",10719,1569395,6745,null,"Tietoja ei ole saatavilla tällä toimialan tarkkuustasolla"]
[null,"0220 Puunkorjuu",10719,1569395,6745,null,"Tietoja ei ole saatavilla tällä toimialan tarkkuustasolla"]
[null,"02200 Puunkorjuu",10719,1569395,6745,null,"Tietoja ei ole saatavilla tällä toimialan tarkkuustasolla"]
[null,"023 Luonnon tuotteiden keruu (pl. polttopuu)",548,8488,37,null,"Tietoja ei ole saatavilla tällä toimialan tarkkuustasolla"]
[null,"0230 Luonnon tuotteiden keruu (pl. polttopuu)",548,8488,37,null,"Tietoja ei ole saatavilla tällä toimialan tarkkuustasolla"]
[null,"02300 Luonnon tuotteiden keruu (pl. polttopuu)",548,8488,37,null,"Tietoja ei ole saatavilla tällä toimialan tarkkuustasolla"]
[null,"024 Metsätaloutta palveleva toiminta",2313,"...",1987,null,"Tietoja ei ole saatavilla tällä toimialan tarkkuustasolla"]
[null,"0240 Metsätaloutta palveleva toiminta",2313,"...",1987,null,"Tietoja ei ole saatavilla tällä toimialan tarkkuustasolla"]
[null,"02400 Metsätaloutta palveleva toiminta",2313,"...",1987,null,"Tietoja ei ole saatavilla tällä toimialan tarkkuustasolla"]
[null,"03 Kalastus ja vesiviljely",1523,"...",702,null,1496,16,7,2,2,".",".",".","."]
[null,"031 Kalastus",1299,"...",261,null,"Tietoja ei ole saatavilla tällä toimialan tarkkuustasolla"]
[null,"0311 Merikalastus",679,43593,182,null,"Tietoja ei ole saatavilla tällä toimialan tarkkuustasolla"]
[null,"03110 Merikalastus",679,43593,182,null,"Tietoja ei ole saatavilla tällä toimialan tarkkuustasolla"]
[null,"0312 Sisävesikalastus",620,"...",79,null,"Tietoja ei ole saatavilla tällä toimialan tarkkuustasolla"]
[null,"03120 Sisävesikalastus",620,"...",79,null,"Tietoja ei ole saatavilla tällä toimialan tarkkuustasolla"]
[null,"032 Vesiviljely",224,173439,441,null,"Tietoja ei ole saatavilla tällä toimialan tarkkuustasolla"]
[null,"0321 Kalanviljely meressä",81,70051,124,null,"Tietoja ei ole saatavilla tällä toimialan tarkkuustasolla"]
[null,"03210 Kalanviljely meressä",81,70051,124,null,"Tietoja ei ole saatavilla tällä toimialan tarkkuustasolla"]
[null,"0322 Kalanviljely sisävesissä",143,103388,317,null,"Tietoja ei ole saatavilla tällä toimialan tarkkuustasolla"]
[null,"03220 Kalanviljely sisävesissä",143,103388,317,null,"Tietoja ei ole saatavilla tällä toimialan tarkkuustasolla"]
[null,"B-E Koko teollisuus (05-39)",33856,201719793,340221,null,27834,2078,1520,1322,550,328,134,52,38]
[null,"B Kaivostoiminta ja louhinta (05-09)",1140,2643672,5986,null,982,90,30,24,4,6,".",4,"."]
[null,"07 Metallimalmien louhinta",36,1371717,2155,null,24,3,2,3,1,".",".",3,"."]
[null,"071 Rautamalmien louhinta",2,"...",3,null,"Tietoja ei ole saatavilla tällä toimialan tarkkuustasolla"]
[null,"0710 Rautamalmien louhinta",2,"...",3,null,"Tietoja ei ole saatavilla tällä toimialan tarkkuustasolla"]
[null,"07100 Rautamalmien louhinta",2,"...",3,null,"Tietoja ei ole saatavilla tällä toimialan tarkkuustasolla"]
[null,"072 Värimetallimalmien louhinta",34,"...",2152,null,"Tietoja ei ole saatavilla tällä toimialan tarkkuustasolla"]
[null,"0729 Muiden värimetallimalmien louhinta",34,"...",2152,null,"Tietoja ei ole saatavilla tällä toimialan tarkkuustasolla"]
[null,"07290 Muiden värimetallimalmien louhinta",34,"...",2152,null,"Tietoja ei ole saatavilla tällä toimialan tarkkuustasolla"]
[null,"08 Muu kaivostoiminta ja louhinta",943,990914,2434,null,821,77,25,14,2,4,".",".","."]
[null,"081 Kiven louhinta, hiekan ja saven otto",448,442062,1232,null,"Tietoja ei ole saatavilla tällä toimialan tarkkuustasolla"]
[null,"0811 Koriste- ja rakennuskiven, kalkkikiven, kipsin, liidun ja liuskekiven louhinta",70,53501,168,null,"Tietoja ei ole saatavilla tällä toimialan tarkkuustasolla"]
[null,"08111 Koriste- ja rakennuskiven louhinta",59,49134,146,null,"Tietoja ei ole saatavilla tällä toimialan tarkkuustasolla"]
[null,"08112 Kalkkikiven, kipsin, liidun ja dolomiitin louhinta",4,3399,15,null,"Tietoja ei ole saatavilla tällä toimialan tarkkuustasolla"]
[null,"08113 Liuskekiven louhinta",7,968,6,null,"Tietoja ei ole saatavilla tällä toimialan tarkkuustasolla"]
[null,"0812 Soran, hiekan, saven ja kaoliinin otto",378,388561,1064,null,"Tietoja ei ole saatavilla tällä toimialan tarkkuustasolla"]
[null,"08120 Soran, hiekan, saven ja kaoliinin otto",378,388561,1064,null,"Tietoja ei ole saatavilla tällä toimialan tarkkuustasolla"]
[null,"089 Muu mineraalien kaivu",495,548852,1202,null,"Tietoja ei ole saatavilla tällä toimialan tarkkuustasolla"]
[null,"0891 Kemiallisten ja lannoitemineraalien louhinta",2,"...",6,null,"Tietoja ei ole saatavilla tällä toimialan tarkkuustasolla"]
[null,"08910 Kemiallisten ja lannoitemineraalien louhinta",2,"...",6,null,"Tietoja ei ole saatavilla tällä toimialan tarkkuustasolla"]
[null,"0892 Turpeen nosto",462,453041,971,null,"Tietoja ei ole saatavilla tällä toimialan tarkkuustasolla"]
[null,"08920 Turpeen nosto",462,453041,971,null,"Tietoja ei ole saatavilla tällä toimialan tarkkuustasolla"]
[null,"0899 Muualla luokittelematon kaivostoiminta ja louhinta",31,"...",225,null,"Tietoja ei ole saatavilla tällä toimialan tarkkuustasolla"]
[null,"08990 Muualla luokittelematon kaivostoiminta ja louhinta",31,"...",225,null,"Tietoja ei ole saatavilla tällä toimialan tarkkuustasolla"]
[null,"09 Kaivostoimintaa palveleva toiminta",161,281041,1398,null,137,10,3,7,1,2,".",1,"."]
[null,"099 Muuta kaivostoimintaa ja louhintaa palveleva toiminta",161,281041,1398,null,"Tietoja ei ole saatavilla tällä toimialan tarkkuustasolla"]
[null,"0990 Muuta kaivostoimintaa ja louhintaa palveleva toiminta",161,281041,1398,null,"Tietoja ei ole saatavilla tällä toimialan tarkkuustasolla"]
[null,"09900 Muuta kaivostoimintaa ja louhintaa palveleva toiminta",161,281041,1398,null,"Tietoja ei ole saatavilla tällä toimialan tarkkuustasolla"]
[null,"C Teollisuus (10-33)",28622,172698216,309078,null,23358,1773,1328,1162,497,299,125,45,35]
[null,"10 Elintarvikkeiden valmistus",2313,12465202,31581,null,1799,164,131,113,59,28,11,3,5]
[null,"101 Teurastus, lihan säilyvyyskäsittely ja lihatuotteiden valmistus",228,3234768,8065,null,"Tietoja ei ole saatavilla tällä toimialan tarkkuustasolla"]
[null,"1011 Teurastus ja lihan säilyvyyskäsittely (pl. siipikarja)",65,245054,1089,null,"Tietoja ei ole saatavilla tällä toimialan tarkkuustasolla"]
[null,"10110 Teurastus ja lihan säilyvyyskäsittely (pl. siipikarja)",65,245054,1089,null,"Tietoja ei ole saatavilla tällä toimialan tarkkuustasolla"]
[null,"1012 Siipikarjan teurastus ja lihan säilyvyyskäsittely",4,132447,496,null,"Tietoja ei ole saatavilla tällä toimialan tarkkuustasolla"]
[null,"10120 Siipikarjan teurastus ja lihan säilyvyyskäsittely",4,132447,496,null,"Tietoja ei ole saatavilla tällä toimialan tarkkuustasolla"]
[null,"1013 Liha- ja siipikarjatuotteiden valmistus",159,2857268,6480,null,"Tietoja ei ole saatavilla tällä toimialan tarkkuustasolla"]
[null,"10130 Liha- ja siipikarjatuotteiden valmistus",159,2857268,6480,null,"Tietoja ei ole saatavilla tällä toimialan tarkkuustasolla"]
[null,"102 Kalan, äyriäisten ja nilviäisten jalostus ja säilöntä",161,429678,889,null,"Tietoja ei ole saatavilla tällä toimialan tarkkuustasolla"]
[null,"1020 Kalan, äyriäisten ja nilviäisten jalostus ja säilöntä",161,429678,889,null,"Tietoja ei ole saatavilla tällä toimialan tarkkuustasolla"]
[null,"10200 Kalan, äyriäisten ja nilviäisten jalostus ja säilöntä",161,429678,889,null,"Tietoja ei ole saatavilla tällä toimialan tarkkuustasolla"]
[null,"103 Hedelmien ja kasvisten jalostus ja säilöntä",222,586851,1788,null,"Tietoja ei ole saatavilla tällä toimialan tarkkuustasolla"]
[null,"1031 Perunoiden jalostus ja säilöntä",43,91984,311,null,"Tietoja ei ole saatavilla tällä toimialan tarkkuustasolla"]
[null,"10310 Perunoiden jalostus ja säilöntä",43,91984,311,null,"Tietoja ei ole saatavilla tällä toimialan tarkkuustasolla"]
[null,"1032 Hedelmä-, marja- ja kasvismehujen valmistus",57,168159,345,null,"Tietoja ei ole saatavilla tällä toimialan tarkkuustasolla"]
[null,"10320 Hedelmä-, marja- ja kasvismehujen valmistus",57,168159,345,null,"Tietoja ei ole saatavilla tällä toimialan tarkkuustasolla"]
[null,"1039 Muu hedelmien, marjojen ja kasvisten jalostus ja säilöntä",122,326708,1132,null,"Tietoja ei ole saatavilla tällä toimialan tarkkuustasolla"]
[null,"10390 Muu hedelmien, marjojen ja kasvisten jalostus ja säilöntä",122,326708,1132,null,"Tietoja ei ole saatavilla tällä toimialan tarkkuustasolla"]
[null,"104 Kasvi- ja eläinöljyjen ja -rasvojen valmistus",22,104017,193,null,"Tietoja ei ole saatavilla tällä toimialan tarkkuustasolla"]
[null,"1041 Kasvi- ja eläinperäisten öljyjen ja -rasvojen valmistus (pl. ravintorasvat)",21,"...",94,null,"Tietoja ei ole saatavilla tällä toimialan tarkkuustasolla"]
[null,"10410 Kasvi- ja eläinperäisten öljyjen ja -rasvojen valmistus (pl. ravintorasvat)",21,"...",94,null,"Tietoja ei ole saatavilla tällä toimialan tarkkuustasolla"]
[null,"1042 Margariinin ja sen kaltaisten ravintorasvojen valmistus",1,"...",99,null,"Tietoja ei ole saatavilla tällä toimialan tarkkuustasolla"]
[null,"10420 Margariinin ja sen kaltaisten ravintorasvojen valmistus",1,"...",99,null,"Tietoja ei ole saatavilla tällä toimialan tarkkuustasolla"]
[null,"105 Maitotaloustuotteiden valmistus",86,2985697,5181,null,"Tietoja ei ole saatavilla tällä toimialan tarkkuustasolla"]
[null,"1051 Maitotaloustuotteiden ja juuston valmistus",58,2844132,4870,null,"Tietoja ei ole saatavilla tällä toimialan tarkkuustasolla"]
[null,"10510 Maitotaloustuotteiden ja juuston valmistus",58,2844132,4870,null,"Tietoja ei ole saatavilla tällä toimialan tarkkuustasolla"]
[null,"1052 Jäätelön valmistus",28,141566,311,null,"Tietoja ei ole saatavilla tällä toimialan tarkkuustasolla"]
[null,"10520 Jäätelön valmistus",28,141566,311,null,"Tietoja ei ole saatavilla tällä toimialan tarkkuustasolla"]
[null,"106 Mylly- ja tärkkelystuotteiden valmistus",80,614800,1186,null,"Tietoja ei ole saatavilla tällä toimialan tarkkuustasolla"]
[null,"1061 Myllytuotteiden valmistus",74,480421,1062,null,"Tietoja ei ole saatavilla tällä toimialan tarkkuustasolla"]
[null,"10610 Myllytuotteiden valmistus",74,480421,1062,null,"Tietoja ei ole saatavilla tällä toimialan tarkkuustasolla"]
[null,"1062 Tärkkelyksen ja tärkkelystuotteiden valmistus",6,134380,124,null,"Tietoja ei ole saatavilla tällä toimialan tarkkuustasolla"]
[null,"10620 Tärkkelyksen ja tärkkelystuotteiden valmistus",6,134380,124,null,"Tietoja ei ole saatavilla tällä toimialan tarkkuustasolla"]
[null,"107 Leipomotuotteiden, makaronien yms. valmistus",950,1389397,6877,null,"Tietoja ei ole saatavilla tällä toimialan tarkkuustasolla"]
[null,"1071 Leivän valmistus; tuoreiden leivonnaisten ja kakkujen valmistus",915,1264438,6442,null,"Tietoja ei ole saatavilla tällä toimialan tarkkuustasolla"]
[null,"10710 Leivän valmistus; tuoreiden leivonnaisten ja kakkujen valmistus",915,1264438,6442,null,"Tietoja ei ole saatavilla tällä toimialan tarkkuustasolla"]
[null,"1072 Näkkileivän ja keksien valmistus; säilyvien leivonnaisten ja kakkujen valmistus",32,"92223*",429,null,"Tietoja ei ole saatavilla tällä toimialan tarkkuustasolla"]
[null,"10720 Näkkileivän ja keksien valmistus; säilyvien leivonnaisten ja kakkujen valmistus",32,"92223*",429,null,"Tietoja ei ole saatavilla tällä toimialan tarkkuustasolla"]
[null,"1073 Makaronin, nuudelien, kuskusin ja vastaavien jauhotuotteiden valmistus",3,"757*",6,null,"Tietoja ei ole saatavilla tällä toimialan tarkkuustasolla"]
[null,"10730 Makaronin, nuudelien, kuskusin ja vastaavien jauhotuotteiden valmistus",3,"757*",6,null,"Tietoja ei ole saatavilla tällä toimialan tarkkuustasolla"]
[null,"108 Muiden elintarvikkeiden valmistus",469,2500003,6772,null,"Tietoja ei ole saatavilla tällä toimialan tarkkuustasolla"]
[null,"1081 Sokerin valmistus",4,165520,222,null,"Tietoja ei ole saatavilla tällä toimialan tarkkuustasolla"]
[null,"10810 Sokerin valmistus",4,165520,222,null,"Tietoja ei ole saatavilla tällä toimialan tarkkuustasolla"]
[null,"1082 Kaakaon, suklaan ja makeisten valmistus",65,740418,1943,null,"Tietoja ei ole saatavilla tällä toimialan tarkkuustasolla"]
[null,"10820 Kaakaon, suklaan ja makeisten valmistus",65,740418,1943,null,"Tietoja ei ole saatavilla tällä toimialan tarkkuustasolla"]
[null,"1083 Teen ja kahvin valmistus",51,305813,456,null,"Tietoja ei ole saatavilla tällä toimialan tarkkuustasolla"]
[null,"10830 Teen ja kahvin valmistus",51,305813,456,null,"Tietoja ei ole saatavilla tällä toimialan tarkkuustasolla"]
[null,"1084 Mausteiden ja maustekastikkeiden valmistus",35,235040,502,null,"Tietoja ei ole saatavilla tällä toimialan tarkkuustasolla"]
[null,"10840 Mausteiden ja maustekastikkeiden valmistus",35,235040,502,null,"Tietoja ei ole saatavilla tällä toimialan tarkkuustasolla"]
[null,"1085 Einesten ja valmisruokien valmistus",98,616616,2489,null,"Tietoja ei ole saatavilla tällä toimialan tarkkuustasolla"]
[null,"10850 Einesten ja valmisruokien valmistus",98,616616,2489,null,"Tietoja ei ole saatavilla tällä toimialan tarkkuustasolla"]
[null,"1086 Homogenoitujen ravintovalmisteiden ja dieettiruokien valmistus",12,168168,281,null,"Tietoja ei ole saatavilla tällä toimialan tarkkuustasolla"]
[null,"10860 Homogenoitujen ravintovalmisteiden ja dieettiruokien valmistus",12,168168,281,null,"Tietoja ei ole saatavilla tällä toimialan tarkkuustasolla"]
[null,"1089 Muualla luokittelematon elintarvikkeiden valmistus",204,268429,879,null,"Tietoja ei ole saatavilla tällä toimialan tarkkuustasolla"]
[null,"10890 Muualla luokittelematon elintarvikkeiden valmistus",204,268429,879,null,"Tietoja ei ole saatavilla tällä toimialan tarkkuustasolla"]
[null,"109 Eläinten ruokien valmistus",95,619990,631,null,"Tietoja ei ole saatavilla tällä toimialan tarkkuustasolla"]
[null,"1091 Kotieläinten rehujen valmistus",63,546903,486,null,"Tietoja ei ole saatavilla tällä toimialan tarkkuustasolla"]
[null,"10910 Kotieläinten rehujen valmistus",63,546903,486,null,"Tietoja ei ole saatavilla tällä toimialan tarkkuustasolla"]
[null,"1092 Lemmikkieläinten ruokien valmistus",32,73087,145,null,"Tietoja ei ole saatavilla tällä toimialan tarkkuustasolla"]
[null,"10920 Lemmikkieläinten ruokien valmistus",32,73087,145,null,"Tietoja ei ole saatavilla tällä toimialan tarkkuustasolla"]
[null,"11 Juomien valmistus",260,1623355,3051,null,211,25,9,6,4,1,3,1,"."]
[null,"110 Juomien valmistus",260,1623355,3051,null,"Tietoja ei ole saatavilla tällä toimialan tarkkuustasolla"]
[null,"1101 Alkoholijuomien tislaus ja sekoittaminen; etyylialkoholin valmistus käymisteitse",49,315162,582,null,"Tietoja ei ole saatavilla tällä toimialan tarkkuustasolla"]
[null,"11010 Alkoholijuomien tislaus ja sekoittaminen; etyylialkoholin valmistus käymisteitse",49,315162,582,null,"Tietoja ei ole saatavilla tällä toimialan tarkkuustasolla"]
[null,"1103 Siiderin, hedelmä- ja marjaviinien valmistus",33,5788,41,null,"Tietoja ei ole saatavilla tällä toimialan tarkkuustasolla"]
[null,"11030 Siiderin, hedelmä- ja marjaviinien valmistus",33,5788,41,null,"Tietoja ei ole saatavilla tällä toimialan tarkkuustasolla"]
[null,"1104 Muiden tislaamattomien juomien valmistus käymisteitse",5,806,7,null,"Tietoja ei ole saatavilla tällä toimialan tarkkuustasolla"]
[null,"11040 Muiden tislaamattomien juomien valmistus käymisteitse",5,806,7,null,"Tietoja ei ole saatavilla tällä toimialan tarkkuustasolla"]
[null,"1105 Oluen valmistus",111,1142847,2120,null,"Tietoja ei ole saatavilla tällä toimialan tarkkuustasolla"]
[null,"11050 Oluen valmistus",111,1142847,2120,null,"Tietoja ei ole saatavilla tällä toimialan tarkkuustasolla"]
[null,"1106 Maltaiden valmistus",7,100112,147,null,"Tietoja ei ole saatavilla tällä toimialan tarkkuustasolla"]
[null,"11060 Maltaiden valmistus",7,100112,147,null,"Tietoja ei ole saatavilla tällä toimialan tarkkuustasolla"]
[null,"1107 Virvoitusjuomien valmistus; kivennäisvesien ja muiden pullotettujen vesien tuotanto",55,58642,153,null,"Tietoja ei ole saatavilla tällä toimialan tarkkuustasolla"]
[null,"11070 Virvoitusjuomien valmistus; kivennäisvesien ja muiden pullotettujen vesien tuotanto",55,58642,153,null,"Tietoja ei ole saatavilla tällä toimialan tarkkuustasolla"]
[null,"13 Tekstiilien valmistus",1205,509639,2272,null,1112,42,21,18,11,1,".",".","."]
[null,"131 Tekstiilikuitujen valmistelu ja kehruu",40,29571,147,null,"Tietoja ei ole saatavilla tällä toimialan tarkkuustasolla"]
[null,"1310 Tekstiilikuitujen valmistelu ja kehruu",40,29571,147,null,"Tietoja ei ole saatavilla tällä toimialan tarkkuustasolla"]
[null,"13100 Tekstiilikuitujen valmistelu ja kehruu",40,29571,147,null,"Tietoja ei ole saatavilla tällä toimialan tarkkuustasolla"]
[null,"132 Kankaiden kudonta",47,1932,27,null,"Tietoja ei ole saatavilla tällä toimialan tarkkuustasolla"]
[null,"1320 Kankaiden kudonta",47,1932,27,null,"Tietoja ei ole saatavilla tällä toimialan tarkkuustasolla"]
[null,"13200 Kankaiden kudonta",47,1932,27,null,"Tietoja ei ole saatavilla tällä toimialan tarkkuustasolla"]
[null,"133 Tekstiilien viimeistely",192,23227,154,null,"Tietoja ei ole saatavilla tällä toimialan tarkkuustasolla"]
[null,"1330 Tekstiilien viimeistely",192,23227,154,null,"Tietoja ei ole saatavilla tällä toimialan tarkkuustasolla"]
[null,"13300 Tekstiilien viimeistely",192,23227,154,null,"Tietoja ei ole saatavilla tällä toimialan tarkkuustasolla"]
[null,"139 Muiden tekstiilituotteiden valmistus",926,454909,1944,null,"Tietoja ei ole saatavilla tällä toimialan tarkkuustasolla"]
[null,"1391 Neulosten valmistus",34,7002,31,null,"Tietoja ei ole saatavilla tällä toimialan tarkkuustasolla"]
[null,"13910 Neulosten valmistus",34,7002,31,null,"Tietoja ei ole saatavilla tällä toimialan tarkkuustasolla"]
[null,"1392 Sovitettujen tekstiilituotteiden valmistus (pl. vaatteet)",438,224916,1181,null,"Tietoja ei ole saatavilla tällä toimialan tarkkuustasolla"]
[null,"13921 Sisustustekstiilien valmistus",338,123472,649,null,"Tietoja ei ole saatavilla tällä toimialan tarkkuustasolla"]
[null,"13922 Tavaranpeitteiden, purjeiden ja muiden sovitettujen tekstiilituotteiden valmistus",100,101444,532,null,"Tietoja ei ole saatavilla tällä toimialan tarkkuustasolla"]
[null,"1393 Mattojen valmistus",71,17540,73,null,"Tietoja ei ole saatavilla tällä toimialan tarkkuustasolla"]
[null,"13930 Mattojen valmistus",71,17540,73,null,"Tietoja ei ole saatavilla tällä toimialan tarkkuustasolla"]
[null,"1394 Purjelankojen, nuoran, sidelangan ja verkkojen valmistus",19,23434,101,null,"Tietoja ei ole saatavilla tällä toimialan tarkkuustasolla"]
[null,"13940 Purjelankojen, nuoran, sidelangan ja verkkojen valmistus",19,23434,101,null,"Tietoja ei ole saatavilla tällä toimialan tarkkuustasolla"]
[null,"1395 Kuitukankaiden ja kuitukangastuotteiden valmistus (pl. vaatteet)",17,126145,242,null,"Tietoja ei ole saatavilla tällä toimialan tarkkuustasolla"]
[null,"13950 Kuitukankaiden ja kuitukangastuotteiden valmistus (pl. vaatteet)",17,126145,242,null,"Tietoja ei ole saatavilla tällä toimialan tarkkuustasolla"]
[null,"1396 Teknisten ja teollisuustekstiilien valmistus",23,37684,163,null,"Tietoja ei ole saatavilla tällä toimialan tarkkuustasolla"]
[null,"13960 Teknisten ja teollisuustekstiilien valmistus",23,37684,163,null,"Tietoja ei ole saatavilla tällä toimialan tarkkuustasolla"]
[null,"1399 Muualla luokittelematon tekstiilituotteiden valmistus",324,18188,153,null,"Tietoja ei ole saatavilla tällä toimialan tarkkuustasolla"]
[null,"13990 Muualla luokittelematon tekstiilituotteiden valmistus",324,18188,153,null,"Tietoja ei ole saatavilla tällä toimialan tarkkuustasolla"]
[null,"14 Vaatteiden valmistus",1881,743118,2440,null,1812,22,32,10,".",3,2,".","."]
[null,"141 Vaatteiden valmistus (pl. turkisvaatteet)",1716,691432,2152,null,"Tietoja ei ole saatavilla tällä toimialan tarkkuustasolla"]
[null,"1411 Nahkavaatteiden valmistus",53,4184,31,null,"Tietoja ei ole saatavilla tällä toimialan tarkkuustasolla"]
[null,"14110 Nahkavaatteiden valmistus",53,4184,31,null,"Tietoja ei ole saatavilla tällä toimialan tarkkuustasolla"]
[null,"1412 Työvaatteiden valmistus",40,100470,301,null,"Tietoja ei ole saatavilla tällä toimialan tarkkuustasolla"]
[null,"14120 Työvaatteiden valmistus",40,100470,301,null,"Tietoja ei ole saatavilla tällä toimialan tarkkuustasolla"]
[null,"1413 Muu takkien, pukujen, housujen, hameiden yms. valmistus",629,494181,1295,null,"Tietoja ei ole saatavilla tällä toimialan tarkkuustasolla"]
[null,"14130 Muu takkien, pukujen, housujen, hameiden yms. valmistus",629,494181,1295,null,"Tietoja ei ole saatavilla tällä toimialan tarkkuustasolla"]
[null,"1414 Alusvaatteiden valmistus",19,8401,69,null,"Tietoja ei ole saatavilla tällä toimialan tarkkuustasolla"]
[null,"14140 Alusvaatteiden valmistus",19,8401,69,null,"Tietoja ei ole saatavilla tällä toimialan tarkkuustasolla"]
[null,"1419 Muiden vaatteiden ja asusteiden valmistus",975,84196,456,null,"Tietoja ei ole saatavilla tällä toimialan tarkkuustasolla"]
[null,"14190 Muiden vaatteiden ja asusteiden valmistus",975,84196,456,null,"Tietoja ei ole saatavilla tällä toimialan tarkkuustasolla"]
[null,"142 Turkisvaatteiden ja -tuotteiden valmistus",28,1728,19,null,"Tietoja ei ole saatavilla tällä toimialan tarkkuustasolla"]
[null,"1420 Turkisvaatteiden ja -tuotteiden valmistus",28,1728,19,null,"Tietoja ei ole saatavilla tällä toimialan tarkkuustasolla"]
[null,"14200 Turkisvaatteiden ja -tuotteiden valmistus",28,1728,19,null,"Tietoja ei ole saatavilla tällä toimialan tarkkuustasolla"]
[null,"143 Neulevaatteiden ja sukkien valmistus",137,49958,270,null,"Tietoja ei ole saatavilla tällä toimialan tarkkuustasolla"]
[null,"1431 Sukkien ja sukkahousujen valmistus",13,40675,215,null,"Tietoja ei ole saatavilla tällä toimialan tarkkuustasolla"]
[null,"14310 Sukkien ja sukkahousujen valmistus",13,40675,215,null,"Tietoja ei ole saatavilla tällä toimialan tarkkuustasolla"]
[null,"1439 Muiden neulevaatteiden valmistus",124,9282,54,null,"Tietoja ei ole saatavilla tällä toimialan tarkkuustasolla"]
[null,"14390 Muiden neulevaatteiden valmistus",124,9282,54,null,"Tietoja ei ole saatavilla tällä toimialan tarkkuustasolla"]
[null,"15 Nahan ja nahkatuotteiden valmistus",259,220079,935,null,239,10,4,3,".",2,1,".","."]
[null,"151 Nahan parkitseminen ja muokkaus; matka- ja käsilaukkujen, satuloiden ja valjaiden valmistus; turkisten muokkaus ja värjäys",198,26287,177,null,"Tietoja ei ole saatavilla tällä toimialan tarkkuustasolla"]
[null,"1511 Turkisten ja nahan muokkaus ja värjäys",30,14077,89,null,"Tietoja ei ole saatavilla tällä toimialan tarkkuustasolla"]
[null,"15110 Turkisten ja nahan muokkaus ja värjäys",30,14077,89,null,"Tietoja ei ole saatavilla tällä toimialan tarkkuustasolla"]
[null,"1512 Matka-, käsi- ym. laukkujen, satuloiden ja valjaiden valmistus",168,12210,88,null,"Tietoja ei ole saatavilla tällä toimialan tarkkuustasolla"]
[null,"15120 Matka-, käsi- ym. laukkujen, satuloiden ja valjaiden valmistus",168,12210,88,null,"Tietoja ei ole saatavilla tällä toimialan tarkkuustasolla"]
[null,"152 Jalkineiden valmistus",61,193792,758,null,"Tietoja ei ole saatavilla tällä toimialan tarkkuustasolla"]
[null,"1520 Jalkineiden valmistus",61,193792,758,null,"Tietoja ei ole saatavilla tällä toimialan tarkkuustasolla"]
[null,"15200 Jalkineiden valmistus",61,193792,758,null,"Tietoja ei ole saatavilla tällä toimialan tarkkuustasolla"]
[null,"16 Sahatavaran sekä puu- ja korkkituotteiden valmistus (pl. huonekalut); olki- ja punontatuotteiden valmistus",2292,8196591,17055,null,1950,105,92,82,36,15,7,3,2]
[null,"161 Puun sahaus, höyläys ja kyllästys",869,3256922,5366,null,"Tietoja ei ole saatavilla tällä toimialan tarkkuustasolla"]
[null,"1610 Puun sahaus, höyläys ja kyllästys",869,3256922,5366,null,"Tietoja ei ole saatavilla tällä toimialan tarkkuustasolla"]
[null,"16100 Puun sahaus, höyläys ja kyllästys",869,3256922,5366,null,"Tietoja ei ole saatavilla tällä toimialan tarkkuustasolla"]
[null,"162 Puu-, korkki-, olki- ja punontatuotteiden valmistus",1423,4939669,11689,null,"Tietoja ei ole saatavilla tällä toimialan tarkkuustasolla"]
[null,"1621 Vaneriviilun ja puupaneelien valmistus",26,3033209,4143,null,"Tietoja ei ole saatavilla tällä toimialan tarkkuustasolla"]
[null,"16211 Vanerin ja vaneriviilun valmistus",20,"...",4058,null,"Tietoja ei ole saatavilla tällä toimialan tarkkuustasolla"]
[null,"16212 Lastulevyn valmistus",1,"...",0,null,"Tietoja ei ole saatavilla tällä toimialan tarkkuustasolla"]
[null,"16213 Kuitulevyn valmistus",5,"...",85,null,"Tietoja ei ole saatavilla tällä toimialan tarkkuustasolla"]
[null,"1622 Asennettavien parkettilevyjen valmistus",2,"...",54,null,"Tietoja ei ole saatavilla tällä toimialan tarkkuustasolla"]
[null,"16220 Asennettavien parkettilevyjen valmistus",2,"...",54,null,"Tietoja ei ole saatavilla tällä toimialan tarkkuustasolla"]
[null,"1623 Muiden rakennuspuusepäntuotteiden valmistus",780,1558513,6267,null,"Tietoja ei ole saatavilla tällä toimialan tarkkuustasolla"]
[null,"16231 Puutalojen valmistus",174,539891,2083,null,"Tietoja ei ole saatavilla tällä toimialan tarkkuustasolla"]
[null,"16239 Muu rakennuspuusepäntuotteiden valmistus",606,1018623,4184,null,"Tietoja ei ole saatavilla tällä toimialan tarkkuustasolla"]
[null,"1624 Puupakkausten valmistus",124,180223,827,null,"Tietoja ei ole saatavilla tällä toimialan tarkkuustasolla"]
[null,"16240 Puupakkausten valmistus",124,180223,827,null,"Tietoja ei ole saatavilla tällä toimialan tarkkuustasolla"]
[null,"1629 Muiden puutuotteiden valmistus; korkki-, olki- ja punontatuotteiden valmistus",491,"88787*",398,null,"Tietoja ei ole saatavilla tällä toimialan tarkkuustasolla"]
[null,"16290 Muiden puutuotteiden valmistus; korkki-, olki- ja punontatuotteiden valmistus",491,"88787*",398,null,"Tietoja ei ole saatavilla tällä toimialan tarkkuustasolla"]
[null,"17 Paperin, paperi- ja kartonkituotteiden valmistus",216,24290730,19294,null,112,14,23,23,14,13,10,2,5]
[null,"171 Massan, paperin, kartongin ja pahvin valmistus",61,22996659,16029,null,"Tietoja ei ole saatavilla tällä toimialan tarkkuustasolla"]
[null,"1711 Massan valmistus",14,10006128,4689,null,"Tietoja ei ole saatavilla tällä toimialan tarkkuustasolla"]
[null,"17110 Massan valmistus",14,10006128,4689,null,"Tietoja ei ole saatavilla tällä toimialan tarkkuustasolla"]
[null,"1712 Paperin, kartongin ja pahvin valmistus",47,12990531,11340,null,"Tietoja ei ole saatavilla tällä toimialan tarkkuustasolla"]
[null,"17120 Paperin, kartongin ja pahvin valmistus",47,12990531,11340,null,"Tietoja ei ole saatavilla tällä toimialan tarkkuustasolla"]
[null,"172 Paperi-, kartonki- ja pahvituotteiden valmistus",155,1294072,3265,null,"Tietoja ei ole saatavilla tällä toimialan tarkkuustasolla"]
[null,"1721 Aaltopaperin ja -pahvin sekä paperi-, kartonki- ja pahvipakkausten valmistus",62,389105,1471,null,"Tietoja ei ole saatavilla tällä toimialan tarkkuustasolla"]
[null,"17211 Paperisäkkien ja -pussien valmistus",9,31565,114,null,"Tietoja ei ole saatavilla tällä toimialan tarkkuustasolla"]
[null,"17212 Aaltopahvin sekä paperi- ja kartonkipakkausten valmistus",53,357541,1357,null,"Tietoja ei ole saatavilla tällä toimialan tarkkuustasolla"]
[null,"1722 Paperisten talous- ja hygieniatarvikkeiden valmistus",18,811626,1331,null,"Tietoja ei ole saatavilla tällä toimialan tarkkuustasolla"]
[null,"17220 Paperisten talous- ja hygieniatarvikkeiden valmistus",18,811626,1331,null,"Tietoja ei ole saatavilla tällä toimialan tarkkuustasolla"]
[null,"1723 Paperikauppatavaroiden valmistus",25,"...",33,null,"Tietoja ei ole saatavilla tällä toimialan tarkkuustasolla"]
[null,"17230 Paperikauppatavaroiden valmistus",25,"...",33,null,"Tietoja ei ole saatavilla tällä toimialan tarkkuustasolla"]
[null,"1724 Tapettien valmistus",2,"...",30,null,"Tietoja ei ole saatavilla tällä toimialan tarkkuustasolla"]
[null,"17240 Tapettien valmistus",2,"...",30,null,"Tietoja ei ole saatavilla tällä toimialan tarkkuustasolla"]
[null,"1729 Muiden paperi-, kartonki- ja pahvituotteiden valmistus",48,80586,400,null,"Tietoja ei ole saatavilla tällä toimialan tarkkuustasolla"]
[null,"17290 Muiden paperi-, kartonki- ja pahvituotteiden valmistus",48,80586,400,null,"Tietoja ei ole saatavilla tällä toimialan tarkkuustasolla"]
[null,"18 Painaminen ja tallenteiden jäljentäminen",1284,993913,4879,null,1144,74,28,16,16,3,2,1,"."]
[null,"181 Painaminen ja siihen liittyvät palvelut",839,975063,4773,null,"Tietoja ei ole saatavilla tällä toimialan tarkkuustasolla"]
[null,"1811 Sanomalehtien painaminen",12,117901,420,null,"Tietoja ei ole saatavilla tällä toimialan tarkkuustasolla"]
[null,"18110 Sanomalehtien painaminen",12,117901,420,null,"Tietoja ei ole saatavilla tällä toimialan tarkkuustasolla"]
[null,"1812 Muu painaminen",614,808972,3909,null,"Tietoja ei ole saatavilla tällä toimialan tarkkuustasolla"]
[null,"18120 Muu painaminen",614,808972,3909,null,"Tietoja ei ole saatavilla tällä toimialan tarkkuustasolla"]
[null,"1813 Painamista ja julkaisemista edeltävät palvelut",178,41883,398,null,"Tietoja ei ole saatavilla tällä toimialan tarkkuustasolla"]
[null,"18130 Painamista ja julkaisemista edeltävät palvelut",178,41883,398,null,"Tietoja ei ole saatavilla tällä toimialan tarkkuustasolla"]
[null,"1814 Sidonta ja siihen liittyvät palvelut",35,6307,46,null,"Tietoja ei ole saatavilla tällä toimialan tarkkuustasolla"]
[null,"18140 Sidonta ja siihen liittyvät palvelut",35,6307,46,null,"Tietoja ei ole saatavilla tällä toimialan tarkkuustasolla"]
[null,"182 Ääni-, kuva- ja atk-tallenteiden tuotanto",445,18850,106,null,"Tietoja ei ole saatavilla tällä toimialan tarkkuustasolla"]
[null,"1820 Ääni-, kuva- ja atk-tallenteiden tuotanto",445,18850,106,null,"Tietoja ei ole saatavilla tällä toimialan tarkkuustasolla"]
[null,"18200 Ääni-, kuva- ja atk-tallenteiden tuotanto",445,18850,106,null,"Tietoja ei ole saatavilla tällä toimialan tarkkuustasolla"]
[null,"19 Koksin ja jalostettujen öljytuotteiden valmistus",19,"...",3742,null,13,1,1,1,2,".",".",".",1]
[null,"191 Koksituotteiden valmistus",1,"...",0,null,"Tietoja ei ole saatavilla tällä toimialan tarkkuustasolla"]
[null,"1910 Koksituotteiden valmistus",1,"...",0,null,"Tietoja ei ole saatavilla tällä toimialan tarkkuustasolla"]
[null,"19100 Koksituotteiden valmistus",1,"...",0,null,"Tietoja ei ole saatavilla tällä toimialan tarkkuustasolla"]
[null,"192 Jalostettujen öljytuotteiden valmistus",18,"...",3742,null,"Tietoja ei ole saatavilla tällä toimialan tarkkuustasolla"]
[null,"1920 Jalostettujen öljytuotteiden valmistus",18,"...",3742,null,"Tietoja ei ole saatavilla tällä toimialan tarkkuustasolla"]
[null,"19200 Jalostettujen öljytuotteiden valmistus",18,"...",3742,null,"Tietoja ei ole saatavilla tällä toimialan tarkkuustasolla"]
[null,"20 Kemikaalien ja kemiallisten tuotteiden valmistus",421,8776243,11933,null,285,25,29,33,20,14,9,6,"."]
[null,"201 Peruskemikaalien, lannoitteiden ja typpiyhdisteiden, muoviaineiden ja synteettisen kumiraaka-aineen valmistus",124,7033683,6659,null,"Tietoja ei ole saatavilla tällä toimialan tarkkuustasolla"]
[null,"2011 Teollisuuskaasujen valmistus",10,431085,582,null,"Tietoja ei ole saatavilla tällä toimialan tarkkuustasolla"]
[null,"20110 Teollisuuskaasujen valmistus",10,431085,582,null,"Tietoja ei ole saatavilla tällä toimialan tarkkuustasolla"]
[null,"2012 Värien ja pigmenttien valmistus",6,"108350*",108,null,"Tietoja ei ole saatavilla tällä toimialan tarkkuustasolla"]
[null,"20120 Värien ja pigmenttien valmistus",6,"108350*",108,null,"Tietoja ei ole saatavilla tällä toimialan tarkkuustasolla"]
[null,"2013 Muiden epäorgaanisten peruskemikaalien valmistus",26,2814357,1347,null,"Tietoja ei ole saatavilla tällä toimialan tarkkuustasolla"]
[null,"20130 Muiden epäorgaanisten peruskemikaalien valmistus",26,2814357,1347,null,"Tietoja ei ole saatavilla tällä toimialan tarkkuustasolla"]
[null,"2014 Muiden orgaanisten peruskemikaalien valmistus",33,1153577,1781,null,"Tietoja ei ole saatavilla tällä toimialan tarkkuustasolla"]
[null,"20140 Muiden orgaanisten peruskemikaalien valmistus",33,1153577,1781,null,"Tietoja ei ole saatavilla tällä toimialan tarkkuustasolla"]
[null,"2015 Lannoitteiden ja typpiyhdisteiden valmistus",22,"...",1014,null,"Tietoja ei ole saatavilla tällä toimialan tarkkuustasolla"]
[null,"20150 Lannoitteiden ja typpiyhdisteiden valmistus",22,"...",1014,null,"Tietoja ei ole saatavilla tällä toimialan tarkkuustasolla"]
[null,"2016 Muoviaineiden valmistus",23,930258,1650,null,"Tietoja ei ole saatavilla tällä toimialan tarkkuustasolla"]
[null,"20160 Muoviaineiden valmistus",23,930258,1650,null,"Tietoja ei ole saatavilla tällä toimialan tarkkuustasolla"]
[null,"2017 Synteettisen kumiraaka-aineen valmistus",4,334043,177,null,"Tietoja ei ole saatavilla tällä toimialan tarkkuustasolla"]
[null,"20170 Synteettisen kumiraaka-aineen valmistus",4,334043,177,null,"Tietoja ei ole saatavilla tällä toimialan tarkkuustasolla"]
[null,"202 Torjunta-aineiden ja muiden maatalouskemikaalien valmistus",4,281,1,null,"Tietoja ei ole saatavilla tällä toimialan tarkkuustasolla"]
[null,"2020 Torjunta-aineiden ja muiden maatalouskemikaalien valmistus",4,281,1,null,"Tietoja ei ole saatavilla tällä toimialan tarkkuustasolla"]
[null,"20200 Torjunta-aineiden ja muiden maatalouskemikaalien valmistus",4,281,1,null,"Tietoja ei ole saatavilla tällä toimialan tarkkuustasolla"]
[null,"203 Maalien, lakan, painovärien yms. valmistus",38,528742,1404,null,"Tietoja ei ole saatavilla tällä toimialan tarkkuustasolla"]
[null,"2030 Maalien, lakan, painovärien yms. valmistus",38,528742,1404,null,"Tietoja ei ole saatavilla tällä toimialan tarkkuustasolla"]
[null,"20300 Maalien, lakan, painovärien yms. valmistus",38,528742,1404,null,"Tietoja ei ole saatavilla tällä toimialan tarkkuustasolla"]
[null,"204 Saippuan, pesu-, puhdistus- ja kiillotusaineiden; hajuvesien ja hygieniatuotteiden valmistus",141,238643,808,null,"Tietoja ei ole saatavilla tällä toimialan tarkkuustasolla"]
[null,"2041 Saippuan, pesu-, puhdistus- ja kiillotusaineiden valmistus",88,110665,371,null,"Tietoja ei ole saatavilla tällä toimialan tarkkuustasolla"]
[null,"20410 Saippuan, pesu-, puhdistus- ja kiillotusaineiden valmistus",88,110665,371,null,"Tietoja ei ole saatavilla tällä toimialan tarkkuustasolla"]
[null,"2042 Hajuvesien ja hygieniatuotteiden valmistus",53,127978,437,null,"Tietoja ei ole saatavilla tällä toimialan tarkkuustasolla"]
[null,"20420 Hajuvesien ja hygieniatuotteiden valmistus",53,127978,437,null,"Tietoja ei ole saatavilla tällä toimialan tarkkuustasolla"]
[null,"205 Muiden kemiallisten tuotteiden valmistus",114,974895,3061,null,"Tietoja ei ole saatavilla tällä toimialan tarkkuustasolla"]
[null,"2051 Räjähdysaineiden valmistus",11,212076,466,null,"Tietoja ei ole saatavilla tällä toimialan tarkkuustasolla"]
[null,"20510 Räjähdysaineiden valmistus",11,212076,466,null,"Tietoja ei ole saatavilla tällä toimialan tarkkuustasolla"]
[null,"2052 Liimojen valmistus",5,96199,247,null,"Tietoja ei ole saatavilla tällä toimialan tarkkuustasolla"]
[null,"20520 Liimojen valmistus",5,96199,247,null,"Tietoja ei ole saatavilla tällä toimialan tarkkuustasolla"]
[null,"2053 Eteeristen öljyjen valmistus",3,21,0,null,"Tietoja ei ole saatavilla tällä toimialan tarkkuustasolla"]
[null,"20530 Eteeristen öljyjen valmistus",3,21,0,null,"Tietoja ei ole saatavilla tällä toimialan tarkkuustasolla"]
[null,"2059 Muualla luokittelematon kemiallisten tuotteiden valmistus",95,666598,2348,null,"Tietoja ei ole saatavilla tällä toimialan tarkkuustasolla"]
[null,"20590 Muualla luokittelematon kemiallisten tuotteiden valmistus",95,666598,2348,null,"Tietoja ei ole saatavilla tällä toimialan tarkkuustasolla"]
[null,"206 Tekokuitujen valmistus",2,"...","...",null,"Tietoja ei ole saatavilla tällä toimialan tarkkuustasolla"]
[null,"2060 Tekokuitujen valmistus",2,"...","...",null,"Tietoja ei ole saatavilla tällä toimialan tarkkuustasolla"]
[null,"20600 Tekokuitujen valmistus",2,"...","...",null,"Tietoja ei ole saatavilla tällä toimialan tarkkuustasolla"]
[null,"21 Lääkeaineiden ja lääkkeiden valmistus",43,"6599*",4645,null,25,4,1,4,4,2,".",1,2]
[null,"211 Lääkeaineiden valmistus",9,"6599*",53,null,"Tietoja ei ole saatavilla tällä toimialan tarkkuustasolla"]
[null,"2110 Lääkeaineiden valmistus",9,"6599*",53,null,"Tietoja ei ole saatavilla tällä toimialan tarkkuustasolla"]
[null,"21100 Lääkeaineiden valmistus",9,"...",53,null,"Tietoja ei ole saatavilla tällä toimialan tarkkuustasolla"]
[null,"212 Lääkkeiden ja muiden lääkevalmisteiden valmistus",34,"...",4593,null,"Tietoja ei ole saatavilla tällä toimialan tarkkuustasolla"]
[null,"2120 Lääkkeiden ja muiden lääkevalmisteiden valmistus",34,"...",4593,null,"Tietoja ei ole saatavilla tällä toimialan tarkkuustasolla"]
[null,"21200 Lääkkeiden ja muiden lääkevalmisteiden valmistus",34,"...",4593,null,"Tietoja ei ole saatavilla tällä toimialan tarkkuustasolla"]
[null,"22 Kumi- ja muovituotteiden valmistus",631,3821574,11616,null,397,59,59,56,29,23,6,2,"."]
[null,"221 Kumituotteiden valmistus",53,1053341,1916,null,"Tietoja ei ole saatavilla tällä toimialan tarkkuustasolla"]
[null,"2211 Renkaiden valmistus ja uudelleenpinnoitus",10,871955,1103,null,"Tietoja ei ole saatavilla tällä toimialan tarkkuustasolla"]
[null,"22110 Renkaiden valmistus ja uudelleenpinnoitus",10,871955,1103,null,"Tietoja ei ole saatavilla tällä toimialan tarkkuustasolla"]
[null,"2219 Muiden kumituotteiden valmistus",43,181386,813,null,"Tietoja ei ole saatavilla tällä toimialan tarkkuustasolla"]
[null,"22190 Muiden kumituotteiden valmistus",43,181386,813,null,"Tietoja ei ole saatavilla tällä toimialan tarkkuustasolla"]
[null,"222 Muovituotteiden valmistus",578,2768233,9699,null,"Tietoja ei ole saatavilla tällä toimialan tarkkuustasolla"]
[null,"2221 Muovilevyjen, -kalvojen, -putkien ja -profiilien valmistus",107,1357471,3824,null,"Tietoja ei ole saatavilla tällä toimialan tarkkuustasolla"]
[null,"22210 Muovilevyjen, -kalvojen, -putkien ja -profiilien valmistus",107,1357471,3824,null,"Tietoja ei ole saatavilla tällä toimialan tarkkuustasolla"]
[null,"2222 Muovipakkausten valmistus",53,325400,1044,null,"Tietoja ei ole saatavilla tällä toimialan tarkkuustasolla"]
[null,"22220 Muovipakkausten valmistus",53,325400,1044,null,"Tietoja ei ole saatavilla tällä toimialan tarkkuustasolla"]
[null,"2223 Rakennusmuovien valmistus",56,276543,981,null,"Tietoja ei ole saatavilla tällä toimialan tarkkuustasolla"]
[null,"22230 Rakennusmuovien valmistus",56,276543,981,null,"Tietoja ei ole saatavilla tällä toimialan tarkkuustasolla"]
[null,"2229 Muiden muovituotteiden valmistus",362,808820,3850,null,"Tietoja ei ole saatavilla tällä toimialan tarkkuustasolla"]
[null,"22290 Muiden muovituotteiden valmistus",362,808820,3850,null,"Tietoja ei ole saatavilla tällä toimialan tarkkuustasolla"]
[null,"23 Muiden ei-metallisten mineraalituotteiden valmistus",911,3540579,10611,null,724,46,43,54,24,13,3,4,"."]
[null,"231 Lasin ja lasituotteiden valmistus",151,754931,2237,null,"Tietoja ei ole saatavilla tällä toimialan tarkkuustasolla"]
[null,"2311 Tasolasin valmistus",5,"...",12,null,"Tietoja ei ole saatavilla tällä toimialan tarkkuustasolla"]
[null,"23110 Tasolasin valmistus",5,"...",12,null,"Tietoja ei ole saatavilla tällä toimialan tarkkuustasolla"]
[null,"2312 Tasolasin muotoilu ja muokkaus",64,242982,1207,null,"Tietoja ei ole saatavilla tällä toimialan tarkkuustasolla"]
[null,"23120 Tasolasin muotoilu ja muokkaus",64,242982,1207,null,"Tietoja ei ole saatavilla tällä toimialan tarkkuustasolla"]
[null,"2313 Onton lasitavaran valmistus",19,1025,4,null,"Tietoja ei ole saatavilla tällä toimialan tarkkuustasolla"]
[null,"23130 Onton lasitavaran valmistus",19,1025,4,null,"Tietoja ei ole saatavilla tällä toimialan tarkkuustasolla"]
[null,"2314 Lasikuitujen valmistus",25,472497,983,null,"Tietoja ei ole saatavilla tällä toimialan tarkkuustasolla"]
[null,"23140 Lasikuitujen valmistus",25,472497,983,null,"Tietoja ei ole saatavilla tällä toimialan tarkkuustasolla"]
[null,"2319 Muu lasin valmistus ja muokkaus ml. tekniset lasituotteet",38,"...",30,null,"Tietoja ei ole saatavilla tällä toimialan tarkkuustasolla"]
[null,"23190 Muu lasin valmistus ja muokkaus ml. tekniset lasituotteet",38,"...",30,null,"Tietoja ei ole saatavilla tällä toimialan tarkkuustasolla"]
[null,"232 Tulenkestävien keraamisten tuotteiden valmistus",6,"...",37,null,"Tietoja ei ole saatavilla tällä toimialan tarkkuustasolla"]
[null,"2320 Tulenkestävien keraamisten tuotteiden valmistus",6,"...",37,null,"Tietoja ei ole saatavilla tällä toimialan tarkkuustasolla"]
[null,"23200 Tulenkestävien keraamisten tuotteiden valmistus",6,"...",37,null,"Tietoja ei ole saatavilla tällä toimialan tarkkuustasolla"]
[null,"233 Keraamisten rakennusaineiden valmistus",11,"...",128,null,"Tietoja ei ole saatavilla tällä toimialan tarkkuustasolla"]
[null,"2331 Keraamisten tiilien ja laattojen valmistus",4,"110*",4,null,"Tietoja ei ole saatavilla tällä toimialan tarkkuustasolla"]
[null,"23310 Keraamisten tiilien ja laattojen valmistus",4,"110*",4,null,"Tietoja ei ole saatavilla tällä toimialan tarkkuustasolla"]
[null,"2332 Poltettujen tiilien ja muun rakennuskeramiikan valmistus",7,29813,124,null,"Tietoja ei ole saatavilla tällä toimialan tarkkuustasolla"]
[null,"23320 Poltettujen tiilien ja muun rakennuskeramiikan valmistus",7,29813,124,null,"Tietoja ei ole saatavilla tällä toimialan tarkkuustasolla"]
[null,"234 Muiden posliini- ja keramiikkatuotteiden valmistus",226,63710,281,null,"Tietoja ei ole saatavilla tällä toimialan tarkkuustasolla"]
[null,"2341 Keraamisten talous- ja koriste-esineiden valmistus",208,5524,63,null,"Tietoja ei ole saatavilla tällä toimialan tarkkuustasolla"]
[null,"23410 Keraamisten talous- ja koriste-esineiden valmistus",208,5524,63,null,"Tietoja ei ole saatavilla tällä toimialan tarkkuustasolla"]
[null,"2342 Keraamisten saniteettikalusteiden valmistus",3,"...",175,null,"Tietoja ei ole saatavilla tällä toimialan tarkkuustasolla"]
[null,"23420 Keraamisten saniteettikalusteiden valmistus",3,"...",175,null,"Tietoja ei ole saatavilla tällä toimialan tarkkuustasolla"]
[null,"2343 Keraamisten eristystuotteiden valmistus",1,"...",0,null,"Tietoja ei ole saatavilla tällä toimialan tarkkuustasolla"]
[null,"23430 Keraamisten eristystuotteiden valmistus",1,"...",0,null,"Tietoja ei ole saatavilla tällä toimialan tarkkuustasolla"]
[null,"2344 Muiden teknisten keraamisten tuotteiden valmistus",2,"2537*",12,null,"Tietoja ei ole saatavilla tällä toimialan tarkkuustasolla"]
[null,"23440 Muiden teknisten keraamisten tuotteiden valmistus",2,"2537*",12,null,"Tietoja ei ole saatavilla tällä toimialan tarkkuustasolla"]
[null,"2349 Muiden keramiikkatuotteiden valmistus",12,"...",32,null,"Tietoja ei ole saatavilla tällä toimialan tarkkuustasolla"]
[null,"23490 Muiden keramiikkatuotteiden valmistus",12,"...",32,null,"Tietoja ei ole saatavilla tällä toimialan tarkkuustasolla"]
[null,"235 Sementin, kalkin ja kipsin valmistus",4,322703,559,null,"Tietoja ei ole saatavilla tällä toimialan tarkkuustasolla"]
[null,"2351 Sementin valmistus",1,"...",233,null,"Tietoja ei ole saatavilla tällä toimialan tarkkuustasolla"]
[null,"23510 Sementin valmistus",1,"...",233,null,"Tietoja ei ole saatavilla tällä toimialan tarkkuustasolla"]
[null,"2352 Kalkin ja kipsin valmistus",3,"...",326,null,"Tietoja ei ole saatavilla tällä toimialan tarkkuustasolla"]
[null,"23520 Kalkin ja kipsin valmistus",3,"...",326,null,"Tietoja ei ole saatavilla tällä toimialan tarkkuustasolla"]
[null,"236 Betoni-, kipsi- ja sementtituotteiden valmistus",242,1609878,5091,null,"Tietoja ei ole saatavilla tällä toimialan tarkkuustasolla"]
[null,"2361 Betonituotteiden valmistus rakennustarkoituksiin",183,1281543,4310,null,"Tietoja ei ole saatavilla tällä toimialan tarkkuustasolla"]
[null,"23610 Betonituotteiden valmistus rakennustarkoituksiin",183,1281543,4310,null,"Tietoja ei ole saatavilla tällä toimialan tarkkuustasolla"]
[null,"2362 Kipsituotteiden valmistus rakennustarkoituksiin",2,"...",71,null,"Tietoja ei ole saatavilla tällä toimialan tarkkuustasolla"]
[null,"23620 Kipsituotteiden valmistus rakennustarkoituksiin",2,"...",71,null,"Tietoja ei ole saatavilla tällä toimialan tarkkuustasolla"]
[null,"2363 Valmisbetonin valmistus",39,216478,404,null,"Tietoja ei ole saatavilla tällä toimialan tarkkuustasolla"]
[null,"23630 Valmisbetonin valmistus",39,216478,404,null,"Tietoja ei ole saatavilla tällä toimialan tarkkuustasolla"]
[null,"2364 Muurauslaastin valmistus",3,"40858*",111,null,"Tietoja ei ole saatavilla tällä toimialan tarkkuustasolla"]
[null,"23640 Muurauslaastin valmistus",3,"40858*",111,null,"Tietoja ei ole saatavilla tällä toimialan tarkkuustasolla"]
[null,"2365 Kuitusementin valmistus",1,"...",132,null,"Tietoja ei ole saatavilla tällä toimialan tarkkuustasolla"]
[null,"23650 Kuitusementin valmistus",1,"...",132,null,"Tietoja ei ole saatavilla tällä toimialan tarkkuustasolla"]
[null,"2369 Muiden betoni-, kipsi- ja sementtituotteiden valmistus",14,951,63,null,"Tietoja ei ole saatavilla tällä toimialan tarkkuustasolla"]
[null,"23690 Muiden betoni-, kipsi- ja sementtituotteiden valmistus",14,951,63,null,"Tietoja ei ole saatavilla tällä toimialan tarkkuustasolla"]
[null,"237 Kiven leikkaaminen, muotoilu ja viimeistely",237,161822,861,null,"Tietoja ei ole saatavilla tällä toimialan tarkkuustasolla"]
[null,"2370 Kiven leikkaaminen, muotoilu ja viimeistely",237,161822,861,null,"Tietoja ei ole saatavilla tällä toimialan tarkkuustasolla"]
[null,"23700 Kiven leikkaaminen, muotoilu ja viimeistely",237,161822,861,null,"Tietoja ei ole saatavilla tällä toimialan tarkkuustasolla"]
[null,"239 Hiontatuotteiden ja muualla luokittelemattomien ei-metallisten mineraalituotteiden valmistus",34,580907,1418,null,"Tietoja ei ole saatavilla tällä toimialan tarkkuustasolla"]
[null,"2391 Hiontatuotteiden valmistus",10,"...",852,null,"Tietoja ei ole saatavilla tällä toimialan tarkkuustasolla"]
[null,"23910 Hiontatuotteiden valmistus",10,"...",852,null,"Tietoja ei ole saatavilla tällä toimialan tarkkuustasolla"]
[null,"2399 Muualla luokittelemattomien ei-metallisten mineraalituotteiden valmistus",24,"...",566,null,"Tietoja ei ole saatavilla tällä toimialan tarkkuustasolla"]
[null,"23990 Muualla luokittelemattomien ei-metallisten mineraalituotteiden valmistus",24,"...",566,null,"Tietoja ei ole saatavilla tällä toimialan tarkkuustasolla"]
[null,"24 Metallien jalostus",150,17983137,12676,null,83,9,12,15,12,8,6,3,2]
[null,"241 Raudan, teräksen ja rautaseosten valmistus",30,13812031,7240,null,"Tietoja ei ole saatavilla tällä toimialan tarkkuustasolla"]
[null,"2410 Raudan, teräksen ja rautaseosten valmistus",30,13812031,7240,null,"Tietoja ei ole saatavilla tällä toimialan tarkkuustasolla"]
[null,"24100 Raudan, teräksen ja rautaseosten valmistus",30,13812031,7240,null,"Tietoja ei ole saatavilla tällä toimialan tarkkuustasolla"]
[null,"242 Putkien, profiiliputkien ja niihin liittyvien tarvikkeiden valmistus teräksestä",44,346759,595,null,"Tietoja ei ole saatavilla tällä toimialan tarkkuustasolla"]
[null,"2420 Putkien, profiiliputkien ja niihin liittyvien tarvikkeiden valmistus teräksestä",44,346759,595,null,"Tietoja ei ole saatavilla tällä toimialan tarkkuustasolla"]
[null,"24200 Putkien, profiiliputkien ja niihin liittyvien tarvikkeiden valmistus teräksestä",44,346759,595,null,"Tietoja ei ole saatavilla tällä toimialan tarkkuustasolla"]
[null,"243 Muu teräksen jalostus",3,"...",132,null,"Tietoja ei ole saatavilla tällä toimialan tarkkuustasolla"]
[null,"2431 Raudan ja teräksen kylmävetäminen","...","...","...",null,"Tietoja ei ole saatavilla tällä toimialan tarkkuustasolla"]
[null,"24310 Raudan ja teräksen kylmävetäminen","...","...","...",null,"Tietoja ei ole saatavilla tällä toimialan tarkkuustasolla"]
[null,"2433 Kylmämuovaus tai kylmätaitto",2,"...",124,null,"Tietoja ei ole saatavilla tällä toimialan tarkkuustasolla"]
[null,"24330 Kylmämuovaus tai kylmätaitto",2,"...",124,null,"Tietoja ei ole saatavilla tällä toimialan tarkkuustasolla"]
[null,"2434 Teräslangan veto",1,"...",8,null,"Tietoja ei ole saatavilla tällä toimialan tarkkuustasolla"]
[null,"24340 Teräslangan veto",1,"...",8,null,"Tietoja ei ole saatavilla tällä toimialan tarkkuustasolla"]
[null,"244 Jalometallien ja muiden värimetallien valmistus",30,3474170,3362,null,"Tietoja ei ole saatavilla tällä toimialan tarkkuustasolla"]
[null,"2441 Jalometallien valmistus",12,9040,27,null,"Tietoja ei ole saatavilla tällä toimialan tarkkuustasolla"]
[null,"24410 Jalometallien valmistus",12,9040,27,null,"Tietoja ei ole saatavilla tällä toimialan tarkkuustasolla"]
[null,"2442 Alumiinin valmistus",4,"272252*",493,null,"Tietoja ei ole saatavilla tällä toimialan tarkkuustasolla"]
[null,"24420 Alumiinin valmistus",4,"272252*",493,null,"Tietoja ei ole saatavilla tällä toimialan tarkkuustasolla"]
[null,"2443 Lyijyn, sinkin ja tinan valmistus",3,"...",615,null,"Tietoja ei ole saatavilla tällä toimialan tarkkuustasolla"]
[null,"24430 Lyijyn, sinkin ja tinan valmistus",3,"...",615,null,"Tietoja ei ole saatavilla tällä toimialan tarkkuustasolla"]
[null,"2444 Kuparin valmistus",8,1139703,1491,null,"Tietoja ei ole saatavilla tällä toimialan tarkkuustasolla"]
[null,"24440 Kuparin valmistus",8,1139703,1491,null,"Tietoja ei ole saatavilla tällä toimialan tarkkuustasolla"]
[null,"2445 Muiden värimetallien valmistus",3,1712294,736,null,"Tietoja ei ole saatavilla tällä toimialan tarkkuustasolla"]
[null,"24450 Muiden värimetallien valmistus",3,1712294,736,null,"Tietoja ei ole saatavilla tällä toimialan tarkkuustasolla"]
[null,"245 Metallien valu",43,"...",1347,null,"Tietoja ei ole saatavilla tällä toimialan tarkkuustasolla"]
[null,"2451 Raudan valu",13,139292,656,null,"Tietoja ei ole saatavilla tällä toimialan tarkkuustasolla"]
[null,"24510 Raudan valu",13,139292,656,null,"Tietoja ei ole saatavilla tällä toimialan tarkkuustasolla"]
[null,"2452 Teräksen valu",7,51043,270,null,"Tietoja ei ole saatavilla tällä toimialan tarkkuustasolla"]
[null,"24520 Teräksen valu",7,51043,270,null,"Tietoja ei ole saatavilla tällä toimialan tarkkuustasolla"]
[null,"2453 Kevytmetallien valu",12,50309,297,null,"Tietoja ei ole saatavilla tällä toimialan tarkkuustasolla"]
[null,"24530 Kevytmetallien valu",12,50309,297,null,"Tietoja ei ole saatavilla tällä toimialan tarkkuustasolla"]
[null,"2454 Muiden värimetallien valu",11,"...",123,null,"Tietoja ei ole saatavilla tällä toimialan tarkkuustasolla"]
[null,"24540 Muiden värimetallien valu",11,"...",123,null,"Tietoja ei ole saatavilla tällä toimialan tarkkuustasolla"]
[null,"25 Metallituotteiden valmistus (pl. koneet ja laitteet)",5322,9703238,37652,null,4041,483,340,312,95,38,11,2,"."]
[null,"251 Metallirakenteiden valmistus",1584,2805691,10688,null,"Tietoja ei ole saatavilla tällä toimialan tarkkuustasolla"]
[null,"2511 Metallirakenteiden ja niiden osien valmistus",1486,2538100,9569,null,"Tietoja ei ole saatavilla tällä toimialan tarkkuustasolla"]
[null,"25110 Metallirakenteiden ja niiden osien valmistus",1486,2538100,9569,null,"Tietoja ei ole saatavilla tällä toimialan tarkkuustasolla"]
[null,"2512 Metalliovien ja -ikkunoiden valmistus",98,267590,1119,null,"Tietoja ei ole saatavilla tällä toimialan tarkkuustasolla"]
[null,"25120 Metalliovien ja -ikkunoiden valmistus",98,267590,1119,null,"Tietoja ei ole saatavilla tällä toimialan tarkkuustasolla"]
[null,"252 Metallisäiliöiden ja -altaiden yms. valmistus",56,219127,713,null,"Tietoja ei ole saatavilla tällä toimialan tarkkuustasolla"]
[null,"2521 Keskuslämmityspatterien ja kuumavesivaraajien valmistus",14,88089,225,null,"Tietoja ei ole saatavilla tällä toimialan tarkkuustasolla"]
[null,"25210 Keskuslämmityspatterien ja kuumavesivaraajien valmistus",14,88089,225,null,"Tietoja ei ole saatavilla tällä toimialan tarkkuustasolla"]
[null,"2529 Muiden metallisäiliöiden ja -altaiden yms. valmistus",42,131038,488,null,"Tietoja ei ole saatavilla tällä toimialan tarkkuustasolla"]
[null,"25290 Muiden metallisäiliöiden ja -altaiden yms. valmistus",42,131038,488,null,"Tietoja ei ole saatavilla tällä toimialan tarkkuustasolla"]
[null,"253 Höyrykattiloiden valmistus (pl. keskuslämmityslaitteet)",27,292897,845,null,"Tietoja ei ole saatavilla tällä toimialan tarkkuustasolla"]
[null,"2530 Höyrykattiloiden valmistus (pl. keskuslämmityslaitteet)",27,292897,845,null,"Tietoja ei ole saatavilla tällä toimialan tarkkuustasolla"]
[null,"25300 Höyrykattiloiden valmistus (pl. keskuslämmityslaitteet)",27,292897,845,null,"Tietoja ei ole saatavilla tällä toimialan tarkkuustasolla"]
[null,"254 Aseiden ja ammusten valmistus",49,234543,702,null,"Tietoja ei ole saatavilla tällä toimialan tarkkuustasolla"]
[null,"2540 Aseiden ja ammusten valmistus",49,234543,702,null,"Tietoja ei ole saatavilla tällä toimialan tarkkuustasolla"]
[null,"25400 Aseiden ja ammusten valmistus",49,234543,702,null,"Tietoja ei ole saatavilla tällä toimialan tarkkuustasolla"]
[null,"255 Metallin takominen, puristaminen, meistäminen ja valssaus; jauhemetallurgia",120,40064,156,null,"Tietoja ei ole saatavilla tällä toimialan tarkkuustasolla"]
[null,"2550 Metallin takominen, puristaminen, meistäminen ja valssaus; jauhemetallurgia",120,40064,156,null,"Tietoja ei ole saatavilla tällä toimialan tarkkuustasolla"]
[null,"25500 Metallin takominen, puristaminen, meistäminen ja valssaus; jauhemetallurgia",120,40064,156,null,"Tietoja ei ole saatavilla tällä toimialan tarkkuustasolla"]
[null,"256 Metallien käsittely, päällystäminen ja työstö",2214,3727270,16570,null,"Tietoja ei ole saatavilla tällä toimialan tarkkuustasolla"]
[null,"2561 Metallien käsittely ja päällystäminen",330,410393,2334,null,"Tietoja ei ole saatavilla tällä toimialan tarkkuustasolla"]
[null,"25610 Metallien käsittely ja päällystäminen",330,410393,2334,null,"Tietoja ei ole saatavilla tällä toimialan tarkkuustasolla"]
[null,"2562 Metallien työstö",1884,3316877,14236,null,"Tietoja ei ole saatavilla tällä toimialan tarkkuustasolla"]
[null,"25620 Metallien työstö",1884,3316877,14236,null,"Tietoja ei ole saatavilla tällä toimialan tarkkuustasolla"]
[null,"257 Ruokailu- ja leikkuuvälineiden yms. sekä työkalujen ja rautatavaran valmistus",241,1150445,2926,null,"Tietoja ei ole saatavilla tällä toimialan tarkkuustasolla"]
[null,"2571 Ruokailu- ja leikkuuvälineiden yms. valmistus",38,10003,66,null,"Tietoja ei ole saatavilla tällä toimialan tarkkuustasolla"]
[null,"25710 Ruokailu- ja leikkuuvälineiden yms. valmistus",38,10003,66,null,"Tietoja ei ole saatavilla tällä toimialan tarkkuustasolla"]
[null,"2572 Lukkojen ja saranoiden valmistus",9,358451,990,null,"Tietoja ei ole saatavilla tällä toimialan tarkkuustasolla"]
[null,"25720 Lukkojen ja saranoiden valmistus",9,358451,990,null,"Tietoja ei ole saatavilla tällä toimialan tarkkuustasolla"]
[null,"2573 Työkalujen valmistus",194,781990,1870,null,"Tietoja ei ole saatavilla tällä toimialan tarkkuustasolla"]
[null,"25730 Työkalujen valmistus",194,781990,1870,null,"Tietoja ei ole saatavilla tällä toimialan tarkkuustasolla"]
[null,"259 Muu metallituotteiden valmistus",1031,1233202,5052,null,"Tietoja ei ole saatavilla tällä toimialan tarkkuustasolla"]
[null,"2591 Metallipakkausten ja -astioiden valmistus",6,"5320*",7,null,"Tietoja ei ole saatavilla tällä toimialan tarkkuustasolla"]
[null,"25910 Metallipakkausten ja -astioiden valmistus",6,"5320*",7,null,"Tietoja ei ole saatavilla tällä toimialan tarkkuustasolla"]
[null,"2592 Kevytmetallipakkausten valmistus",5,176808,338,null,"Tietoja ei ole saatavilla tällä toimialan tarkkuustasolla"]
[null,"25920 Kevytmetallipakkausten valmistus",5,176808,338,null,"Tietoja ei ole saatavilla tällä toimialan tarkkuustasolla"]
[null,"2593 Metallilankatuotteiden, ketjujen ja jousien valmistus",36,204708,616,null,"Tietoja ei ole saatavilla tällä toimialan tarkkuustasolla"]
[null,"25930 Metallilankatuotteiden, ketjujen ja jousien valmistus",36,204708,616,null,"Tietoja ei ole saatavilla tällä toimialan tarkkuustasolla"]
[null,"2594 Kiinnittimien ja ruuvituotteiden valmistus",13,"29129*",135,null,"Tietoja ei ole saatavilla tällä toimialan tarkkuustasolla"]
[null,"25940 Kiinnittimien ja ruuvituotteiden valmistus",13,"29129*",135,null,"Tietoja ei ole saatavilla tällä toimialan tarkkuustasolla"]
[null,"2599 Muiden metallituotteiden valmistus",971,820310,3956,null,"Tietoja ei ole saatavilla tällä toimialan tarkkuustasolla"]
[null,"25990 Muiden metallituotteiden valmistus",971,820310,3956,null,"Tietoja ei ole saatavilla tällä toimialan tarkkuustasolla"]
[null,"26 Tietokoneiden sekä elektronisten ja optisten tuotteiden valmistus",729,17510515,22487,null,487,70,55,57,27,15,12,4,2]
[null,"261 Elektronisten komponenttien ja piirilevyjen valmistus",175,454821,2077,null,"Tietoja ei ole saatavilla tällä toimialan tarkkuustasolla"]
[null,"2611 Elektronisten komponenttien valmistus",152,362966,1690,null,"Tietoja ei ole saatavilla tällä toimialan tarkkuustasolla"]
[null,"26110 Elektronisten komponenttien valmistus",152,362966,1690,null,"Tietoja ei ole saatavilla tällä toimialan tarkkuustasolla"]
[null,"2612 Kalustettujen piirilevyjen valmistus",23,91855,388,null,"Tietoja ei ole saatavilla tällä toimialan tarkkuustasolla"]
[null,"26120 Kalustettujen piirilevyjen valmistus",23,91855,388,null,"Tietoja ei ole saatavilla tällä toimialan tarkkuustasolla"]
[null,"262 Tietokoneiden ja niiden oheislaitteiden valmistus",61,103934,453,null,"Tietoja ei ole saatavilla tällä toimialan tarkkuustasolla"]
[null,"2620 Tietokoneiden ja niiden oheislaitteiden valmistus",61,103934,453,null,"Tietoja ei ole saatavilla tällä toimialan tarkkuustasolla"]
[null,"26200 Tietokoneiden ja niiden oheislaitteiden valmistus",61,103934,453,null,"Tietoja ei ole saatavilla tällä toimialan tarkkuustasolla"]
[null,"263 Viestintälaitteiden valmistus",72,14220509,9247,null,"Tietoja ei ole saatavilla tällä toimialan tarkkuustasolla"]
[null,"2630 Viestintälaitteiden valmistus",72,14220509,9247,null,"Tietoja ei ole saatavilla tällä toimialan tarkkuustasolla"]
[null,"26300 Viestintälaitteiden valmistus",72,14220509,9247,null,"Tietoja ei ole saatavilla tällä toimialan tarkkuustasolla"]
[null,"264 Viihde-elektroniikan valmistus",60,58697,379,null,"Tietoja ei ole saatavilla tällä toimialan tarkkuustasolla"]
[null,"2640 Viihde-elektroniikan valmistus",60,58697,379,null,"Tietoja ei ole saatavilla tällä toimialan tarkkuustasolla"]
[null,"26400 Viihde-elektroniikan valmistus",60,58697,379,null,"Tietoja ei ole saatavilla tällä toimialan tarkkuustasolla"]
[null,"265 Mittaus-, testaus- ja navigointivälineiden ja -laitteiden valmistus; kellot",292,1888582,7637,null,"Tietoja ei ole saatavilla tällä toimialan tarkkuustasolla"]
[null,"2651 Mittaus-, testaus- ja navigointivälineiden ja -laitteiden valmistus",276,1885724,7627,null,"Tietoja ei ole saatavilla tällä toimialan tarkkuustasolla"]
[null,"26510 Mittaus-, testaus- ja navigointivälineiden ja -laitteiden valmistus",276,1885724,7627,null,"Tietoja ei ole saatavilla tällä toimialan tarkkuustasolla"]
[null,"2652 Kellojen valmistus",16,2858,10,null,"Tietoja ei ole saatavilla tällä toimialan tarkkuustasolla"]
[null,"26520 Kellojen valmistus",16,2858,10,null,"Tietoja ei ole saatavilla tällä toimialan tarkkuustasolla"]
[null,"266 Säteilylaitteiden sekä elektronisten lääkintä- ja terapialaitteiden valmistus",41,678103,2337,null,"Tietoja ei ole saatavilla tällä toimialan tarkkuustasolla"]
[null,"2660 Säteilylaitteiden sekä elektronisten lääkintä- ja terapialaitteiden valmistus",41,678103,2337,null,"Tietoja ei ole saatavilla tällä toimialan tarkkuustasolla"]
[null,"26600 Säteilylaitteiden sekä elektronisten lääkintä- ja terapialaitteiden valmistus",41,678103,2337,null,"Tietoja ei ole saatavilla tällä toimialan tarkkuustasolla"]
[null,"267 Optisten instrumenttien ja valokuvausvälineiden valmistus",25,105151,353,null,"Tietoja ei ole saatavilla tällä toimialan tarkkuustasolla"]
[null,"2670 Optisten instrumenttien ja valokuvausvälineiden valmistus",25,105151,353,null,"Tietoja ei ole saatavilla tällä toimialan tarkkuustasolla"]
[null,"26700 Optisten instrumenttien ja valokuvausvälineiden valmistus",25,105151,353,null,"Tietoja ei ole saatavilla tällä toimialan tarkkuustasolla"]
[null,"268 Tallennevälineiden valmistus",3,718,3,null,"Tietoja ei ole saatavilla tällä toimialan tarkkuustasolla"]
[null,"2680 Tallennevälineiden valmistus",3,718,3,null,"Tietoja ei ole saatavilla tällä toimialan tarkkuustasolla"]
[null,"26800 Tallennevälineiden valmistus",3,718,3,null,"Tietoja ei ole saatavilla tällä toimialan tarkkuustasolla"]
[null,"27 Sähkölaitteiden valmistus",571,8234852,19326,null,367,46,50,51,19,24,9,3,2]
[null,"271 Sähkömoottorien, generaattorien, muuntajien sekä sähkönjakelu- ja valvontalaitteiden valmistus",136,4787639,11571,null,"Tietoja ei ole saatavilla tällä toimialan tarkkuustasolla"]
[null,"2711 Sähkömoottorien, generaattorien ja muuntajien valmistus",48,3808438,7752,null,"Tietoja ei ole saatavilla tällä toimialan tarkkuustasolla"]
[null,"27110 Sähkömoottorien, generaattorien ja muuntajien valmistus",48,3808438,7752,null,"Tietoja ei ole saatavilla tällä toimialan tarkkuustasolla"]
[null,"2712 Sähkönjakelu- ja valvontalaitteiden valmistus",88,979202,3819,null,"Tietoja ei ole saatavilla tällä toimialan tarkkuustasolla"]
[null,"27120 Sähkönjakelu- ja valvontalaitteiden valmistus",88,979202,3819,null,"Tietoja ei ole saatavilla tällä toimialan tarkkuustasolla"]
[null,"272 Paristojen ja akkujen valmistus",19,"...",1074,null,"Tietoja ei ole saatavilla tällä toimialan tarkkuustasolla"]
[null,"2720 Paristojen ja akkujen valmistus",19,"...",1074,null,"Tietoja ei ole saatavilla tällä toimialan tarkkuustasolla"]
[null,"27200 Paristojen ja akkujen valmistus",19,"...",1074,null,"Tietoja ei ole saatavilla tällä toimialan tarkkuustasolla"]
[null,"273 Sähköjohtojen ja kytkentälaitteiden valmistus",42,818310,1527,null,"Tietoja ei ole saatavilla tällä toimialan tarkkuustasolla"]
[null,"2731 Optisten kuitukaapelien valmistus",5,58765,149,null,"Tietoja ei ole saatavilla tällä toimialan tarkkuustasolla"]
[null,"27310 Optisten kuitukaapelien valmistus",5,58765,149,null,"Tietoja ei ole saatavilla tällä toimialan tarkkuustasolla"]
[null,"2732 Muiden elektronisten ja sähköjohtojen sekä -kaapelien valmistus",24,730806,1247,null,"Tietoja ei ole saatavilla tällä toimialan tarkkuustasolla"]
[null,"27320 Muiden elektronisten ja sähköjohtojen sekä -kaapelien valmistus",24,730806,1247,null,"Tietoja ei ole saatavilla tällä toimialan tarkkuustasolla"]
[null,"2733 Kytkentälaitteiden valmistus",13,28739,131,null,"Tietoja ei ole saatavilla tällä toimialan tarkkuustasolla"]
[null,"27330 Kytkentälaitteiden valmistus",13,28739,131,null,"Tietoja ei ole saatavilla tällä toimialan tarkkuustasolla"]
[null,"274 Sähkölamppujen ja valaisimien valmistus",101,401350,972,null,"Tietoja ei ole saatavilla tällä toimialan tarkkuustasolla"]
[null,"2740 Sähkölamppujen ja valaisimien valmistus",101,401350,972,null,"Tietoja ei ole saatavilla tällä toimialan tarkkuustasolla"]
[null,"27400 Sähkölamppujen ja valaisimien valmistus",101,401350,972,null,"Tietoja ei ole saatavilla tällä toimialan tarkkuustasolla"]
[null,"275 Kodinkoneiden valmistus",38,"...",866,null,"Tietoja ei ole saatavilla tällä toimialan tarkkuustasolla"]
[null,"2751 Sähköisten kodinkoneiden valmistus",26,157586,735,null,"Tietoja ei ole saatavilla tällä toimialan tarkkuustasolla"]
[null,"27510 Sähköisten kodinkoneiden valmistus",26,157586,735,null,"Tietoja ei ole saatavilla tällä toimialan tarkkuustasolla"]
[null,"2752 Sähköistämättömien kodinkoneiden valmistus",12,"...",131,null,"Tietoja ei ole saatavilla tällä toimialan tarkkuustasolla"]
[null,"27520 Sähköistämättömien kodinkoneiden valmistus",12,"...",131,null,"Tietoja ei ole saatavilla tällä toimialan tarkkuustasolla"]
[null,"279 Muiden sähkölaitteiden valmistus",235,1793038,3317,null,"Tietoja ei ole saatavilla tällä toimialan tarkkuustasolla"]
[null,"2790 Muiden sähkölaitteiden valmistus",235,1793038,3317,null,"Tietoja ei ole saatavilla tällä toimialan tarkkuustasolla"]
[null,"27900 Muiden sähkölaitteiden valmistus",235,1793038,3317,null,"Tietoja ei ole saatavilla tällä toimialan tarkkuustasolla"]
[null,"28 Muiden koneiden ja laitteiden valmistus",1522,23613219,49319,null,978,137,138,120,57,59,19,7,7]
[null,"281 Yleiskäyttöön tarkoitettujen voimakoneiden valmistus",148,3656968,9558,null,"Tietoja ei ole saatavilla tällä toimialan tarkkuustasolla"]
[null,"2811 Moottorien ja turbiinien valmistus (pl. lentokoneiden ja ajoneuvojen moottorit)",28,"2217524*",4294,null,"Tietoja ei ole saatavilla tällä toimialan tarkkuustasolla"]
[null,"28110 Moottorien ja turbiinien valmistus (pl. lentokoneiden ja ajoneuvojen moottorit)",28,"2217524*",4294,null,"Tietoja ei ole saatavilla tällä toimialan tarkkuustasolla"]
[null,"2812 Hydraulisten voimalaitteiden valmistus",42,"283114*",1307,null,"Tietoja ei ole saatavilla tällä toimialan tarkkuustasolla"]
[null,"28120 Hydraulisten voimalaitteiden valmistus",42,"283114*",1307,null,"Tietoja ei ole saatavilla tällä toimialan tarkkuustasolla"]
[null,"2813 Pumppujen ja kompressoreiden valmistus",20,336290,897,null,"Tietoja ei ole saatavilla tällä toimialan tarkkuustasolla"]
[null,"28130 Pumppujen ja kompressoreiden valmistus",20,336290,897,null,"Tietoja ei ole saatavilla tällä toimialan tarkkuustasolla"]
[null,"2814 Muiden hanojen ja venttiilien valmistus",21,548964,1555,null,"Tietoja ei ole saatavilla tällä toimialan tarkkuustasolla"]
[null,"28140 Muiden hanojen ja venttiilien valmistus",21,548964,1555,null,"Tietoja ei ole saatavilla tällä toimialan tarkkuustasolla"]
[null,"2815 Laakereiden, hammaspyörien, vaihteisto- ja ohjauselementtien valmistus",37,367446,1505,null,"Tietoja ei ole saatavilla tällä toimialan tarkkuustasolla"]
[null,"28150 Laakereiden, hammaspyörien, vaihteisto- ja ohjauselementtien valmistus",37,367446,1505,null,"Tietoja ei ole saatavilla tällä toimialan tarkkuustasolla"]
[null,"282 Muiden yleiskäyttöön tarkoitettujen koneiden valmistus",541,7235062,13732,null,"Tietoja ei ole saatavilla tällä toimialan tarkkuustasolla"]
[null,"2821 Teollisuusuunien, lämmitysjärjestelmien ja tulipesäpolttimien valmistus",37,207804,718,null,"Tietoja ei ole saatavilla tällä toimialan tarkkuustasolla"]
[null,"28210 Teollisuusuunien, lämmitysjärjestelmien ja tulipesäpolttimien valmistus",37,207804,718,null,"Tietoja ei ole saatavilla tällä toimialan tarkkuustasolla"]
[null,"2822 Nosto- ja siirtolaitteiden valmistus",139,5631718,7881,null,"Tietoja ei ole saatavilla tällä toimialan tarkkuustasolla"]
[null,"28220 Nosto- ja siirtolaitteiden valmistus",139,5631718,7881,null,"Tietoja ei ole saatavilla tällä toimialan tarkkuustasolla"]
[null,"2823 Konttorikoneiden ja -laitteiden valmistus (pl. tietokoneet ja niiden oheislaitteet)",3,1728,13,null,"Tietoja ei ole saatavilla tällä toimialan tarkkuustasolla"]
[null,"28230 Konttorikoneiden ja -laitteiden valmistus (pl. tietokoneet ja niiden oheislaitteet)",3,1728,13,null,"Tietoja ei ole saatavilla tällä toimialan tarkkuustasolla"]
[null,"2824 Voimakäyttöisten käsityökalujen valmistus",12,4245,22,null,"Tietoja ei ole saatavilla tällä toimialan tarkkuustasolla"]
[null,"28240 Voimakäyttöisten käsityökalujen valmistus",12,4245,22,null,"Tietoja ei ole saatavilla tällä toimialan tarkkuustasolla"]
[null,"2825 Muuhun kuin kotitalouskäyttöön tarkoitettujen jäähdytys- ja tuuletuslaitteiden valmistus",99,908674,3545,null,"Tietoja ei ole saatavilla tällä toimialan tarkkuustasolla"]
[null,"28250 Muuhun kuin kotitalouskäyttöön tarkoitettujen jäähdytys- ja tuuletuslaitteiden valmistus",99,908674,3545,null,"Tietoja ei ole saatavilla tällä toimialan tarkkuustasolla"]
[null,"2829 Muualla luokittelematon yleiskäyttöön tarkoitettujen koneiden valmistus",251,480894,1555,null,"Tietoja ei ole saatavilla tällä toimialan tarkkuustasolla"]
[null,"28290 Muualla luokittelematon yleiskäyttöön tarkoitettujen koneiden valmistus",251,480894,1555,null,"Tietoja ei ole saatavilla tällä toimialan tarkkuustasolla"]
[null,"283 Maa- ja metsätalouskoneiden valmistus",145,1821672,4488,null,"Tietoja ei ole saatavilla tällä toimialan tarkkuustasolla"]
[null,"2830 Maa- ja metsätalouskoneiden valmistus",145,1821672,4488,null,"Tietoja ei ole saatavilla tällä toimialan tarkkuustasolla"]
[null,"28300 Maa- ja metsätalouskoneiden valmistus",145,1821672,4488,null,"Tietoja ei ole saatavilla tällä toimialan tarkkuustasolla"]
[null,"284 Metallin työstökoneiden ja konetyökalujen valmistus",74,574000,1920,null,"Tietoja ei ole saatavilla tällä toimialan tarkkuustasolla"]
[null,"2841 Metallin työstökoneiden valmistus",37,299552,958,null,"Tietoja ei ole saatavilla tällä toimialan tarkkuustasolla"]
[null,"28410 Metallin työstökoneiden valmistus",37,299552,958,null,"Tietoja ei ole saatavilla tällä toimialan tarkkuustasolla"]
[null,"2849 Muiden konetyökalujen valmistus",37,274448,963,null,"Tietoja ei ole saatavilla tällä toimialan tarkkuustasolla"]
[null,"28490 Muiden konetyökalujen valmistus",37,274448,963,null,"Tietoja ei ole saatavilla tällä toimialan tarkkuustasolla"]
[null,"289 Muiden erikoiskoneiden valmistus",614,10325517,19620,null,"Tietoja ei ole saatavilla tällä toimialan tarkkuustasolla"]
[null,"2891 Metallinjalostuskoneiden valmistus",13,27938,47,null,"Tietoja ei ole saatavilla tällä toimialan tarkkuustasolla"]
[null,"28910 Metallinjalostuskoneiden valmistus",13,27938,47,null,"Tietoja ei ole saatavilla tällä toimialan tarkkuustasolla"]
[null,"2892 Kaivos-, louhinta- ja rakennuskoneiden valmistus",102,4961413,7682,null,"Tietoja ei ole saatavilla tällä toimialan tarkkuustasolla"]
[null,"28920 Kaivos-, louhinta- ja rakennuskoneiden valmistus",102,4961413,7682,null,"Tietoja ei ole saatavilla tällä toimialan tarkkuustasolla"]
[null,"2893 Elintarvike-, juoma- ja tupakkateollisuuden koneiden valmistus",71,194810,826,null,"Tietoja ei ole saatavilla tällä toimialan tarkkuustasolla"]
[null,"28930 Elintarvike-, juoma- ja tupakkateollisuuden koneiden valmistus",71,194810,826,null,"Tietoja ei ole saatavilla tällä toimialan tarkkuustasolla"]
[null,"2894 Tekstiili-, vaate- ja nahkateollisuuden koneiden valmistus",15,3246,25,null,"Tietoja ei ole saatavilla tällä toimialan tarkkuustasolla"]
[null,"28940 Tekstiili-, vaate- ja nahkateollisuuden koneiden valmistus",15,3246,25,null,"Tietoja ei ole saatavilla tällä toimialan tarkkuustasolla"]
[null,"2895 Paperi-, kartonki- ja pahviteollisuuden koneiden valmistus",37,3512654,6596,null,"Tietoja ei ole saatavilla tällä toimialan tarkkuustasolla"]
[null,"28950 Paperi-, kartonki- ja pahviteollisuuden koneiden valmistus",37,3512654,6596,null,"Tietoja ei ole saatavilla tällä toimialan tarkkuustasolla"]
[null,"2896 Muovi- ja kumiteollisuuden koneiden valmistus",6,5277,25,null,"Tietoja ei ole saatavilla tällä toimialan tarkkuustasolla"]
[null,"28960 Muovi- ja kumiteollisuuden koneiden valmistus",6,5277,25,null,"Tietoja ei ole saatavilla tällä toimialan tarkkuustasolla"]
[null,"2899 Muualla luokittelematon erikoiskoneiden valmistus",370,1620179,4419,null,"Tietoja ei ole saatavilla tällä toimialan tarkkuustasolla"]
[null,"28990 Muualla luokittelematon erikoiskoneiden valmistus",370,1620179,4419,null,"Tietoja ei ole saatavilla tällä toimialan tarkkuustasolla"]
[null,"29 Moottoriajoneuvojen, perävaunujen ja puoliperävaunujen valmistus",301,2474909,7394,null,202,26,24,21,17,4,5,1,1]
[null,"291 Moottoriajoneuvojen valmistus",53,1357406,3180,null,"Tietoja ei ole saatavilla tällä toimialan tarkkuustasolla"]
[null,"2910 Moottoriajoneuvojen valmistus",53,1357406,3180,null,"Tietoja ei ole saatavilla tällä toimialan tarkkuustasolla"]
[null,"29100 Moottoriajoneuvojen valmistus",53,1357406,3180,null,"Tietoja ei ole saatavilla tällä toimialan tarkkuustasolla"]
[null,"292 Moottoriajoneuvojen korien valmistus; perävaunujen ja puoliperävaunujen valmistus",124,873558,3261,null,"Tietoja ei ole saatavilla tällä toimialan tarkkuustasolla"]
[null,"2920 Moottoriajoneuvojen korien valmistus; perävaunujen ja puoliperävaunujen valmistus",124,873558,3261,null,"Tietoja ei ole saatavilla tällä toimialan tarkkuustasolla"]
[null,"29200 Moottoriajoneuvojen korien valmistus; perävaunujen ja puoliperävaunujen valmistus",124,873558,3261,null,"Tietoja ei ole saatavilla tällä toimialan tarkkuustasolla"]
[null,"293 Osien ja tarvikkeiden valmistus moottoriajoneuvoihin",124,243946,953,null,"Tietoja ei ole saatavilla tällä toimialan tarkkuustasolla"]
[null,"2931 Sähkö- ja elektroniikkalaitteiden valmistus moottoriajoneuvoihin",29,30022,163,null,"Tietoja ei ole saatavilla tällä toimialan tarkkuustasolla"]
[null,"29310 Sähkö- ja elektroniikkalaitteiden valmistus moottoriajoneuvoihin",29,30022,163,null,"Tietoja ei ole saatavilla tällä toimialan tarkkuustasolla"]
[null,"2932 Muiden osien ja tarvikkeiden valmistus moottoriajoneuvoihin",95,213923,790,null,"Tietoja ei ole saatavilla tällä toimialan tarkkuustasolla"]
[null,"29320 Muiden osien ja tarvikkeiden valmistus moottoriajoneuvoihin",95,213923,790,null,"Tietoja ei ole saatavilla tällä toimialan tarkkuustasolla"]
[null,"30 Muiden kulkuneuvojen valmistus",577,3521790,7569,null,454,43,27,26,14,8,3,1,1]
[null,"301 Laivojen ja veneiden rakentaminen",488,3090685,6134,null,"Tietoja ei ole saatavilla tällä toimialan tarkkuustasolla"]
[null,"3011 Laivojen ja kelluvien rakenteiden rakentaminen",220,2585055,4444,null,"Tietoja ei ole saatavilla tällä toimialan tarkkuustasolla"]
[null,"30110 Laivojen ja kelluvien rakenteiden rakentaminen",220,2585055,4444,null,"Tietoja ei ole saatavilla tällä toimialan tarkkuustasolla"]
[null,"3012 Huvi- ja urheiluveneiden rakentaminen",268,505631,1690,null,"Tietoja ei ole saatavilla tällä toimialan tarkkuustasolla"]
[null,"30120 Huvi- ja urheiluveneiden rakentaminen",268,505631,1690,null,"Tietoja ei ole saatavilla tällä toimialan tarkkuustasolla"]
[null,"302 Raideliikenteen kulkuneuvojen valmistus",3,"...",565,null,"Tietoja ei ole saatavilla tällä toimialan tarkkuustasolla"]
[null,"3020 Raideliikenteen kulkuneuvojen valmistus",3,"...",565,null,"Tietoja ei ole saatavilla tällä toimialan tarkkuustasolla"]
[null,"30200 Raideliikenteen kulkuneuvojen valmistus",3,"...",565,null,"Tietoja ei ole saatavilla tällä toimialan tarkkuustasolla"]
[null,"303 Ilma- ja avaruusalusten ja niihin liittyvien koneiden valmistus",19,"...",172,null,"Tietoja ei ole saatavilla tällä toimialan tarkkuustasolla"]
[null,"3030 Ilma- ja avaruusalusten ja niihin liittyvien koneiden valmistus",19,"...",172,null,"Tietoja ei ole saatavilla tällä toimialan tarkkuustasolla"]
[null,"30300 Ilma- ja avaruusalusten ja niihin liittyvien koneiden valmistus",19,"...",172,null,"Tietoja ei ole saatavilla tällä toimialan tarkkuustasolla"]
[null,"304 Taisteluajoneuvojen valmistus",1,"...",322,null,"Tietoja ei ole saatavilla tällä toimialan tarkkuustasolla"]
[null,"3040 Taisteluajoneuvojen valmistus",1,"...",322,null,"Tietoja ei ole saatavilla tällä toimialan tarkkuustasolla"]
[null,"30400 Taisteluajoneuvojen valmistus",1,"...",322,null,"Tietoja ei ole saatavilla tällä toimialan tarkkuustasolla"]
[null,"309 Muualla luokittelematon kulkuneuvojen valmistus",66,129302,376,null,"Tietoja ei ole saatavilla tällä toimialan tarkkuustasolla"]
[null,"3091 Moottoripyörien valmistus",6,"...",4,null,"Tietoja ei ole saatavilla tällä toimialan tarkkuustasolla"]
[null,"30910 Moottoripyörien valmistus",6,"...",4,null,"Tietoja ei ole saatavilla tällä toimialan tarkkuustasolla"]
[null,"3092 Polkupyörien ja invalidiajoneuvojen valmistus",28,"...",144,null,"Tietoja ei ole saatavilla tällä toimialan tarkkuustasolla"]
[null,"30920 Polkupyörien ja invalidiajoneuvojen valmistus",28,"...",144,null,"Tietoja ei ole saatavilla tällä toimialan tarkkuustasolla"]
[null,"3099 Muiden muualla luokittelemattomien kulkuneuvojen valmistus",32,84954,228,null,"Tietoja ei ole saatavilla tällä toimialan tarkkuustasolla"]
[null,"30990 Muiden muualla luokittelemattomien kulkuneuvojen valmistus",32,84954,228,null,"Tietoja ei ole saatavilla tällä toimialan tarkkuustasolla"]
[null,"31 Huonekalujen valmistus",1069,1411491,5683,null,883,81,52,33,12,4,4,".","."]
[null,"310 Huonekalujen valmistus",1069,1411491,5683,null,"Tietoja ei ole saatavilla tällä toimialan tarkkuustasolla"]
[null,"3101 Konttori- ja myymäläkalusteiden valmistus",174,576829,1929,null,"Tietoja ei ole saatavilla tällä toimialan tarkkuustasolla"]
[null,"31010 Konttori- ja myymäläkalusteiden valmistus",174,576829,1929,null,"Tietoja ei ole saatavilla tällä toimialan tarkkuustasolla"]
[null,"3102 Keittiökalusteiden valmistus",236,439364,2042,null,"Tietoja ei ole saatavilla tällä toimialan tarkkuustasolla"]
[null,"31020 Keittiökalusteiden valmistus",236,439364,2042,null,"Tietoja ei ole saatavilla tällä toimialan tarkkuustasolla"]
[null,"3103 Patjojen valmistus",9,74885,178,null,"Tietoja ei ole saatavilla tällä toimialan tarkkuustasolla"]
[null,"31030 Patjojen valmistus",9,74885,178,null,"Tietoja ei ole saatavilla tällä toimialan tarkkuustasolla"]
[null,"3109 Muiden huonekalujen valmistus",650,320413,1534,null,"Tietoja ei ole saatavilla tällä toimialan tarkkuustasolla"]
[null,"31090 Muiden huonekalujen valmistus",650,320413,1534,null,"Tietoja ei ole saatavilla tällä toimialan tarkkuustasolla"]
[null,"32 Muu valmistus",2294,933512,4211,null,2167,52,29,32,5,9,".",".","."]
[null,"321 Korujen, kultasepäntuotteiden ja muiden vastaavien tuotteiden valmistus",742,98536,414,null,"Tietoja ei ole saatavilla tällä toimialan tarkkuustasolla"]
[null,"3211 Kolikoiden ja mitalien valmistus",8,"...",45,null,"Tietoja ei ole saatavilla tällä toimialan tarkkuustasolla"]
[null,"32110 Kolikoiden ja mitalien valmistus",8,"...",45,null,"Tietoja ei ole saatavilla tällä toimialan tarkkuustasolla"]
[null,"3212 Jalokivikorujen ja muiden kultasepäntuotteiden valmistus",486,61265,339,null,"Tietoja ei ole saatavilla tällä toimialan tarkkuustasolla"]
[null,"32120 Jalokivikorujen ja muiden kultasepäntuotteiden valmistus",486,61265,339,null,"Tietoja ei ole saatavilla tällä toimialan tarkkuustasolla"]
[null,"3213 Jäljitelmäkorujen ja muiden vastaavien tuotteiden valmistus",248,"...",31,null,"Tietoja ei ole saatavilla tällä toimialan tarkkuustasolla"]
[null,"32130 Jäljitelmäkorujen ja muiden vastaavien tuotteiden valmistus",248,"...",31,null,"Tietoja ei ole saatavilla tällä toimialan tarkkuustasolla"]
[null,"322 Soitinten valmistus",174,7243,55,null,"Tietoja ei ole saatavilla tällä toimialan tarkkuustasolla"]
[null,"3220 Soitinten valmistus",174,7243,55,null,"Tietoja ei ole saatavilla tällä toimialan tarkkuustasolla"]
[null,"32200 Soitinten valmistus",174,7243,55,null,"Tietoja ei ole saatavilla tällä toimialan tarkkuustasolla"]
[null,"323 Urheiluvälineiden valmistus",293,214091,831,null,"Tietoja ei ole saatavilla tällä toimialan tarkkuustasolla"]
[null,"3230 Urheiluvälineiden valmistus",293,214091,831,null,"Tietoja ei ole saatavilla tällä toimialan tarkkuustasolla"]
[null,"32300 Urheiluvälineiden valmistus",293,214091,831,null,"Tietoja ei ole saatavilla tällä toimialan tarkkuustasolla"]
[null,"324 Pelien ja leikkikalujen valmistus",91,30585,149,null,"Tietoja ei ole saatavilla tällä toimialan tarkkuustasolla"]
[null,"3240 Pelien ja leikkikalujen valmistus",91,30585,149,null,"Tietoja ei ole saatavilla tällä toimialan tarkkuustasolla"]
[null,"32400 Pelien ja leikkikalujen valmistus",91,30585,149,null,"Tietoja ei ole saatavilla tällä toimialan tarkkuustasolla"]
[null,"325 Lääkintä- ja hammaslääkintäinstrumenttien ja -tarvikkeiden valmistus",423,381127,1852,null,"Tietoja ei ole saatavilla tällä toimialan tarkkuustasolla"]
[null,"3250 Lääkintä- ja hammaslääkintäinstrumenttien ja -tarvikkeiden valmistus",423,381127,1852,null,"Tietoja ei ole saatavilla tällä toimialan tarkkuustasolla"]
[null,"32501 Lääkintä- ja hammaslääkintäinstrumenttien ja -tarvikkeiden valmistus (pl. hammasproteesit)",143,314723,1344,null,"Tietoja ei ole saatavilla tällä toimialan tarkkuustasolla"]
[null,"32502 Hammasproteesien, keinohampaiden ym. valmistus",280,66404,509,null,"Tietoja ei ole saatavilla tällä toimialan tarkkuustasolla"]
[null,"329 Muualla luokittelematon valmistus",571,201930,909,null,"Tietoja ei ole saatavilla tällä toimialan tarkkuustasolla"]
[null,"3291 Luutien ja harjojen valmistus",15,70156,255,null,"Tietoja ei ole saatavilla tällä toimialan tarkkuustasolla"]
[null,"32910 Luutien ja harjojen valmistus",15,70156,255,null,"Tietoja ei ole saatavilla tällä toimialan tarkkuustasolla"]
[null,"3299 Muu muualla luokittelematon valmistus",556,131774,655,null,"Tietoja ei ole saatavilla tällä toimialan tarkkuustasolla"]
[null,"32991 Turvavarusteiden valmistus",42,48634,128,null,"Tietoja ei ole saatavilla tällä toimialan tarkkuustasolla"]
[null,"32999 Muu muualla luokittelemattomien tuotteiden valmistus",514,83140,527,null,"Tietoja ei ole saatavilla tällä toimialan tarkkuustasolla"]
[null,"33 Koneiden ja laitteiden korjaus, huolto ja asennus",4352,3868857,18708,null,3873,235,128,76,20,12,2,1,5]
[null,"331 Metallituotteiden, teollisuuden koneiden ja laitteiden korjaus ja huolto",3506,2712815,12963,null,"Tietoja ei ole saatavilla tällä toimialan tarkkuustasolla"]
[null,"3311 Metallituotteiden korjaus ja huolto",328,346579,1702,null,"Tietoja ei ole saatavilla tällä toimialan tarkkuustasolla"]
[null,"33110 Metallituotteiden korjaus ja huolto",328,346579,1702,null,"Tietoja ei ole saatavilla tällä toimialan tarkkuustasolla"]
[null,"3312 Teollisuuden koneiden ja laitteiden korjaus ja huolto",2068,1288191,6362,null,"Tietoja ei ole saatavilla tällä toimialan tarkkuustasolla"]
[null,"33121 Yleiskäyttöön tarkoitettujen koneiden korjaus ja huolto",718,390518,1778,null,"Tietoja ei ole saatavilla tällä toimialan tarkkuustasolla"]
[null,"33122 Maa- ja metsätalouskoneiden korjaus ja huolto",591,174924,772,null,"Tietoja ei ole saatavilla tällä toimialan tarkkuustasolla"]
[null,"33123 Metallintyöstökoneiden ja muiden konetyökalujen korjaus ja huolto",121,33240,229,null,"Tietoja ei ole saatavilla tällä toimialan tarkkuustasolla"]
[null,"33129 Muiden erikoiskoneiden korjaus ja huolto",638,689509,3582,null,"Tietoja ei ole saatavilla tällä toimialan tarkkuustasolla"]
[null,"3313 Elektronisten ja optisten laitteiden korjaus ja huolto",111,51336,258,null,"Tietoja ei ole saatavilla tällä toimialan tarkkuustasolla"]
[null,"33130 Elektronisten ja optisten laitteiden korjaus ja huolto",111,51336,258,null,"Tietoja ei ole saatavilla tällä toimialan tarkkuustasolla"]
[null,"3314 Sähkölaitteiden korjaus ja huolto",143,114991,324,null,"Tietoja ei ole saatavilla tällä toimialan tarkkuustasolla"]
[null,"33140 Sähkölaitteiden korjaus ja huolto",143,114991,324,null,"Tietoja ei ole saatavilla tällä toimialan tarkkuustasolla"]
[null,"3315 Laivojen ja veneiden korjaus ja huolto",441,169494,731,null,"Tietoja ei ole saatavilla tällä toimialan tarkkuustasolla"]
[null,"33150 Laivojen ja veneiden korjaus ja huolto",441,169494,731,null,"Tietoja ei ole saatavilla tällä toimialan tarkkuustasolla"]
[null,"3316 Ilma- ja avaruusalusten korjaus ja huolto",31,474021,2278,null,"Tietoja ei ole saatavilla tällä toimialan tarkkuustasolla"]
[null,"33160 Ilma- ja avaruusalusten korjaus ja huolto",31,474021,2278,null,"Tietoja ei ole saatavilla tällä toimialan tarkkuustasolla"]
[null,"3317 Muiden kulkuneuvojen korjaus ja huolto",140,"...",1125,null,"Tietoja ei ole saatavilla tällä toimialan tarkkuustasolla"]
[null,"33170 Muiden kulkuneuvojen korjaus ja huolto",140,"...",1125,null,"Tietoja ei ole saatavilla tällä toimialan tarkkuustasolla"]
[null,"3319 Muiden laitteiden korjaus ja huolto",244,"...",184,null,"Tietoja ei ole saatavilla tällä toimialan tarkkuustasolla"]
[null,"33190 Muiden laitteiden korjaus ja huolto",244,"...",184,null,"Tietoja ei ole saatavilla tällä toimialan tarkkuustasolla"]
[null,"332 Teollisuuden koneiden ja laitteiden ym. asennus",846,1156042,5744,null,"Tietoja ei ole saatavilla tällä toimialan tarkkuustasolla"]
[null,"3320 Teollisuuden koneiden ja laitteiden ym. asennus",846,1156042,5744,null,"Tietoja ei ole saatavilla tällä toimialan tarkkuustasolla"]
[null,"33200 Teollisuuden koneiden ja laitteiden ym. asennus",846,1156042,5744,null,"Tietoja ei ole saatavilla tällä toimialan tarkkuustasolla"]
[null,"D Sähkö-, kaasu- ja lämpöhuolto, jäähdytysliiketoiminta (35)",1682,22104333,13032,null,1419,80,62,71,26,16,5,1,2]
[null,"35 Sähkö-, kaasu- ja lämpöhuolto, jäähdytysliiketoiminta",1682,22104333,13032,null,1419,80,62,71,26,16,5,1,2]
[null,"351 Sähkövoiman tuotanto, siirto ja jakelu",1182,20061475,11102,null,"Tietoja ei ole saatavilla tällä toimialan tarkkuustasolla"]
[null,"3511 Sähkön tuotanto",865,8622188,5822,null,"Tietoja ei ole saatavilla tällä toimialan tarkkuustasolla"]
[null,"35111 Sähkön tuotanto vesi- ja tuulivoimalla",729,1130395,481,null,"Tietoja ei ole saatavilla tällä toimialan tarkkuustasolla"]
[null,"35112 Sähkön erillistuotanto lämpövoimalla",13,10652,12,null,"Tietoja ei ole saatavilla tällä toimialan tarkkuustasolla"]
[null,"35113 Sähkön ja kaukolämmön yhteistuotanto",78,3916110,2274,null,"Tietoja ei ole saatavilla tällä toimialan tarkkuustasolla"]
[null,"35114 Sähkön tuotanto ydinvoimalla",8,3337874,2935,null,"Tietoja ei ole saatavilla tällä toimialan tarkkuustasolla"]
[null,"35115 Teollisuutta palveleva sähkön ja lämmön tuotanto",37,227158,120,null,"Tietoja ei ole saatavilla tällä toimialan tarkkuustasolla"]
[null,"3512 Sähkön siirto",9,"...",467,null,"Tietoja ei ole saatavilla tällä toimialan tarkkuustasolla"]
[null,"35120 Sähkön siirto",9,"...",467,null,"Tietoja ei ole saatavilla tällä toimialan tarkkuustasolla"]
[null,"3513 Sähkön jakelu",137,"...",2341,null,"Tietoja ei ole saatavilla tällä toimialan tarkkuustasolla"]
[null,"35130 Sähkön jakelu",137,"...",2341,null,"Tietoja ei ole saatavilla tällä toimialan tarkkuustasolla"]
[null,"3514 Sähkön kauppa",171,7444960,2472,null,"Tietoja ei ole saatavilla tällä toimialan tarkkuustasolla"]
[null,"35140 Sähkön kauppa",171,7444960,2472,null,"Tietoja ei ole saatavilla tällä toimialan tarkkuustasolla"]
[null,"352 Kaasun tuotanto; kaasumaisten polttoaineiden jakelu putkiverkossa",49,257060,105,null,"Tietoja ei ole saatavilla tällä toimialan tarkkuustasolla"]
[null,"3521 Kaasun tuotanto",42,"47858*",82,null,"Tietoja ei ole saatavilla tällä toimialan tarkkuustasolla"]
[null,"35210 Kaasun tuotanto",42,"47858*",82,null,"Tietoja ei ole saatavilla tällä toimialan tarkkuustasolla"]
[null,"3522 Kaasumaisten polttoaineiden jakelu putkiverkossa",3,"43920*",16,null,"Tietoja ei ole saatavilla tällä toimialan tarkkuustasolla"]
[null,"35220 Kaasumaisten polttoaineiden jakelu putkiverkossa",3,"43920*",16,null,"Tietoja ei ole saatavilla tällä toimialan tarkkuustasolla"]
[null,"3523 Kaasun kauppa putkiverkossa",4,186110,8,null,"Tietoja ei ole saatavilla tällä toimialan tarkkuustasolla"]
[null,"35230 Kaasun kauppa putkiverkossa",4,186110,8,null,"Tietoja ei ole saatavilla tällä toimialan tarkkuustasolla"]
[null,"353 Lämmön ja kylmän tuotanto ja jakelu",451,1785798,1825,null,"Tietoja ei ole saatavilla tällä toimialan tarkkuustasolla"]
[null,"3530 Lämmön ja kylmän tuotanto ja jakelu",451,1785798,1825,null,"Tietoja ei ole saatavilla tällä toimialan tarkkuustasolla"]
[null,"35301 Kaukolämmön ja -kylmän erillistuotanto ja jakelu",385,1450728,1387,null,"Tietoja ei ole saatavilla tällä toimialan tarkkuustasolla"]
[null,"35302 Teollisuutta palveleva lämmön ja kylmän erillistuotanto",66,335071,439,null,"Tietoja ei ole saatavilla tällä toimialan tarkkuustasolla"]
[null,"E Vesihuolto, viemäri- ja jätevesihuolto, jätehuolto ja muu ympäristön puhtaanapito (36-39)",2412,4273572,12124,null,2075,135,100,65,23,7,4,2,1]
[null,"36 Veden otto, puhdistus ja jakelu",1332,1200197,2887,null,1236,39,29,19,6,2,".",1,"."]
[null,"360 Veden otto, puhdistus ja jakelu",1332,1200197,2887,null,"Tietoja ei ole saatavilla tällä toimialan tarkkuustasolla"]
[null,"3600 Veden otto, puhdistus ja jakelu",1332,1200197,2887,null,"Tietoja ei ole saatavilla tällä toimialan tarkkuustasolla"]
[null,"36000 Veden otto, puhdistus ja jakelu",1332,1200197,2887,null,"Tietoja ei ole saatavilla tällä toimialan tarkkuustasolla"]
[null,"37 Viemäri- ja jätevesihuolto",338,417817,1463,null,283,27,18,8,1,".",".",1,"."]
[null,"370 Viemäri- ja jätevesihuolto",338,417817,1463,null,"Tietoja ei ole saatavilla tällä toimialan tarkkuustasolla"]
[null,"3700 Viemäri- ja jätevesihuolto",338,417817,1463,null,"Tietoja ei ole saatavilla tällä toimialan tarkkuustasolla"]
[null,"37000 Viemäri- ja jätevesihuolto",338,417817,1463,null,"Tietoja ei ole saatavilla tällä toimialan tarkkuustasolla"]
[null,"38 Jätteen keruu, käsittely ja loppusijoitus; materiaalien kierrätys",635,2614864,7578,null,460,64,49,36,16,5,4,".",1]
[null,"381 Jätteen keruu",234,662816,3378,null,"Tietoja ei ole saatavilla tällä toimialan tarkkuustasolla"]
[null,"3811 Tavanomaisen jätteen keruu",225,643871,3302,null,"Tietoja ei ole saatavilla tällä toimialan tarkkuustasolla"]
[null,"38110 Tavanomaisen jätteen keruu",225,643871,3302,null,"Tietoja ei ole saatavilla tällä toimialan tarkkuustasolla"]
[null,"3812 Ongelmajätteen keruu",9,18945,76,null,"Tietoja ei ole saatavilla tällä toimialan tarkkuustasolla"]
[null,"38120 Ongelmajätteen keruu",9,18945,76,null,"Tietoja ei ole saatavilla tällä toimialan tarkkuustasolla"]
[null,"382 Jätteen käsittely ja loppusijoitus",155,883697,2339,null,"Tietoja ei ole saatavilla tällä toimialan tarkkuustasolla"]
[null,"3821 Tavanomaisen jätteen käsittely ja loppusijoitus",138,513960,1724,null,"Tietoja ei ole saatavilla tällä toimialan tarkkuustasolla"]
[null,"38210 Tavanomaisen jätteen käsittely ja loppusijoitus",138,513960,1724,null,"Tietoja ei ole saatavilla tällä toimialan tarkkuustasolla"]
[null,"3822 Ongelmajätteen käsittely, loppusijoitus ja hävittäminen",17,369737,614,null,"Tietoja ei ole saatavilla tällä toimialan tarkkuustasolla"]
[null,"38220 Ongelmajätteen käsittely, loppusijoitus ja hävittäminen",17,369737,614,null,"Tietoja ei ole saatavilla tällä toimialan tarkkuustasolla"]
[null,"383 Materiaalien kierrätys",246,1068351,1862,null,"Tietoja ei ole saatavilla tällä toimialan tarkkuustasolla"]
[null,"3831 Romujen purkaminen",47,23277,133,null,"Tietoja ei ole saatavilla tällä toimialan tarkkuustasolla"]
[null,"38310 Romujen purkaminen",47,23277,133,null,"Tietoja ei ole saatavilla tällä toimialan tarkkuustasolla"]
[null,"3832 Lajiteltujen materiaalien kierrätys",199,1045074,1729,null,"Tietoja ei ole saatavilla tällä toimialan tarkkuustasolla"]
[null,"38320 Lajiteltujen materiaalien kierrätys",199,1045074,1729,null,"Tietoja ei ole saatavilla tällä toimialan tarkkuustasolla"]
[null,"39 Maaperän ja vesistöjen kunnostus ja muut ympäristönhuoltopalvelut",107,40694,197,null,96,5,4,2,".",".",".",".","."]
[null,"390 Maaperän ja vesistöjen kunnostus ja muut ympäristönhuoltopalvelut",107,40694,197,null,"Tietoja ei ole saatavilla tällä toimialan tarkkuustasolla"]
[null,"3900 Maaperän ja vesistöjen kunnostus ja muut ympäristönhuoltopalvelut",107,40694,197,null,"Tietoja ei ole saatavilla tällä toimialan tarkkuustasolla"]
[null,"39000 Maaperän ja vesistöjen kunnostus ja muut ympäristönhuoltopalvelut",107,40694,197,null,"Tietoja ei ole saatavilla tällä toimialan tarkkuustasolla"]
[null,"F Rakentaminen (41-43)",56959,45371863,156455,null,50894,3123,1692,959,183,64,27,10,7]
[null,"41 Talonrakentaminen",24448,19243820,53876,null,22325,1146,566,314,67,19,5,4,2]
[null,"411 Rakennuttaminen ja rakennushankkeiden kehittäminen",1496,755096,1353,null,"Tietoja ei ole saatavilla tällä toimialan tarkkuustasolla"]
[null,"4110 Rakennuttaminen ja rakennushankkeiden kehittäminen",1496,755096,1353,null,"Tietoja ei ole saatavilla tällä toimialan tarkkuustasolla"]
[null,"41100 Rakennuttaminen ja rakennushankkeiden kehittäminen",1496,755096,1353,null,"Tietoja ei ole saatavilla tällä toimialan tarkkuustasolla"]
[null,"412 Asuin- ja muiden rakennusten rakentaminen",22952,18488724,52522,null,"Tietoja ei ole saatavilla tällä toimialan tarkkuustasolla"]
[null,"4120 Asuin- ja muiden rakennusten rakentaminen",22952,18488724,52522,null,"Tietoja ei ole saatavilla tällä toimialan tarkkuustasolla"]
[null,"41200 Asuin- ja muiden rakennusten rakentaminen",22952,18488724,52522,null,"Tietoja ei ole saatavilla tällä toimialan tarkkuustasolla"]
[null,"42 Maa- ja vesirakentaminen",2904,7720408,17102,null,2545,167,91,62,19,6,8,4,2]
[null,"421 Teiden ja rautateiden rakentaminen",520,2434281,6534,null,"Tietoja ei ole saatavilla tällä toimialan tarkkuustasolla"]
[null,"4211 Teiden ja moottoriteiden rakentaminen",386,1590833,3900,null,"Tietoja ei ole saatavilla tällä toimialan tarkkuustasolla"]
[null,"42110 Teiden ja moottoriteiden rakentaminen",386,1590833,3900,null,"Tietoja ei ole saatavilla tällä toimialan tarkkuustasolla"]
[null,"4212 Rautateiden ja metrolinjojen rakentaminen",79,742497,2429,null,"Tietoja ei ole saatavilla tällä toimialan tarkkuustasolla"]
[null,"42120 Rautateiden ja metrolinjojen rakentaminen",79,742497,2429,null,"Tietoja ei ole saatavilla tällä toimialan tarkkuustasolla"]
[null,"4213 Siltojen ja tunneleiden rakentaminen",55,100951,206,null,"Tietoja ei ole saatavilla tällä toimialan tarkkuustasolla"]
[null,"42130 Siltojen ja tunneleiden rakentaminen",55,100951,206,null,"Tietoja ei ole saatavilla tällä toimialan tarkkuustasolla"]
[null,"422 Yleisten jakeluverkkojen rakentaminen",530,4329774,7459,null,"Tietoja ei ole saatavilla tällä toimialan tarkkuustasolla"]
[null,"4221 Yleisten jakeluverkkojen rakentaminen nestemäisiä ja kaasumaisia aineita varten",140,139967,589,null,"Tietoja ei ole saatavilla tällä toimialan tarkkuustasolla"]
[null,"42210 Yleisten jakeluverkkojen rakentaminen nestemäisiä ja kaasumaisia aineita varten",140,139967,589,null,"Tietoja ei ole saatavilla tällä toimialan tarkkuustasolla"]
[null,"4222 Sähkö- ja tietoliikenneverkkojen rakentaminen",390,4189806,6870,null,"Tietoja ei ole saatavilla tällä toimialan tarkkuustasolla"]
[null,"42220 Sähkö- ja tietoliikenneverkkojen rakentaminen",390,4189806,6870,null,"Tietoja ei ole saatavilla tällä toimialan tarkkuustasolla"]
[null,"429 Muu maa- ja vesirakentaminen",1854,956354,3109,null,"Tietoja ei ole saatavilla tällä toimialan tarkkuustasolla"]
[null,"4291 Vesirakentaminen",169,91096,308,null,"Tietoja ei ole saatavilla tällä toimialan tarkkuustasolla"]
[null,"42910 Vesirakentaminen",169,91096,308,null,"Tietoja ei ole saatavilla tällä toimialan tarkkuustasolla"]
[null,"4299 Muualla luokittelematon maa- ja vesirakentaminen",1685,865258,2801,null,"Tietoja ei ole saatavilla tällä toimialan tarkkuustasolla"]
[null,"42991 Maa- ja vesirakennushankkeiden kehittäminen ja rakennuttaminen",5,79698,1,null,"Tietoja ei ole saatavilla tällä toimialan tarkkuustasolla"]
[null,"42999 Muu muualla luokittelematon maa- ja vesirakentaminen",1680,785560,2799,null,"Tietoja ei ole saatavilla tällä toimialan tarkkuustasolla"]
[null,"43 Erikoistunut rakennustoiminta",29607,18407635,85478,null,26024,1810,1035,583,97,39,14,2,3]
[null,"431 Rakennusten ja rakennelmien purku ja rakennuspaikan valmistelutyöt",6910,4266778,15902,null,"Tietoja ei ole saatavilla tällä toimialan tarkkuustasolla"]
[null,"4311 Rakennusten ja rakennelmien purku",324,199878,1110,null,"Tietoja ei ole saatavilla tällä toimialan tarkkuustasolla"]
[null,"43110 Rakennusten ja rakennelmien purku",324,199878,1110,null,"Tietoja ei ole saatavilla tällä toimialan tarkkuustasolla"]
[null,"4312 Rakennuspaikan valmistelutyöt",6579,4065725,14788,null,"Tietoja ei ole saatavilla tällä toimialan tarkkuustasolla"]
[null,"43120 Rakennuspaikan valmistelutyöt",6579,4065725,14788,null,"Tietoja ei ole saatavilla tällä toimialan tarkkuustasolla"]
[null,"4313 Koeporaus",7,1175,4,null,"Tietoja ei ole saatavilla tällä toimialan tarkkuustasolla"]
[null,"43130 Koeporaus",7,1175,4,null,"Tietoja ei ole saatavilla tällä toimialan tarkkuustasolla"]
[null,"432 Sähkö-, vesijohto- ja muu rakennusasennus",11400,9099369,42589,null,"Tietoja ei ole saatavilla tällä toimialan tarkkuustasolla"]
[null,"4321 Sähköasennus",5537,2866313,15106,null,"Tietoja ei ole saatavilla tällä toimialan tarkkuustasolla"]
[null,"43210 Sähköasennus",5537,2866313,15106,null,"Tietoja ei ole saatavilla tällä toimialan tarkkuustasolla"]
[null,"4322 Lämpö-, vesijohto- ja ilmastointiasennus",4985,4515455,22014,null,"Tietoja ei ole saatavilla tällä toimialan tarkkuustasolla"]
[null,"43220 Lämpö-, vesijohto- ja ilmastointiasennus",4985,4515455,22014,null,"Tietoja ei ole saatavilla tällä toimialan tarkkuustasolla"]
[null,"4329 Muu rakennusasennus",878,1717601,5469,null,"Tietoja ei ole saatavilla tällä toimialan tarkkuustasolla"]
[null,"43291 Lämpö-, ääni- ja tärinäeristeiden asennus",288,426344,1872,null,"Tietoja ei ole saatavilla tällä toimialan tarkkuustasolla"]
[null,"43292 Hissien ja liukuportaiden asennus",83,1091008,2537,null,"Tietoja ei ole saatavilla tällä toimialan tarkkuustasolla"]
[null,"43299 Muualla luokittelematon rakennusasennus",507,200249,1059,null,"Tietoja ei ole saatavilla tällä toimialan tarkkuustasolla"]
[null,"433 Rakennusten ja rakennelmien viimeistely",5656,1661581,10327,null,"Tietoja ei ole saatavilla tällä toimialan tarkkuustasolla"]
[null,"4331 Rappaus",62,36960,189,null,"Tietoja ei ole saatavilla tällä toimialan tarkkuustasolla"]
[null,"43310 Rappaus",62,36960,189,null,"Tietoja ei ole saatavilla tällä toimialan tarkkuustasolla"]
[null,"4332 Rakennuspuusepän asennustyöt",1571,342401,2036,null,"Tietoja ei ole saatavilla tällä toimialan tarkkuustasolla"]
[null,"43320 Rakennuspuusepän asennustyöt",1571,342401,2036,null,"Tietoja ei ole saatavilla tällä toimialan tarkkuustasolla"]
[null,"4333 Lattianpäällystys ja seinien verhoilu",823,441801,2319,null,"Tietoja ei ole saatavilla tällä toimialan tarkkuustasolla"]
[null,"43330 Lattianpäällystys ja seinien verhoilu",823,441801,2319,null,"Tietoja ei ole saatavilla tällä toimialan tarkkuustasolla"]
[null,"4334 Maalaus ja lasitus",2643,767673,5194,null,"Tietoja ei ole saatavilla tällä toimialan tarkkuustasolla"]
[null,"43341 Maalaus",2383,542579,4204,null,"Tietoja ei ole saatavilla tällä toimialan tarkkuustasolla"]
[null,"43342 Lasitus",260,225094,990,null,"Tietoja ei ole saatavilla tällä toimialan tarkkuustasolla"]
[null,"4339 Muu rakennusten viimeistely",557,72745,589,null,"Tietoja ei ole saatavilla tällä toimialan tarkkuustasolla"]
[null,"43390 Muu rakennusten viimeistely",557,72745,589,null,"Tietoja ei ole saatavilla tällä toimialan tarkkuustasolla"]
[null,"439 Muu erikoistunut rakennustoiminta",5641,3379908,16660,null,"Tietoja ei ole saatavilla tällä toimialan tarkkuustasolla"]
[null,"4391 Kattorakenteiden asennus ja kattaminen",627,643833,3398,null,"Tietoja ei ole saatavilla tällä toimialan tarkkuustasolla"]
[null,"43910 Kattorakenteiden asennus ja kattaminen",627,643833,3398,null,"Tietoja ei ole saatavilla tällä toimialan tarkkuustasolla"]
[null,"4399 Muualla luokittelematon erikoistunut rakennustoiminta",5014,2736075,13262,null,"Tietoja ei ole saatavilla tällä toimialan tarkkuustasolla"]
[null,"43991 Rakennuskonevuokraus käyttäjineen",332,416368,1706,null,"Tietoja ei ole saatavilla tällä toimialan tarkkuustasolla"]
[null,"43999 Muu muualla luokittelematon erikoistunut rakennustoiminta",4682,2319707,11556,null,"Tietoja ei ole saatavilla tällä toimialan tarkkuustasolla"]
[null,"G Tukku- ja vähittäiskauppa; moottoriajoneuvojen ja moottoripyörien korjaus (45-47)",54246,143673118,224329,null,47532,3333,1937,962,269,110,49,33,21]
[null,"45 Moottoriajoneuvojen ja moottoripyörien tukku- ja vähittäiskauppa sekä korjaus",13144,23171794,39897,null,11833,801,286,130,43,28,14,6,3]
[null,"451 Moottoriajoneuvojen kauppa",2583,15775687,14217,null,"Tietoja ei ole saatavilla tällä toimialan tarkkuustasolla"]
[null,"4511 Henkilöautojen ja kevyiden moottoriajoneuvojen kauppa",2338,14879651,13044,null,"Tietoja ei ole saatavilla tällä toimialan tarkkuustasolla"]
[null,"45111 Henkilöautojen ja kevyiden moottoriajoneuvojen tukkukauppa",251,4532666,2165,null,"Tietoja ei ole saatavilla tällä toimialan tarkkuustasolla"]
[null,"45112 Henkilöautojen ja kevyiden moottoriajoneuvojen vähittäiskauppa",2087,10346986,10879,null,"Tietoja ei ole saatavilla tällä toimialan tarkkuustasolla"]
[null,"4519 Muiden moottoriajoneuvojen myynti",245,896035,1173,null,"Tietoja ei ole saatavilla tällä toimialan tarkkuustasolla"]
[null,"45191 Kuorma-autojen ja muiden raskaiden moottoriajoneuvojen tukkukauppa",122,646192,900,null,"Tietoja ei ole saatavilla tällä toimialan tarkkuustasolla"]
[null,"45192 Matkailuvaunujen ja muualla luokittelemattomien moottoriajoneuvojen vähittäiskauppa",123,249844,273,null,"Tietoja ei ole saatavilla tällä toimialan tarkkuustasolla"]
[null,"452 Moottoriajoneuvojen huolto ja korjaus (pl. moottoripyörät)",8551,3610628,15805,null,"Tietoja ei ole saatavilla tällä toimialan tarkkuustasolla"]
[null,"4520 Moottoriajoneuvojen huolto ja korjaus (pl. moottoripyörät)",8551,3610628,15805,null,"Tietoja ei ole saatavilla tällä toimialan tarkkuustasolla"]
[null,"45201 Moottoriajoneuvojen huolto ja korjaus (pl. renkaat)",8442,3581822,15697,null,"Tietoja ei ole saatavilla tällä toimialan tarkkuustasolla"]
[null,"45202 Renkaiden korjaus",109,28807,108,null,"Tietoja ei ole saatavilla tällä toimialan tarkkuustasolla"]
[null,"453 Moottoriajoneuvojen osien ja varusteiden kauppa",1633,3421660,9191,null,"Tietoja ei ole saatavilla tällä toimialan tarkkuustasolla"]
[null,"4531 Moottoriajoneuvojen osien ja varusteiden tukkukauppa",426,1588796,2782,null,"Tietoja ei ole saatavilla tällä toimialan tarkkuustasolla"]
[null,"45311 Moottoriajoneuvojen osien ja varusteiden tukkukauppa (pl. renkaat)",338,1154383,2179,null,"Tietoja ei ole saatavilla tällä toimialan tarkkuustasolla"]
[null,"45312 Renkaiden tukkukauppa",88,434413,603,null,"Tietoja ei ole saatavilla tällä toimialan tarkkuustasolla"]
[null,"4532 Moottoriajoneuvojen osien ja varusteiden vähittäiskauppa",1207,1832863,6409,null,"Tietoja ei ole saatavilla tällä toimialan tarkkuustasolla"]
[null,"45321 Moottoriajoneuvojen osien ja varusteiden vähittäiskauppa (pl. renkaat)",862,1277048,4039,null,"Tietoja ei ole saatavilla tällä toimialan tarkkuustasolla"]
[null,"45322 Renkaiden vähittäiskauppa",345,555815,2370,null,"Tietoja ei ole saatavilla tällä toimialan tarkkuustasolla"]
[null,"454 Moottoripyörien sekä niiden osien ja varusteiden myynti, huolto ja korjaus",377,363820,683,null,"Tietoja ei ole saatavilla tällä toimialan tarkkuustasolla"]
[null,"4540 Moottoripyörien sekä niiden osien ja varusteiden myynti, huolto ja korjaus",377,363820,683,null,"Tietoja ei ole saatavilla tällä toimialan tarkkuustasolla"]
[null,"45401 Moottoripyörien sekä niiden osien ja varusteiden tukkukauppa",43,151237,184,null,"Tietoja ei ole saatavilla tällä toimialan tarkkuustasolla"]
[null,"45402 Moottoripyörien sekä niiden osien ja varusteiden vähittäiskauppa",162,191795,407,null,"Tietoja ei ole saatavilla tällä toimialan tarkkuustasolla"]
[null,"45403 Moottoripyörien huolto ja korjaus",172,20787,92,null,"Tietoja ei ole saatavilla tällä toimialan tarkkuustasolla"]
[null,"46 Tukkukauppa (pl. moottoriajoneuvojen ja moottoripyörien kauppa)",15841,75084421,76014,null,13463,1083,650,424,144,52,15,6,4]
[null,"461 Agentuuritoiminta",3887,913609,3782,null,"Tietoja ei ole saatavilla tällä toimialan tarkkuustasolla"]
[null,"4611 Maatalousraaka-aineiden, elävien eläinten, tekstiiliraaka-aineiden sekä puolivalmisteiden agentuuritoiminta",49,56202,314,null,"Tietoja ei ole saatavilla tällä toimialan tarkkuustasolla"]
[null,"46110 Maatalousraaka-aineiden, elävien eläinten, tekstiiliraaka-aineiden sekä puolivalmisteiden agentuuritoiminta",49,56202,314,null,"Tietoja ei ole saatavilla tällä toimialan tarkkuustasolla"]
[null,"4612 Polttoaineiden, malmien, metallien ja teollisuuskemikaalien agentuuritoiminta",112,22549,121,null,"Tietoja ei ole saatavilla tällä toimialan tarkkuustasolla"]
[null,"46120 Polttoaineiden, malmien, metallien ja teollisuuskemikaalien agentuuritoiminta",112,22549,121,null,"Tietoja ei ole saatavilla tällä toimialan tarkkuustasolla"]
[null,"4613 Puutavaran ja rakennusmateriaalien agentuuritoiminta",557,85221,362,null,"Tietoja ei ole saatavilla tällä toimialan tarkkuustasolla"]
[null,"46130 Puutavaran ja rakennusmateriaalien agentuuritoiminta",557,85221,362,null,"Tietoja ei ole saatavilla tällä toimialan tarkkuustasolla"]
[null,"4614 Koneiden ja laitteiden agentuuritoiminta",648,211511,941,null,"Tietoja ei ole saatavilla tällä toimialan tarkkuustasolla"]
[null,"46140 Koneiden ja laitteiden agentuuritoiminta",648,211511,941,null,"Tietoja ei ole saatavilla tällä toimialan tarkkuustasolla"]
[null,"4615 Huonekalujen, taloustavaroiden ja rautakauppatavaroiden agentuuritoiminta",304,35199,217,null,"Tietoja ei ole saatavilla tällä toimialan tarkkuustasolla"]
[null,"46150 Huonekalujen, taloustavaroiden ja rautakauppatavaroiden agentuuritoiminta",304,35199,217,null,"Tietoja ei ole saatavilla tällä toimialan tarkkuustasolla"]
[null,"4616 Tekstiilien, vaatteiden, jalkineiden ja nahkavalmisteiden agentuuritoiminta",395,45198,226,null,"Tietoja ei ole saatavilla tällä toimialan tarkkuustasolla"]
[null,"46160 Tekstiilien, vaatteiden, jalkineiden ja nahkavalmisteiden agentuuritoiminta",395,45198,226,null,"Tietoja ei ole saatavilla tällä toimialan tarkkuustasolla"]
[null,"4617 Elintarvikkeiden, juomien ja tupakan agentuuritoiminta",276,76490,437,null,"Tietoja ei ole saatavilla tällä toimialan tarkkuustasolla"]
[null,"46170 Elintarvikkeiden, juomien ja tupakan agentuuritoiminta",276,76490,437,null,"Tietoja ei ole saatavilla tällä toimialan tarkkuustasolla"]
[null,"4618 Muu erikoistunut agentuuritoiminta",776,293779,655,null,"Tietoja ei ole saatavilla tällä toimialan tarkkuustasolla"]
[null,"46181 Paperialan agentuuritoiminta",37,"...",20,null,"Tietoja ei ole saatavilla tällä toimialan tarkkuustasolla"]
[null,"46189 Muualla luokittelematon erikoistunut agentuuritoiminta",739,"...",635,null,"Tietoja ei ole saatavilla tällä toimialan tarkkuustasolla"]
[null,"4619 Yleisagentuuritoiminta",770,87461,509,null,"Tietoja ei ole saatavilla tällä toimialan tarkkuustasolla"]
[null,"46190 Yleisagentuuritoiminta",770,87461,509,null,"Tietoja ei ole saatavilla tällä toimialan tarkkuustasolla"]
[null,"462 Maatalousperäisten raaka-aineiden ja elävien eläinten tukkukauppa",196,1380056,1519,null,"Tietoja ei ole saatavilla tällä toimialan tarkkuustasolla"]
[null,"4621 Viljan, raakatupakan, siementen ja eläinrehujen tukkukauppa",77,1012117,971,null,"Tietoja ei ole saatavilla tällä toimialan tarkkuustasolla"]
[null,"46210 Viljan, raakatupakan, siementen ja eläinrehujen tukkukauppa",77,1012117,971,null,"Tietoja ei ole saatavilla tällä toimialan tarkkuustasolla"]
[null,"4622 Kukkien ja taimien tukkukauppa",76,201315,439,null,"Tietoja ei ole saatavilla tällä toimialan tarkkuustasolla"]
[null,"46220 Kukkien ja taimien tukkukauppa",76,201315,439,null,"Tietoja ei ole saatavilla tällä toimialan tarkkuustasolla"]
[null,"4623 Elävien eläinten tukkukauppa",21,150869,85,null,"Tietoja ei ole saatavilla tällä toimialan tarkkuustasolla"]
[null,"46230 Elävien eläinten tukkukauppa",21,150869,85,null,"Tietoja ei ole saatavilla tällä toimialan tarkkuustasolla"]
[null,"4624 Turkisten ja nahkojen tukkukauppa",22,15755,25,null,"Tietoja ei ole saatavilla tällä toimialan tarkkuustasolla"]
[null,"46240 Turkisten ja nahkojen tukkukauppa",22,15755,25,null,"Tietoja ei ole saatavilla tällä toimialan tarkkuustasolla"]
[null,"463 Elintarvikkeiden, juomien ja tupakan tukkukauppa",1314,7449734,5532,null,"Tietoja ei ole saatavilla tällä toimialan tarkkuustasolla"]
[null,"4631 Juures-, vihannes- marja- ja hedelmätukkukauppa",195,775154,1214,null,"Tietoja ei ole saatavilla tällä toimialan tarkkuustasolla"]
[null,"46310 Juures-, vihannes- marja- ja hedelmätukkukauppa",195,775154,1214,null,"Tietoja ei ole saatavilla tällä toimialan tarkkuustasolla"]
[null,"4632 Lihan ja lihatuotteiden tukkukauppa",50,47691,105,null,"Tietoja ei ole saatavilla tällä toimialan tarkkuustasolla"]
[null,"46320 Lihan ja lihatuotteiden tukkukauppa",50,47691,105,null,"Tietoja ei ole saatavilla tällä toimialan tarkkuustasolla"]
[null,"4633 Maitotaloustuotteiden, munien sekä ravintoöljyjen ja -rasvojen tukkukauppa",37,1317891,359,null,"Tietoja ei ole saatavilla tällä toimialan tarkkuustasolla"]
[null,"46331 Maitotaloustuotteiden, ravintoöljyjen ja -rasvojen tukkukauppa",26,1197444,210,null,"Tietoja ei ole saatavilla tällä toimialan tarkkuustasolla"]
[null,"46332 Munatukkukauppa",11,120447,148,null,"Tietoja ei ole saatavilla tällä toimialan tarkkuustasolla"]
[null,"4634 Alkoholi- ja muiden juomien tukkukauppa",207,525743,440,null,"Tietoja ei ole saatavilla tällä toimialan tarkkuustasolla"]
[null,"46340 Alkoholi- ja muiden juomien tukkukauppa",207,525743,440,null,"Tietoja ei ole saatavilla tällä toimialan tarkkuustasolla"]
[null,"4635 Tupakkatuotteiden tukkukauppa",8,99079,57,null,"Tietoja ei ole saatavilla tällä toimialan tarkkuustasolla"]
[null,"46350 Tupakkatuotteiden tukkukauppa",8,99079,57,null,"Tietoja ei ole saatavilla tällä toimialan tarkkuustasolla"]
[null,"4636 Sokerin, suklaan, makeisten ja leipomotuotteiden tukkukauppa",66,347620,457,null,"Tietoja ei ole saatavilla tällä toimialan tarkkuustasolla"]
[null,"46360 Sokerin, suklaan, makeisten ja leipomotuotteiden tukkukauppa",66,347620,457,null,"Tietoja ei ole saatavilla tällä toimialan tarkkuustasolla"]
[null,"4637 Kahvin, teen, kaakaon ja mausteiden tukkukauppa",63,60448,159,null,"Tietoja ei ole saatavilla tällä toimialan tarkkuustasolla"]
[null,"46370 Kahvin, teen, kaakaon ja mausteiden tukkukauppa",63,60448,159,null,"Tietoja ei ole saatavilla tällä toimialan tarkkuustasolla"]
[null,"4638 Kalan, luontaistuotteiden ja muiden elintarvikkeiden tukkukauppa",338,1394094,1316,null,"Tietoja ei ole saatavilla tällä toimialan tarkkuustasolla"]
[null,"46381 Kalatukkukauppa",53,242591,329,null,"Tietoja ei ole saatavilla tällä toimialan tarkkuustasolla"]
[null,"46382 Luontaistuotteiden tukkukauppa",113,256669,379,null,"Tietoja ei ole saatavilla tällä toimialan tarkkuustasolla"]
[null,"46383 Lemmikkieläinten ruokien tukkukauppa",27,170748,182,null,"Tietoja ei ole saatavilla tällä toimialan tarkkuustasolla"]
[null,"46389 Muualla luokittelematon elintarvikkeiden tukkukauppa",145,724086,426,null,"Tietoja ei ole saatavilla tällä toimialan tarkkuustasolla"]
[null,"4639 Elintarvikkeiden, juomien ja tupakan yleistukkukauppa",350,2882014,1425,null,"Tietoja ei ole saatavilla tällä toimialan tarkkuustasolla"]
[null,"46390 Elintarvikkeiden, juomien ja tupakan yleistukkukauppa",350,2882014,1425,null,"Tietoja ei ole saatavilla tällä toimialan tarkkuustasolla"]
[null,"464 Taloustavaroiden tukkukauppa",3264,9707016,13402,null,"Tietoja ei ole saatavilla tällä toimialan tarkkuustasolla"]
[null,"4641 Tekstiilien tukkukauppa",228,152387,397,null,"Tietoja ei ole saatavilla tällä toimialan tarkkuustasolla"]
[null,"46411 Kangas- ja lankatukkukauppa",59,64334,166,null,"Tietoja ei ole saatavilla tällä toimialan tarkkuustasolla"]
[null,"46412 Tekstiilivalmisteiden tukkukauppa",169,88053,231,null,"Tietoja ei ole saatavilla tällä toimialan tarkkuustasolla"]
[null,"4642 Vaatteiden ja jalkineiden tukkukauppa",393,383974,727,null,"Tietoja ei ole saatavilla tällä toimialan tarkkuustasolla"]
[null,"46421 Vaatteiden tukkukauppa",350,343734,652,null,"Tietoja ei ole saatavilla tällä toimialan tarkkuustasolla"]
[null,"46422 Jalkineiden tukkukauppa",43,40240,75,null,"Tietoja ei ole saatavilla tällä toimialan tarkkuustasolla"]
[null,"4643 Kodinkoneiden tukkukauppa",280,623533,1035,null,"Tietoja ei ole saatavilla tällä toimialan tarkkuustasolla"]
[null,"46431 Kodinkoneiden ja kodin sähkölaitteiden tukkukauppa",73,284590,318,null,"Tietoja ei ole saatavilla tällä toimialan tarkkuustasolla"]
[null,"46432 Viihde-elektroniikan tukkukauppa",127,211328,456,null,"Tietoja ei ole saatavilla tällä toimialan tarkkuustasolla"]
[null,"46433 Valokuvausvälineiden ja -tarvikkeiden tukkukauppa",30,34063,85,null,"Tietoja ei ole saatavilla tällä toimialan tarkkuustasolla"]
[null,"46434 Optisen alan tukkukauppa",50,93552,176,null,"Tietoja ei ole saatavilla tällä toimialan tarkkuustasolla"]
[null,"4644 Posliini-, lasi- ja muiden taloustavaroiden sekä puhdistusaineiden tukkukauppa",182,248784,612,null,"Tietoja ei ole saatavilla tällä toimialan tarkkuustasolla"]
[null,"46441 Taloustavaroiden ja -tarvikkeiden tukkukauppa",100,83412,217,null,"Tietoja ei ole saatavilla tällä toimialan tarkkuustasolla"]
[null,"46442 Puhdistusaineiden tukkukauppa",82,165372,394,null,"Tietoja ei ole saatavilla tällä toimialan tarkkuustasolla"]
[null,"4645 Hajuvesien ja kosmetiikan tukkukauppa",228,391816,759,null,"Tietoja ei ole saatavilla tällä toimialan tarkkuustasolla"]
[null,"46450 Hajuvesien ja kosmetiikan tukkukauppa",228,391816,759,null,"Tietoja ei ole saatavilla tällä toimialan tarkkuustasolla"]
[null,"4646 Farmaseuttisten tuotteiden tukkukauppa",523,6138317,6138,null,"Tietoja ei ole saatavilla tällä toimialan tarkkuustasolla"]
[null,"46461 Lääketukkukauppa",108,4318035,3227,null,"Tietoja ei ole saatavilla tällä toimialan tarkkuustasolla"]
[null,"46462 Laboratorio- ja sairaanhoitovälineiden tukkukauppa",415,1820282,2911,null,"Tietoja ei ole saatavilla tällä toimialan tarkkuustasolla"]
[null,"4647 Huonekalujen, mattojen ja valaisimien tukkukauppa",156,200443,455,null,"Tietoja ei ole saatavilla tällä toimialan tarkkuustasolla"]
[null,"46470 Huonekalujen, mattojen ja valaisimien tukkukauppa",156,200443,455,null,"Tietoja ei ole saatavilla tällä toimialan tarkkuustasolla"]
[null,"4648 Kellojen ja korujen tukkukauppa",91,38992,82,null,"Tietoja ei ole saatavilla tällä toimialan tarkkuustasolla"]
[null,"46480 Kellojen ja korujen tukkukauppa",91,38992,82,null,"Tietoja ei ole saatavilla tällä toimialan tarkkuustasolla"]
[null,"4649 Muiden taloustavaroiden tukkukauppa",1183,1528770,3196,null,"Tietoja ei ole saatavilla tällä toimialan tarkkuustasolla"]
[null,"46491 Paperi- ja toimistotarvikkeiden tukkukauppa",226,375765,965,null,"Tietoja ei ole saatavilla tällä toimialan tarkkuustasolla"]
[null,"46492 Kirjatukkukauppa",21,124707,207,null,"Tietoja ei ole saatavilla tällä toimialan tarkkuustasolla"]
[null,"46493 Urheilualan tukkukauppa",408,488020,762,null,"Tietoja ei ole saatavilla tällä toimialan tarkkuustasolla"]
[null,"46494 Musiikkitarvikkeiden tukkukauppa",38,45404,104,null,"Tietoja ei ole saatavilla tällä toimialan tarkkuustasolla"]
[null,"46495 Veneiden ja veneilytarvikkeiden tukkukauppa",77,64014,153,null,"Tietoja ei ole saatavilla tällä toimialan tarkkuustasolla"]
[null,"46496 Lelujen ja pelien tukkukauppa",59,118561,194,null,"Tietoja ei ole saatavilla tällä toimialan tarkkuustasolla"]
[null,"46499 Muu kotitaloustavaroiden tukkukauppa",354,312300,810,null,"Tietoja ei ole saatavilla tällä toimialan tarkkuustasolla"]
[null,"465 Tieto- ja viestintäteknisten laitteiden tukkukauppa",698,4687524,4913,null,"Tietoja ei ole saatavilla tällä toimialan tarkkuustasolla"]
[null,"4651 Tietokoneiden, oheislaitteiden ja ohjelmistojen tukkukauppa",435,3887060,3516,null,"Tietoja ei ole saatavilla tällä toimialan tarkkuustasolla"]
[null,"46510 Tietokoneiden, oheislaitteiden ja ohjelmistojen tukkukauppa",435,3887060,3516,null,"Tietoja ei ole saatavilla tällä toimialan tarkkuustasolla"]
[null,"4652 Elektroniikka- ja viestintälaitteiden ja osien tukkukauppa",263,800464,1397,null,"Tietoja ei ole saatavilla tällä toimialan tarkkuustasolla"]
[null,"46521 Viestintälaitteiden tukkukauppa",184,460494,939,null,"Tietoja ei ole saatavilla tällä toimialan tarkkuustasolla"]
[null,"46522 Elektronisten komponenttien tukkukauppa",79,339970,458,null,"Tietoja ei ole saatavilla tällä toimialan tarkkuustasolla"]
[null,"466 Muiden koneiden, laitteiden ja tarvikkeiden tukkukauppa",2798,10316473,17855,null,"Tietoja ei ole saatavilla tällä toimialan tarkkuustasolla"]
[null,"4661 Maa- ja metsätalouskoneiden ja -tarvikkeiden tukkukauppa ml. traktorit",375,1957690,1807,null,"Tietoja ei ole saatavilla tällä toimialan tarkkuustasolla"]
[null,"46610 Maa- ja metsätalouskoneiden ja -tarvikkeiden tukkukauppa ml. traktorit",375,1957690,1807,null,"Tietoja ei ole saatavilla tällä toimialan tarkkuustasolla"]
[null,"4662 Työstökoneiden tukkukauppa",106,177907,413,null,"Tietoja ei ole saatavilla tällä toimialan tarkkuustasolla"]
[null,"46620 Työstökoneiden tukkukauppa",106,177907,413,null,"Tietoja ei ole saatavilla tällä toimialan tarkkuustasolla"]
[null,"4663 Kaivos- ja rakennuskoneiden tukkukauppa",158,1465446,1908,null,"Tietoja ei ole saatavilla tällä toimialan tarkkuustasolla"]
[null,"46630 Kaivos- ja rakennuskoneiden tukkukauppa",158,1465446,1908,null,"Tietoja ei ole saatavilla tällä toimialan tarkkuustasolla"]
[null,"4664 Tekstiiliteollisuuden koneiden sekä ompelu- ja kutomakoneiden tukkukauppa",17,5458,15,null,"Tietoja ei ole saatavilla tällä toimialan tarkkuustasolla"]
[null,"46640 Tekstiiliteollisuuden koneiden sekä ompelu- ja kutomakoneiden tukkukauppa",17,5458,15,null,"Tietoja ei ole saatavilla tällä toimialan tarkkuustasolla"]
[null,"4665 Toimitilakalusteiden tukkukauppa",132,181598,447,null,"Tietoja ei ole saatavilla tällä toimialan tarkkuustasolla"]
[null,"46650 Toimitilakalusteiden tukkukauppa",132,181598,447,null,"Tietoja ei ole saatavilla tällä toimialan tarkkuustasolla"]
[null,"4666 Muiden konttorikoneiden ja -laitteiden tukkukauppa",111,258373,850,null,"Tietoja ei ole saatavilla tällä toimialan tarkkuustasolla"]
[null,"46660 Muiden konttorikoneiden ja -laitteiden tukkukauppa",111,258373,850,null,"Tietoja ei ole saatavilla tällä toimialan tarkkuustasolla"]
[null,"4669 Muiden koneiden, laitteiden ja tarvikkeiden tukkukauppa",1899,6270001,12417,null,"Tietoja ei ole saatavilla tällä toimialan tarkkuustasolla"]
[null,"46691 Sähkötarviketukkukauppa",342,1796895,2882,null,"Tietoja ei ole saatavilla tällä toimialan tarkkuustasolla"]
[null,"46692 Teollisuudessa käytettävien muiden koneiden tukkukauppa",750,2889548,5553,null,"Tietoja ei ole saatavilla tällä toimialan tarkkuustasolla"]
[null,"46699 Muualla luokittelemattomien koneiden ja laitteiden tukkukauppa",807,1583558,3981,null,"Tietoja ei ole saatavilla tällä toimialan tarkkuustasolla"]
[null,"467 Muu erikoistunut tukkukauppa",2601,24582163,17610,null,"Tietoja ei ole saatavilla tällä toimialan tarkkuustasolla"]
[null,"4671 Kiinteiden, nestemäisten ja kaasumaisten polttoaineiden yms. tukkukauppa",172,13809762,1336,null,"Tietoja ei ole saatavilla tällä toimialan tarkkuustasolla"]
[null,"46711 Nestemäisten ja kaasumaisten polttoaineiden tukkukauppa",103,13557041,1159,null,"Tietoja ei ole saatavilla tällä toimialan tarkkuustasolla"]
[null,"46719 Muiden polttoaineiden tukkukauppa",69,252722,177,null,"Tietoja ei ole saatavilla tällä toimialan tarkkuustasolla"]
[null,"4672 Raakametallien ja metallimalmien tukkukauppa",36,284641,154,null,"Tietoja ei ole saatavilla tällä toimialan tarkkuustasolla"]
[null,"46720 Raakametallien ja metallimalmien tukkukauppa",36,284641,154,null,"Tietoja ei ole saatavilla tällä toimialan tarkkuustasolla"]
[null,"4673 Puun, rakennusmateriaalien ja saniteettilaitteiden tukkukauppa",1156,3720941,5465,null,"Tietoja ei ole saatavilla tällä toimialan tarkkuustasolla"]
[null,"46731 Raakapuutukkukauppa",76,331908,101,null,"Tietoja ei ole saatavilla tällä toimialan tarkkuustasolla"]
[null,"46732 Puutavaratuotetukkukauppa",384,520729,877,null,"Tietoja ei ole saatavilla tällä toimialan tarkkuustasolla"]
[null,"46733 Metalli- ja mineraalituotteiden tukkukauppa",305,1374798,1806,null,"Tietoja ei ole saatavilla tällä toimialan tarkkuustasolla"]
[null,"46734 Kylpyhuonekalusteiden ja -tarvikkeiden tukkukauppa",28,45798,94,null,"Tietoja ei ole saatavilla tällä toimialan tarkkuustasolla"]
[null,"46735 Lattianpäällysteiden ja tapettien tukkukauppa",37,93695,176,null,"Tietoja ei ole saatavilla tällä toimialan tarkkuustasolla"]
[null,"46739 Rakennustarvikkeiden yleistukkukauppa",326,1354013,2411,null,"Tietoja ei ole saatavilla tällä toimialan tarkkuustasolla"]
[null,"4674 Rautakauppatavaroiden, LVI-laitteiden ja -tarvikkeiden tukkukauppa",582,4652609,8535,null,"Tietoja ei ole saatavilla tällä toimialan tarkkuustasolla"]
[null,"46741 Työkalu- ja tarviketukkukauppa",289,1751374,4729,null,"Tietoja ei ole saatavilla tällä toimialan tarkkuustasolla"]
[null,"46742 Lämpö-, vesi- ja ilmastointilaitteiden ja -tarvikkeiden tukkukauppa",293,2901234,3806,null,"Tietoja ei ole saatavilla tällä toimialan tarkkuustasolla"]
[null,"4675 Peruskemikaalien, lannoitteiden yms. tukkukauppa",142,959593,652,null,"Tietoja ei ole saatavilla tällä toimialan tarkkuustasolla"]
[null,"46750 Peruskemikaalien, lannoitteiden yms. tukkukauppa",142,959593,652,null,"Tietoja ei ole saatavilla tällä toimialan tarkkuustasolla"]
[null,"4676 Muiden välituotteiden tukkukauppa",222,559356,691,null,"Tietoja ei ole saatavilla tällä toimialan tarkkuustasolla"]
[null,"46760 Muiden välituotteiden tukkukauppa",222,559356,691,null,"Tietoja ei ole saatavilla tällä toimialan tarkkuustasolla"]
[null,"4677 Jätteen ja romun tukkukauppa",291,595261,777,null,"Tietoja ei ole saatavilla tällä toimialan tarkkuustasolla"]
[null,"46770 Jätteen ja romun tukkukauppa",291,595261,777,null,"Tietoja ei ole saatavilla tällä toimialan tarkkuustasolla"]
[null,"469 Muu tukkukauppa",1083,16047845,11401,null,"Tietoja ei ole saatavilla tällä toimialan tarkkuustasolla"]
[null,"4690 Muu tukkukauppa",1083,16047845,11401,null,"Tietoja ei ole saatavilla tällä toimialan tarkkuustasolla"]
[null,"46901 Yleistukkukauppa",3,15187646,10013,null,"Tietoja ei ole saatavilla tällä toimialan tarkkuustasolla"]
[null,"46909 Muualla luokittelematon tukkukauppa",1080,860199,1388,null,"Tietoja ei ole saatavilla tällä toimialan tarkkuustasolla"]
[null,"47 Vähittäiskauppa (pl. moottoriajoneuvojen ja moottoripyörien kauppa)",25261,45416903,108418,null,22236,1449,1001,408,82,30,20,21,14]
[null,"471 Vähittäiskauppa erikoistumattomissa myymälöissä",2423,26045556,52881,null,"Tietoja ei ole saatavilla tällä toimialan tarkkuustasolla"]
[null,"4711 Elintarvikkeiden, juomien ja tupakan erikoistumaton vähittäiskauppa",2213,22815666,44018,null,"Tietoja ei ole saatavilla tällä toimialan tarkkuustasolla"]
[null,"47111 Isot supermarketit (yli 1000 m²)",302,16894016,30778,null,"Tietoja ei ole saatavilla tällä toimialan tarkkuustasolla"]
[null,"47112 Pienet supermarketit (yli 400 m², enintään 1000 m²)",231,3098127,6487,null,"Tietoja ei ole saatavilla tällä toimialan tarkkuustasolla"]
[null,"47113 Valintamyymälät (yli 100 m², enintään 400 m²)",1007,2303172,5204,null,"Tietoja ei ole saatavilla tällä toimialan tarkkuustasolla"]
[null,"47114 Elintarvike-, makeis- ym. kioskit (enintään 100 m²)",673,520350,1549,null,"Tietoja ei ole saatavilla tällä toimialan tarkkuustasolla"]
[null,"4719 Muu vähittäiskauppa erikoistumattomissa myymälöissä",210,3229890,8863,null,"Tietoja ei ole saatavilla tällä toimialan tarkkuustasolla"]
[null,"47191 Itsepalvelutavaratalot (yli 2500 m²)",19,2030910,5214,null,"Tietoja ei ole saatavilla tällä toimialan tarkkuustasolla"]
[null,"47192 Tavaratalot (yli 2500 m²)",4,"...",846,null,"Tietoja ei ole saatavilla tällä toimialan tarkkuustasolla"]
[null,"47199 Pienoistavaratalot ja muut erikoistumattomat myymälät (enintään 2500 m²)",187,"...",2804,null,"Tietoja ei ole saatavilla tällä toimialan tarkkuustasolla"]
[null,"472 Elintarvikkeiden, juomien ja tupakan vähittäiskauppa erikoismyymälöissä",1226,1697581,3673,null,"Tietoja ei ole saatavilla tällä toimialan tarkkuustasolla"]
[null,"4721 Hedelmien, marjojen ja vihannesten vähittäiskauppa",131,"...",127,null,"Tietoja ei ole saatavilla tällä toimialan tarkkuustasolla"]
[null,"47210 Hedelmien, marjojen ja vihannesten vähittäiskauppa",131,"...",127,null,"Tietoja ei ole saatavilla tällä toimialan tarkkuustasolla"]
[null,"4722 Lihan ja lihatuotteiden vähittäiskauppa",85,"...",154,null,"Tietoja ei ole saatavilla tällä toimialan tarkkuustasolla"]
[null,"47220 Lihan ja lihatuotteiden vähittäiskauppa",85,"...",154,null,"Tietoja ei ole saatavilla tällä toimialan tarkkuustasolla"]
[null,"4723 Kalan, äyriäisten ja nilviäisten vähittäiskauppa",98,"...",202,null,"Tietoja ei ole saatavilla tällä toimialan tarkkuustasolla"]
[null,"47230 Kalan, äyriäisten ja nilviäisten vähittäiskauppa",98,"...",202,null,"Tietoja ei ole saatavilla tällä toimialan tarkkuustasolla"]
[null,"4724 Leipomotuotteiden ja makeisten vähittäiskauppa",188,41931,248,null,"Tietoja ei ole saatavilla tällä toimialan tarkkuustasolla"]
[null,"47241 Leipomotuotteiden vähittäiskauppa",137,29069,183,null,"Tietoja ei ole saatavilla tällä toimialan tarkkuustasolla"]
[null,"47242 Makeisten vähittäiskauppa",51,12862,65,null,"Tietoja ei ole saatavilla tällä toimialan tarkkuustasolla"]
[null,"4725 Alkoholi- ja muiden juomien vähittäiskauppa",1,"...",1738,null,"Tietoja ei ole saatavilla tällä toimialan tarkkuustasolla"]
[null,"47250 Alkoholi- ja muiden juomien vähittäiskauppa",1,"...",1738,null,"Tietoja ei ole saatavilla tällä toimialan tarkkuustasolla"]
[null,"4726 Tupakkatuotteiden vähittäiskauppa",12,9675,49,null,"Tietoja ei ole saatavilla tällä toimialan tarkkuustasolla"]
[null,"47260 Tupakkatuotteiden vähittäiskauppa",12,9675,49,null,"Tietoja ei ole saatavilla tällä toimialan tarkkuustasolla"]
[null,"4729 Muu vähittäiskauppa erikoismyymälöissä",711,352808,1155,null,"Tietoja ei ole saatavilla tällä toimialan tarkkuustasolla"]
[null,"47291 Jäätelökioskit",105,17123,129,null,"Tietoja ei ole saatavilla tällä toimialan tarkkuustasolla"]
[null,"47292 Luontaistuotteiden vähittäiskauppa",278,89511,388,null,"Tietoja ei ole saatavilla tällä toimialan tarkkuustasolla"]
[null,"47299 Muu päivittäistavaroiden erikoisvähittäiskauppa",328,246174,639,null,"Tietoja ei ole saatavilla tällä toimialan tarkkuustasolla"]
[null,"473 Ajoneuvojen polttoaineen vähittäiskauppa",659,921409,2700,null,"Tietoja ei ole saatavilla tällä toimialan tarkkuustasolla"]
[null,"4730 Ajoneuvojen polttoaineen vähittäiskauppa",659,921409,2700,null,"Tietoja ei ole saatavilla tällä toimialan tarkkuustasolla"]
[null,"47301 Huoltamotoiminta",611,853073,2677,null,"Tietoja ei ole saatavilla tällä toimialan tarkkuustasolla"]
[null,"47302 Polttoaineiden vähittäiskauppa automaateista",48,68336,23,null,"Tietoja ei ole saatavilla tällä toimialan tarkkuustasolla"]
[null,"474 Tieto- ja viestintäteknisten laitteiden vähittäiskauppa erikoismyymälöissä",718,1521394,2744,null,"Tietoja ei ole saatavilla tällä toimialan tarkkuustasolla"]
[null,"4741 Tietokoneiden, niiden oheislaitteiden ja ohjelmistojen vähittäiskauppa",403,749200,1282,null,"Tietoja ei ole saatavilla tällä toimialan tarkkuustasolla"]
[null,"47410 Tietokoneiden, niiden oheislaitteiden ja ohjelmistojen vähittäiskauppa",403,749200,1282,null,"Tietoja ei ole saatavilla tällä toimialan tarkkuustasolla"]
[null,"4742 Televiestintälaitteiden vähittäiskauppa",127,141299,311,null,"Tietoja ei ole saatavilla tällä toimialan tarkkuustasolla"]
[null,"47420 Televiestintälaitteiden vähittäiskauppa",127,141299,311,null,"Tietoja ei ole saatavilla tällä toimialan tarkkuustasolla"]
[null,"4743 Viihde-elektroniikan vähittäiskauppa",188,630895,1151,null,"Tietoja ei ole saatavilla tällä toimialan tarkkuustasolla"]
[null,"47430 Viihde-elektroniikan vähittäiskauppa",188,630895,1151,null,"Tietoja ei ole saatavilla tällä toimialan tarkkuustasolla"]
[null,"475 Muiden kotitaloustavaroiden vähittäiskauppa erikoismyymälöissä",3504,5241973,15821,null,"Tietoja ei ole saatavilla tällä toimialan tarkkuustasolla"]
[null,"4751 Tekstiilien vähittäiskauppa",448,102382,546,null,"Tietoja ei ole saatavilla tällä toimialan tarkkuustasolla"]
[null,"47511 Kankaiden vähittäiskauppa",222,79632,417,null,"Tietoja ei ole saatavilla tällä toimialan tarkkuustasolla"]
[null,"47512 Lankojen ja käsityötarvikkeiden vähittäiskauppa",226,22750,129,null,"Tietoja ei ole saatavilla tällä toimialan tarkkuustasolla"]
[null,"4752 Rautakauppatavaran, maalien ja lasin vähittäiskauppa",1328,2853737,7182,null,"Tietoja ei ole saatavilla tällä toimialan tarkkuustasolla"]
[null,"47521 Rauta- ja rakennustarvikkeiden yleisvähittäiskauppa",526,2194549,5083,null,"Tietoja ei ole saatavilla tällä toimialan tarkkuustasolla"]
[null,"47522 Maalien vähittäiskauppa",81,65755,230,null,"Tietoja ei ole saatavilla tällä toimialan tarkkuustasolla"]
[null,"47523 Keittiö- ja saniteettitilojen kalusteiden vähittäiskauppa",289,186771,628,null,"Tietoja ei ole saatavilla tällä toimialan tarkkuustasolla"]
[null,"47529 Muu rauta- ja rakennusalan vähittäiskauppa",432,406663,1240,null,"Tietoja ei ole saatavilla tällä toimialan tarkkuustasolla"]
[null,"4753 Mattojen, tapettien ja lattianpäällysteiden vähittäiskauppa",183,79862,312,null,"Tietoja ei ole saatavilla tällä toimialan tarkkuustasolla"]
[null,"47531 Mattojen ja verhojen vähittäiskauppa",120,35579,154,null,"Tietoja ei ole saatavilla tällä toimialan tarkkuustasolla"]
[null,"47532 Tapettien ja lattianpäällysteiden vähittäiskauppa",63,44283,158,null,"Tietoja ei ole saatavilla tällä toimialan tarkkuustasolla"]
[null,"4754 Sähköisten kodinkoneiden vähittäiskauppa",305,546123,1343,null,"Tietoja ei ole saatavilla tällä toimialan tarkkuustasolla"]
[null,"47540 Sähköisten kodinkoneiden vähittäiskauppa",305,546123,1343,null,"Tietoja ei ole saatavilla tällä toimialan tarkkuustasolla"]
[null,"4759 Huonekalujen, valaisimien ja muualla luokittelemattomien taloustarvikkeiden vähittäiskauppa erikoismyymälöissä",1240,1659869,6439,null,"Tietoja ei ole saatavilla tällä toimialan tarkkuustasolla"]
[null,"47591 Huonekalujen vähittäiskauppa",336,1129174,3827,null,"Tietoja ei ole saatavilla tällä toimialan tarkkuustasolla"]
[null,"47592 Sähkötarvikkeiden ja valaisimien vähittäiskauppa",143,41575,164,null,"Tietoja ei ole saatavilla tällä toimialan tarkkuustasolla"]
[null,"47593 Kumi- ja muovitavaroiden vähittäiskauppa",62,13929,51,null,"Tietoja ei ole saatavilla tällä toimialan tarkkuustasolla"]
[null,"47594 Taloustavaroiden vähittäiskauppa",102,56128,329,null,"Tietoja ei ole saatavilla tällä toimialan tarkkuustasolla"]
[null,"47595 Soittimien ja musiikkitarvikkeiden vähittäiskauppa",134,32193,104,null,"Tietoja ei ole saatavilla tällä toimialan tarkkuustasolla"]
[null,"47596 Lukkoseppä- ja avainliikkeet",168,337788,1782,null,"Tietoja ei ole saatavilla tällä toimialan tarkkuustasolla"]
[null,"47599 Muualla luokittelemattomien kotitaloustarvikkeiden vähittäiskauppa",295,49081,181,null,"Tietoja ei ole saatavilla tällä toimialan tarkkuustasolla"]
[null,"476 Kulttuuri- ja vapaa-ajan tuotteiden vähittäiskauppa erikoismyymälöissä",1696,1696648,4832,null,"Tietoja ei ole saatavilla tällä toimialan tarkkuustasolla"]
[null,"4761 Kirjojen vähittäiskauppa",149,124452,476,null,"Tietoja ei ole saatavilla tällä toimialan tarkkuustasolla"]
[null,"47610 Kirjojen vähittäiskauppa",149,124452,476,null,"Tietoja ei ole saatavilla tällä toimialan tarkkuustasolla"]
[null,"4762 Sanomalehtien ja paperitavaran vähittäiskauppa",111,12466,62,null,"Tietoja ei ole saatavilla tällä toimialan tarkkuustasolla"]
[null,"47621 Paperi- ja toimistotarvikkeiden vähittäiskauppa",93,10660,54,null,"Tietoja ei ole saatavilla tällä toimialan tarkkuustasolla"]
[null,"47622 Aikakausjulkaisujen ja lehtien vähittäiskauppa",18,1806,8,null,"Tietoja ei ole saatavilla tällä toimialan tarkkuustasolla"]
[null,"4763 Musiikki- ja videotallenteiden vähittäiskauppa",53,15315,71,null,"Tietoja ei ole saatavilla tällä toimialan tarkkuustasolla"]
[null,"47630 Musiikki- ja videotallenteiden vähittäiskauppa",53,15315,71,null,"Tietoja ei ole saatavilla tällä toimialan tarkkuustasolla"]
[null,"4764 Urheiluvälineiden vähittäiskauppa",1272,1492761,4044,null,"Tietoja ei ole saatavilla tällä toimialan tarkkuustasolla"]
[null,"47641 Urheiluvälineiden ja polkupyörien vähittäiskauppa",1072,1315427,3741,null,"Tietoja ei ole saatavilla tällä toimialan tarkkuustasolla"]
[null,"47642 Veneiden ja veneilytarvikkeiden vähittäiskauppa",200,177334,303,null,"Tietoja ei ole saatavilla tällä toimialan tarkkuustasolla"]
[null,"4765 Pelien ja leikkikalujen vähittäiskauppa",111,51654,179,null,"Tietoja ei ole saatavilla tällä toimialan tarkkuustasolla"]
[null,"47650 Pelien ja leikkikalujen vähittäiskauppa",111,51654,179,null,"Tietoja ei ole saatavilla tällä toimialan tarkkuustasolla"]
[null,"477 Muiden tavaroiden vähittäiskauppa erikoismyymälöissä",8621,6516296,22340,null,"Tietoja ei ole saatavilla tällä toimialan tarkkuustasolla"]
[null,"4771 Vaatteiden vähittäiskauppa",1397,1230250,4814,null,"Tietoja ei ole saatavilla tällä toimialan tarkkuustasolla"]
[null,"47711 Naisten vaatteiden vähittäiskauppa",299,140331,655,null,"Tietoja ei ole saatavilla tällä toimialan tarkkuustasolla"]
[null,"47712 Miesten vaatteiden vähittäiskauppa",46,142527,543,null,"Tietoja ei ole saatavilla tällä toimialan tarkkuustasolla"]
[null,"47713 Lastenvaatteiden vähittäiskauppa",94,36880,131,null,"Tietoja ei ole saatavilla tällä toimialan tarkkuustasolla"]
[null,"47714 Turkisten ja nahkavaatteiden vähittäiskauppa",34,5504,23,null,"Tietoja ei ole saatavilla tällä toimialan tarkkuustasolla"]
[null,"47715 Lakkien ja hattujen vähittäiskauppa",12,838,6,null,"Tietoja ei ole saatavilla tällä toimialan tarkkuustasolla"]
[null,"47719 Vaatteiden yleisvähittäiskauppa",912,904171,3457,null,"Tietoja ei ole saatavilla tällä toimialan tarkkuustasolla"]
[null,"4772 Jalkineiden ja nahkatavaroiden vähittäiskauppa",252,155589,444,null,"Tietoja ei ole saatavilla tällä toimialan tarkkuustasolla"]
[null,"47721 Jalkineiden vähittäiskauppa",196,91368,348,null,"Tietoja ei ole saatavilla tällä toimialan tarkkuustasolla"]
[null,"47722 Laukkujen vähittäiskauppa",56,64221,97,null,"Tietoja ei ole saatavilla tällä toimialan tarkkuustasolla"]
[null,"4773 Apteekit",676,3069364,7533,null,"Tietoja ei ole saatavilla tällä toimialan tarkkuustasolla"]
[null,"47730 Apteekit",676,3069364,7533,null,"Tietoja ei ole saatavilla tällä toimialan tarkkuustasolla"]
[null,"4774 Terveydenhoitotarvikkeiden vähittäiskauppa",325,214601,458,null,"Tietoja ei ole saatavilla tällä toimialan tarkkuustasolla"]
[null,"47740 Terveydenhoitotarvikkeiden vähittäiskauppa",325,214601,458,null,"Tietoja ei ole saatavilla tällä toimialan tarkkuustasolla"]
[null,"4775 Kosmetiikka- ja hygieniatuotteiden vähittäiskauppa",520,151621,472,null,"Tietoja ei ole saatavilla tällä toimialan tarkkuustasolla"]
[null,"47750 Kosmetiikka- ja hygieniatuotteiden vähittäiskauppa",520,151621,472,null,"Tietoja ei ole saatavilla tällä toimialan tarkkuustasolla"]
[null,"4776 Kukkien, kasvien, siementen, lannoitteiden, lemmikkieläinten ja niiden ruokien vähittäiskauppa",1412,499092,2383,null,"Tietoja ei ole saatavilla tällä toimialan tarkkuustasolla"]
[null,"47761 Kukkien vähittäiskauppa",743,135160,948,null,"Tietoja ei ole saatavilla tällä toimialan tarkkuustasolla"]
[null,"47762 Kukkakioskit",36,3435,22,null,"Tietoja ei ole saatavilla tällä toimialan tarkkuustasolla"]
[null,"47763 Puutarha-alan vähittäiskauppa",237,112234,560,null,"Tietoja ei ole saatavilla tällä toimialan tarkkuustasolla"]
[null,"47764 Lemmikkieläinten, niiden ruokien ja tarvikkeiden vähittäiskauppa",396,248264,853,null,"Tietoja ei ole saatavilla tällä toimialan tarkkuustasolla"]
[null,"4777 Kultasepänteosten ja kellojen vähittäiskauppa",356,222102,858,null,"Tietoja ei ole saatavilla tällä toimialan tarkkuustasolla"]
[null,"47770 Kultasepänteosten ja kellojen vähittäiskauppa",356,222102,858,null,"Tietoja ei ole saatavilla tällä toimialan tarkkuustasolla"]
[null,"4778 Muu uusien tavaroiden vähittäiskauppa",2592,832034,4189,null,"Tietoja ei ole saatavilla tällä toimialan tarkkuustasolla"]
[null,"47781 Taideliikkeet",253,13016,77,null,"Tietoja ei ole saatavilla tällä toimialan tarkkuustasolla"]
[null,"47782 Valokuvausalan vähittäiskauppa",164,78364,279,null,"Tietoja ei ole saatavilla tällä toimialan tarkkuustasolla"]
[null,"47783 Optisen alan vähittäiskauppa",410,453007,2648,null,"Tietoja ei ole saatavilla tällä toimialan tarkkuustasolla"]
[null,"47784 Lastenvaunujen ja -tarvikkeiden vähittäiskauppa",54,44286,125,null,"Tietoja ei ole saatavilla tällä toimialan tarkkuustasolla"]
[null,"47785 Lahjatavaroiden ja askartelutarvikkeiden vähittäiskauppa",707,106115,542,null,"Tietoja ei ole saatavilla tällä toimialan tarkkuustasolla"]
[null,"47789 Muiden uusien tavaroiden vähittäiskauppa",1004,137246,519,null,"Tietoja ei ole saatavilla tällä toimialan tarkkuustasolla"]
[null,"4779 Käytettyjen tavaroiden vähittäiskauppa myymälöissä",1091,141643,1187,null,"Tietoja ei ole saatavilla tällä toimialan tarkkuustasolla"]
[null,"47791 Antiikkiliikkeet",145,15460,41,null,"Tietoja ei ole saatavilla tällä toimialan tarkkuustasolla"]
[null,"47792 Antikvariaattikauppa",118,8285,49,null,"Tietoja ei ole saatavilla tällä toimialan tarkkuustasolla"]
[null,"47793 Huutokauppakamarit",26,10635,62,null,"Tietoja ei ole saatavilla tällä toimialan tarkkuustasolla"]
[null,"47799 Muiden käytettyjen tavaroiden vähittäiskauppa",802,107263,1036,null,"Tietoja ei ole saatavilla tällä toimialan tarkkuustasolla"]
[null,"478 Tori- ja markkinakauppa",471,67259,261,null,"Tietoja ei ole saatavilla tällä toimialan tarkkuustasolla"]
[null,"4781 Elintarvikkeiden, juomien ja tupakkatuotteiden vähittäiskauppa kojuista ja toreilla",240,54655,195,null,"Tietoja ei ole saatavilla tällä toimialan tarkkuustasolla"]
[null,"47810 Elintarvikkeiden, juomien ja tupakkatuotteiden vähittäiskauppa kojuista ja toreilla",240,54655,195,null,"Tietoja ei ole saatavilla tällä toimialan tarkkuustasolla"]
[null,"4782 Tekstiilien, vaatteiden ja jalkineiden vähittäiskauppa kojuista ja toreilla",58,2681,10,null,"Tietoja ei ole saatavilla tällä toimialan tarkkuustasolla"]
[null,"47820 Tekstiilien, vaatteiden ja jalkineiden vähittäiskauppa kojuista ja toreilla",58,2681,10,null,"Tietoja ei ole saatavilla tällä toimialan tarkkuustasolla"]
[null,"4789 Muiden tavaroiden vähittäiskauppa kojuista ja toreilla",173,9923,57,null,"Tietoja ei ole saatavilla tällä toimialan tarkkuustasolla"]
[null,"47890 Muiden tavaroiden vähittäiskauppa kojuista ja toreilla",173,9923,57,null,"Tietoja ei ole saatavilla tällä toimialan tarkkuustasolla"]
[null,"479 Vähittäiskauppa muualla kuin myymälöissä (pl. tori- ja markkinakauppa)",5943,1708787,3164,null,"Tietoja ei ole saatavilla tällä toimialan tarkkuustasolla"]
[null,"4791 Vähittäiskauppa postimyyntiliikkeiden tai Internetin välityksellä",2966,1494137,2381,null,"Tietoja ei ole saatavilla tällä toimialan tarkkuustasolla"]
[null,"47911 Kirjojen, musiikki- ja videotallenteiden postimyynti ja verkkokauppa",76,80506,55,null,"Tietoja ei ole saatavilla tällä toimialan tarkkuustasolla"]
[null,"47912 Vaatteiden postimyynti ja verkkokauppa",364,54539,167,null,"Tietoja ei ole saatavilla tällä toimialan tarkkuustasolla"]
[null,"47913 Laajan valikoiman postimyynti ja verkkokauppa",1089,596485,497,null,"Tietoja ei ole saatavilla tällä toimialan tarkkuustasolla"]
[null,"47919 Muu postimyynti ja verkkokauppa",1437,762608,1662,null,"Tietoja ei ole saatavilla tällä toimialan tarkkuustasolla"]
[null,"4799 Muu vähittäiskauppa muualla kuin myymälöissä",2977,214649,783,null,"Tietoja ei ole saatavilla tällä toimialan tarkkuustasolla"]
[null,"47990 Muu vähittäiskauppa muualla kuin myymälöissä",2977,214649,783,null,"Tietoja ei ole saatavilla tällä toimialan tarkkuustasolla"]
[null,"H-S Palvelut",310479,170134049,745245,null,292678,8227,4574,3002,1092,566,199,72,69]
[null,"H Kuljetus ja varastointi (49-53)",24652,27890828,109610,null,21713,1433,762,485,148,65,27,8,11]
[null,"49 Maaliikenne ja putkijohtokuljetus",18785,10823492,61199,null,16500,1204,597,361,86,24,7,3,3]
[null,"491 Rautateiden henkilöliikenne, kaukoliikenne",6,"...",3200,null,"Tietoja ei ole saatavilla tällä toimialan tarkkuustasolla"]
[null,"4910 Rautateiden henkilöliikenne, kaukoliikenne",6,"...",3200,null,"Tietoja ei ole saatavilla tällä toimialan tarkkuustasolla"]
[null,"49100 Rautateiden henkilöliikenne, kaukoliikenne",6,"...",3200,null,"Tietoja ei ole saatavilla tällä toimialan tarkkuustasolla"]
[null,"492 Rautateiden tavaraliikenne",9,11327,44,null,"Tietoja ei ole saatavilla tällä toimialan tarkkuustasolla"]
[null,"4920 Rautateiden tavaraliikenne",9,11327,44,null,"Tietoja ei ole saatavilla tällä toimialan tarkkuustasolla"]
[null,"49200 Rautateiden tavaraliikenne",9,11327,44,null,"Tietoja ei ole saatavilla tällä toimialan tarkkuustasolla"]
[null,"493 Muu maaliikenteen henkilöliikenne",9104,2563027,21341,null,"Tietoja ei ole saatavilla tällä toimialan tarkkuustasolla"]
[null,"4931 Paikallisliikenne",112,748542,6422,null,"Tietoja ei ole saatavilla tällä toimialan tarkkuustasolla"]
[null,"49310 Paikallisliikenne",112,748542,6422,null,"Tietoja ei ole saatavilla tällä toimialan tarkkuustasolla"]
[null,"4932 Taksiliikenne",8394,1266677,10559,null,"Tietoja ei ole saatavilla tällä toimialan tarkkuustasolla"]
[null,"49320 Taksiliikenne",8394,1266677,10559,null,"Tietoja ei ole saatavilla tällä toimialan tarkkuustasolla"]
[null,"4939 Muualla luokittelematon maaliikenteen henkilöliikenne",598,547807,4361,null,"Tietoja ei ole saatavilla tällä toimialan tarkkuustasolla"]
[null,"49391 Säännöllinen linja-autojen kaukoliikenne",90,259453,1836,null,"Tietoja ei ole saatavilla tällä toimialan tarkkuustasolla"]
[null,"49392 Linja-autojen tilausliikenne",383,260208,2343,null,"Tietoja ei ole saatavilla tällä toimialan tarkkuustasolla"]
[null,"49399 Muualla luokittelematon muu maaliikenteen henkilöliikenne",125,28146,182,null,"Tietoja ei ole saatavilla tällä toimialan tarkkuustasolla"]
[null,"494 Tieliikenteen tavarankuljetus ja muuttopalvelut",9662,7317650,36549,null,"Tietoja ei ole saatavilla tällä toimialan tarkkuustasolla"]
[null,"4941 Tieliikenteen tavarankuljetus",9328,7180358,35089,null,"Tietoja ei ole saatavilla tällä toimialan tarkkuustasolla"]
[null,"49410 Tieliikenteen tavarankuljetus",9328,7180358,35089,null,"Tietoja ei ole saatavilla tällä toimialan tarkkuustasolla"]
[null,"4942 Muuttopalvelut",334,137292,1459,null,"Tietoja ei ole saatavilla tällä toimialan tarkkuustasolla"]
[null,"49420 Muuttopalvelut",334,137292,1459,null,"Tietoja ei ole saatavilla tällä toimialan tarkkuustasolla"]
[null,"495 Putkijohtokuljetus",4,"...",66,null,"Tietoja ei ole saatavilla tällä toimialan tarkkuustasolla"]
[null,"4950 Putkijohtokuljetus",4,"...",66,null,"Tietoja ei ole saatavilla tällä toimialan tarkkuustasolla"]
[null,"49500 Putkijohtokuljetus",4,"...",66,null,"Tietoja ei ole saatavilla tällä toimialan tarkkuustasolla"]
[null,"50 Vesiliikenne",490,3279586,7228,null,419,25,19,9,6,5,4,".",3]
[null,"501 Meri- ja rannikkovesiliikenteen henkilökuljetus",218,1214237,4381,null,"Tietoja ei ole saatavilla tällä toimialan tarkkuustasolla"]
[null,"5010 Meri- ja rannikkovesiliikenteen henkilökuljetus",218,1214237,4381,null,"Tietoja ei ole saatavilla tällä toimialan tarkkuustasolla"]
[null,"50101 Meriliikenteen henkilökuljetus",91,1126990,3906,null,"Tietoja ei ole saatavilla tällä toimialan tarkkuustasolla"]
[null,"50102 Rannikkovesiliikenteen henkilökuljetus",127,87247,475,null,"Tietoja ei ole saatavilla tällä toimialan tarkkuustasolla"]
[null,"502 Meri- ja rannikkovesiliikenteen tavarankuljetus",146,2041544,2739,null,"Tietoja ei ole saatavilla tällä toimialan tarkkuustasolla"]
[null,"5020 Meri- ja rannikkovesiliikenteen tavarankuljetus",146,2041544,2739,null,"Tietoja ei ole saatavilla tällä toimialan tarkkuustasolla"]
[null,"50201 Meriliikenteen tavarankuljetus",116,2030541,2694,null,"Tietoja ei ole saatavilla tällä toimialan tarkkuustasolla"]
[null,"50202 Rannikkovesiliikenteen tavarankuljetus",30,11002,45,null,"Tietoja ei ole saatavilla tällä toimialan tarkkuustasolla"]
[null,"503 Sisävesiliikenteen henkilökuljetus",113,11279,58,null,"Tietoja ei ole saatavilla tällä toimialan tarkkuustasolla"]
[null,"5030 Sisävesiliikenteen henkilökuljetus",113,11279,58,null,"Tietoja ei ole saatavilla tällä toimialan tarkkuustasolla"]
[null,"50300 Sisävesiliikenteen henkilökuljetus",113,11279,58,null,"Tietoja ei ole saatavilla tällä toimialan tarkkuustasolla"]
[null,"504 Sisävesiliikenteen tavarankuljetus",13,12526,50,null,"Tietoja ei ole saatavilla tällä toimialan tarkkuustasolla"]
[null,"5040 Sisävesiliikenteen tavarankuljetus",13,12526,50,null,"Tietoja ei ole saatavilla tällä toimialan tarkkuustasolla"]
[null,"50400 Sisävesiliikenteen tavarankuljetus",13,12526,50,null,"Tietoja ei ole saatavilla tällä toimialan tarkkuustasolla"]
[null,"51 Ilmaliikenne",133,3636762,4447,null,116,8,4,1,2,".",".",1,1]
[null,"511 Matkustajalentoliikenne",114,3582673,4326,null,"Tietoja ei ole saatavilla tällä toimialan tarkkuustasolla"]
[null,"5110 Matkustajalentoliikenne",114,3582673,4326,null,"Tietoja ei ole saatavilla tällä toimialan tarkkuustasolla"]
[null,"51101 Säännöllinen lentoliikenne",31,3531965,4198,null,"Tietoja ei ole saatavilla tällä toimialan tarkkuustasolla"]
[null,"51102 Tilauslentoliikenne",83,50708,128,null,"Tietoja ei ole saatavilla tällä toimialan tarkkuustasolla"]
[null,"512 Lentoliikenteen tavarankuljetus ja avaruusliikenne",19,54089,121,null,"Tietoja ei ole saatavilla tällä toimialan tarkkuustasolla"]
[null,"5121 Lentoliikenteen tavarankuljetus",19,54089,121,null,"Tietoja ei ole saatavilla tällä toimialan tarkkuustasolla"]
[null,"51210 Lentoliikenteen tavarankuljetus",19,54089,121,null,"Tietoja ei ole saatavilla tällä toimialan tarkkuustasolla"]
[null,"52 Varastointi ja liikennettä palveleva toiminta",2773,7980822,24791,null,2296,161,121,97,46,34,13,3,2]
[null,"521 Varastointi",399,545623,2535,null,"Tietoja ei ole saatavilla tällä toimialan tarkkuustasolla"]
[null,"5210 Varastointi",399,545623,2535,null,"Tietoja ei ole saatavilla tällä toimialan tarkkuustasolla"]
[null,"52100 Varastointi",399,545623,2535,null,"Tietoja ei ole saatavilla tällä toimialan tarkkuustasolla"]
[null,"522 Liikennettä palveleva toiminta",2374,7435200,22256,null,"Tietoja ei ole saatavilla tällä toimialan tarkkuustasolla"]
[null,"5221 Maaliikennettä palveleva toiminta",612,1028836,2425,null,"Tietoja ei ole saatavilla tällä toimialan tarkkuustasolla"]
[null,"52211 Linja-autoasemat",10,"...",403,null,"Tietoja ei ole saatavilla tällä toimialan tarkkuustasolla"]
[null,"52212 Tieliikenteen terminaalitoiminta",68,443668,803,null,"Tietoja ei ole saatavilla tällä toimialan tarkkuustasolla"]
[null,"52213 Maksullinen pysäköinti",154,"...",437,null,"Tietoja ei ole saatavilla tällä toimialan tarkkuustasolla"]
[null,"52219 Muu maaliikennettä palveleva toiminta",380,303891,783,null,"Tietoja ei ole saatavilla tällä toimialan tarkkuustasolla"]
[null,"5222 Vesiliikennettä palveleva toiminta",196,443286,1429,null,"Tietoja ei ole saatavilla tällä toimialan tarkkuustasolla"]
[null,"52221 Satamat",105,280475,542,null,"Tietoja ei ole saatavilla tällä toimialan tarkkuustasolla"]
[null,"52229 Muu vesiliikennettä palveleva toiminta",91,162811,887,null,"Tietoja ei ole saatavilla tällä toimialan tarkkuustasolla"]
[null,"5223 Ilmaliikennettä palveleva toiminta",128,598063,3515,null,"Tietoja ei ole saatavilla tällä toimialan tarkkuustasolla"]
[null,"52230 Ilmaliikennettä palveleva toiminta",128,598063,3515,null,"Tietoja ei ole saatavilla tällä toimialan tarkkuustasolla"]
[null,"5224 Lastinkäsittely",183,687509,4281,null,"Tietoja ei ole saatavilla tällä toimialan tarkkuustasolla"]
[null,"52240 Lastinkäsittely",183,687509,4281,null,"Tietoja ei ole saatavilla tällä toimialan tarkkuustasolla"]
[null,"5229 Muu liikennettä palveleva toiminta",1255,4677505,10607,null,"Tietoja ei ole saatavilla tällä toimialan tarkkuustasolla"]
[null,"52291 Huolinta ja rahtaus",692,3762861,9338,null,"Tietoja ei ole saatavilla tällä toimialan tarkkuustasolla"]
[null,"52299 Muu kuljetusvälitys",563,914643,1269,null,"Tietoja ei ole saatavilla tällä toimialan tarkkuustasolla"]
[null,"53 Posti- ja kuriiritoiminta",2471,2170166,11945,null,2382,35,21,17,8,2,3,1,2]
[null,"531 Postin yleispalvelu",6,1745749,9018,null,"Tietoja ei ole saatavilla tällä toimialan tarkkuustasolla"]
[null,"5310 Postin yleispalvelu",6,1745749,9018,null,"Tietoja ei ole saatavilla tällä toimialan tarkkuustasolla"]
[null,"53100 Postin yleispalvelu",6,1745749,9018,null,"Tietoja ei ole saatavilla tällä toimialan tarkkuustasolla"]
[null,"532 Muu posti-, jakelu- ja kuriiritoiminta",2465,424417,2927,null,"Tietoja ei ole saatavilla tällä toimialan tarkkuustasolla"]
[null,"5320 Muu posti-, jakelu- ja kuriiritoiminta",2465,424417,2927,null,"Tietoja ei ole saatavilla tällä toimialan tarkkuustasolla"]
[null,"53200 Muu posti-, jakelu- ja kuriiritoiminta",2465,424417,2927,null,"Tietoja ei ole saatavilla tällä toimialan tarkkuustasolla"]
[null,"I Majoitus- ja ravitsemistoiminta (55-56)",16325,8871303,58347,null,13848,1469,631,269,65,28,7,5,3]
[null,"55 Majoitus",3255,2177716,10081,null,2952,127,88,61,18,5,1,2,1]
[null,"551 Hotellit ja vastaavat majoitusliikkeet",1018,1858821,8682,null,"Tietoja ei ole saatavilla tällä toimialan tarkkuustasolla"]
[null,"5510 Hotellit ja vastaavat majoitusliikkeet",1018,1858821,8682,null,"Tietoja ei ole saatavilla tällä toimialan tarkkuustasolla"]
[null,"55101 Hotellit",638,1810190,8435,null,"Tietoja ei ole saatavilla tällä toimialan tarkkuustasolla"]
[null,"55109 Motellit, matkustajakodit ja vastaavat majoitusliikkeet",380,48632,247,null,"Tietoja ei ole saatavilla tällä toimialan tarkkuustasolla"]
[null,"552 Lomakylät, retkeilymajat yms. majoitus",479,125031,545,null,"Tietoja ei ole saatavilla tällä toimialan tarkkuustasolla"]
[null,"5520 Lomakylät, retkeilymajat yms. majoitus",479,125031,545,null,"Tietoja ei ole saatavilla tällä toimialan tarkkuustasolla"]
[null,"55201 Retkeilymajat",53,1812,12,null,"Tietoja ei ole saatavilla tällä toimialan tarkkuustasolla"]
[null,"55209 Lomakylät yms. majoitus",426,123219,533,null,"Tietoja ei ole saatavilla tällä toimialan tarkkuustasolla"]
[null,"553 Leirintäalueet, asuntovaunu- ja matkailuvaunualueet",194,43660,262,null,"Tietoja ei ole saatavilla tällä toimialan tarkkuustasolla"]
[null,"5530 Leirintäalueet, asuntovaunu- ja matkailuvaunualueet",194,43660,262,null,"Tietoja ei ole saatavilla tällä toimialan tarkkuustasolla"]
[null,"55300 Leirintäalueet, asuntovaunu- ja matkailuvaunualueet",194,43660,262,null,"Tietoja ei ole saatavilla tällä toimialan tarkkuustasolla"]
[null,"559 Muu majoitus",1564,150203,592,null,"Tietoja ei ole saatavilla tällä toimialan tarkkuustasolla"]
[null,"5590 Muu majoitus",1564,150203,592,null,"Tietoja ei ole saatavilla tällä toimialan tarkkuustasolla"]
[null,"55901 Asuntolat ja täysihoitolat yms.",15,20625,36,null,"Tietoja ei ole saatavilla tällä toimialan tarkkuustasolla"]
[null,"55902 Maatilamatkailu, bed & breakfast",303,18143,107,null,"Tietoja ei ole saatavilla tällä toimialan tarkkuustasolla"]
[null,"55903 Lomamökkien vuokraus",748,47146,170,null,"Tietoja ei ole saatavilla tällä toimialan tarkkuustasolla"]
[null,"55909 Muualla luokittelematon majoitustoiminta",498,64290,278,null,"Tietoja ei ole saatavilla tällä toimialan tarkkuustasolla"]
[null,"56 Ravitsemistoiminta",13070,6693587,48266,null,10896,1342,543,208,47,23,6,3,2]
[null,"561 Ravintolat ja vastaava ravitsemistoiminta",10055,5335736,36635,null,"Tietoja ei ole saatavilla tällä toimialan tarkkuustasolla"]
[null,"5610 Ravintolat ja vastaava ravitsemistoiminta",10055,5335736,36635,null,"Tietoja ei ole saatavilla tällä toimialan tarkkuustasolla"]
[null,"56101 Ravintolat",5823,3278157,22557,null,"Tietoja ei ole saatavilla tällä toimialan tarkkuustasolla"]
[null,"56102 Kahvila-ravintolat",3474,1890538,12713,null,"Tietoja ei ole saatavilla tällä toimialan tarkkuustasolla"]
[null,"56103 Ruokakioskit",758,167041,1365,null,"Tietoja ei ole saatavilla tällä toimialan tarkkuustasolla"]
[null,"562 Ateriapalvelut ja muut ravitsemispalvelut",1555,941280,8409,null,"Tietoja ei ole saatavilla tällä toimialan tarkkuustasolla"]
[null,"5621 Pitopalvelu",1134,144615,1058,null,"Tietoja ei ole saatavilla tällä toimialan tarkkuustasolla"]
[null,"56210 Pitopalvelu",1134,144615,1058,null,"Tietoja ei ole saatavilla tällä toimialan tarkkuustasolla"]
[null,"5629 Henkilöstö- ja laitosruokalat",421,796665,7351,null,"Tietoja ei ole saatavilla tällä toimialan tarkkuustasolla"]
[null,"56290 Henkilöstö- ja laitosruokalat",421,796665,7351,null,"Tietoja ei ole saatavilla tällä toimialan tarkkuustasolla"]
[null,"563 Baarit ja kahvilat",1460,416571,3222,null,"Tietoja ei ole saatavilla tällä toimialan tarkkuustasolla"]
[null,"5630 Baarit ja kahvilat",1460,416571,3222,null,"Tietoja ei ole saatavilla tällä toimialan tarkkuustasolla"]
[null,"56301 Olut- ja drinkkibaarit",437,193690,1165,null,"Tietoja ei ole saatavilla tällä toimialan tarkkuustasolla"]
[null,"56302 Kahvilat ja kahvibaarit",1023,222881,2058,null,"Tietoja ei ole saatavilla tällä toimialan tarkkuustasolla"]
[null,"J Informaatio ja viestintä (58-63)",21582,28462642,104540,null,19434,835,545,423,167,106,54,9,9]
[null,"58 Kustannustoiminta",1509,7163760,17315,null,1255,74,47,65,21,32,13,1,1]
[null,"581 Kirjojen ja lehtien kustantaminen ja muu kustannustoiminta",1241,2054425,9276,null,"Tietoja ei ole saatavilla tällä toimialan tarkkuustasolla"]
[null,"5811 Kirjojen kustantaminen",477,328683,1321,null,"Tietoja ei ole saatavilla tällä toimialan tarkkuustasolla"]
[null,"58110 Kirjojen kustantaminen",477,328683,1321,null,"Tietoja ei ole saatavilla tällä toimialan tarkkuustasolla"]
[null,"5812 Hakemistojen ja postituslistojen julkaiseminen",6,49324,284,null,"Tietoja ei ole saatavilla tällä toimialan tarkkuustasolla"]
[null,"58120 Hakemistojen ja postituslistojen julkaiseminen",6,49324,284,null,"Tietoja ei ole saatavilla tällä toimialan tarkkuustasolla"]
[null,"5813 Sanomalehtien kustantaminen",142,1241471,5550,null,"Tietoja ei ole saatavilla tällä toimialan tarkkuustasolla"]
[null,"58130 Sanomalehtien kustantaminen",142,1241471,5550,null,"Tietoja ei ole saatavilla tällä toimialan tarkkuustasolla"]
[null,"5814 Aikakauslehtien ja harvemmin ilmestyvien sanomalehtien kustantaminen",263,367542,1792,null,"Tietoja ei ole saatavilla tällä toimialan tarkkuustasolla"]
[null,"58141 Paikallislehtien ja harvemmin ilmestyvien sanomalehtien kustantaminen",69,106720,580,null,"Tietoja ei ole saatavilla tällä toimialan tarkkuustasolla"]
[null,"58142 Aikakauslehtien kustantaminen",194,260822,1212,null,"Tietoja ei ole saatavilla tällä toimialan tarkkuustasolla"]
[null,"5819 Muu kustannustoiminta",353,67404,329,null,"Tietoja ei ole saatavilla tällä toimialan tarkkuustasolla"]
[null,"58190 Muu kustannustoiminta",353,67404,329,null,"Tietoja ei ole saatavilla tällä toimialan tarkkuustasolla"]
[null,"582 Ohjelmistojen kustantaminen",268,5109335,8038,null,"Tietoja ei ole saatavilla tällä toimialan tarkkuustasolla"]
[null,"5821 Tietokonepelien kustantaminen",102,2642936,1967,null,"Tietoja ei ole saatavilla tällä toimialan tarkkuustasolla"]
[null,"58210 Tietokonepelien kustantaminen",102,2642936,1967,null,"Tietoja ei ole saatavilla tällä toimialan tarkkuustasolla"]
[null,"5829 Muu ohjelmistojen kustantaminen",166,2466399,6071,null,"Tietoja ei ole saatavilla tällä toimialan tarkkuustasolla"]
[null,"58290 Muu ohjelmistojen kustantaminen",166,2466399,6071,null,"Tietoja ei ole saatavilla tällä toimialan tarkkuustasolla"]
[null,"59 Elokuva-, video- ja televisio-ohjelmatuotanto, äänitteiden ja musiikin kustantaminen",3795,821020,4172,null,3656,79,28,14,15,2,1,".","."]
[null,"591 Elokuva-, video- ja televisio-ohjelmatoiminta",2588,632626,3623,null,"Tietoja ei ole saatavilla tällä toimialan tarkkuustasolla"]
[null,"5911 Elokuvien, videoiden ja televisio-ohjelmien tuotanto",2258,419119,2765,null,"Tietoja ei ole saatavilla tällä toimialan tarkkuustasolla"]
[null,"59110 Elokuvien, videoiden ja televisio-ohjelmien tuotanto",2258,419119,2765,null,"Tietoja ei ole saatavilla tällä toimialan tarkkuustasolla"]
[null,"5912 Elokuvien, video- ja televisio-ohjelmien jälkituotanto",212,40189,312,null,"Tietoja ei ole saatavilla tällä toimialan tarkkuustasolla"]
[null,"59120 Elokuvien, video- ja televisio-ohjelmien jälkituotanto",212,40189,312,null,"Tietoja ei ole saatavilla tällä toimialan tarkkuustasolla"]
[null,"5913 Elokuvien, videoiden ja televisio-ohjelmien levitys",40,41897,79,null,"Tietoja ei ole saatavilla tällä toimialan tarkkuustasolla"]
[null,"59130 Elokuvien, videoiden ja televisio-ohjelmien levitys",40,41897,79,null,"Tietoja ei ole saatavilla tällä toimialan tarkkuustasolla"]
[null,"5914 Elokuvien esittäminen",78,131422,466,null,"Tietoja ei ole saatavilla tällä toimialan tarkkuustasolla"]
[null,"59140 Elokuvien esittäminen",78,131422,466,null,"Tietoja ei ole saatavilla tällä toimialan tarkkuustasolla"]
[null,"592 Äänitysstudiot; äänitteiden ja musiikin kustantaminen",1207,188393,549,null,"Tietoja ei ole saatavilla tällä toimialan tarkkuustasolla"]
[null,"5920 Äänitysstudiot; äänitteiden ja musiikin kustantaminen",1207,188393,549,null,"Tietoja ei ole saatavilla tällä toimialan tarkkuustasolla"]
[null,"59200 Äänitysstudiot; äänitteiden ja musiikin kustantaminen",1207,188393,549,null,"Tietoja ei ole saatavilla tällä toimialan tarkkuustasolla"]
[null,"60 Radio- ja televisiotoiminta",113,343632,747,null,105,2,1,3,".",1,1,".","."]
[null,"601 Radio-ohjelmien tuottaminen ja lähettäminen",69,57522,234,null,"Tietoja ei ole saatavilla tällä toimialan tarkkuustasolla"]
[null,"6010 Radio-ohjelmien tuottaminen ja lähettäminen",69,57522,234,null,"Tietoja ei ole saatavilla tällä toimialan tarkkuustasolla"]
[null,"60100 Radio-ohjelmien tuottaminen ja lähettäminen",69,57522,234,null,"Tietoja ei ole saatavilla tällä toimialan tarkkuustasolla"]
[null,"602 Televisio-ohjelmien tuottaminen ja lähettäminen",44,286110,513,null,"Tietoja ei ole saatavilla tällä toimialan tarkkuustasolla"]
[null,"6020 Televisio-ohjelmien tuottaminen ja lähettäminen",44,286110,513,null,"Tietoja ei ole saatavilla tällä toimialan tarkkuustasolla"]
[null,"60201 Televisio-ohjelmien tuottaminen ja lähettäminen (pl. maksulliset tv-kanavat)",35,"...",455,null,"Tietoja ei ole saatavilla tällä toimialan tarkkuustasolla"]
[null,"60202 Maksulliset tv-kanavat",9,"...",58,null,"Tietoja ei ole saatavilla tällä toimialan tarkkuustasolla"]
[null,"61 Televiestintä",521,5330061,11259,null,429,36,22,15,7,6,3,".",3]
[null,"611 Langallisen verkon hallinta ja palvelut",173,245699,1164,null,"Tietoja ei ole saatavilla tällä toimialan tarkkuustasolla"]
[null,"6110 Langallisen verkon hallinta ja palvelut",173,245699,1164,null,"Tietoja ei ole saatavilla tällä toimialan tarkkuustasolla"]
[null,"61100 Langallisen verkon hallinta ja palvelut",173,245699,1164,null,"Tietoja ei ole saatavilla tällä toimialan tarkkuustasolla"]
[null,"612 Langattoman verkon hallinta ja palvelut",180,4983425,9644,null,"Tietoja ei ole saatavilla tällä toimialan tarkkuustasolla"]
[null,"6120 Langattoman verkon hallinta ja palvelut",180,4983425,9644,null,"Tietoja ei ole saatavilla tällä toimialan tarkkuustasolla"]
[null,"61200 Langattoman verkon hallinta ja palvelut",180,4983425,9644,null,"Tietoja ei ole saatavilla tällä toimialan tarkkuustasolla"]
[null,"613 Satelliittiviestintä",4,2992,20,null,"Tietoja ei ole saatavilla tällä toimialan tarkkuustasolla"]
[null,"6130 Satelliittiviestintä",4,2992,20,null,"Tietoja ei ole saatavilla tällä toimialan tarkkuustasolla"]
[null,"61300 Satelliittiviestintä",4,2992,20,null,"Tietoja ei ole saatavilla tällä toimialan tarkkuustasolla"]
[null,"619 Muut televiestintäpalvelut",164,97944,431,null,"Tietoja ei ole saatavilla tällä toimialan tarkkuustasolla"]
[null,"6190 Muut televiestintäpalvelut",164,97944,431,null,"Tietoja ei ole saatavilla tällä toimialan tarkkuustasolla"]
[null,"61900 Muut televiestintäpalvelut",164,97944,431,null,"Tietoja ei ole saatavilla tällä toimialan tarkkuustasolla"]
[null,"62 Ohjelmistot, konsultointi ja siihen liittyvä toiminta",14095,12764256,64567,null,12581,600,410,295,110,56,30,8,5]
[null,"620 Ohjelmistot, konsultointi ja siihen liittyvä toiminta",14095,12764256,64567,null,"Tietoja ei ole saatavilla tällä toimialan tarkkuustasolla"]
[null,"6201 Ohjelmistojen suunnittelu ja valmistus",9191,7132535,43077,null,"Tietoja ei ole saatavilla tällä toimialan tarkkuustasolla"]
[null,"62010 Ohjelmistojen suunnittelu ja valmistus",9191,7132535,43077,null,"Tietoja ei ole saatavilla tällä toimialan tarkkuustasolla"]
[null,"6202 Atk-laitteisto- ja ohjelmistokonsultointi",3484,3108413,12634,null,"Tietoja ei ole saatavilla tällä toimialan tarkkuustasolla"]
[null,"62020 Atk-laitteisto- ja ohjelmistokonsultointi",3484,3108413,12634,null,"Tietoja ei ole saatavilla tällä toimialan tarkkuustasolla"]
[null,"6203 Tietojenkäsittelyn ja laitteistojen käyttö- ja hallintapalvelut",506,2046606,7141,null,"Tietoja ei ole saatavilla tällä toimialan tarkkuustasolla"]
[null,"62030 Tietojenkäsittelyn ja laitteistojen käyttö- ja hallintapalvelut",506,2046606,7141,null,"Tietoja ei ole saatavilla tällä toimialan tarkkuustasolla"]
[null,"6209 Muu laitteisto- ja tietotekninen palvelutoiminta",914,476702,1715,null,"Tietoja ei ole saatavilla tällä toimialan tarkkuustasolla"]
[null,"62090 Muu laitteisto- ja tietotekninen palvelutoiminta",914,476702,1715,null,"Tietoja ei ole saatavilla tällä toimialan tarkkuustasolla"]
[null,"63 Tietopalvelutoiminta",1549,2039913,6480,null,1408,44,37,31,14,9,6,".","."]
[null,"631 Tietojenkäsittely, palvelintilan vuokraus ja niihin liittyvät palvelut; verkkoportaalit",981,1853453,5665,null,"Tietoja ei ole saatavilla tällä toimialan tarkkuustasolla"]
[null,"6311 Tietojenkäsittely, palvelintilan vuokraus ja niihin liittyvät palvelut",604,1716183,5171,null,"Tietoja ei ole saatavilla tällä toimialan tarkkuustasolla"]
[null,"63110 Tietojenkäsittely, palvelintilan vuokraus ja niihin liittyvät palvelut",604,1716183,5171,null,"Tietoja ei ole saatavilla tällä toimialan tarkkuustasolla"]
[null,"6312 Verkkoportaalit",377,137270,494,null,"Tietoja ei ole saatavilla tällä toimialan tarkkuustasolla"]
[null,"63120 Verkkoportaalit",377,137270,494,null,"Tietoja ei ole saatavilla tällä toimialan tarkkuustasolla"]
[null,"639 Muu tietopalvelutoiminta",568,186460,814,null,"Tietoja ei ole saatavilla tällä toimialan tarkkuustasolla"]
[null,"6391 Uutistoimistot",52,17632,157,null,"Tietoja ei ole saatavilla tällä toimialan tarkkuustasolla"]
[null,"63910 Uutistoimistot",52,17632,157,null,"Tietoja ei ole saatavilla tällä toimialan tarkkuustasolla"]
[null,"6399 Muualla luokittelematon tietopalvelutoiminta",516,168829,658,null,"Tietoja ei ole saatavilla tällä toimialan tarkkuustasolla"]
[null,"63990 Muualla luokittelematon tietopalvelutoiminta",516,168829,658,null,"Tietoja ei ole saatavilla tällä toimialan tarkkuustasolla"]
[null,"K Rahoitus- ja vakuutustoiminta (64-66)",16816,35771620,45361,null,16215,231,138,109,52,45,13,5,8]
[null,"64 Rahoituspalvelut (pl. vakuutus- ja eläkevakuutustoiminta)",12235,20271244,24602,null,11877,150,84,60,28,21,8,4,3]
[null,"641 Pankkitoiminta",179,11105643,18657,null,"Tietoja ei ole saatavilla tällä toimialan tarkkuustasolla"]
[null,"6411 Keskuspankkitoiminta",1,139000,623,null,"Tietoja ei ole saatavilla tällä toimialan tarkkuustasolla"]
[null,"64110 Keskuspankkitoiminta",1,139000,623,null,"Tietoja ei ole saatavilla tällä toimialan tarkkuustasolla"]
[null,"6419 Muu pankkitoiminta",178,10966643,18034,null,"Tietoja ei ole saatavilla tällä toimialan tarkkuustasolla"]
[null,"64190 Muu pankkitoiminta",178,10966643,18034,null,"Tietoja ei ole saatavilla tällä toimialan tarkkuustasolla"]
[null,"642 Rahoitusalan holdingyhtiöiden toiminta",1819,477341,459,null,"Tietoja ei ole saatavilla tällä toimialan tarkkuustasolla"]
[null,"6420 Rahoitusalan holdingyhtiöiden toiminta",1819,477341,459,null,"Tietoja ei ole saatavilla tällä toimialan tarkkuustasolla"]
[null,"64200 Rahoitusalan holdingyhtiöiden toiminta",1819,477341,459,null,"Tietoja ei ole saatavilla tällä toimialan tarkkuustasolla"]
[null,"643 Rahastotoiminta",664,1085239,130,null,"Tietoja ei ole saatavilla tällä toimialan tarkkuustasolla"]
[null,"6430 Rahastotoiminta",664,1085239,130,null,"Tietoja ei ole saatavilla tällä toimialan tarkkuustasolla"]
[null,"64300 Rahastotoiminta",664,1085239,130,null,"Tietoja ei ole saatavilla tällä toimialan tarkkuustasolla"]
[null,"649 Muut rahoituspalvelut (pl. vakuutus- ja eläkevakuutustoiminta)",9573,7603021,5355,null,"Tietoja ei ole saatavilla tällä toimialan tarkkuustasolla"]
[null,"6491 Rahoitusleasing",14,486674,195,null,"Tietoja ei ole saatavilla tällä toimialan tarkkuustasolla"]
[null,"64910 Rahoitusleasing",14,486674,195,null,"Tietoja ei ole saatavilla tällä toimialan tarkkuustasolla"]
[null,"6492 Muu luotonanto",140,1778226,2240,null,"Tietoja ei ole saatavilla tällä toimialan tarkkuustasolla"]
[null,"64920 Muu luotonanto",140,1778226,2240,null,"Tietoja ei ole saatavilla tällä toimialan tarkkuustasolla"]
[null,"6499 Muualla luokittelemattomat rahoituspalvelut (pl. vakuutus- ja eläkevakuutustoiminta)",9419,5338121,2921,null,"Tietoja ei ole saatavilla tällä toimialan tarkkuustasolla"]
[null,"64990 Muualla luokittelemattomat rahoituspalvelut (pl. vakuutus- ja eläkevakuutustoiminta)",9419,5338121,2921,null,"Tietoja ei ole saatavilla tällä toimialan tarkkuustasolla"]
[null,"65 Vakuutus-, jälleenvakuutus- ja eläkevakuutustoiminta (pl. pakollinen sosiaalivakuutus)",137,10128359,10334,null,80,5,6,13,13,13,3,1,3]
[null,"651 Vakuutustoiminta",112,10104992,10329,null,"Tietoja ei ole saatavilla tällä toimialan tarkkuustasolla"]
[null,"6511 Henkivakuutustoiminta",18,4555122,664,null,"Tietoja ei ole saatavilla tällä toimialan tarkkuustasolla"]
[null,"65110 Henkivakuutustoiminta",18,4555122,664,null,"Tietoja ei ole saatavilla tällä toimialan tarkkuustasolla"]
[null,"6512 Muu vakuutustoiminta",94,5549870,9665,null,"Tietoja ei ole saatavilla tällä toimialan tarkkuustasolla"]
[null,"65121 Vahinkovakuutusyhtiöt",80,5548566,9433,null,"Tietoja ei ole saatavilla tällä toimialan tarkkuustasolla"]
[null,"65122 Vakuutusyhdistykset",5,"76*",2,null,"Tietoja ei ole saatavilla tällä toimialan tarkkuustasolla"]
[null,"65129 Muu vahinkovakuutus",9,"573*",230,null,"Tietoja ei ole saatavilla tällä toimialan tarkkuustasolla"]
[null,"652 Jälleenvakuutustoiminta",".",".",".",null,"Tietoja ei ole saatavilla tällä toimialan tarkkuustasolla"]
[null,"6520 Jälleenvakuutustoiminta",".",".",".",null,"Tietoja ei ole saatavilla tällä toimialan tarkkuustasolla"]
[null,"65200 Jälleenvakuutustoiminta",".",".",".",null,"Tietoja ei ole saatavilla tällä toimialan tarkkuustasolla"]
[null,"653 Eläkevakuutustoiminta",25,"...",5,null,"Tietoja ei ole saatavilla tällä toimialan tarkkuustasolla"]
[null,"6530 Eläkevakuutustoiminta",25,"...",5,null,"Tietoja ei ole saatavilla tällä toimialan tarkkuustasolla"]
[null,"65300 Eläkevakuutustoiminta",25,"...",5,null,"Tietoja ei ole saatavilla tällä toimialan tarkkuustasolla"]
[null,"66 Rahoitusta ja vakuuttamista palveleva toiminta",4444,5372017,10426,null,4258,76,48,36,11,11,2,".",2]
[null,"661 Rahoitusta ja vakuuttamista palveleva toiminta (pl. vakuutus- ja eläkevakuutustoiminta)",1852,3132593,6493,null,"Tietoja ei ole saatavilla tällä toimialan tarkkuustasolla"]
[null,"6611 Pörssitoiminta ja rahoitusmarkkinoiden hallinnolliset tukipalvelut",19,47214,51,null,"Tietoja ei ole saatavilla tällä toimialan tarkkuustasolla"]
[null,"66110 Pörssitoiminta ja rahoitusmarkkinoiden hallinnolliset tukipalvelut",19,47214,51,null,"Tietoja ei ole saatavilla tällä toimialan tarkkuustasolla"]
[null,"6612 Arvopaperien ja raaka-ainesopimusten välittäminen",33,86924,107,null,"Tietoja ei ole saatavilla tällä toimialan tarkkuustasolla"]
[null,"66120 Arvopaperien ja raaka-ainesopimusten välittäminen",33,86924,107,null,"Tietoja ei ole saatavilla tällä toimialan tarkkuustasolla"]
[null,"6619 Muu rahoitusta palveleva toiminta (pl. vakuutus- ja eläkevakuutustoiminta)",1800,2998455,6335,null,"Tietoja ei ole saatavilla tällä toimialan tarkkuustasolla"]
[null,"66190 Muu rahoitusta palveleva toiminta (pl. vakuutus- ja eläkevakuutustoiminta)",1800,2998455,6335,null,"Tietoja ei ole saatavilla tällä toimialan tarkkuustasolla"]
[null,"662 Vakuutus- ja eläkevakuutustoimintaa avustava toiminta",1451,362738,2075,null,"Tietoja ei ole saatavilla tällä toimialan tarkkuustasolla"]
[null,"6621 Riskin- ja vahingonarviointi",52,37121,231,null,"Tietoja ei ole saatavilla tällä toimialan tarkkuustasolla"]
[null,"66210 Riskin- ja vahingonarviointi",52,37121,231,null,"Tietoja ei ole saatavilla tällä toimialan tarkkuustasolla"]
[null,"6622 Vakuutusasiamiesten ja -välittäjien toiminta",1326,225860,1235,null,"Tietoja ei ole saatavilla tällä toimialan tarkkuustasolla"]
[null,"66220 Vakuutusasiamiesten ja -välittäjien toiminta",1326,225860,1235,null,"Tietoja ei ole saatavilla tällä toimialan tarkkuustasolla"]
[null,"6629 Muu vakuutus- ja eläkevakuutustoimintaa avustava toiminta",73,99757,608,null,"Tietoja ei ole saatavilla tällä toimialan tarkkuustasolla"]
[null,"66290 Muu vakuutus- ja eläkevakuutustoimintaa avustava toiminta",73,99757,608,null,"Tietoja ei ole saatavilla tällä toimialan tarkkuustasolla"]
[null,"663 Omaisuudenhoitotoiminta",1141,1876686,1858,null,"Tietoja ei ole saatavilla tällä toimialan tarkkuustasolla"]
[null,"6630 Omaisuudenhoitotoiminta",1141,1876686,1858,null,"Tietoja ei ole saatavilla tällä toimialan tarkkuustasolla"]
[null,"66300 Omaisuudenhoitotoiminta",1141,1876686,1858,null,"Tietoja ei ole saatavilla tällä toimialan tarkkuustasolla"]
[null,"L Kiinteistöalan toiminta (68)",43347,14127935,19886,null,42645,380,176,93,36,10,4,3,"."]
[null,"68 Kiinteistöalan toiminta",43347,14127935,19886,null,42645,380,176,93,36,10,4,3,"."]
[null,"681 Omien kiinteistöjen kauppa",1790,832661,530,null,"Tietoja ei ole saatavilla tällä toimialan tarkkuustasolla"]
[null,"6810 Omien kiinteistöjen kauppa",1790,832661,530,null,"Tietoja ei ole saatavilla tällä toimialan tarkkuustasolla"]
[null,"68100 Omien kiinteistöjen kauppa",1790,832661,530,null,"Tietoja ei ole saatavilla tällä toimialan tarkkuustasolla"]
[null,"682 Omien tai leasing-kiinteistöjen vuokraus ja hallinta",37668,12060674,9168,null,"Tietoja ei ole saatavilla tällä toimialan tarkkuustasolla"]
[null,"6820 Omien tai leasing-kiinteistöjen vuokraus ja hallinta",37668,12060674,9168,null,"Tietoja ei ole saatavilla tällä toimialan tarkkuustasolla"]
[null,"68201 Asuntojen vuokraus",3660,3577902,4154,null,"Tietoja ei ole saatavilla tällä toimialan tarkkuustasolla"]
[null,"68202 Asuntojen ja asuinkiinteistöjen hallinta",4410,831551,699,null,"Tietoja ei ole saatavilla tällä toimialan tarkkuustasolla"]
[null,"68209 Muiden kiinteistöjen vuokraus ja hallinta",29598,7651221,4315,null,"Tietoja ei ole saatavilla tällä toimialan tarkkuustasolla"]
[null,"683 Kiinteistöalan toiminta palkkio- tai sopimusperusteisesti",3889,1234600,10188,null,"Tietoja ei ole saatavilla tällä toimialan tarkkuustasolla"]
[null,"6831 Kiinteistönvälitys",1959,562426,4014,null,"Tietoja ei ole saatavilla tällä toimialan tarkkuustasolla"]
[null,"68310 Kiinteistönvälitys",1959,562426,4014,null,"Tietoja ei ole saatavilla tällä toimialan tarkkuustasolla"]
[null,"6832 Kiinteistöjen isännöinti",1930,672173,6174,null,"Tietoja ei ole saatavilla tällä toimialan tarkkuustasolla"]
[null,"68320 Kiinteistöjen isännöinti",1930,672173,6174,null,"Tietoja ei ole saatavilla tällä toimialan tarkkuustasolla"]
[null,"M Ammatillinen, tieteellinen ja tekninen toiminta (69-75)",70085,20189398,116739,null,66761,1615,911,514,150,84,29,13,8]
[null,"69 Lakiasiain- ja laskentatoimen palvelut",9755,3394126,24037,null,9136,354,142,62,28,18,8,5,2]
[null,"691 Lakiasiainpalvelut",2614,1138371,5342,null,"Tietoja ei ole saatavilla tällä toimialan tarkkuustasolla"]
[null,"6910 Lakiasiainpalvelut",2614,1138371,5342,null,"Tietoja ei ole saatavilla tällä toimialan tarkkuustasolla"]
[null,"69101 Asianajotoimistot",884,830174,3866,null,"Tietoja ei ole saatavilla tällä toimialan tarkkuustasolla"]
[null,"69102 Lakiasiaintoimistot",1261,169169,801,null,"Tietoja ei ole saatavilla tällä toimialan tarkkuustasolla"]
[null,"69103 Patenttitoimistot",40,106113,477,null,"Tietoja ei ole saatavilla tällä toimialan tarkkuustasolla"]
[null,"69109 Muu lakiasiain palvelu",429,32916,198,null,"Tietoja ei ole saatavilla tällä toimialan tarkkuustasolla"]
[null,"692 Laskentatoimi, kirjanpito ja tilintarkastus; veroneuvonta",7141,2255755,18695,null,"Tietoja ei ole saatavilla tällä toimialan tarkkuustasolla"]
[null,"6920 Laskentatoimi, kirjanpito ja tilintarkastus; veroneuvonta",7141,2255755,18695,null,"Tietoja ei ole saatavilla tällä toimialan tarkkuustasolla"]
[null,"69201 Kirjanpito- ja tilinpäätöspalvelu",6261,1413967,13538,null,"Tietoja ei ole saatavilla tällä toimialan tarkkuustasolla"]
[null,"69202 Tilintarkastuspalvelu",654,822850,4896,null,"Tietoja ei ole saatavilla tällä toimialan tarkkuustasolla"]
[null,"69209 Muu laskentatoimen palvelu",226,18938,261,null,"Tietoja ei ole saatavilla tällä toimialan tarkkuustasolla"]
[null,"70 Pääkonttorien toiminta; liikkeenjohdon konsultointi",22691,4436241,20040,null,22008,340,182,120,20,19,1,1,"."]
[null,"701 Pääkonttorien toiminta",1,"...",3]
[null,"7010 Pääkonttorien toiminta",1,"...",3]
[null,"70100 Pääkonttorien toiminta",1,"...",3]
[null,"702 Liikkeenjohdon konsultointi",22690,"4448272*",20038,null,"Tietoja ei ole saatavilla tällä toimialan tarkkuustasolla"]
[null,"7021 Suhdetoiminta ja viestintä",1646,"214547*",1443,null,"Tietoja ei ole saatavilla tällä toimialan tarkkuustasolla"]
[null,"70210 Suhdetoiminta ja viestintä",1646,"214547*",1443,null,"Tietoja ei ole saatavilla tällä toimialan tarkkuustasolla"]
[null,"7022 Muu liikkeenjohdon konsultointi",21044,4222418,18594,null,"Tietoja ei ole saatavilla tällä toimialan tarkkuustasolla"]
[null,"70220 Muu liikkeenjohdon konsultointi",21044,4222418,18594,null,"Tietoja ei ole saatavilla tällä toimialan tarkkuustasolla"]
[null,"71 Arkkitehti- ja insinööripalvelut; tekninen testaus ja analysointi",12468,7458258,45915,null,11348,493,343,166,61,30,17,5,5]
[null,"711 Arkkitehti- ja insinööripalvelut ja niihin liittyvä tekninen konsultointi",11709,6799802,41403,null,"Tietoja ei ole saatavilla tällä toimialan tarkkuustasolla"]
[null,"7111 Arkkitehtipalvelut",2031,449466,3563,null,"Tietoja ei ole saatavilla tällä toimialan tarkkuustasolla"]
[null,"71110 Arkkitehtipalvelut",2031,449466,3563,null,"Tietoja ei ole saatavilla tällä toimialan tarkkuustasolla"]
[null,"7112 Insinööripalvelut ja niihin liittyvä tekninen konsultointi",9678,6350336,37840,null,"Tietoja ei ole saatavilla tällä toimialan tarkkuustasolla"]
[null,"71121 Yhdyskuntasuunnittelu",607,985107,7378,null,"Tietoja ei ole saatavilla tällä toimialan tarkkuustasolla"]
[null,"71122 Maa- ja vesirakentamisen tekninen palvelu",298,210220,1153,null,"Tietoja ei ole saatavilla tällä toimialan tarkkuustasolla"]
[null,"71123 Rakennetekninen palvelu",1286,559406,4192,null,"Tietoja ei ole saatavilla tällä toimialan tarkkuustasolla"]
[null,"71124 LVI-tekninen suunnittelu",641,293406,2325,null,"Tietoja ei ole saatavilla tällä toimialan tarkkuustasolla"]
[null,"71125 Sähkötekninen suunnittelu",995,527650,2788,null,"Tietoja ei ole saatavilla tällä toimialan tarkkuustasolla"]
[null,"71126 Muu rakennustekninen palvelu",2723,1255258,5585,null,"Tietoja ei ole saatavilla tällä toimialan tarkkuustasolla"]
[null,"71127 Kone- ja prosessisuunnittelu",1821,2236257,12988,null,"Tietoja ei ole saatavilla tällä toimialan tarkkuustasolla"]
[null,"71129 Muu tekninen palvelu",1307,283032,1430,null,"Tietoja ei ole saatavilla tällä toimialan tarkkuustasolla"]
[null,"712 Tekninen testaus ja analysointi",759,658456,4512,null,"Tietoja ei ole saatavilla tällä toimialan tarkkuustasolla"]
[null,"7120 Tekninen testaus ja analysointi",759,658456,4512,null,"Tietoja ei ole saatavilla tällä toimialan tarkkuustasolla"]
[null,"71201 Autokatsastus",195,166032,1384,null,"Tietoja ei ole saatavilla tällä toimialan tarkkuustasolla"]
[null,"71202 Muu tekninen testaus ja analysointi",564,492424,3128,null,"Tietoja ei ole saatavilla tällä toimialan tarkkuustasolla"]
[null,"72 Tieteellinen tutkimus ja kehittäminen",1460,1070007,7073,null,1274,58,56,48,10,10,3,1,"."]
[null,"721 Luonnontieteen ja tekniikan tutkimus ja kehittäminen",1202,1052670,6896,null,"Tietoja ei ole saatavilla tällä toimialan tarkkuustasolla"]
[null,"7211 Biotekninen tutkimus ja kehittäminen",137,103555,729,null,"Tietoja ei ole saatavilla tällä toimialan tarkkuustasolla"]
[null,"72110 Biotekninen tutkimus ja kehittäminen",137,103555,729,null,"Tietoja ei ole saatavilla tällä toimialan tarkkuustasolla"]
[null,"7219 Muu luonnontieteellinen ja tekninen tutkimus ja kehittäminen",1065,949115,6168,null,"Tietoja ei ole saatavilla tällä toimialan tarkkuustasolla"]
[null,"72191 Lääketieteellinen tutkimus ja kehittäminen",256,212991,1512,null,"Tietoja ei ole saatavilla tällä toimialan tarkkuustasolla"]
[null,"72192 Muu luonnontieteellinen tutkimus ja kehittäminen",206,82755,775,null,"Tietoja ei ole saatavilla tällä toimialan tarkkuustasolla"]
[null,"72193 Tekniikan tutkimus ja kehittäminen",603,653369,3880,null,"Tietoja ei ole saatavilla tällä toimialan tarkkuustasolla"]
[null,"722 Yhteiskuntatieteellinen ja humanistinen tutkimus ja kehittäminen",258,17337,177,null,"Tietoja ei ole saatavilla tällä toimialan tarkkuustasolla"]
[null,"7220 Yhteiskuntatieteellinen ja humanistinen tutkimus ja kehittäminen",258,17337,177,null,"Tietoja ei ole saatavilla tällä toimialan tarkkuustasolla"]
[null,"72200 Yhteiskuntatieteellinen ja humanistinen tutkimus ja kehittäminen",258,17337,177,null,"Tietoja ei ole saatavilla tällä toimialan tarkkuustasolla"]
[null,"73 Mainostoiminta ja markkinatutkimus",6076,1862721,8014,null,5766,144,87,54,19,6,".",".","."]
[null,"731 Mainostoiminta",5919,1767662,7410,null,"Tietoja ei ole saatavilla tällä toimialan tarkkuustasolla"]
[null,"7311 Mainostoimistot ja mainospalvelu",5720,1611235,6824,null,"Tietoja ei ole saatavilla tällä toimialan tarkkuustasolla"]
[null,"73111 Mainostoimistot",4436,1406112,5858,null,"Tietoja ei ole saatavilla tällä toimialan tarkkuustasolla"]
[null,"73112 Suora- ja ulkomainonta",412,111866,521,null,"Tietoja ei ole saatavilla tällä toimialan tarkkuustasolla"]
[null,"73119 Muu mainospalvelu",872,93256,446,null,"Tietoja ei ole saatavilla tällä toimialan tarkkuustasolla"]
[null,"7312 Mainostilan vuokraus ja myynti",199,156427,586,null,"Tietoja ei ole saatavilla tällä toimialan tarkkuustasolla"]
[null,"73120 Mainostilan vuokraus ja myynti",199,156427,586,null,"Tietoja ei ole saatavilla tällä toimialan tarkkuustasolla"]
[null,"732 Markkina- ja mielipidetutkimukset",157,95059,604,null,"Tietoja ei ole saatavilla tällä toimialan tarkkuustasolla"]
[null,"7320 Markkina- ja mielipidetutkimukset",157,95059,604,null,"Tietoja ei ole saatavilla tällä toimialan tarkkuustasolla"]
[null,"73200 Markkina- ja mielipidetutkimukset",157,95059,604,null,"Tietoja ei ole saatavilla tällä toimialan tarkkuustasolla"]
[null,"74 Muut erikoistuneet palvelut liike-elämälle",15844,1568248,8988,null,15545,160,69,56,12,1,".",1,"."]
[null,"741 Taideteollinen muotoilu ja suunnittelu",4394,274788,1734,null,"Tietoja ei ole saatavilla tällä toimialan tarkkuustasolla"]
[null,"7410 Taideteollinen muotoilu ja suunnittelu",4394,274788,1734,null,"Tietoja ei ole saatavilla tällä toimialan tarkkuustasolla"]
[null,"74101 Graafinen muotoilu",1830,57702,537,null,"Tietoja ei ole saatavilla tällä toimialan tarkkuustasolla"]
[null,"74102 Sisustussuunnittelu",1346,123525,686,null,"Tietoja ei ole saatavilla tällä toimialan tarkkuustasolla"]
[null,"74109 Teollinen muotoilu ym.",1218,93562,511,null,"Tietoja ei ole saatavilla tällä toimialan tarkkuustasolla"]
[null,"742 Valokuvaustoiminta",4378,160951,949,null,"Tietoja ei ole saatavilla tällä toimialan tarkkuustasolla"]
[null,"7420 Valokuvaustoiminta",4378,160951,949,null,"Tietoja ei ole saatavilla tällä toimialan tarkkuustasolla"]
[null,"74201 Valokuvaamot ja muu kuvaustoiminta",4351,156007,920,null,"Tietoja ei ole saatavilla tällä toimialan tarkkuustasolla"]
[null,"74202 Valokuvien kehittäminen",27,4944,29,null,"Tietoja ei ole saatavilla tällä toimialan tarkkuustasolla"]
[null,"743 Kääntäminen ja tulkkaus",2484,216615,1855,null,"Tietoja ei ole saatavilla tällä toimialan tarkkuustasolla"]
[null,"7430 Kääntäminen ja tulkkaus",2484,216615,1855,null,"Tietoja ei ole saatavilla tällä toimialan tarkkuustasolla"]
[null,"74300 Kääntäminen ja tulkkaus",2484,216615,1855,null,"Tietoja ei ole saatavilla tällä toimialan tarkkuustasolla"]
[null,"749 Muualla luokittelemattomat erikoistuneet palvelut liike-elämälle",4588,915895,4450,null,"Tietoja ei ole saatavilla tällä toimialan tarkkuustasolla"]
[null,"7490 Muualla luokittelemattomat erikoistuneet palvelut liike-elämälle",4588,915895,4450,null,"Tietoja ei ole saatavilla tällä toimialan tarkkuustasolla"]
[null,"74901 Ohjelmatoimistot ja manageripalvelut",1196,278457,1656,null,"Tietoja ei ole saatavilla tällä toimialan tarkkuustasolla"]
[null,"74909 Muu ammatillinen, tieteellinen ja tekninen toiminta",3392,637438,2795,null,"Tietoja ei ole saatavilla tällä toimialan tarkkuustasolla"]
[null,"75 Eläinlääkintäpalvelut",1791,399796,2671,null,1684,66,32,8,".",".",".",".",1]
[null,"750 Eläinlääkintäpalvelut",1791,399796,2671,null,"Tietoja ei ole saatavilla tällä toimialan tarkkuustasolla"]
[null,"7500 Eläinlääkintäpalvelut",1791,399796,2671,null,"Tietoja ei ole saatavilla tällä toimialan tarkkuustasolla"]
[null,"75000 Eläinlääkintäpalvelut",1791,399796,2671,null,"Tietoja ei ole saatavilla tällä toimialan tarkkuustasolla"]
[null,"N Hallinto- ja tukipalvelutoiminta (77-82)",25780,15998463,142550,null,22974,1037,691,609,278,132,27,14,18]
[null,"77 Vuokraus- ja leasingtoiminta",2436,3443211,5978,null,2280,71,32,30,8,12,2,1,"."]
[null,"771 Moottoriajoneuvojen vuokraus ja leasing",607,1332925,1399,null,"Tietoja ei ole saatavilla tällä toimialan tarkkuustasolla"]
[null,"7711 Autojen ja kevyiden moottoriajoneuvojen vuokraus ja leasing",517,1284722,1348,null,"Tietoja ei ole saatavilla tällä toimialan tarkkuustasolla"]
[null,"77110 Autojen ja kevyiden moottoriajoneuvojen vuokraus ja leasing",517,1284722,1348,null,"Tietoja ei ole saatavilla tällä toimialan tarkkuustasolla"]
[null,"7712 Kuorma-autojen ja muiden raskaiden ajoneuvojen vuokraus ja leasing",90,48203,50,null,"Tietoja ei ole saatavilla tällä toimialan tarkkuustasolla"]
[null,"77120 Kuorma-autojen ja muiden raskaiden ajoneuvojen vuokraus ja leasing",90,48203,50,null,"Tietoja ei ole saatavilla tällä toimialan tarkkuustasolla"]
[null,"772 Henkilökohtaisten ja kotitaloustavaroiden vuokraus ja leasing",385,198430,415,null,"Tietoja ei ole saatavilla tällä toimialan tarkkuustasolla"]
[null,"7721 Vapaa-ajan ja urheiluvälineiden vuokraus ja leasing",267,172050,245,null,"Tietoja ei ole saatavilla tällä toimialan tarkkuustasolla"]
[null,"77210 Vapaa-ajan ja urheiluvälineiden vuokraus ja leasing",267,172050,245,null,"Tietoja ei ole saatavilla tällä toimialan tarkkuustasolla"]
[null,"7722 Videofilmien vuokraus",11,"10702*",84,null,"Tietoja ei ole saatavilla tällä toimialan tarkkuustasolla"]
[null,"77220 Videofilmien vuokraus",11,"10702*",84,null,"Tietoja ei ole saatavilla tällä toimialan tarkkuustasolla"]
[null,"7729 Muiden henkilökohtaisten ja kotitaloustavaroiden vuokraus ja leasing",107,"16318*",86,null,"Tietoja ei ole saatavilla tällä toimialan tarkkuustasolla"]
[null,"77290 Muiden henkilökohtaisten ja kotitaloustavaroiden vuokraus ja leasing",107,"16318*",86,null,"Tietoja ei ole saatavilla tällä toimialan tarkkuustasolla"]
[null,"773 Koneiden ja laitteiden vuokraus ja leasing",1356,1785450,3962,null,"Tietoja ei ole saatavilla tällä toimialan tarkkuustasolla"]
[null,"7731 Maatalouskoneiden ja -laitteiden vuokraus ja leasing",116,7893,13,null,"Tietoja ei ole saatavilla tällä toimialan tarkkuustasolla"]
[null,"77310 Maatalouskoneiden ja -laitteiden vuokraus ja leasing",116,7893,13,null,"Tietoja ei ole saatavilla tällä toimialan tarkkuustasolla"]
[null,"7732 Rakennuskoneiden ja -laitteiden vuokraus ja leasing",466,872540,2733,null,"Tietoja ei ole saatavilla tällä toimialan tarkkuustasolla"]
[null,"77320 Rakennuskoneiden ja -laitteiden vuokraus ja leasing",466,872540,2733,null,"Tietoja ei ole saatavilla tällä toimialan tarkkuustasolla"]
[null,"7733 Toimistokoneiden ja -laitteiden sekä tietokoneiden vuokraus ja leasing",35,"...",199,null,"Tietoja ei ole saatavilla tällä toimialan tarkkuustasolla"]
[null,"77330 Toimistokoneiden ja -laitteiden sekä tietokoneiden vuokraus ja leasing",35,"...",199,null,"Tietoja ei ole saatavilla tällä toimialan tarkkuustasolla"]
[null,"7734 Vesiliikennevälineiden vuokraus ja leasing",81,7884,9,null,"Tietoja ei ole saatavilla tällä toimialan tarkkuustasolla"]
[null,"77340 Vesiliikennevälineiden vuokraus ja leasing",81,7884,9,null,"Tietoja ei ole saatavilla tällä toimialan tarkkuustasolla"]
[null,"7735 Ilmaliikennevälineiden vuokraus ja leasing",25,3633,10,null,"Tietoja ei ole saatavilla tällä toimialan tarkkuustasolla"]
[null,"77350 Ilmaliikennevälineiden vuokraus ja leasing",25,3633,10,null,"Tietoja ei ole saatavilla tällä toimialan tarkkuustasolla"]
[null,"7739 Muiden koneiden ja laitteiden vuokraus ja leasing",633,"...",999,null,"Tietoja ei ole saatavilla tällä toimialan tarkkuustasolla"]
[null,"77390 Muiden koneiden ja laitteiden vuokraus ja leasing",633,"...",999,null,"Tietoja ei ole saatavilla tällä toimialan tarkkuustasolla"]
[null,"774 Henkisen omaisuuden ja vastaavien tuotteiden leasing (pl. tekijänoikeuden suojaamat teokset)",88,126406,203,null,"Tietoja ei ole saatavilla tällä toimialan tarkkuustasolla"]
[null,"7740 Henkisen omaisuuden ja vastaavien tuotteiden leasing (pl. tekijänoikeuden suojaamat teokset)",88,126406,203,null,"Tietoja ei ole saatavilla tällä toimialan tarkkuustasolla"]
[null,"77400 Henkisen omaisuuden ja vastaavien tuotteiden leasing (pl. tekijänoikeuden suojaamat teokset)",88,126406,203,null,"Tietoja ei ole saatavilla tällä toimialan tarkkuustasolla"]
[null,"78 Työllistämistoiminta",2751,3478387,59241,null,1762,193,212,314,175,68,10,8,9]
[null,"781 Työnvälitystoiminta",236,122005,856,null,"Tietoja ei ole saatavilla tällä toimialan tarkkuustasolla"]
[null,"7810 Työnvälitystoiminta",236,122005,856,null,"Tietoja ei ole saatavilla tällä toimialan tarkkuustasolla"]
[null,"78100 Työnvälitystoiminta",236,122005,856,null,"Tietoja ei ole saatavilla tällä toimialan tarkkuustasolla"]
[null,"782 Työvoiman vuokraus",2157,3127503,48861,null,"Tietoja ei ole saatavilla tällä toimialan tarkkuustasolla"]
[null,"7820 Työvoiman vuokraus",2157,3127503,48861,null,"Tietoja ei ole saatavilla tällä toimialan tarkkuustasolla"]
[null,"78200 Työvoiman vuokraus",2157,3127503,48861,null,"Tietoja ei ole saatavilla tällä toimialan tarkkuustasolla"]
[null,"783 Muut henkilöstön hankintapalvelut",358,228879,9525,null,"Tietoja ei ole saatavilla tällä toimialan tarkkuustasolla"]
[null,"7830 Muut henkilöstön hankintapalvelut",358,228879,9525,null,"Tietoja ei ole saatavilla tällä toimialan tarkkuustasolla"]
[null,"78300 Muut henkilöstön hankintapalvelut",358,228879,9525,null,"Tietoja ei ole saatavilla tällä toimialan tarkkuustasolla"]
[null,"79 Matkatoimistojen ja matkanjärjestäjien toiminta; varauspalvelut",2416,1551578,3185,null,2283,68,34,22,7,2,".",".","."]
[null,"791 Matkatoimistojen ja matkanjärjestäjien toiminta",526,1105447,1347,null,"Tietoja ei ole saatavilla tällä toimialan tarkkuustasolla"]
[null,"7911 Matkatoimistojen toiminta",277,387047,691,null,"Tietoja ei ole saatavilla tällä toimialan tarkkuustasolla"]
[null,"79110 Matkatoimistojen toiminta",277,387047,691,null,"Tietoja ei ole saatavilla tällä toimialan tarkkuustasolla"]
[null,"7912 Matkanjärjestäjien toiminta",249,718400,656,null,"Tietoja ei ole saatavilla tällä toimialan tarkkuustasolla"]
[null,"79120 Matkanjärjestäjien toiminta",249,718400,656,null,"Tietoja ei ole saatavilla tällä toimialan tarkkuustasolla"]
[null,"799 Varauspalvelut, matkaoppaiden palvelut ym.",1890,446131,1837,null,"Tietoja ei ole saatavilla tällä toimialan tarkkuustasolla"]
[null,"7990 Varauspalvelut, matkaoppaiden palvelut ym.",1890,446131,1837,null,"Tietoja ei ole saatavilla tällä toimialan tarkkuustasolla"]
[null,"79900 Varauspalvelut, matkaoppaiden palvelut ym.",1890,446131,1837,null,"Tietoja ei ole saatavilla tällä toimialan tarkkuustasolla"]
[null,"80 Turvallisuus-, vartiointi- ja etsiväpalvelut",846,893519,9993,null,720,53,35,16,8,9,3,".",2]
[null,"801 Yksityiset turvallisuuspalvelut",557,658455,8638,null,"Tietoja ei ole saatavilla tällä toimialan tarkkuustasolla"]
[null,"8010 Yksityiset turvallisuuspalvelut",557,658455,8638,null,"Tietoja ei ole saatavilla tällä toimialan tarkkuustasolla"]
[null,"80100 Yksityiset turvallisuuspalvelut",557,658455,8638,null,"Tietoja ei ole saatavilla tällä toimialan tarkkuustasolla"]
[null,"802 Turvallisuusjärjestelmät",285,235017,1353,null,"Tietoja ei ole saatavilla tällä toimialan tarkkuustasolla"]
[null,"8020 Turvallisuusjärjestelmät",285,235017,1353,null,"Tietoja ei ole saatavilla tällä toimialan tarkkuustasolla"]
[null,"80200 Turvallisuusjärjestelmät",285,235017,1353,null,"Tietoja ei ole saatavilla tällä toimialan tarkkuustasolla"]
[null,"803 Etsivätoiminta",4,47,2,null,"Tietoja ei ole saatavilla tällä toimialan tarkkuustasolla"]
[null,"8030 Etsivätoiminta",4,47,2,null,"Tietoja ei ole saatavilla tällä toimialan tarkkuustasolla"]
[null,"80300 Etsivätoiminta",4,47,2,null,"Tietoja ei ole saatavilla tällä toimialan tarkkuustasolla"]
[null,"81 Kiinteistön- ja maisemanhoito",12772,4305298,52758,null,11622,552,315,183,58,25,6,4,7]
[null,"811 Kiinteistönhoito",4741,1465681,14050,null,"Tietoja ei ole saatavilla tällä toimialan tarkkuustasolla"]
[null,"8110 Kiinteistönhoito",4741,1465681,14050,null,"Tietoja ei ole saatavilla tällä toimialan tarkkuustasolla"]
[null,"81100 Kiinteistönhoito",4741,1465681,14050,null,"Tietoja ei ole saatavilla tällä toimialan tarkkuustasolla"]
[null,"812 Siivouspalvelut",6811,2520956,37153,null,"Tietoja ei ole saatavilla tällä toimialan tarkkuustasolla"]
[null,"8121 Kiinteistöjen siivous",4635,2061339,33594,null,"Tietoja ei ole saatavilla tällä toimialan tarkkuustasolla"]
[null,"81210 Kiinteistöjen siivous",4635,2061339,33594,null,"Tietoja ei ole saatavilla tällä toimialan tarkkuustasolla"]
[null,"8122 Muu rakennus- ja teollisuussiivous",823,237290,2169,null,"Tietoja ei ole saatavilla tällä toimialan tarkkuustasolla"]
[null,"81220 Muu rakennus- ja teollisuussiivous",823,237290,2169,null,"Tietoja ei ole saatavilla tällä toimialan tarkkuustasolla"]
[null,"8129 Muu siivoustoiminta",1353,222327,1390,null,"Tietoja ei ole saatavilla tällä toimialan tarkkuustasolla"]
[null,"81291 Katujen ja teiden puhtaanapito",745,139222,641,null,"Tietoja ei ole saatavilla tällä toimialan tarkkuustasolla"]
[null,"81299 Muualla luokittelemattomat siivouspalvelut",608,83105,749,null,"Tietoja ei ole saatavilla tällä toimialan tarkkuustasolla"]
[null,"813 Maisemanhoitopalvelut",1220,318661,1555,null,"Tietoja ei ole saatavilla tällä toimialan tarkkuustasolla"]
[null,"8130 Maisemanhoitopalvelut",1220,318661,1555,null,"Tietoja ei ole saatavilla tällä toimialan tarkkuustasolla"]
[null,"81300 Maisemanhoitopalvelut",1220,318661,1555,null,"Tietoja ei ole saatavilla tällä toimialan tarkkuustasolla"]
[null,"82 Hallinto- ja tukipalvelut liike-elämälle",4559,2326470,11394,null,4307,100,63,44,22,16,6,1,"."]
[null,"821 Hallinto- ja toimistopalvelut",1258,201461,1804,null,"Tietoja ei ole saatavilla tällä toimialan tarkkuustasolla"]
[null,"8211 Yhdistetyt toimistopalvelut",921,159600,1444,null,"Tietoja ei ole saatavilla tällä toimialan tarkkuustasolla"]
[null,"82110 Yhdistetyt toimistopalvelut",921,159600,1444,null,"Tietoja ei ole saatavilla tällä toimialan tarkkuustasolla"]
[null,"8219 Sihteeri-, toimisto- ja postituspalvelut",337,41860,360,null,"Tietoja ei ole saatavilla tällä toimialan tarkkuustasolla"]
[null,"82191 Sihteeri- ja muu toimistopalvelu",313,29798,310,null,"Tietoja ei ole saatavilla tällä toimialan tarkkuustasolla"]
[null,"82192 Postituspalvelut",24,12062,50,null,"Tietoja ei ole saatavilla tällä toimialan tarkkuustasolla"]
[null,"822 Puhelinpalvelukeskusten toiminta",191,231865,2854,null,"Tietoja ei ole saatavilla tällä toimialan tarkkuustasolla"]
[null,"8220 Puhelinpalvelukeskusten toiminta",191,231865,2854,null,"Tietoja ei ole saatavilla tällä toimialan tarkkuustasolla"]
[null,"82200 Puhelinpalvelukeskusten toiminta",191,231865,2854,null,"Tietoja ei ole saatavilla tällä toimialan tarkkuustasolla"]
[null,"823 Messujen ja kongressien järjestäminen",294,216376,799,null,"Tietoja ei ole saatavilla tällä toimialan tarkkuustasolla"]
[null,"8230 Messujen ja kongressien järjestäminen",294,216376,799,null,"Tietoja ei ole saatavilla tällä toimialan tarkkuustasolla"]
[null,"82300 Messujen ja kongressien järjestäminen",294,216376,799,null,"Tietoja ei ole saatavilla tällä toimialan tarkkuustasolla"]
[null,"829 Muu liike-elämää palveleva toiminta",2816,1676768,5937,null,"Tietoja ei ole saatavilla tällä toimialan tarkkuustasolla"]
[null,"8291 Perintä- ja luottotietopalvelut",86,520965,2049,null,"Tietoja ei ole saatavilla tällä toimialan tarkkuustasolla"]
[null,"82910 Perintä- ja luottotietopalvelut",86,520965,2049,null,"Tietoja ei ole saatavilla tällä toimialan tarkkuustasolla"]
[null,"8292 Pakkauspalvelut",95,53700,192,null,"Tietoja ei ole saatavilla tällä toimialan tarkkuustasolla"]
[null,"82920 Pakkauspalvelut",95,53700,192,null,"Tietoja ei ole saatavilla tällä toimialan tarkkuustasolla"]
[null,"8299 Muut palvelut liike-elämälle",2635,1102103,3696,null,"Tietoja ei ole saatavilla tällä toimialan tarkkuustasolla"]
[null,"82990 Muut palvelut liike-elämälle",2635,1102103,3696,null,"Tietoja ei ole saatavilla tällä toimialan tarkkuustasolla"]
[null,"P Koulutus (85)",10294,937151,7252,null,10091,109,45,30,10,7,2,".","."]
[null,"85 Koulutus",10294,937151,7252,null,10091,109,45,30,10,7,2,".","."]
[null,"851 Esiasteen koulutus",1,"2*",0,null,"Tietoja ei ole saatavilla tällä toimialan tarkkuustasolla"]
[null,"8510 Esiasteen koulutus",1,"2*",0,null,"Tietoja ei ole saatavilla tällä toimialan tarkkuustasolla"]
[null,"85100 Esiasteen koulutus",1,"2*",0,null,"Tietoja ei ole saatavilla tällä toimialan tarkkuustasolla"]
[null,"852 Alemman perusasteen koulutus",10,"92*",2,null,"Tietoja ei ole saatavilla tällä toimialan tarkkuustasolla"]
[null,"8520 Alemman perusasteen koulutus",10,"92*",2,null,"Tietoja ei ole saatavilla tällä toimialan tarkkuustasolla"]
[null,"85200 Alemman perusasteen koulutus",10,"92*",2,null,"Tietoja ei ole saatavilla tällä toimialan tarkkuustasolla"]
[null,"853 Ylemmän perusasteen ja keskiasteen koulutus",73,112459,1121,null,"Tietoja ei ole saatavilla tällä toimialan tarkkuustasolla"]
[null,"8531 Ylemmän perusasteen koulutus ja lukiokoulutus",19,119,1,null,"Tietoja ei ole saatavilla tällä toimialan tarkkuustasolla"]
[null,"85311 Ylemmän perusasteen koulutus",11,98,1,null,"Tietoja ei ole saatavilla tällä toimialan tarkkuustasolla"]
[null,"85312 Lukiokoulutus",8,21,0,null,"Tietoja ei ole saatavilla tällä toimialan tarkkuustasolla"]
[null,"8532 Keskiasteen ammatillinen koulutus",54,112340,1120,null,"Tietoja ei ole saatavilla tällä toimialan tarkkuustasolla"]
[null,"85320 Keskiasteen ammatillinen koulutus",54,112340,1120,null,"Tietoja ei ole saatavilla tällä toimialan tarkkuustasolla"]
[null,"854 Korkea-asteen koulutus",24,815,5,null,"Tietoja ei ole saatavilla tällä toimialan tarkkuustasolla"]
[null,"8541 Korkea-asteen koulutus (pl. yliopistot ja ammattikorkeakoulut)",7,120,0,null,"Tietoja ei ole saatavilla tällä toimialan tarkkuustasolla"]
[null,"85410 Korkea-asteen koulutus (pl. yliopistot ja ammattikorkeakoulut)",7,120,0,null,"Tietoja ei ole saatavilla tällä toimialan tarkkuustasolla"]
[null,"8542 Korkea-asteen koulutus yliopistoissa ja ammattikorkeakouluissa",17,695,5,null,"Tietoja ei ole saatavilla tällä toimialan tarkkuustasolla"]
[null,"85420 Korkea-asteen koulutus yliopistoissa ja ammattikorkeakouluissa",17,695,5,null,"Tietoja ei ole saatavilla tällä toimialan tarkkuustasolla"]
[null,"855 Muu koulutus",9110,730889,5592,null,"Tietoja ei ole saatavilla tällä toimialan tarkkuustasolla"]
[null,"8551 Urheilu- ja liikuntakoulutus",3414,154747,1102,null,"Tietoja ei ole saatavilla tällä toimialan tarkkuustasolla"]
[null,"85510 Urheilu- ja liikuntakoulutus",3414,154747,1102,null,"Tietoja ei ole saatavilla tällä toimialan tarkkuustasolla"]
[null,"8552 Taiteen ja musiikin koulutus",962,41792,615,null,"Tietoja ei ole saatavilla tällä toimialan tarkkuustasolla"]
[null,"85520 Taiteen ja musiikin koulutus",962,41792,615,null,"Tietoja ei ole saatavilla tällä toimialan tarkkuustasolla"]
[null,"8553 Kuljettajakoulutus",599,105189,827,null,"Tietoja ei ole saatavilla tällä toimialan tarkkuustasolla"]
[null,"85530 Kuljettajakoulutus",599,105189,827,null,"Tietoja ei ole saatavilla tällä toimialan tarkkuustasolla"]
[null,"8559 Muualla luokittelematon koulutus",4135,429162,3049,null,"Tietoja ei ole saatavilla tällä toimialan tarkkuustasolla"]
[null,"85591 Kansanopistot, kansalaisopistot, työväenopistot yms.",23,1838,71,null,"Tietoja ei ole saatavilla tällä toimialan tarkkuustasolla"]
[null,"85592 Koulutuskeskukset",104,56536,341,null,"Tietoja ei ole saatavilla tällä toimialan tarkkuustasolla"]
[null,"85593 Kielikoulut ja -opistot",227,30549,299,null,"Tietoja ei ole saatavilla tällä toimialan tarkkuustasolla"]
[null,"85599 Muut koulutusta antavat yksiköt",3781,340239,2338,null,"Tietoja ei ole saatavilla tällä toimialan tarkkuustasolla"]
[null,"856 Koulutusta palveleva toiminta",1076,92813,532,null,"Tietoja ei ole saatavilla tällä toimialan tarkkuustasolla"]
[null,"8560 Koulutusta palveleva toiminta",1076,92813,532,null,"Tietoja ei ole saatavilla tällä toimialan tarkkuustasolla"]
[null,"85600 Koulutusta palveleva toiminta",1076,92813,532,null,"Tietoja ei ole saatavilla tällä toimialan tarkkuustasolla"]
[null,"Q Terveys- ja sosiaalipalvelut (86-88)",28219,11876406,104903,null,26563,562,457,364,144,72,32,15,10]
[null,"86 Terveyspalvelut",23839,7096412,41836,null,23358,216,110,69,38,25,15,5,3]
[null,"861 Terveydenhuollon laitospalvelut",43,253953,2591,null,"Tietoja ei ole saatavilla tällä toimialan tarkkuustasolla"]
[null,"8610 Terveydenhuollon laitospalvelut",43,253953,2591,null,"Tietoja ei ole saatavilla tällä toimialan tarkkuustasolla"]
[null,"86101 Varsinaiset sairaalapalvelut",20,130153,1077,null,"Tietoja ei ole saatavilla tällä toimialan tarkkuustasolla"]
[null,"86102 Kuntoutuslaitokset ja sairaskodit",23,123800,1514,null,"Tietoja ei ole saatavilla tällä toimialan tarkkuustasolla"]
[null,"862 Lääkäri- ja hammaslääkäripalvelut",7782,5377398,26116,null,"Tietoja ei ole saatavilla tällä toimialan tarkkuustasolla"]
[null,"8621 Terveyskeskus- ja vastaavat yleislääkäripalvelut",259,199790,1328,null,"Tietoja ei ole saatavilla tällä toimialan tarkkuustasolla"]
[null,"86210 Terveyskeskus- ja vastaavat yleislääkäripalvelut",259,199790,1328,null,"Tietoja ei ole saatavilla tällä toimialan tarkkuustasolla"]
[null,"8622 Lääkäriasemat, yksityislääkärit ja vastaavat erikoislääkäripalvelut",5789,4481860,21082,null,"Tietoja ei ole saatavilla tällä toimialan tarkkuustasolla"]
[null,"86220 Lääkäriasemat, yksityislääkärit ja vastaavat erikoislääkäripalvelut",5789,4481860,21082,null,"Tietoja ei ole saatavilla tällä toimialan tarkkuustasolla"]
[null,"8623 Hammaslääkäripalvelut",1734,695748,3705,null,"Tietoja ei ole saatavilla tällä toimialan tarkkuustasolla"]
[null,"86230 Hammaslääkäripalvelut",1734,695748,3705,null,"Tietoja ei ole saatavilla tällä toimialan tarkkuustasolla"]
[null,"869 Muut terveydenhuoltopalvelut",16014,1465061,13130,null,"Tietoja ei ole saatavilla tällä toimialan tarkkuustasolla"]
[null,"8690 Muut terveydenhuoltopalvelut",16014,1465061,13130,null,"Tietoja ei ole saatavilla tällä toimialan tarkkuustasolla"]
[null,"86901 Fysioterapia",3031,312194,2985,null,"Tietoja ei ole saatavilla tällä toimialan tarkkuustasolla"]
[null,"86902 Laboratoriotutkimukset",69,32489,218,null,"Tietoja ei ole saatavilla tällä toimialan tarkkuustasolla"]
[null,"86903 Kuvantamistutkimukset",31,15962,51,null,"Tietoja ei ole saatavilla tällä toimialan tarkkuustasolla"]
[null,"86904 Sairaankuljetuspalvelut",79,76634,1004,null,"Tietoja ei ole saatavilla tällä toimialan tarkkuustasolla"]
[null,"86909 Muu terveyspalvelu",12804,1027782,8871,null,"Tietoja ei ole saatavilla tällä toimialan tarkkuustasolla"]
[null,"87 Sosiaalihuollon laitospalvelut",1115,3570060,43592,null,445,137,200,201,76,33,12,6,5]
[null,"871 Sosiaalihuollon hoitolaitokset",41,103190,1339,null,"Tietoja ei ole saatavilla tällä toimialan tarkkuustasolla"]
[null,"8710 Sosiaalihuollon hoitolaitokset",41,103190,1339,null,"Tietoja ei ole saatavilla tällä toimialan tarkkuustasolla"]
[null,"87101 Ikääntyneiden hoitolaitokset",38,101032,1311,null,"Tietoja ei ole saatavilla tällä toimialan tarkkuustasolla"]
[null,"87102 Vammaisten hoitolaitokset (pl. kehitysvammaisten laitospalvelut)",3,2158,29,null,"Tietoja ei ole saatavilla tällä toimialan tarkkuustasolla"]
[null,"872 Kehitysvammaisten sekä mielenterveys- ja päihdeongelmaisten asumispalvelut",265,578534,7109,null,"Tietoja ei ole saatavilla tällä toimialan tarkkuustasolla"]
[null,"8720 Kehitysvammaisten sekä mielenterveys- ja päihdeongelmaisten asumispalvelut",265,578534,7109,null,"Tietoja ei ole saatavilla tällä toimialan tarkkuustasolla"]
[null,"87201 Kehitysvammaisten laitokset ja asumispalvelut",82,165690,2170,null,"Tietoja ei ole saatavilla tällä toimialan tarkkuustasolla"]
[null,"87202 Mielenterveysongelmaisten asumispalvelut",142,270952,3341,null,"Tietoja ei ole saatavilla tällä toimialan tarkkuustasolla"]
[null,"87203 Päihdeongelmaisten laitokset",20,66870,723,null,"Tietoja ei ole saatavilla tällä toimialan tarkkuustasolla"]
[null,"87204 Päihdeongelmaisten asumispalvelut",21,75023,875,null,"Tietoja ei ole saatavilla tällä toimialan tarkkuustasolla"]
[null,"873 Vanhusten ja vammaisten asumispalvelut",284,2016985,27068,null,"Tietoja ei ole saatavilla tällä toimialan tarkkuustasolla"]
[null,"8730 Vanhusten ja vammaisten asumispalvelut",284,2016985,27068,null,"Tietoja ei ole saatavilla tällä toimialan tarkkuustasolla"]
[null,"87301 Ikääntyneiden palveluasuminen",264,1810939,24362,null,"Tietoja ei ole saatavilla tällä toimialan tarkkuustasolla"]
[null,"87302 Vammaisten palveluasuminen (pl. kehitysvammaisten palveluasuminen)",20,206046,2706,null,"Tietoja ei ole saatavilla tällä toimialan tarkkuustasolla"]
[null,"879 Muut sosiaalihuollon laitospalvelut",525,871351,8076,null,"Tietoja ei ole saatavilla tällä toimialan tarkkuustasolla"]
[null,"8790 Muut sosiaalihuollon laitospalvelut",525,871351,8076,null,"Tietoja ei ole saatavilla tällä toimialan tarkkuustasolla"]
[null,"87901 Lasten ja nuorten laitokset ja ammatillinen perhehoito",489,632534,7060,null,"Tietoja ei ole saatavilla tällä toimialan tarkkuustasolla"]
[null,"87902 Ensi- ja turvakodit",1,"...",0,null,"Tietoja ei ole saatavilla tällä toimialan tarkkuustasolla"]
[null,"87909 Muut laitokset ja asumispalvelut",35,"...",1015,null,"Tietoja ei ole saatavilla tällä toimialan tarkkuustasolla"]
[null,"88 Sosiaalihuollon avopalvelut",3265,1209934,19475,null,2760,209,147,94,30,14,5,4,2]
[null,"881 Vanhusten ja vammaisten sosiaalihuollon avopalvelut",1438,466682,7754,null,"Tietoja ei ole saatavilla tällä toimialan tarkkuustasolla"]
[null,"8810 Vanhusten ja vammaisten sosiaalihuollon avopalvelut",1438,466682,7754,null,"Tietoja ei ole saatavilla tällä toimialan tarkkuustasolla"]
[null,"88101 Kotipalvelut ikääntyneille ja vammaisille",1362,452126,7542,null,"Tietoja ei ole saatavilla tällä toimialan tarkkuustasolla"]
[null,"88102 Ikääntyneiden päivätoiminta",6,527,5,null,"Tietoja ei ole saatavilla tällä toimialan tarkkuustasolla"]
[null,"88103 Vammaisten päivä- ja työtoiminta",17,5646,78,null,"Tietoja ei ole saatavilla tällä toimialan tarkkuustasolla"]
[null,"88109 Muut vanhusten ja vammaisten avopalvelut",53,8383,129,null,"Tietoja ei ole saatavilla tällä toimialan tarkkuustasolla"]
[null,"889 Muut sosiaalihuollon avopalvelut",1827,743252,11720,null,"Tietoja ei ole saatavilla tällä toimialan tarkkuustasolla"]
[null,"8891 Lasten päivähoitopalvelut",598,474857,8487,null,"Tietoja ei ole saatavilla tällä toimialan tarkkuustasolla"]
[null,"88911 Lasten päiväkodit",403,454419,7985,null,"Tietoja ei ole saatavilla tällä toimialan tarkkuustasolla"]
[null,"88919 Muu lasten päivähoito",195,20438,502,null,"Tietoja ei ole saatavilla tällä toimialan tarkkuustasolla"]
[null,"8899 Muualla luokittelemattomat sosiaalihuollon avopalvelut",1229,268395,3234,null,"Tietoja ei ole saatavilla tällä toimialan tarkkuustasolla"]
[null,"88991 Kotipalvelut muille kuin ikääntyneille ja vammaisille",279,29617,436,null,"Tietoja ei ole saatavilla tällä toimialan tarkkuustasolla"]
[null,"88992 Päivä- ja työtoiminta muille kuin ikääntyneille ja vammaisille",30,36528,492,null,"Tietoja ei ole saatavilla tällä toimialan tarkkuustasolla"]
[null,"88993 Avomuotoinen päihdekuntoutus",12,3606,43,null,"Tietoja ei ole saatavilla tällä toimialan tarkkuustasolla"]
[null,"88999 Muut muualla luokittelemattomat sosiaalihuollon avopalvelut",908,198645,2264,null,"Tietoja ei ole saatavilla tällä toimialan tarkkuustasolla"]
[null,"R Taiteet, viihde ja virkistys (90-93)",20129,3766513,15136,null,19638,268,124,61,25,10,2,".",1]
[null,"90 Kulttuuri- ja viihdetoiminta",11247,793604,3471,null,11158,46,23,15,4,1,".",".","."]
[null,"900 Kulttuuri- ja viihdetoiminta",11247,793604,3471,null,"Tietoja ei ole saatavilla tällä toimialan tarkkuustasolla"]
[null,"9001 Esittävät taiteet",3835,165622,898,null,"Tietoja ei ole saatavilla tällä toimialan tarkkuustasolla"]
[null,"90010 Esittävät taiteet",3835,165622,898,null,"Tietoja ei ole saatavilla tällä toimialan tarkkuustasolla"]
[null,"9002 Esittäviä taiteita palveleva toiminta",1846,451675,1481,null,"Tietoja ei ole saatavilla tällä toimialan tarkkuustasolla"]
[null,"90020 Esittäviä taiteita palveleva toiminta",1846,451675,1481,null,"Tietoja ei ole saatavilla tällä toimialan tarkkuustasolla"]
[null,"9003 Taiteellinen luominen",5537,141372,948,null,"Tietoja ei ole saatavilla tällä toimialan tarkkuustasolla"]
[null,"90030 Taiteellinen luominen",5537,141372,948,null,"Tietoja ei ole saatavilla tällä toimialan tarkkuustasolla"]
[null,"9004 Taidelaitosten toiminta",29,34935,143,null,"Tietoja ei ole saatavilla tällä toimialan tarkkuustasolla"]
[null,"90040 Taidelaitosten toiminta",29,34935,143,null,"Tietoja ei ole saatavilla tällä toimialan tarkkuustasolla"]
[null,"91 Kirjastojen, arkistojen, museoiden ja muiden kulttuurilaitosten toiminta",98,"60472*",307,null,82,7,5,3,1,".",".",".","."]
[null,"910 Kirjastojen, arkistojen, museoiden ja muiden kulttuurilaitosten toiminta",98,"60472*",307,null,"Tietoja ei ole saatavilla tällä toimialan tarkkuustasolla"]
[null,"9101 Kirjastojen ja arkistojen toiminta",17,"15093*",39,null,"Tietoja ei ole saatavilla tällä toimialan tarkkuustasolla"]
[null,"91010 Kirjastojen ja arkistojen toiminta",17,"15093*",39,null,"Tietoja ei ole saatavilla tällä toimialan tarkkuustasolla"]
[null,"9102 Museoiden toiminta",49,37262,150,null,"Tietoja ei ole saatavilla tällä toimialan tarkkuustasolla"]
[null,"91020 Museoiden toiminta",49,37262,150,null,"Tietoja ei ole saatavilla tällä toimialan tarkkuustasolla"]
[null,"9103 Historiallisten nähtävyyksien, rakennusten ja vastaavien kohteiden toiminta",4,80,1,null,"Tietoja ei ole saatavilla tällä toimialan tarkkuustasolla"]
[null,"91030 Historiallisten nähtävyyksien, rakennusten ja vastaavien kohteiden toiminta",4,80,1,null,"Tietoja ei ole saatavilla tällä toimialan tarkkuustasolla"]
[null,"9104 Kasvitieteellisten puutarhojen, eläintarhojen ja luonnonpuistojen toiminta",28,16830,117,null,"Tietoja ei ole saatavilla tällä toimialan tarkkuustasolla"]
[null,"91040 Kasvitieteellisten puutarhojen, eläintarhojen ja luonnonpuistojen toiminta",28,16830,117,null,"Tietoja ei ole saatavilla tällä toimialan tarkkuustasolla"]
[null,"92 Rahapeli- ja vedonlyöntipalvelut",28,"1192122*",1382,null,22,2,2,".",".",1,".",".",1]
[null,"920 Rahapeli- ja vedonlyöntipalvelut",28,"1192122*",1382,null,"Tietoja ei ole saatavilla tällä toimialan tarkkuustasolla"]
[null,"9200 Rahapeli- ja vedonlyöntipalvelut",28,"1192122*",1382,null,"Tietoja ei ole saatavilla tällä toimialan tarkkuustasolla"]
[null,"92000 Rahapeli- ja vedonlyöntipalvelut",28,"1192122*",1382,null,"Tietoja ei ole saatavilla tällä toimialan tarkkuustasolla"]
[null,"93 Urheilutoiminta sekä huvi- ja virkistyspalvelut",8756,1778622,9976,null,8376,213,94,43,20,8,2,".","."]
[null,"931 Urheilutoiminta",7150,1328042,7188,null,"Tietoja ei ole saatavilla tällä toimialan tarkkuustasolla"]
[null,"9311 Urheilulaitosten toiminta",803,341154,2277,null,"Tietoja ei ole saatavilla tällä toimialan tarkkuustasolla"]
[null,"93110 Urheilulaitosten toiminta",803,341154,2277,null,"Tietoja ei ole saatavilla tällä toimialan tarkkuustasolla"]
[null,"9312 Urheiluseurojen toiminta",325,139176,1073,null,"Tietoja ei ole saatavilla tällä toimialan tarkkuustasolla"]
[null,"93120 Urheiluseurojen toiminta",325,139176,1073,null,"Tietoja ei ole saatavilla tällä toimialan tarkkuustasolla"]
[null,"9313 Kuntokeskukset",803,331175,1562,null,"Tietoja ei ole saatavilla tällä toimialan tarkkuustasolla"]
[null,"93130 Kuntokeskukset",803,331175,1562,null,"Tietoja ei ole saatavilla tällä toimialan tarkkuustasolla"]
[null,"9319 Muu urheilutoiminta",5219,516537,2276,null,"Tietoja ei ole saatavilla tällä toimialan tarkkuustasolla"]
[null,"93190 Muu urheilutoiminta",5219,516537,2276,null,"Tietoja ei ole saatavilla tällä toimialan tarkkuustasolla"]
[null,"932 Huvi- ja virkistystoiminta",1606,450580,2788,null,"Tietoja ei ole saatavilla tällä toimialan tarkkuustasolla"]
[null,"9321 Huvi- ja teemapuistojen toiminta",98,164833,1241,null,"Tietoja ei ole saatavilla tällä toimialan tarkkuustasolla"]
[null,"93210 Huvi- ja teemapuistojen toiminta",98,164833,1241,null,"Tietoja ei ole saatavilla tällä toimialan tarkkuustasolla"]
[null,"9329 Muu huvi- ja virkistystoiminta",1508,285747,1547,null,"Tietoja ei ole saatavilla tällä toimialan tarkkuustasolla"]
[null,"93291 Hiihto- ja laskettelukeskukset",75,124868,764,null,"Tietoja ei ole saatavilla tällä toimialan tarkkuustasolla"]
[null,"93299 Muualla luokittelematon huvi- ja virkistystoiminta",1433,160879,784,null,"Tietoja ei ole saatavilla tällä toimialan tarkkuustasolla"]
[null,"S Muu palvelutoiminta (94-96)",33250,2241791,20921,null,32796,288,94,45,17,7,2,".",1]
[null,"94 Järjestöjen toiminta",1451,141258,3206,null,1313,74,26,25,12,1,".",".","."]
[null,"941 Elinkeinoelämän, työnantaja- ja ammattialajärjestöjen toiminta",1226,137161,3165,null,"Tietoja ei ole saatavilla tällä toimialan tarkkuustasolla"]
[null,"9411 Elinkeinoelämän ja työnantajajärjestöjen toiminta",289,85446,2043,null,"Tietoja ei ole saatavilla tällä toimialan tarkkuustasolla"]
[null,"94110 Elinkeinoelämän ja työnantajajärjestöjen toiminta",289,85446,2043,null,"Tietoja ei ole saatavilla tällä toimialan tarkkuustasolla"]
[null,"9412 Ammattialajärjestöjen toiminta",937,51715,1122,null,"Tietoja ei ole saatavilla tällä toimialan tarkkuustasolla"]
[null,"94120 Ammattialajärjestöjen toiminta",937,51715,1122,null,"Tietoja ei ole saatavilla tällä toimialan tarkkuustasolla"]
[null,"942 Ammattiyhdistysten toiminta",1,"...",1,null,"Tietoja ei ole saatavilla tällä toimialan tarkkuustasolla"]
[null,"9420 Ammattiyhdistysten toiminta",1,"...",1,null,"Tietoja ei ole saatavilla tällä toimialan tarkkuustasolla"]
[null,"94200 Ammattiyhdistysten toiminta",1,"...",1,null,"Tietoja ei ole saatavilla tällä toimialan tarkkuustasolla"]
[null,"949 Muiden järjestöjen toiminta",224,"...",41,null,"Tietoja ei ole saatavilla tällä toimialan tarkkuustasolla"]
[null,"9491 Seurakunnat ja uskonnolliset järjestöt",7,"...",0,null,"Tietoja ei ole saatavilla tällä toimialan tarkkuustasolla"]
[null,"94910 Seurakunnat ja uskonnolliset järjestöt",7,"...",0,null,"Tietoja ei ole saatavilla tällä toimialan tarkkuustasolla"]
[null,"9492 Poliittiset järjestöt",3,0,5,null,"Tietoja ei ole saatavilla tällä toimialan tarkkuustasolla"]
[null,"94920 Poliittiset järjestöt",3,0,5,null,"Tietoja ei ole saatavilla tällä toimialan tarkkuustasolla"]
[null,"9499 Muut järjestöt",214,3728,36,null,"Tietoja ei ole saatavilla tällä toimialan tarkkuustasolla"]
[null,"94991 Tutkimusta ja kulttuuria palvelevat järjestöt",15,962,11,null,"Tietoja ei ole saatavilla tällä toimialan tarkkuustasolla"]
[null,"94999 Muualla luokittelemattomat muut järjestöt",199,2766,25,null,"Tietoja ei ole saatavilla tällä toimialan tarkkuustasolla"]
[null,"95 Tietokoneiden, henkilökohtaisten ja kotitaloustavaroiden korjaus",2160,293517,2028,null,2083,43,24,8,".",2,".",".","."]
[null,"951 Tietokoneiden ja viestintälaitteiden korjaus",359,71673,389,null,"Tietoja ei ole saatavilla tällä toimialan tarkkuustasolla"]
[null,"9511 Tietokoneiden ja niiden oheislaitteiden korjaus",300,51119,280,null,"Tietoja ei ole saatavilla tällä toimialan tarkkuustasolla"]
[null,"95110 Tietokoneiden ja niiden oheislaitteiden korjaus",300,51119,280,null,"Tietoja ei ole saatavilla tällä toimialan tarkkuustasolla"]
[null,"9512 Viestintälaitteiden korjaus",59,20553,109,null,"Tietoja ei ole saatavilla tällä toimialan tarkkuustasolla"]
[null,"95120 Viestintälaitteiden korjaus",59,20553,109,null,"Tietoja ei ole saatavilla tällä toimialan tarkkuustasolla"]
[null,"952 Henkilökohtaisten ja kotitaloustavaroiden korjaus",1801,221845,1639,null,"Tietoja ei ole saatavilla tällä toimialan tarkkuustasolla"]
[null,"9521 Viihde-elektroniikan korjaus",122,55909,482,null,"Tietoja ei ole saatavilla tällä toimialan tarkkuustasolla"]
[null,"95210 Viihde-elektroniikan korjaus",122,55909,482,null,"Tietoja ei ole saatavilla tällä toimialan tarkkuustasolla"]
[null,"9522 Kotitalouskoneiden sekä kodin ja puutarhan laitteiden korjaus",398,93343,595,null,"Tietoja ei ole saatavilla tällä toimialan tarkkuustasolla"]
[null,"95220 Kotitalouskoneiden sekä kodin ja puutarhan laitteiden korjaus",398,93343,595,null,"Tietoja ei ole saatavilla tällä toimialan tarkkuustasolla"]
[null,"9523 Jalkineiden ja nahkatavaroiden korjaus",196,17221,156,null,"Tietoja ei ole saatavilla tällä toimialan tarkkuustasolla"]
[null,"95230 Jalkineiden ja nahkatavaroiden korjaus",196,17221,156,null,"Tietoja ei ole saatavilla tällä toimialan tarkkuustasolla"]
[null,"9524 Huonekalujen ja kodin kalusteiden korjaus",444,17110,147,null,"Tietoja ei ole saatavilla tällä toimialan tarkkuustasolla"]
[null,"95240 Huonekalujen ja kodin kalusteiden korjaus",444,17110,147,null,"Tietoja ei ole saatavilla tällä toimialan tarkkuustasolla"]
[null,"9525 Kellojen ja korujen korjaus",98,5245,31,null,"Tietoja ei ole saatavilla tällä toimialan tarkkuustasolla"]
[null,"95250 Kellojen ja korujen korjaus",98,5245,31,null,"Tietoja ei ole saatavilla tällä toimialan tarkkuustasolla"]
[null,"9529 Muiden henkilökohtaisten ja kotitaloustavaroiden korjaus",543,33017,228,null,"Tietoja ei ole saatavilla tällä toimialan tarkkuustasolla"]
[null,"95290 Muiden henkilökohtaisten ja kotitaloustavaroiden korjaus",543,33017,228,null,"Tietoja ei ole saatavilla tällä toimialan tarkkuustasolla"]
[null,"96 Muut henkilökohtaiset palvelut",29639,1807015,15687,null,29400,171,44,12,5,4,2,".",1]
[null,"960 Muut henkilökohtaiset palvelut",29639,1807015,15687,null,"Tietoja ei ole saatavilla tällä toimialan tarkkuustasolla"]
[null,"9601 Pesulapalvelut",355,416284,2921,null,"Tietoja ei ole saatavilla tällä toimialan tarkkuustasolla"]
[null,"96011 Pesulapalvelut yrityksille",216,382406,2594,null,"Tietoja ei ole saatavilla tällä toimialan tarkkuustasolla"]
[null,"96012 Pesulapalvelut kotitalouksille",139,33877,327,null,"Tietoja ei ole saatavilla tällä toimialan tarkkuustasolla"]
[null,"9602 Kampaamo- ja kauneudenhoitopalvelut",19236,907213,9317,null,"Tietoja ei ole saatavilla tällä toimialan tarkkuustasolla"]
[null,"96021 Parturit ja kampaamot",11417,602601,6917,null,"Tietoja ei ole saatavilla tällä toimialan tarkkuustasolla"]
[null,"96022 Kauneudenhoitopalvelut",7819,304613,2400,null,"Tietoja ei ole saatavilla tällä toimialan tarkkuustasolla"]
[null,"9603 Hautaustoimistojen palvelut",426,118902,730,null,"Tietoja ei ole saatavilla tällä toimialan tarkkuustasolla"]
[null,"96030 Hautaustoimistojen palvelut",426,118902,730,null,"Tietoja ei ole saatavilla tällä toimialan tarkkuustasolla"]
[null,"9604 Kylpylaitokset, saunat, solariumit yms. palvelut",3045,97467,604,null,"Tietoja ei ole saatavilla tällä toimialan tarkkuustasolla"]
[null,"96040 Kylpylaitokset, saunat, solariumit yms. palvelut",3045,97467,604,null,"Tietoja ei ole saatavilla tällä toimialan tarkkuustasolla"]
[null,"9609 Muualla luokittelemattomat henkilökohtaiset palvelut",6577,267150,2115,null,"Tietoja ei ole saatavilla tällä toimialan tarkkuustasolla"]
[null,"96090 Muualla luokittelemattomat henkilökohtaiset palvelut",6577,267150,2115,null,"Tietoja ei ole saatavilla tällä toimialan tarkkuustasolla"]
[null,"Tuntematon",72,563,8,null,72,".",".",".",".",".",".",".","."]
[]
[]
[]
[]
[]
[]
[]
[]
[null,"? = ei tietoa"]
[null,".. = Tietoa ei ole saatu, se on epävarma tai salaussäännön alainen."]
[null,"* = Tieto vanhempi kuin v. 2024"]
[]
[null,"Muistiinpanoja:"]
[]
["Lähde:"]
["Suomen virallinen tilasto (SVT): Yritysten rakenne- ja tilinpäätöstilasto [verkkojulkaisu]."]
["ISSN=2342-6217. Helsinki: Tilastokeskus [viitattu: 6.3.2025]."]
["Saantitapa: https://stat.fi/tilasto/yrti"]
["Yritysten rakenne- ja tilinpäätöstilasto sisältää toimialoittaisia tietoja yritysten lukumäärästä, henkilöstöstä sekä tilinpäätöksistä."]
[]
["Tilastovuosi:","Tilastovuosi on se kalenterivuosi, jota tilasto koskee."]
[]
[]
["Lähde:","Tilastokeskus"]

{"sheet":"Apu2_Aika per tehtävä","index":8,"n_rows":36,"n_cols":16,"rows_kept":36,"cut":false,"hidden":false,"merged":[[7,1,7,16],[5,1,5,16],[4,1,4,16],[3,1,3,16],[33,12,33,14],[6,1,6,16],[11,1,13,1],[11,4,11,15],[11,2,13,2],[11,3,13,3],[8,1,8,16]]}
["Aputaulukko 2 - lain edellyttämän tehtävän suorittamiseen kuluva aika vuodessa"]
["Perustuu standardikustannusmallin (SCM) mukaiseen arviointiin (ks. OM 2007:6 ja SCM Network)"]
["Ohjeet:"]
["1 )","Sääntelytaakan laskennan perustekijänä on se työaika, jonka joku tai jotkut yrityksen työntekijöistä joutuu/joutuvat käyttämään lain edellyttämän tehtävän suorittamiseen (esim. jonkin asian ilmoittaminen viranomaiselle). Vaihtoehtoisesti yritys voi myös ulkoistaa jonkin tehtävän (esim. tilintarkastus), jolloin ulkoistuskustannus lasketaan muiden kustannusten yhteydessä (välilehti 3_Muut kustannukset)."]
["2 )","Tätä välilehteä voit käyttää apuna arvioidessasi lain edellyttämään tehtävään käytettävää kokonaisaikaa."]
["3 )","Tietoa tai arviota lain edellyttämän tehtävän vaatimasta työajasta voi kysyä esimerkiksi lakia valmistelevan työryhmän jäseniltä, toimialayhdistyksiltä, toimialan sääntelyviranomaiselta tai suoraan yrityksiltä."]
["4 )","Ensin voi arvioida paljonko käytetty aika on tehtäväkohtaisesti (tehtävän kesto per yksi tehtäväkerta) ja tämän jälkeen taulukosta voi katsoa kokonaisajan riippuen siitä, kuinka monta kertaa vuodessa laki edellyttää tehtävän suorittamisen (frekvenssi)."]
["5 )","Alla olevan taulukon avulla voi myös arvioida sitä, 1) kuinka paljon suurempi kustannus yrityksille aiheutuu, jos esim. jokin ilmoitusvelvollisuus on neljästi vuodessa sen sijaan, että se olisi vain kerran vuodessa tai 2) onko jokin ilmoitusvelvollisuus ylipäätään tarpeen lain tavoitteiden saavuttamiseksi (kustannus-hyöty-analyysi per lain yrityksille asettama velvoite)."]
["6 )","Tieto tai paras mahdollinen arvio tehtävään käytettävästä ajasta syötetään laskelmaan tämän taulukon välilehdelle 2B_Työkustannus."]
[]
[]
[null,"Kuinka usein lain edellyttämä tehtävä tulee suorittaa","Kuinka monta kertaa vuodessa tehtävä suoritetaan (frekvenssi)","Aika tunteina","Tehtävän kesto per yksi tehtäväkerta"]
[null,null,null,null,"1 min","15 min","30 min","1 tunti","2 tuntia","3 tuntia","…","1 työpäivää","2 työpäivää","3 työpäivää","4 työpäivää","5 työpäivää"]
[null,null,null,null,{"$f":"1/60","v":1.6666666666666666E-2},0.25,0.5,1,2,3,null,{"$f":"'2B_Työkustannus'!E81","v":7.5780000000000003},{"$f":"2*L14","v":15.156000000000001},{"$f":"3*$L$14","v":22.734000000000002},{"$f":"4*$L$14","v":30.312000000000001},{"$f":"5*$L$14","v":37.89}]
[null,"joka päivä",365,null,{"$f":"$C15*E$14","v":6.083333333333333},{"$f":"$C15*F$14","v":91.25},182.5,365,730,1095,null,{"$f":"$C15*L$14","v":2765.9700000000003},"-","-","-","-"]
[null,"joka viikko",52,null,0.8666666666666667,13,26,52,104,156,null,{"$f":"$C16*L$14","v":394.05600000000004},788.11200000000008,1182.1680000000001,1576.2240000000002,1970.28]
[null,"kerran kuukaudessa",12,null,0.2,3,6,12,24,36,null,90.936000000000007,181.87200000000001,272.80799999999999,363.74400000000003,454.68]
[null,"neljä kertaa vuodessa",4,null,6.6666666666666666E-2,1,2,4,8,12,null,30.312000000000001,60.624000000000002,90.936000000000007,121.248,151.56]
[null,"kaksi kertaa vuodessa",2,null,3.3333333333333333E-2,0.5,1,2,4,6,null,15.156000000000001,30.312000000000001,45.468000000000004,60.624000000000002,75.78]
[null,"kerran vuodessa",1,null,1.6666666666666666E-2,0.25,0.5,1,2,3,null,7.5780000000000003,15.156000000000001,22.734000000000002,30.312000000000001,37.89]
[]
[]
[null,"Alla esimerkki, jossa"]
[null,"yrityksen työntekijät laativat ja toimittavat TUKESille kaivoslain edellyttämän kaivoskartan. Oletuksena on, että yrityksiltä saatujen tietojen mukaan keskimäärin ",null,null,null,null,null,null,null,null,"Tämä vain esimerkinomaisesti."]
[null,"- asiantuntijalta kuluu kartan laatimiseen 2 työpäivää (15,16 tuntia) ja ",null,null,null,null,null,null,null,null,"Tämä vain esimerkinomaisesti."]
[null,"- asiantuntijan apuna on avustaja, joka käyttää tehtävään puoli tuntia (0,5 h) ja",null,null,null,null,null,null,null,null,"Tämä vain esimerkinomaisesti."]
[null,"- johtaja tarkistaa ja hyväksyy laaditun kartan, johon kuluu 15 minuttia (0,25 h)",null,null,null,null,null,null,null,null,"Tämä vain esimerkinomaisesti."]
[null,"Lain mukaan kartta pitää toimittaa TUKESille kahdesti vuodessa (2 kertaa)",null,null,null,null,null,null,null,null,"Tämä vain esimerkinomaisesti."]
[null,"Siten laskelmaan merkittäisiin välilehdelle \"2B_Työkustannus\", Frekvenssi = 2, Johtajalle 0,25 tuntia, Asiantuntijalle 15,16 tuntia ja Avustajalle 0,5 tuntia",null,null,null,null,null,null,null,null,"Tämä vain esimerkinomaisesti."]
[null,"Laskentapohja laskee näistä keskimääräisen tuntipalkan ja lisää siihen palkan sivukulut sekä yleiskulun.",null,null,null,null,null,null,null,null,"Tämä vain esimerkinomaisesti."]
[]
[null,"Esimerkki ja apulaskupohja (tämä vain tarvittaessa esimerkkinä, täytä yritysvaikutusarvioinnin tiedot välilehdelle 2B_Työkustannus)"]
[]
[null,null,null,null,"Työntekijä 1",null,"Työntekijä 2",null,"Työntekijä 3",null,null,null,"Tehtävään käytetty työaika yhteensä"]
[null,null,"Tehtävä","Tehtävän kuvaus (välilehdeltä '1_Tehtäväluettelo')","Tyypillisesti tehtävän hoitaa (Työntekijä 1)","Työntekijän 1 tehtävään käyttämä aika (h)","Tyypillisesti tehtävässä avustaa (Työntekijä 2)","Työntekijän 2 tehtävään käyttämä aika (h)","Tyypillisesti tehtävää ohjaa/tarkistaa (Työntekijä 3)","Työntekijän 2 tehtävään käyttämä aika (h)","Lisää tarvittaessa työntekijöitä","Kuinka monta kertaa vuodessa tehtävä suoritetaan (frekvenssi)","Työntekijä 1","Työntekijä 2","Työntekijä 3"]
[null,"Esimerkki","Tehtävä1","Kaivoskartan laatiminen ja toimittaminen TUKESille","Asiantuntija",15.16,"Avustaja",0.5,"Johtaja",0.25,null,2,{"$f":"$L$36*F36","v":30.32},{"$f":"$L$36*H36","v":1},{"$f":"$L$36*J36","v":0.5}]

{"sheet":"Apu3_Laite tms kustannuksista","index":9,"n_rows":21,"n_cols":7,"rows_kept":21,"cut":false,"hidden":false,"merged":[[5,0,5,2],[19,0,21,2],[2,4,3,9],[20,4,21,9],[5,4,5,9]]}
["Aputaulukko 3 - Lain edellyttämien hankintojen kustannuslaskennasta"]
[]
["Edellyttääkö laki jonkin järjestelmän, ohjelmiston tai laitteen hankkimista tai päivittämistä?",null,null,null,"Kysy kohdejoukolta (yritykset, toimialajärjestö) miten näkevät nämä kustannuserät ja miten voisi tarvittaessa saada tarkempaa tietoa/arviota näistä."]
["Jos kyllä, niin käytä apuna lain aiheuttamien kustannusten arvioinnissa seuraavaa:"]
[]
["Jonkin järjestelmän, laitteen tms. (esim. maksupääte) hankkiminen voi aiheuttaa myös muita kustannuksia kuin itse laitteen. Kokonaiskustannusten arvioinnissa voi soveltaa ICT-hankinnoissa vakiintunutta omistamisen kokonaiskustannuksen laskentamallia - Total Cost of Ownership (TCO). ",null,null,null,"Sovella tarvittaessa muihinkin kuin IT-hankintoihin"]
[]
["Kokonaiskustannuksiin lasketaan mukaan lähtökohtaisesti seuraavat:",null,null,null,"Esimerkki","eur/vuosi/yritys","Kustannuserän toistuvuus"]
[1,"Laitteen (hardware) hankinta",null,null,"Laite",250,"kertaluonteinen"]
[2,"Ohjelmiston (software) hankinta",null,null,"Ohjelmisto",100,"kertaluonteinen"]
[3,"Asennus",null,null,"Asennus",1000,"kertaluonteinen"]
[4,"Johtaminen ja tuki ",null,null,"Johtaminen ja tuki",6000,"toistuva yhteensä vuodessa "]
[5,"Tietoliikenneyhteydet",null,null,"Tietoliikenneyhteydet",{"$f":"20*12","v":240},"toistuva yhteensä vuodessa "]
[6,"Käyttäjäkustannukset",null,null,"Käyttäjäkustannukset",0,"toistuva yhteensä vuodessa "]
[null,"Vaihtoehtoiskustannukset"]
[7,null,"järjestelmän alhaallaoloajalle (downtime)",null,"Alhaallaoloaika",520,"Toistuva"]
[8,null,"koulutukselle",null,"Koulutus",140,"Kertaluonteinen"]
[9,null,"muulle resurssille, joka on pois tuotannosta",null,"Muu",0]
[null,null,null,null,"Yhteensä 1. vuosi",{"$f":"SUM(F9:F18)","v":8250},"Kertaluonteiset + toistuvat 1. vuodelta"]
["Toisaalta laite tai järjestelmä (esim. maksupääte) voi olla käytössä joka tapauksessa (business as usual). Tällöin hankinnasta tulee kohdistaa kustannuksiin vain se osa, joka arvioidaan johtuvan nimenomaan lain velvoitteista, esimerkiksi 1 % kokonaisuudesta tai 10 %, 20 %, ... jne. tilanteen edellyttämällä tavalla.",null,null,null,"Yhteensä seuraavat vuodet",{"$f":"F12+F13+F16","v":6760},"Toistuvat yhteensä"]
[null,null,null,null,"Huomion kiinnittäminen laitehankinnasta henkilöstökuluihin. Huom. esimerkkilaskelmassa on valittu tarkoituksella tilanne, jossa itse laite- tms. hankinta on pieni, mutta henkilöstökuluina syntyy vuosittain merkittävä kustannus. "]

{"sheet":"Apu4_Yksinkert. esim. laskelma","index":10,"n_rows":107,"n_cols":16,"rows_kept":107,"cut":false,"hidden":false,"merged":[[57,1,74,1],[20,4,20,13],[21,4,21,13],[8,4,8,13],[9,4,9,13],[10,4,10,13],[11,4,11,13],[15,4,15,13]]}
["Yksinkertaistettu esimerkkilaskelma - VAIN ESIMERKINLUONTEINEN LASKELMA KOKONAISUUDEN HAHMOTTAMISEKSI"]
["Perustuu standardikustannusmallin (SCM) mukaiseen arviointiin (ks. OM 2007:6 ja SCM Network)"]
[]
[null,"Oletuksena velvoite, jonka hoitaa Asiantuntija (kuukausipalkka 3600 eur/kk)"]
[null,"Esim. jokin ilmoitus kvartaaleittain, johon kuluu á 2 tuntia"]
[null,"Toimialalla 400 yritystä"]
[null,"Lisäksi ensimmäisenä vuonna jokaiselle yritykselle aiheutuu kertaluontoinen 1000 euron koulutuskustannus."]
[]
[null,"Laskentatekijä","Arvo","Yksikkö","Selite, huomautus"]
[null,"Vuodessa velvoitteeseen käytetyt tunnit",8,"tuntia","Tehtävä 4 x á 2h = 8h. Ts. Frekvenssi = 4 ja asiantuntijan työtunnit 2,0h per kerta. Nämä syötetään välilehdelle 2."]
[null,"Tuntipalkkakustannus sivu- ja yleiskuluineen",34.46,"euroa","Saat tämän taulukon välilehden 2 avulla, kun syötät asiantuntijan kohdalle 2 tuntia (muut 0)"]
[null,"Työntekijäkustannus vuodessa",275.70719067156102,"euroa","Tämä näkyy välilehden 2 alaosassa. Laskee automaattisesti heti, kun olet syöttänyt em. tuntimäärän välilehdelle 2"]
[]
[null,"Koulutuskustannus",1000,"euroa"]
[]
[null,"Yritysten lukumäärä, kohdejoukko",400,"kappaletta","Lain kohteena olevien yritysten määrä. Tämä syötetään välilehdellä 2."]
[]
[null,"Toistuva kustannus yhteensä koko toimialalle",{"$f":"C16*C12","v":110282.87626862442},null,"=275,71 euroa x 400 yritystä"]
[null,"Kertaluontoinen kustannus koko toimialalle",{"$f":"C16*C14","v":400000},null,"=1000,00 euroa x 400 yritystä"]
[]
[null,"Kokonaiskustannus toimialalle ensimmäisenä vuotena",{"$f":"C18+C19","v":510282.87626862444},"euroa","1. vuoden kokonaiskustannus (kertaluonteinen + toistuva ensimmäisen vuoden osalta)"]
[null,"Kokonaiskustannus toimialalle seuraavina vuosina",{"$f":"C12*C16","v":110282.87626862442},"euroa","Vuotuinen kokonaiskustannus"]
[]
[null,"Vastaavasti laskettaisiin yrityksille kohdistuva säästö, jos esimerkin mukainen velvoite poistettaisiin."]
[]
[null,"Nettonykyarvo"]
[null,"Alla on esitetty myös nettonykyarvon laskenta yllä olevasta esimerkistä. Tätä lain valmistelijan ei tarvitse laskea, vaan taulukkolaskentapohja laskee sen automaattisesti. Tämä vain informaatiotarkoituksessa, jotta tulee esille lain vaikutus yli ajan (10 vuoden vaikutusjakso)."]
[]
[null,"Oletetaan seuraavat"]
[null,"Palkat nousevat vuosittain reaalisesti (ei inflaatiota)",1.7000000000000001E-2,null,null,"Vuosi"]
[null,"Käytetään diskonttauskorkona reaalista sosiaalista diskonttokorkoa",0.04,null,null,1,2,3,4,5,6,7,8,9,10]
[null,"(ks. TEM:n Yksi yhdestä -loppuraportti (19.12.2017), jossa nämä perusteltu)",null,null,"Kustannus",{"$f":"C21","v":510282.87626862444},{"$f":"$C$18*(1+$C$30)^G31","v":114064.36581299925},{"$f":"$C$18*(1+$C$30)^H31","v":116003.46003182023},117975.51885236117,119981.1026728513,122020.78141828976,124095.13470240065,{"$f":"$C$18*(1+$C$30)^M31","v":126204.75199234148},128350.23277621128,{"$f":"$C$18*(1+$C$30)^O31","v":130532.18673340685},"Huomioitu palkkojen reaalikasvu"]
[null,null,null,null,"Nykyarvo",{"$f":"F32/(1+$C$31)^$F$31","v":490656.61179675424},{"$f":"G32/(1+$C$31)^F31","v":109677.27482019158},{"$f":"H32/(1+$C$31)^G31","v":107251.71970397579},104879.80667206095,102560.34940912112,100292.18783565014,98074.187527746326,95905.239149728877,93784.25789930216,91710.182964990643]
[null,null,null,null,"Yhteensä 10 v",{"$f":"SUM(F33:O33)","v":1394791.8177795217}]
[]
[null,null,null,null,"Nykyarvo on ",{"$f":"F34","v":1394791.8177795217}]
[]
[null,"Ja vielä aivan yksinkertainen esimerkki nykyarvon laskemisesta"]
[null,"Kustannus euroa joka vuosi.",100]
[null,"Diskonttauskorko",0.1]
[null,null,null,null,null,"Vuosi"]
[null,null,null,null,null,1,2,3]
[null,null,null,null,"Kustannus",100,100,100]
[null,null,null,null,"Nykyarvo",{"$f":"F43/(1+$C$40)^F31","v":90.909090909090907},{"$f":"G43/(1+$C$40)^G31","v":82.644628099173545},{"$f":"H43/(1+$C$40)^H31","v":75.131480090157751}]
[null,null,null,null,"Yhteensä",{"$f":"SUM(F44:O44)","v":248.68519909842223}]
[]
[null,null,null,null,"Nykyarvo on ",{"$f":"F45","v":248.68519909842223},null,"Toisin sanoen, on samanarvoista saada tänään 248,7 euroa kuin saada vuoden, kahden ja kolmen kuluttua 100 euroa."]
[null,null,null,null,null,null,null,"Tämän voi ajatella myös niin, että jos tänään aiheutetaan yrityksille n. 250 euron kustannus, niin vuosittain toistuvana säästönä "]
[null,null,null,null,null,null,null,"pitäisi olla 100 euroa seuraavan 3 vuoden aikana, jotta aiheutettu kustannus ja säästö olisivat nykyarvoltaan samansuuruisia. "]
[null,"Annualisoidulla nettonykyarvolla tarkoitetaan puolestaan seuraavaa (esimerkki):"]
[]
[null,null,null,null,null,"Vuosittain"]
[null,"Tarkastellaan 10 vuoden ajanjaksoa kahdessa eri tapauksessa A ja B.",null,"Kertaluonteinen kustannus",null,"toistuva kustannus",null,null,"Kesto (n)"]
[null,"Tapauksessa A aiheutuu vuosittain toistuva 100 euron kustannussäästö 10 vuodelle.",null,0,"euroa",-100,"euroa",10,"vuotta"]
[null,"Tapauksessa B aiheutuu 500 euron kertaluontein kustannus ensimmäisenä vuonna ja 74 euron toistuva kustannus 5 vuoden ajan, jonka jälkeen ei kustannuksia.",null,500,"euroa",74,"euroa",10,"vuotta"]
[null,"Oletetaan diskonttauskoroksi (r) ",0.04]
[]
[null,"Tapauksen A ja B kustannuserät kohdentuvat hyvin eri tavalla 10 vuoden ajanjaksolle. Tapauksen B toistuva erä on tapausta A itseisarvoltaan pienempi ja tapauksessa B ei aiheudu kustannuksia enää viidennen vuoden jälkeen. Tapauksessa B on merkittävämpi kertaluonteinen erä ensimmäiselle vuoden. Tapausten nykyarvot ovat itseisarvoltaan samansuuruiset (811, pyöristys huomioiden). Annualisoidun nettonykyarvon avulla myös Tapauksen B kustannuserät voidaan jakaa tasaisesti 10 vuoden ajanjaksolle, jolloin vuosittaisista eristä saadaan vertailukelpoiset. Tässä esimerkissä Tapauksen B kustannuserät on tarkoituksella valittu siten, että ne muodostavat Tapauksen A kanssa itseisarvoltaan yhtäsuuren 100 euron vuosittaisen kustannuserän 10 vuodelle. Annualisoidun nykyarvon avulla voidaan vertailla 10 vuoden ajanjaksolta vuositason kustannuseriä lakiehdotuksista, jotka lähtökohtaisesti aiheuttavat kustannuksia eri aikaan ja eri tavalla jaksottuneina. ",null,"Tapaus A",null,1,2,3,4,5,6,7,8,9,10]
[null,null,null,null,"Kustannus",{"$f":"$F$54","v":-100},{"$f":"$F$54","v":-100},-100,-100,-100,-100,-100,-100,-100,-100]
[null,null,null,null,"Nykyarvo",{"$f":"F59/(1+$C$56)^F58","v":-96.153846153846146},{"$f":"G59/(1+$C$56)^G58","v":-92.455621301775139},{"$f":"H59/(1+$C$56)^H58","v":-88.899635867091476},{"$f":"I59/(1+$C$56)^I58","v":-85.480419102972576},{"$f":"J59/(1+$C$56)^J58","v":-82.19271067593516},-79.031452573014576,-75.991781320206329,-73.069020500198377,-70.258673557883043,-67.556416882579853]
[null,null,null,null,"Yhteensä 10 vuodelta",{"$f":"SUM(F60:O60)","v":-811.08957793550258}]
[]
[null,null,null,"Tapaus B",null,1,2,3,4,5,6,7,8,9,10]
[null,null,null,null,"Kustannus",{"$f":"D55+F55","v":574},{"$f":"$F$55","v":74},{"$f":"$F$55","v":74},74,74,0,0,0,0,0]
[null,null,null,null,"Nykyarvo",{"$f":"F64/(1+$C$56)^F63","v":551.92307692307691},{"$f":"G64/(1+$C$56)^G63","v":68.417159763313606},65.785730541647695,63.255510136199703,60.822605900192016,0,0,0,0,0]
[null,null,null,null,"Yhteensä 10 vuodelta",{"$f":"SUM(F65:O65)","v":810.20408326442998}]
[]
[null,null,null,"Annualisoidut nykyarvot"]
[null,null,null,null,"Tapaus A",{"$f":"($C$56*$F$61)/(1-(1+$C$56)^(-H54))","v":-99.999999999999858}]
[null,null,null,null,"Tapaus B",{"$f":"($C$56*$F$66)/(1-(1+$C$56)^(-H55))","v":99.89082652580403}]
[]
[]
[]
[]
[null,null,null,null,null,null,null,null,{"$f":"($F$61*$C$56)/(1-(1+$C$56)^-$H$54)","v":-99.999999999999858}]
[]
[]
[]
[]
[]
[null,null,null,null,null,null,null,null,{"$f":"($F$66*$C$56)/(1-(1+$C$56)^-$H$55)","v":99.89082652580403},null,"Jossa ","PV","Nykyarvo"]
[null,null,null,null,null,null,null,null,null,null,null,"A","Vuotuinen vakioerä"]
[null,null,null,null,null,null,null,null,null,null,null,"r","korko"]
[null,null,null,null,null,null,null,null,null,null,null,"n","Aika vuosina"]
[]
[]
[]
[]
[]
[null,"Huom. nykyarvon laskemisesta aiheutuu seuraava:"]
[]
[null,"Jos nykytilanteessa yrityksille aiheutuu 100 euron kustannus seuraavalle 4 vuodelle,",null,null,"Vuosi",2017,2018,2019,2020,2021,2022]
[null,"täytyy se korvata vuosittaisella 108 euron säästöllä, jos säästö tulee voimaan vasta",null,null,null,0,1,2,3,4,5]
[null,"2 vuotta nykytilanteen jälkeen.",null,null,"Kustannuslisäys",100,100,100,100]
[null,null,null,null,"Nykyarvo",{"$f":"F94/(1+$F$107)^F93","v":100},{"$f":"G94/(1+$F$107)^G93","v":96.153846153846146},{"$f":"H94/(1+$F$107)^H93","v":92.455621301775139},{"$f":"I94/(1+$F$107)^I93","v":88.899635867091476}]
[null,"Laskennassa huomioitu Annualisoitu NPV -välilehdellä myös inflaatio, mutta tässä",null,null,"Yhteensä",{"$f":"SUM(F95:N95)","v":377.50910332271275}]
[null,"yksinkertaisessa esimerkissä ei ole deflatoitu elinkustannusindeksillä siten kuin "]
[null,"varsinaisessa laskennassa tehdään deflatointi vuoden 2019 hinnoista perusvuoden",null,null,"Kustannussäästö_A",null,null,-100,-100,-100,-100]
[null,"2017 hintoihin. ",null,null,"Nykyarvo",null,null,{"$f":"H98/(1+$F$107)^H93","v":-92.455621301775139},{"$f":"I98/(1+$F$107)^I93","v":-88.899635867091476},{"$f":"J98/(1+$F$107)^J93","v":-85.480419102972576},{"$f":"K98/(1+$F$107)^K93","v":-82.19271067593516}]
[null,null,null,null,"Yhteensä",{"$f":"SUM(F99:K99)","v":-349.02838694777438}]
[]
[null,null,null,null,"Kustannussäästö_B",null,null,-108.30064663381104,{"$f":"H102","v":-108.30064663381104},{"$f":"I102","v":-108.30064663381104},-108.30064663381104]
[null,null,null,null,"Nykyarvo",null,null,{"$f":"H102/(1+$F$107)^H93","v":-100.13003571913002},{"$f":"I102/(1+$F$107)^I93","v":-96.278880499163478},{"$f":"J102/(1+$F$107)^J93","v":-92.575846633811025},{"$f":"K102/(1+$F$107)^K93","v":-89.01523714789522}]
[null,null,null,null,"Yhteensä",{"$f":"SUM(F103:K103)","v":-377.99999999999972}]
[]
[]
[null,null,null,null,"Korko ",0.04]

{"sheet":"Apu5_Tietolähteitä","index":11,"n_rows":29,"n_cols":17,"rows_kept":29,"cut":false,"hidden":false,"merged":[]}
["Tietolähteitä"]
[]
[]
["Tietokannat"]
[null,null,null,null,null,null,null,null,null,null,null,null,null,null,"Palaa takaisin tai siirry"]
[null,"Tilastokeskus",null,null,null,null,null,null,null,null,null,null,null,null,null,"Ohjeisiin"]
[null,null,"Tilastotietokannat",null,null,null,null,null,null,null,null,null,null,null,null,"Tarkistuslistaan","Ohjeet ja tarkistuslista"]
[null,null,"Tilastot",null,null,null,null,null,null,null,null,null,null,null,null,"Välilehdelle 1","Velvoiteluettelo"]
[null,null,null,"Esim. Yritykset",null,null,null,null,null,null,null,null,null,null,null,"Välilehdelle 2","Työkustannukset"]
[null,null,null,"Esim. Hinnat ja kulutus",null,null,null,null,null,null,null,null,null,null,null,"Välilehdelle 3","Muut kustannuksen ja kustannukset yhteensä"]
[null,null,null,"Esim. Asuminen ja rakentaminen",null,null,null,null,null,null,null,null,null,null,null,"Välilehdelle 4","Vuosittaiset poikkeukset kustannuserissä"]
[null,null,null,"Esim. Liikenne ja matkailu",null,null,null,null,null,null,null,null,null,null,null,"Välilehdelle 5","Yhteenveto"]
[null,null,null,"Esim. Työ, palkat ja toimeentulo",null,null,null,null,null,null,null,null,null,null,null,"Apu2","Tehtäväkohtainen aika - apu hahmottamiseen"]
[null,null,null,"Esim. Palkat ja työvoimakustannukset",null,null,null,null,null,null,null,null,null,null,null,"Apu3","Laite tms kustannuksista"]
[null,"Tulli - ULJAS - Tavaroiden ulkomaankauppatilastot",null,null,null,null,null,null,null,null,null,null,null,null,null,"Apu4","Yksinkertainen esimerkkilaskelma"]
[null,null,null,null,null,null,null,null,null,null,null,null,null,null,null,"Apu5","Tietolähteitä"]
[]
["Muut lähteet"]
[null,"Toimialavirastot"]
[null,"Yritykset"]
[null,null,"Suorat yhteydet yrityksiin"]
[null,null,"Kyselytutkimuksen teettäminen"]
[null,null,null,"Käytettävissä oleva aika ja raha?"]
[null,"Toimialaliitot ja -yhdistykset "]
[null,null,"EK"]
[null,null,"Suomen yrittäjät"]
[null,null,"Toimialayhdistykset"]
[null,"Aiemmat selvitykset ja lakihankkeet"]
[null,"Kansainväliset esimerkit"]

{"sheet":"Annualisoitu NPV","index":12,"n_rows":51,"n_cols":12,"rows_kept":51,"cut":false,"hidden":false,"merged":[[39,15,39,17]]}
["Annualisoidun nettonykyarvon (AENPV) laskenta"]
["AENPV = Annual Equivalent Net Present Value"]
[]
[null,null,null,{"$f":"\"Velvoite\"&D18+1","v":"Velvoite1"},{"$f":"\"Velvoite\"&E18+1","v":"Velvoite2"},"Velvoite3","Velvoite4","Velvoite5",null,"Yhteensä"]
[null,null,"Sääntelyn luonne",{"$f":"OFFSET('1_Velvoiteluettelo'!$G$17,D18,0)","v":"Kansallista tai EU-minimin ylittävää lisäsääntelyä"},{"$f":"OFFSET('1_Velvoiteluettelo'!$G$17,E18,0)","v":"Kansallista tai EU-minimin ylittävää lisäsääntelyä"},{"$f":"OFFSET('1_Velvoiteluettelo'!$G$17,F18,0)","v":0},{"$f":"OFFSET('1_Velvoiteluettelo'!$G$17,G18,0)","v":0},{"$f":"OFFSET('1_Velvoiteluettelo'!$G$17,H18,0)","v":0}]
[null,null,"Frekvenssi",{"$f":"OFFSET('2B_Työkustannus'!$F13,0,D18)","v":3},{"$f":"OFFSET('2B_Työkustannus'!$F13,0,E18)","v":1},{"$f":"OFFSET('2B_Työkustannus'!$F13,0,F18)","v":0},{"$f":"OFFSET('2B_Työkustannus'!$F13,0,G18)","v":0},{"$f":"OFFSET('2B_Työkustannus'!$F13,0,H18)","v":0}]
[null,null,"Yritysjoukon suuruus",{"$f":"OFFSET('2B_Työkustannus'!$F11,0,D18)","v":100},{"$f":"OFFSET('2B_Työkustannus'!$F11,0,E18)","v":60},{"$f":"OFFSET('2B_Työkustannus'!$F11,0,F18)","v":0},{"$f":"OFFSET('2B_Työkustannus'!$F11,0,G18)","v":0},{"$f":"OFFSET('2B_Työkustannus'!$F11,0,H18)","v":0}]
[null,null,"Toistuvat henkilöstömenot",{"$f":"IF(ISNUMBER(OFFSET('1_Velvoiteluettelo'!$F$17,D18,0)),'3_Muut kustannukset'!I21,0)","v":5738.1559058518678},{"$f":"IF(ISNUMBER(OFFSET('1_Velvoiteluettelo'!$F$17,E18,0)),'3_Muut kustannukset'!J21,0)","v":4590.5247246814943},{"$f":"IF(ISNUMBER(OFFSET('1_Velvoiteluettelo'!$F$17,F18,0)),'3_Muut kustannukset'!K21,0)","v":0},{"$f":"IF(ISNUMBER(OFFSET('1_Velvoiteluettelo'!$F$17,G18,0)),'3_Muut kustannukset'!L21,0)","v":0},{"$f":"IF(ISNUMBER(OFFSET('1_Velvoiteluettelo'!$F$17,H18,0)),'3_Muut kustannukset'!M21,0)","v":0},null,{"$f":"SUM(D8:I8)","v":10328.680630533363}]
[null,null,"josta palkat",{"$f":"IF(ISNUMBER(OFFSET('1_Velvoiteluettelo'!$F$17,D18,0)),D8/(1+'2B_Työkustannus'!$E$70),0)","v":3595.3357806089393},{"$f":"IF(ISNUMBER(OFFSET('1_Velvoiteluettelo'!$F$17,E18,0)),E8/(1+'2B_Työkustannus'!$E$70),0)","v":2876.2686244871516},{"$f":"IF(ISNUMBER(OFFSET('1_Velvoiteluettelo'!$F$17,F18,0)),F8/(1+'2B_Työkustannus'!$E$70),0)","v":0},{"$f":"IF(ISNUMBER(OFFSET('1_Velvoiteluettelo'!$F$17,G18,0)),G8/(1+'2B_Työkustannus'!$E$70),0)","v":0},{"$f":"IF(ISNUMBER(OFFSET('1_Velvoiteluettelo'!$F$17,H18,0)),H8/(1+'2B_Työkustannus'!$E$70),0)","v":0},null,6471.6044050960909]
[null,null,"josta sivu- ja yleiskulu",{"$f":"IF(ISNUMBER(OFFSET('1_Velvoiteluettelo'!$F$17,D18,0)),D8-D9,0)","v":2142.8201252429285},{"$f":"IF(ISNUMBER(OFFSET('1_Velvoiteluettelo'!$F$17,E18,0)),E8-E9,0)","v":1714.2561001943427},{"$f":"IF(ISNUMBER(OFFSET('1_Velvoiteluettelo'!$F$17,F18,0)),F8-F9,0)","v":0},{"$f":"IF(ISNUMBER(OFFSET('1_Velvoiteluettelo'!$F$17,G18,0)),G8-G9,0)","v":0},{"$f":"IF(ISNUMBER(OFFSET('1_Velvoiteluettelo'!$F$17,H18,0)),H8-H9,0)","v":0},null,3857.0762254372712]
[null,null,"Toistuvat muut kulut",{"$f":"IF(ISNUMBER(OFFSET('1_Velvoiteluettelo'!$F$17,D18,0)),'3_Muut kustannukset'!I28,0)","v":0},{"$f":"IF(ISNUMBER(OFFSET('1_Velvoiteluettelo'!$F$17,E18,0)),'3_Muut kustannukset'!J28,0)","v":0},{"$f":"IF(ISNUMBER(OFFSET('1_Velvoiteluettelo'!$F$17,F18,0)),'3_Muut kustannukset'!K28,0)","v":0},{"$f":"IF(ISNUMBER(OFFSET('1_Velvoiteluettelo'!$F$17,G18,0)),'3_Muut kustannukset'!L28,0)","v":0},{"$f":"IF(ISNUMBER(OFFSET('1_Velvoiteluettelo'!$F$17,H18,0)),'3_Muut kustannukset'!M28,0)","v":0},null,0]
[null,null,"Kertaluontoiset henkilöstökulut",{"$f":"IF(ISNUMBER(OFFSET('1_Velvoiteluettelo'!$F$17,D18,0)),'3_Muut kustannukset'!I36,0)","v":0},{"$f":"IF(ISNUMBER(OFFSET('1_Velvoiteluettelo'!$F$17,E18,0)),'3_Muut kustannukset'!J36,0)","v":9181.0494493629885},{"$f":"IF(ISNUMBER(OFFSET('1_Velvoiteluettelo'!$F$17,F18,0)),'3_Muut kustannukset'!K36,0)","v":0},{"$f":"IF(ISNUMBER(OFFSET('1_Velvoiteluettelo'!$F$17,G18,0)),'3_Muut kustannukset'!L36,0)","v":0},{"$f":"IF(ISNUMBER(OFFSET('1_Velvoiteluettelo'!$F$17,H18,0)),'3_Muut kustannukset'!M36,0)","v":0},null,9181.0494493629885]
[null,null,"josta palkat",{"$f":"IF(ISNUMBER(OFFSET('1_Velvoiteluettelo'!$F$17,D18,0)),D12/(1+'2B_Työkustannus'!$E$70),0)","v":0},{"$f":"IF(ISNUMBER(OFFSET('1_Velvoiteluettelo'!$F$17,E18,0)),E12/(1+'2B_Työkustannus'!$E$70),0)","v":5752.5372489743031},{"$f":"IF(ISNUMBER(OFFSET('1_Velvoiteluettelo'!$F$17,F18,0)),F12/(1+'2B_Työkustannus'!$E$70),0)","v":0},{"$f":"IF(ISNUMBER(OFFSET('1_Velvoiteluettelo'!$F$17,G18,0)),G12/(1+'2B_Työkustannus'!$E$70),0)","v":0},{"$f":"IF(ISNUMBER(OFFSET('1_Velvoiteluettelo'!$F$17,H18,0)),H12/(1+'2B_Työkustannus'!$E$70),0)","v":0},null,5752.5372489743031]
[null,null,"josta sivu- ja yleiskulu",{"$f":"IF(ISNUMBER(OFFSET('1_Velvoiteluettelo'!$F$17,D18,0)),D12-D13,0)","v":0},{"$f":"IF(ISNUMBER(OFFSET('1_Velvoiteluettelo'!$F$17,E18,0)),E12-E13,0)","v":3428.5122003886854},{"$f":"IF(ISNUMBER(OFFSET('1_Velvoiteluettelo'!$F$17,F18,0)),F12-F13,0)","v":0},{"$f":"IF(ISNUMBER(OFFSET('1_Velvoiteluettelo'!$F$17,G18,0)),G12-G13,0)","v":0},{"$f":"IF(ISNUMBER(OFFSET('1_Velvoiteluettelo'!$F$17,H18,0)),H12-H13,0)","v":0},null,3428.5122003886854]
[null,null,"Kertaluontoiset muut kulut",{"$f":"IF(ISNUMBER(OFFSET('1_Velvoiteluettelo'!$F$17,D18,0)),'3_Muut kustannukset'!I43,0)","v":0},{"$f":"IF(ISNUMBER(OFFSET('1_Velvoiteluettelo'!$F$17,E18,0)),'3_Muut kustannukset'!J43,0)","v":0},{"$f":"IF(ISNUMBER(OFFSET('1_Velvoiteluettelo'!$F$17,F18,0)),'3_Muut kustannukset'!K43,0)","v":0},{"$f":"IF(ISNUMBER(OFFSET('1_Velvoiteluettelo'!$F$17,G18,0)),'3_Muut kustannukset'!L43,0)","v":0},{"$f":"IF(ISNUMBER(OFFSET('1_Velvoiteluettelo'!$F$17,H18,0)),'3_Muut kustannukset'!M43,0)","v":0},null,0]
[null,null,"Yrityskentän kasvuvauhti",{"$f":"OFFSET('4_Poikkeukset'!$C8,D18,0)","v":0},{"$f":"OFFSET('4_Poikkeukset'!$C8,E18,0)","v":0},{"$f":"OFFSET('4_Poikkeukset'!$C8,F18,0)","v":0},{"$f":"OFFSET('4_Poikkeukset'!$C8,G18,0)","v":0},{"$f":"OFFSET('4_Poikkeukset'!$C8,H18,0)","v":0}]
[null,null,"apulaskuja",{"$f":"IF(D16>0,D16,0)","v":0},{"$f":"IF(E16>0,E16,0)","v":0},{"$f":"IF(F16>0,F16,0)","v":0},{"$f":"IF(G16>0,G16,0)","v":0},{"$f":"IF(H16>0,H16,0)","v":0}]
[null,null,"apulaskuja",0,{"$f":"D18+1","v":1},{"$f":"E18+1","v":2},{"$f":"F18+1","v":3},{"$f":"G18+1","v":4},{"$f":"H18+1","v":5}]
[null,null,"Perusvuosi",{"$f":"'1_Velvoiteluettelo'!$B$13","v":2023},{"$f":"'1_Velvoiteluettelo'!$B$13","v":2023},{"$f":"'1_Velvoiteluettelo'!$B$13","v":2023},{"$f":"'1_Velvoiteluettelo'!$B$13","v":2023},{"$f":"'1_Velvoiteluettelo'!$B$13","v":2023}]
[null,null,"Voimaantulovuosi",{"$f":"OFFSET('1_Velvoiteluettelo'!$F$17,D18,0)","v":2027},{"$f":"OFFSET('1_Velvoiteluettelo'!$F$17,E18,0)","v":2027},{"$f":"OFFSET('1_Velvoiteluettelo'!$F$17,F18,0)","v":0},{"$f":"OFFSET('1_Velvoiteluettelo'!$F$17,G18,0)","v":0},{"$f":"OFFSET('1_Velvoiteluettelo'!$F$17,H18,0)","v":0}]
[]
[null,null,"Tarkastelujakso vuosina:",{"$f":"IF(ISNUMBER(OFFSET('1_Velvoiteluettelo'!$E17,D18,0)),OFFSET('1_Velvoiteluettelo'!$E17,D18,0),10)","v":10},{"$f":"IF(ISNUMBER(OFFSET('1_Velvoiteluettelo'!$E17,E18,0)),OFFSET('1_Velvoiteluettelo'!$E17,E18,0),10)","v":10},{"$f":"IF(ISNUMBER(OFFSET('1_Velvoiteluettelo'!$E17,F18,0)),OFFSET('1_Velvoiteluettelo'!$E17,F18,0),10)","v":10},{"$f":"IF(ISNUMBER(OFFSET('1_Velvoiteluettelo'!$E17,G18,0)),OFFSET('1_Velvoiteluettelo'!$E17,G18,0),10)","v":10},{"$f":"IF(ISNUMBER(OFFSET('1_Velvoiteluettelo'!$E17,H18,0)),OFFSET('1_Velvoiteluettelo'!$E17,H18,0),10)","v":10}]
[null,null,null,null,null,null,null,null,null,null,null,"Nettonykyarvon laskentakaavat"]
[null,null,"Sosiaalinen diskonttokorko (reaalinen):",0.04,null,null,null,null,null,null,null,"Toistuvat kustannuserät annuiteettina perusvuoden nykyarvoon, ml. deflatointi"]
[null,null,"EKI=1951 indeksiluku 2 v. ennen perusvuotta, vka (2021)",2017]
[null,null,"EKI=1951 indeksiluku HE:n valmisteluvuotta ed v. vka",2332,"vuosi 2024"]
[null,null,"Kokonaiskasvu (palkkojen nousu ja yrityskentän kasvu)",{"$f":"(1+'Taustatietoa ATI ja EKI'!$G30)*(1+D16)-1","v":1.6682106606680236E-2},{"$f":"(1+'Taustatietoa ATI ja EKI'!$G30)*(1+E16)-1","v":1.6682106606680236E-2},{"$f":"(1+'Taustatietoa ATI ja EKI'!$G30)*(1+F16)-1","v":1.6682106606680236E-2},{"$f":"(1+'Taustatietoa ATI ja EKI'!$G30)*(1+G16)-1","v":1.6682106606680236E-2},{"$f":"(1+'Taustatietoa ATI ja EKI'!$G30)*(1+H16)-1","v":1.6682106606680236E-2}]
[null,null,"NPV",{"$f":"D4","v":"Velvoite1"},{"$f":"E4","v":"Velvoite2"},{"$f":"F4","v":"Velvoite3"},{"$f":"G4","v":"Velvoite4"},{"$f":"H4","v":"Velvoite5"},null,"Yhteensä",null,"Kertaluonteiset voimaantulovuodesta perusvuoteen, ml. deflatointi"]
[null,null,{"$f":"C8","v":"Toistuvat henkilöstömenot"},{"$f":"IF(ISNUMBER(D$20),IF(D27=$D$24,D8*($D$25/$D$26)*D22*(1+$D$24)^-(D$20-D$19+1),(((D8)*($D$25/$D$26))*((1-((1+D$27)/(1+$D$24))^D$22)/($D$24-D$27))*((1+$D$24)^-(D$20-D$19)))),0)","v":36913.657304357388},{"$f":"IF(ISNUMBER(E$20),IF(E27=$D$24,E8*($D$25/$D$26)*E22*(1+$D$24)^-(E$20-E$19+1),(((E8)*($D$25/$D$26))*((1-((1+E$27)/(1+$D$24))^E$22)/($D$24-E$27))*((1+$D$24)^-(E$20-E$19)))),0)","v":29530.925843485904},0,0,0,null,{"$f":"SUM(D29:I29)","v":66444.583147843296}]
[null,null,"josta palkat",{"$f":"IF(ISNUMBER(D$20),IF(D27=$D$24,D9*($D$25/$D$26)*D22*(1+$D$24)^-(D$20-D$19+1),(((D9)*($D$25/$D$26))*((1-((1+D$27)/(1+$D$24))^D$22)/($D$24-D$27))*((1+$D$24)^-(D$20-D$19)))),0)","v":23128.857960123671},{"$f":"IF(ISNUMBER(E$20),IF(E27=$D$24,E9*($D$25/$D$26)*E22*(1+$D$24)^-(E$20-E$19+1),(((E9)*($D$25/$D$26))*((1-((1+E$27)/(1+$D$24))^E$22)/($D$24-E$27))*((1+$D$24)^-(E$20-E$19)))),0)","v":18503.086368098939},0,0,0,null,{"$f":"SUM(D30:I30)","v":41631.944328222613}]
[null,null,"josta sivu- ja yleiskulu",{"$f":"IF(ISNUMBER(D$20),IF(D27=$D$24,D10*($D$25/$D$26)*D22*(1+$D$24)^-(D$20-D$19+1),(((D10)*($D$25/$D$26))*((1-((1+D$27)/(1+$D$24))^D$22)/($D$24-D$27))*((1+$D$24)^-(D$20-D$19)))),0)","v":13784.799344233712},{"$f":"IF(ISNUMBER(E$20),IF(E27=$D$24,E10*($D$25/$D$26)*E22*(1+$D$24)^-(E$20-E$19+1),(((E10)*($D$25/$D$26))*((1-((1+E$27)/(1+$D$24))^E$22)/($D$24-E$27))*((1+$D$24)^-(E$20-E$19)))),0)","v":11027.839475386969},0,0,0,null,24812.638819620683]
[null,null,"Toistuvat muut kulut",{"$f":"IF(ISNUMBER(D$20),IF(D16=$D$24,D11*($D$25/$D$26)*D22*(1+$D$24)^-(D$20-D$19+1),(((D11)*($D$25/$D$26))*((1-((1+D$16)/(1+$D$24))^D$22)/($D$24-D$16))*((1+$D$24)^-(D$20-D$19)))),0)","v":0},{"$f":"IF(ISNUMBER(E$20),IF(E16=$D$24,E11*($D$25/$D$26)*E22*(1+$D$24)^-(E$20-E$19+1),(((E11)*($D$25/$D$26))*((1-((1+E$16)/(1+$D$24))^E$22)/($D$24-E$16))*((1+$D$24)^-(E$20-E$19)))),0)","v":0},0,0,0,null,0,null,"Kertaluonteiset, jos kasvava yritysjoukko (kertaluonteiset uusille alalle tuleville yrityksille -> annuiteetti tältä osin) "]
[null,null,"Kertaluontoiset henkilöstökulut",{"$f":"IF(AND(ISNUMBER(D$20),(D$27>0)),((D12*($D$25/$D$26))*((1+$D$24)^-(D$20-D$19+1))+((D$27*D12)*($D$25/$D$26)*(1-((1+D$27)/(1+$D$24))^D$22)/($D$24-D$27))*((1+$D$24)^-(D$20-D$19))),((D12*($D$25/$D$26))*((1+$D$24)^-(D$20-D$19+1))))","v":0},{"$f":"IF(AND(ISNUMBER(E$20),(E$27>0)),((E12*($D$25/$D$26))*((1+$D$24)^-(E$20-E$19+1))+((E$27*E12)*($D$25/$D$26)*(1-((1+E$27)/(1+$D$24))^E$22)/($D$24-E$27))*((1+$D$24)^-(E$20-E$19))),((E12*($D$25/$D$26))*((1+$D$24)^-(E$20-E$19+1))))","v":7512.1163420124694},0,0,0,null,7512.1163420124694]
[null,null,"josta palkat",{"$f":"IF(AND(ISNUMBER(D$20),(D$27>0)),((D13*($D$25/$D$26))*((1+$D$24)^-(D$20-D$19+1))+((D$27*D13)*($D$25/$D$26)*(1-((1+D$27)/(1+$D$24))^D$22)/($D$24-D$27))*((1+$D$24)^-(D$20-D$19))),((D13*($D$25/$D$26))*((1+$D$24)^-(D$20-D$19+1))))","v":0},{"$f":"IF(AND(ISNUMBER(E$20),(E$27>0)),((E13*($D$25/$D$26))*((1+$D$24)^-(E$20-E$19+1))+((E$27*E13)*($D$25/$D$26)*(1-((1+E$27)/(1+$D$24))^E$22)/($D$24-E$27))*((1+$D$24)^-(E$20-E$19))),((E13*($D$25/$D$26))*((1+$D$24)^-(E$20-E$19+1))))","v":4706.8398132910215},0,0,0,null,4706.8398132910215]
[null,null,"josta sivu- ja yleiskulu",{"$f":"IF(AND(ISNUMBER(D$20),(D$27>0)),((D14*($D$25/$D$26))*((1+$D$24)^-(D$20-D$19+1))+((D$27*D14)*($D$25/$D$26)*(1-((1+D$27)/(1+$D$24))^D$22)/($D$24-D$27))*((1+$D$24)^-(D$20-D$19))),((D14*($D$25/$D$26))*((1+$D$24)^-(D$20-D$19+1))))","v":0},{"$f":"IF(AND(ISNUMBER(E$20),(E$27>0)),((E14*($D$25/$D$26))*((1+$D$24)^-(E$20-E$19+1))+((E$27*E14)*($D$25/$D$26)*(1-((1+E$27)/(1+$D$24))^E$22)/($D$24-E$27))*((1+$D$24)^-(E$20-E$19))),((E14*($D$25/$D$26))*((1+$D$24)^-(E$20-E$19+1))))","v":2805.2765287214493},0,0,0,null,2805.2765287214493]
[null,null,"Kertaluontoiset muut kulut",{"$f":"IF(AND(ISNUMBER(D$20),(D$16>0)),IF(D16=$D$24,(D15*($D$25/$D$26))*((1+$D$24)^-(D$20-D$19+1))+D15*$D$24*($D$25/$D$26)*D22*(1+$D$24)^-(D$20-D$19+1),((D15*($D$25/$D$26))*((1+$D$24)^-(D$20-D$19+1))+((D$16*D15)*($D$25/$D$26)*(1-((1+D$16)/(1+$D$24))^D$22)/($D$24-D$16))*((1+$D$24)^-(D$20-D$19)))),((D15*($D$25/$D$26))*((1+$D$24)^-(D$20-D$19+1))))","v":0},{"$f":"IF(AND(ISNUMBER(E$20),(E$16>0)),IF(E16=$D$24,(E15*($D$25/$D$26))*((1+$D$24)^-(E$20-E$19+1))+E15*$D$24*($D$25/$D$26)*E22*(1+$D$24)^-(E$20-E$19+1),((E15*($D$25/$D$26))*((1+$D$24)^-(E$20-E$19+1))+((E$16*E15)*($D$25/$D$26)*(1-((1+E$16)/(1+$D$24))^E$22)/($D$24-E$16))*((1+$D$24)^-(E$20-E$19)))),((E15*($D$25/$D$26))*((1+$D$24)^-(E$20-E$19+1))))","v":0},0,0,0,null,0]
[]
[null,null,"Yhteensä",{"$f":"D29+D32+D33+D36","v":36913.657304357388},{"$f":"E29+E32+E33+E36","v":37043.042185498372},0,0,0,null,{"$f":"J29+J32+J33+J36","v":73956.69948985576}]
[]
[null,null,"ANNUALISOITU NPV (NPV per vuosi, 1:1 -vertailuluku)",{"$f":"(D38*($D$24))/(1-(1+$D$24)^(-10))","v":4551.1196677332591},{"$f":"(E38*($D$24))/(1-(1+$D$24)^(-10))","v":4567.0716519111729},{"$f":"(F38*($D$24))/(1-(1+$D$24)^(-10))","v":0},{"$f":"(G38*($D$24))/(1-(1+$D$24)^(-10))","v":0},{"$f":"(H38*($D$24))/(1-(1+$D$24)^(-10))","v":0},null,{"$f":"SUM(D40:I40)","v":9118.191319644433}]
[]
[]
[null,null,null,null,null,null,null,null,null,null,null,"PV = nykyarvo, tarkoittaa myös nettonykyarvoa NPV"]
[null,null,null,null,null,null,null,null,null,null,null,"A = kustannuserä valmisteluvuoden nykyrahassa"]
[null,null,null,null,null,null,null,null,null,null,null," r = korko, reaalinen sosiaalinen diskonttokorko"]
[null,null,null,null,null,null,null,null,null,null,null,"g = kasvutekijä = yritysjoukin %-kasvu vuodessa (jos tarpeen, ks. välilehti 4) ja palkkojen reaalikasvu (jos relevantti)"]
[null,null,null,null,null,null,null,null,null,null,null,"T =  oletettu lain voimassaoloaika, lähtökohtaisesti 10 vuotta. "]
[null,null,null,null,null,null,null,null,null,null,null,"AENPV-kaavassa T = 10, jotta vuositasolle jyvitetyt kustannuserät ovat vertailukelpoisia."]
[null,null,null,null,null,null,null,null,null,null,null,"t0 = perusvuosi (2017)"]
[null,null,null,null,null,null,null,null,null,null,null,"tf = velvoitteen tai muutoksen voimaantulovuosi "]
[null,null,null,null,null,null,null,null,null,null,null,"C = kertaluonteinen kustannuserä valmisteluvuoden nykyrahassa"]

{"sheet":"Listat (älä muuta)","index":13,"n_rows":13,"n_cols":7,"rows_kept":13,"cut":false,"hidden":false,"merged":[]}
[]
[]
[]
[null,1,null,null,null,"Rivejä lisätty:",{"$f":"0","v":0}]
[null,2,null,"EU-minimisääntelyä"]
[null,3,null,"Kansallista tai EU-minimin ylittävää lisäsääntelyä"]
[null,4,null,"EU:n velvoittamaa sääntelyn keventämistä"]
[null,5,null,"Kansallisen tai EU-minimin ylittävän sääntelyn keventämistä"]
[null,6]
[null,7]
[null,8]
[null,9]
[null,"toistaiseksi"]

{"sheet":"Taustatietoa ATI ja EKI","index":14,"n_rows":39,"n_cols":11,"rows_kept":39,"cut":false,"hidden":false,"merged":[]}
["Taustatietoa elinkustannusindeksi (EKI) ja ansiotasoindeksi (ATI)"]
[]
[]
[null,null,null,null,null,"Muutos","Reaalinen muutos"]
[null,null,null,null,"Yksityinen","Yksityinen","Yksityinen",null,null,"Muutos"]
[null,null,null,null,"ATI 1995=100","ATI 1995=100","ATI 1995=100",null,"EKI 1951=100","EKI 1951=100","CAGR 1995-2016"]
[null,null,null,"1995",100,null,null,null,1390]
[null,null,{"$f":"D8-$D$7","v":1},"1996",104.2,{"$f":"E8/E7-1","v":4.2000000000000037E-2},{"$f":"(1+F8)/(1+J8)-1","v":3.6037195994277571E-2},null,1398,{"$f":"I8/I7-1","v":5.7553956834532904E-3},{"$f":"$J$30","v":1.5324275701755985E-2}]
[null,null,{"$f":"D9-$D$7","v":2},"1997",107,2.6871401151631558E-2,1.4534430254403485E-2,null,1415,{"$f":"I9/I8-1","v":1.2160228898426384E-2},{"$f":"$J$30","v":1.5324275701755985E-2}]
[null,null,3,"1998",110.9,3.6448598130841114E-2,2.2003321501839812E-2,null,1435,1.4134275618374659E-2,1.5324275701755985E-2]
[null,null,4,"1999",114.1,2.8854824165915227E-2,1.6809003221823993E-2,null,1452,1.184668989547033E-2,1.5324275701755985E-2]
[null,null,5,"2000",119.1,4.382120946538115E-2,9.7457669178768747E-3,null,1501,3.3746556473829292E-2,1.5324275701755985E-2]
[null,null,6,"2001",124.8,4.7858942065491128E-2,2.1985881767577764E-2,null,1539,2.5316455696202445E-2,1.5324275701755985E-2]
[null,null,7,"2002",129.30000000000001,3.6057692307692513E-2,2.0148936955558971E-2,null,1563,1.5594541910331383E-2,1.5324275701755985E-2]
[null,null,8,"2003",134.4,3.9443155452436152E-2,3.0215378549243832E-2,null,1577,8.9571337172105192E-3,1.5324275701755985E-2]
[null,null,9,"2004",139.4,3.7202380952380931E-2,3.5233009342977573E-2,null,1580,1.9023462270133518E-3,1.5324275701755985E-2]
[null,null,10,"2005",144.80000000000001,3.8737446197991465E-2,2.9614281676804577E-2,null,1594,8.8607594936709333E-3,1.5324275701755985E-2]
[null,null,11,"2006",149.19999999999999,3.0386740331491469E-2,1.2599546293709851E-2,null,1622,1.7565872020075313E-2,1.5324275701755985E-2]
[null,null,12,"2007",154,3.2171581769437019E-2,7.3299071179462327E-3,null,1662,2.4660912453760897E-2,1.5324275701755985E-2]
[null,null,13,"2008",162.30000000000001,5.3896103896103886E-2,1.2471285939493981E-2,null,1730,4.0914560770156427E-2,1.5324275701755985E-2]
[null,null,14,"2009",168.9,4.0665434380776411E-2,4.0665434380776411E-2,null,1730,0,1.5324275701755985E-2]
[null,null,15,"2010",172.8,2.3090586145648295E-2,1.08205105836503E-2,null,1751,1.2138728323699333E-2,1.5324275701755985E-2]
[null,null,16,"2011",177.2,2.5462962962962798E-2,-9.0586930749735339E-3,null,1812,3.4837235865219807E-2,1.5324275701755985E-2]
[null,null,17,"2012",182.5,2.990970654627545E-2,1.7157210208540441E-3,null,1863,2.8145695364238499E-2,1.5324275701755985E-2]
[null,null,18,"2013",186.5,2.1917808219177992E-2,7.3189823874753035E-3,null,1890,1.449275362318847E-2,1.5324275701755985E-2]
[null,null,19,"2014",189.6,1.6621983914208993E-2,5.9767275381439333E-3,null,1910,1.0582010582010692E-2,1.5324275701755985E-2]
[null,null,20,"2015",192.5,1.5295358649789037E-2,1.742609392502481E-2,null,1906,-2.0942408376963817E-3,1.5324275701755985E-2]
[null,null,{"$f":"D28-$D$7","v":21},2016,194.8,{"$f":"E28/E27-1","v":1.194805194805193E-2},8.2451578740130316E-3,null,1913,3.672612801678854E-3,1.5324275701755985E-2]
[]
[null,null,"CAGR",null,null,{"$f":"(E28/E7)^(1/$C$28)-1","v":3.2262023509363136E-2},{"$f":"(1+F30)/(1+J30)-1","v":1.6682106606680236E-2},null,null,{"$f":"(I28/I7)^(1/$C$28)-1","v":1.5324275701755985E-2}]
[]
[]
[null,null,"Muuttuja","Arvo","Lähde"]
[null,null,"Ansiotasoindeksin nimellismuutos keskimäärin 1995 - 2016",{"$f":"F30","v":3.2262023509363136E-2},"Tilastokeskus, ATI=1995, laatijan laskelmat"]
[null,null,"Ansiotasoindeksin reaalimuutos keskimäärin 1995 - 2016",{"$f":"G30","v":1.6682106606680236E-2},"Tilastokeskus, ATI=1995 ja EKI=1951, laatijan laskelmat Fisherin relaatiolla"]
[null,null,"Inflaatio keskimäärin 1995 - 2016",{"$f":"J30","v":1.5324275701755985E-2},"Tilastokeskus, EKI=1951, vuosikeskiarvo, laatijan laskelmat"]
[]
[null,null,null,null,"ks. myös esim. "]
[null,null,null,null,"http://stat.fi/til/ati/2017/01/ati_2017_01_2017-05-30_tie_001_fi.html "]

{"sheet":"Taustatietoa palkat am lk","index":15,"n_rows":621,"n_cols":2,"rows_kept":621,"cut":false,"hidden":false,"merged":[]}
["Yksityisen sektorin kuukausipalkkaisten ansiot ammattiluokituksen (AML 2010) mukaan vuonna 2023"]
[]
["Ammattiluokka","Säännöllisen työajan keskiansio (€)"]
["S Yhteensä",4215]
["1 Johtajat",7599]
["11 Johtajat, ylimmät virkamiehet ja järjestöjen johtajat",7383]
["111 Ylimmät virkamiehet ja järjestöjen johtajat",6026]
["1112 Julkishallinnon ylimmät virkamiehet","."]
["11122 Alue- ja paikallishallinnon johtajat ja ylimmät virkamiehet","."]
["1114 Järjestöjen johtajat",6028]
["11141 Työmarkkina- ja elinkeinoelämän järjestöjen johtajat",9434]
["11142 Muiden järjestöjen johtajat",4812]
["12 Hallintojohtajat ja kaupalliset johtajat",7887]
["121 Liiketoiminta- ja hallintojohtajat",8037]
["1211 Talousjohtajat",8051]
["1212 Henkilöstöjohtajat",7707]
["1213 Politiikka- ja suunnittelujohtajat",8038]
["1219 Muut hallintojohtajat ja kaupalliset johtajat",8165]
["122 Myynti-, markkinointi- ja kehitysjohtajat",7782]
["1221 Myynti- ja markkinointijohtajat",7894]
["1222 Mainos- ja tiedotusjohtajat",7207]
["1223 Tutkimus- ja kehitysjohtajat",7687]
["13 Tuotantotoiminnan ja yhteiskunnan peruspalvelujen johtajat",7328]
["131 Maa-, metsä- ja kalatalouden johtajat",5158]
["1311 Maa- ja metsätalouden johtajat",5181]
["1312 Vesiviljely- ja kalatalouden johtajat","."]
["132 Teollisuuden tuotantojohtajat sekä kaivos-, rakennus- ja jakelujohtajat",7291]
["1321 Teollisuuden tuotantojohtajat",7214]
["1322 Kaivostoiminnan tuotantojohtajat","."]
["1323 Rakennustoiminnan tuotantojohtajat",7319]
["1324 Hankinta- ja jakelujohtajat",7425]
["133 Tieto- ja viestintäteknologiajohtajat",8438]
["1330 Tieto- ja viestintäteknologiajohtajat",8438]
["134 Yhteiskunnan peruspalvelujen sekä rahoitus- ja vakuutuspalvelujen johtajat",6874]
["1341 Lastenhoidon johtajat",3839]
["1342 Terveydenhuollon johtajat",6852]
["1343 Vanhustenhuollon johtajat",4254]
["1344 Sosiaalihuollon johtajat",4808]
["1345 Opetusalan johtajat",6861]
["1346 Rahoitus- ja vakuutuspalvelujen johtajat",9733]
["1349 Muut yhteiskunnan palvelujen johtajat",6848]
["14 Hotelli- ja ravintola-alan, vähittäiskaupan ja muiden palvelualojen johtajat",6512]
["141 Hotellin- ja ravintolanjohtajat",5246]
["1411 Hotellinjohtajat",5427]
["1412 Ravintolanjohtajat",4941]
["142 Vähittäis- ja tukkukaupan johtajat",7600]
["1420 Vähittäis- ja tukkukaupan johtajat",7600]
["143 Muiden palvelualojen johtajat",5999]
["1431 Urheilu-, vapaa-aika- ja kulttuurikeskusten johtajat",5293]
["1439 Muut palvelualojen johtajat",6752]
["2 Erityisasiantuntijat",5042]
["21 Luonnontieteiden ja tekniikan erityisasiantuntijat",4984]
["211 Luonnon- ja geotieteen erityisasiantuntijat",4603]
["2111 Fyysikot ja astronomit",4576]
["2112 Meteorologit","."]
["2113 Kemistit",4612]
["2114 Geologit ja geofyysikot",4631]
["212 Matematiikan ja tilastotieteen erityisasiantuntijat",4974]
["2120 Matemaatikot, aktuaarit ja tilastotieteilijät",4974]
["213 Biotieteiden erityisasiantuntijat",4276]
["2131 Biologit, kasvi- ja eläintieteilijät ym. erityisasiantuntijat",4455]
["2132 Maa-, metsä- ja kalatalouden erityisasiantuntijat",3937]
["21321 Maa- ja kalatalouden erityisasiantuntijat",3738]
["21322 Metsätalouden erityisasiantuntijat",3973]
["2133 Ympäristön- ja luonnonsuojelun erityisasiantuntijat",4681]
["214 Tekniikan erityisasiantuntijat (pl. sähköteknologia)",5072]
["2141 Teollisen valmistuksen ja tuotantotekniikan erityisasiantuntijat",5223]
["2142 Maa- ja vesirakentamisen erityisasiantuntijat",5162]
["2143 Ympäristötekniikan erityisasiantuntijat",4312]
["2144 Konetekniikan erityisasiantuntijat",4785]
["2145 Puunjalostuksen ja kemian prosessitekniikan erityisasiantuntijat",5244]
["2146 Kaivosteollisuuden, metallurgian ym. erityisasiantuntijat",5145]
["2149 Muut tekniikan erityisasiantuntijat",5181]
["215 Sähköteknologian erityisasiantuntijat",5206]
["2151 Sähkötekniikan erityisasiantuntijat",4883]
["2152 Elektroniikan erityisasiantuntijat",5492]
["2153 ICT-alan erityisasiantuntijat",5705]
["21531 Tietoliikenneteknologian tutkijat",5878]
["21532 Tietotekniikka-alan tutkijat",4669]
["216 Arkkitehdit, suunnittelijat ja maanmittaajat",4528]
["2161 Talonrakennuksen arkkitehdit",4720]
["2162 Maisema-arkkitehdit",3866]
["2163 Tuote- ja vaatesuunnittelijat",3990]
["2164 Yhdyskunta- ja liikennesuunnittelijat",4852]
["2165 Kartoituksen ja maanmittauksen erityisasiantuntijat",4176]
["2166 Graafiset ja multimediasuunnittelijat",3819]
["22 Terveydenhuollon erityisasiantuntijat",5371]
["221 Lääkärit",7912]
["2211 Yleislääkärit",9569]
["2212 Ylilääkärit ja erikoislääkärit",6981]
["22121 Ylilääkärit",9343]
["22122 Erikoislääkärit",6433]
["222 Hoitotyön erityisasiantuntijat",3868]
["2221 Ylihoitajat ja osastonhoitajat",3868]
["22211 Ylihoitajat",4646]
["22212 Osastonhoitajat",3831]
["225 Eläinlääkärit",5459]
["2250 Eläinlääkärit",5459]
["226 Muut terveydenhuollon erityisasiantuntijat",4984]
["2261 Hammaslääkärit",7380]
["2262 Proviisorit",5067]
["2263 Ympäristöterveyden ja työsuojelun erityisasiantuntijat",5326]
["2265 Ravitsemusalan erityisasiantuntijat",3829]
["2266 Kuulontutkijat ja puheterapeutit",4072]
["2269 Muut muualla luokittelemattomat terveydenhuollon erityisasiantuntijat",4505]
["23 Opettajat ja muut opetusalan erityisasiantuntijat",4533]
["231 Yliopisto- ja korkeakouluopettajat",5219]
["2310 Yliopistojen ja ammattikorkeakoulujen opettajat",5219]
["23101 Professorit",7136]
["23102 Lehtorit ja yliassistentit (yliopisto)",4610]
["23103 Assistentit ja tuntiopettajat (yliopisto)",3836]
["23104 Yliopettajat (AMK)",6166]
["23105 Lehtorit (AMK)",5134]
["23106 Tuntiopettajat ym. (AMK)",4389]
["232 Ammatillisen koulutuksen opettajat",4189]
["2320 Ammatillisen koulutuksen opettajat",4189]
["233 Lukion ja peruskoulun yläluokkien opettajat",4321]
["2330 Lukion ja peruskoulun yläluokkien opettajat",4321]
["23304 Muut peruskoulun yläluokkien ja lukion opettajat",4474]
["234 Peruskoulun alaluokkien opettajat ja lastentarhanopettajat",2871]
["2341 Peruskoulun alaluokkien opettajat",3303]
["23411 Luokanopettajat",3393]
["23412 Aineenopettajat (peruskoulun alaluokat)",3758]
["2342 Lastentarhanopettajat",2859]
["235 Muut opetusalan erityisasiantuntijat",3818]
["2351 Opetusmenetelmien erityisasiantuntijat",4057]
["2352 Erityisopettajat",4195]
["2353 Muut kieltenopettajat",3895]
["2354 Muut musiikin opettajat",3395]
["2355 Muut taideaineiden opettajat",3377]
["2356 Muut tietotekniikan opettajat ja kouluttajat",3915]
["2359 Opinto-ohjaajat ja muut opetuksen erityisasiantuntijat",3519]
["23591 Opinto-ohjaajat",3054]
["23592 Muut opetuksen erityisasiantuntijat",4046]
["24 Liike-elämän ja hallinnon erityisasiantuntijat",5246]
["241 Rahoitusalan erityisasiantuntijat",5447]
["2411 Laskentatoimen erityisasiantuntijat ja tilintarkastajat",5298]
["2412 Rahoitus- ja sijoitusneuvojat",5997]
["2413 Rahoitusanalyytikot",5933]
["242 Hallinnon erityisasiantuntijat",5053]
["2421 Johtamisen ja organisaatioiden erityisasiantuntijat",5577]
["2422 Hallinnon ja elinkeinojen kehittämisen erityisasiantuntijat",4757]
["2423 Henkilöstöhallinnon erityisasiantuntijat ja urasuunnittelijat",4680]
["2424 Henkilöstön kehittämisen erityisasiantuntijat ja kouluttajat",4350]
["243 Myynnin, markkinoinnin ja tiedotuksen erityisasiantuntijat",5275]
["2431 Mainonnan ja markkinoinnin erityisasiantuntijat",4912]
["2432 Tiedottajat",4479]
["2433 Myynti-insinöörit ja lääke-esittelijät (pl. tieto- ja viestintätekniikka)",5627]
["2434 Tieto- ja viestintätekniikan myynnin erityisasiantuntijat",6556]
["25 Tieto- ja viestintäteknologian erityisasiantuntijat",5206]
["251 Systeemityön erityisasiantuntijat",5252]
["2511 Sovellusarkkitehdit",5586]
["2512 Sovellussuunnittelijat",5002]
["2513 Web- ja multimediakehittäjät",5036]
["2514 Sovellusohjelmoijat",4599]
["2519 Muut ohjelmisto- ja sovelluskehittäjät",5390]
["252 Tietokantojen,- verkkojen ja järjestelmäohjelmistojen erityisasiantuntijat",4972]
["2521 Tietokantasuunnittelijat ja -vastaavat",3878]
["2522 Tietojärjestelmien ylläpitäjät",5017]
["2523 Tietoverkkojen erityisasiantuntijat",5186]
["2529 Muut tietokanta- ja tietoverkkojen erityisasiantuntijat",5673]
["26 Lainopilliset, sosiaalialan ja kulttuurialan erityisasiantuntijat",4666]
["261 Lainopilliset erityisasiantuntijat",6614]
["2611 Asianajajat",6552]
["2619 Muut lainopilliset erityisasiantuntijat",6792]
["262 Kirjaston- ja arkistonhoitajat sekä museoalan erityisasiantuntijat",3806]
["2621 Arkistonhoitajat ja museoalan erityisasiantuntijat",3549]
["26211 Arkistonhoitajat",3457]
["26212 Museoalan erityisasiantuntijat",3596]
["2622 Kirjastonhoitajat, informaatikot ym.",3987]
["263 Yhteiskunta- ja sosiaalialan sekä uskonnollisen elämän erityisasiantuntijat",4033]
["2631 Ekonomistit",5122]
["2632 Yhteiskunta- ja kulttuuritutkijat",4113]
["2633 Historioitsijat, politiikan tutkijat ja filosofit",4153]
["2634 Psykologit",4650]
["2635 Sosiaalityön erityisasiantuntijat",3640]
["26351 Sosiaalityöntekijät ym.",3701]
["26352 Sosiaalialan suunnittelijat ym.",3570]
["2636 Papit ym. uskonnollisen elämän erityisasiantuntijat",4038]
["264 Toimittajat, kirjailijat ja kielitieteilijät",4295]
["2641 Kirjailijat ym.",4009]
["2642 Toimittajat",4416]
["26421 Toimituspäälliköt ja -sihteerit, ohjelmapäälliköt",4994]
["26422 Lehtien yms. toimittajat",4158]
["2643 Kääntäjät, tulkit ja muut kielitieteilijät",3523]
["265 Taiteilijat",4134]
["2651 Kuvataiteilijat",4344]
["2652 Muusikot, laulajat ja säveltäjät",3410]
["2653 Tanssitaiteilijat ja koreografit",3025]
["2654 Ohjaajat ja tuottajat",4611]
["2655 Näyttelijät",3707]
["2659 Muut taiteilijat",3643]
["3 Asiantuntijat",3996]
["31 Luonnontieteiden ja tekniikan asiantuntijat",4112]
["311 Fysiikan, kemian ja teknisten alojen asiantuntijat",4051]
["3111 Luonnontieteen tekniset asiantuntijat",3368]
["3112 Rakentamisen asiantuntijat",4153]
["31121 Talonrakentamisen asiantuntijat",4321]
["31122 Maa- ja vesirakentamisen asiantuntijat",4047]
["31123 Kartoituksen ja maanmittauksen asiantuntijat",3455]
["3113 Sähkötekniikan asiantuntijat",4211]
["3114 Elektroniikan asiantuntijat",4079]
["3115 Konetekniikan asiantuntijat",4208]
["3116 Kemian prosessitekniikan asiantuntijat",4225]
["3117 Kaivosteollisuuden ja metallurgian asiantuntijat",4211]
["3118 Tekniset piirtäjät",3325]
["3119 Muut fysiikan, kemian ja teknisten alojen asiantuntijat",3887]
["312 Työnjohtajat kaivos-, teollisuus- ja rakennustoiminnassa",4415]
["3121 Kaivostyönjohtajat",4456]
["3122 Teollisuuden työnjohtajat",4098]
["3123 Rakennusalan työnjohtajat",4577]
["313 Prosessinvalvonnan asiantuntijat",4112]
["3131 Voimalaitosten prosessinhoitajat",4957]
["3132 Jätteenpoltto- ja vedenpuhdistuslaitosten prosessinhoitajat",3630]
["3133 Kemianteollisuuden prosessinhoitajat",3618]
["3135 Metallien jalostuksen prosessinhoitajat","."]
["3139 Muut prosessinvalvonnan asiantuntijat",4789]
["314 Biotieteiden asiantuntijat",3221]
["3141 Laborantit ym.",3085]
["3142 Maa- ja kalatalousteknikot",3291]
["3143 Metsätalousteknikot",3811]
["315 Laiva-, lento- ja satamaliikenteen päälliköt ja ohjaajat",5423]
["3151 Laivojen konepäälliköt ja -mestarit",5213]
["3152 Vesiliikenteen perämiehet ja päälliköt",5642]
["31521 Isojen alusten päälliköt ja perämiehet",5416]
["31522 Pienten alusten päälliköt",4758]
["31523 Satamaliikenteen ohjaajat ja satamakapteenit",5973]
["3153 Lentokapteenit ja -perämiehet","..."]
["3154 Lennonjohtajat",4598]
["3155 Lennonvalvonnan tekniset asiantuntijat",4149]
["32 Terveydenhuollon asiantuntijat",3322]
["321 Terveydenhuollon tekniset asiantuntijat",3408]
["3211 Lääketieteellisen kuvantamis- ja laitetekniikan asiantuntijat",3532]
["3212 Bioanalyytikot (terveydenhuolto)",3164]
["3213 Farmaseutit",3516]
["3214 Hammas- ja apuvälineteknikot",3424]
["32141 Hammasteknikot",3201]
["32142 Apuvälineteknikot",3714]
["322 Sairaanhoitajat, kätilöt ym.",3301]
["3221 Sairaanhoitajat ym.",3300]
["32211 Sairaanhoitajat",3273]
["32212 Terveydenhoitajat",3377]
["3222 Kätilöt",3432]
["324 Seminologit ym.",2657]
["3240 Seminologit ym.",2657]
["325 Muut terveydenhuollon asiantuntijat",3303]
["3251 Suuhygienistit",3218]
["3254 Optikot",3652]
["3255 Fysioterapeutit ym.",3061]
["3257 Terveys- ja työsuojelutarkastajat",4272]
["3258 Sairaankuljetuksen ensihoitajat",3271]
["3259 Muut muualla luokittelemattomat terveydenhuollon asiantuntijat",3120]
["32591 Toimintaterapeutit",3108]
["32592 Muut terapeutit",3119]
["33 Liike-elämän ja hallinnon asiantuntijat",4229]
["331 Rahoitus-, vakuutus-  ja laskentatoimen asiantuntijat",3865]
["3311 Arvopaperi- ja valuuttakauppiaat",6117]
["3312 Luotto- ja laina-asiantuntijat",5049]
["3313 Kirjanpidon ja laskentatoimen asiantuntijat",3522]
["3314 Tilastointi- ja matematiikka-asiantuntijat",3304]
["3315 Arvioitsijat ja vahinkotarkastajat",4503]
["332 Myynti- ja ostoagentit",4616]
["3321 Vakuutusalan palvelumyyjät",4556]
["3322 Myyntiedustajat",4693]
["3323 Sisäänostajat",4340]
["3324 Kaupanvälittäjät",4759]
["333 Yrityspalveluiden välittäjät",4059]
["3331 Huolitsijat, tulli- ja laivanselvittäjät",3832]
["3332 Konferenssi- ja tapahtumajärjestäjät",3457]
["3333 Työnvälittäjät",3816]
["3334 Kiinteistönvälittäjät ja isännöitsijät",4119]
["33341 Kiinteistönvälittäjät",3953]
["33342 Isännöitsijät",4148]
["3339 Muut liike-elämän asiantuntijat",4397]
["334 Hallinnolliset ja erikoistuneet sihteerit",3936]
["3341 Toimistotyön esimiehet",4278]
["3342 Asianajosihteerit",3435]
["3343 Johdon sihteerit ja osastosihteerit",3823]
["3344 Toimistosihteerit (terveydenhuolto)",2750]
["335 Julkishallinnon valmistelu- ja valvontavirkamiehet",2922]
["3352 Verovalmistelijat ja -tarkastajat",4692]
["3353 Sosiaaliturvaetuuksien käsittelijät",2912]
["3359 Muut julkishallinnon valmistelu- ja valvontavirkamiehet","."]
["34 Lainopilliset avustajat sekä sosiaali- ja kulttuurialan asiantuntijat",3393]
["341 Lainopilliset asiantuntijat sekä sosiaalialan ja seurakunnan työntekijät",3379]
["3411 Lainopilliset avustajat ja järjestöalan asiantuntijat",4364]
["34111 Oikeudenkäyntiasiamiehet ja ulosottomiehet",3996]
["34112 Asiamiehet, toimitsijat ym. järjestöalan asiantuntijat",4451]
["34113 Kuluttajaneuvojat ym.",3290]
["3412 Sosiaalialan ohjaajat ja neuvojat ym.",3181]
["34121 Sosiaalialan ohjaajat",3233]
["34122 Nuorisotyön ohjaajat (ei srk.)",2888]
["34123 Työn- ja askarteluohjaajat",2882]
["3413 Seurakuntatyöntekijät",2904]
["34131 Diakonit ja diakonissat",3056]
["34139 Muut seurakuntatyöntekijät",2848]
["342 Urheilijat, urheiluvalmentajat, liikunnanohjaajat ym.",3585]
["3421 Urheilijat",4605]
["3422 Urheiluvalmentajat ja toimitsijat",3426]
["3423 Liikunnan ja vapaa-ajan ohjaajat",2974]
["343 Taide- ja kulttuurialan asiantuntijat sekä keittiöpäälliköt",3332]
["3431 Valokuvaajat",3634]
["3432 Sisustussuunnittelijat ym.",3145]
["3433 Gallerioiden, museoiden ja kirjastojen tekniset työntekijät",3074]
["3434 Keittiöpäälliköt",3521]
["3435 Muut taide- ja kulttuurialan asiantuntijat",3217]
["34351 Kuvaussihteerit ja muut näyttämötekniset asiantuntijat",3260]
["34359 Muut taide- ja kulttuurialan tekniset asiantuntijat",3058]
["35 Informaatio- ja tietoliikenneteknologian asiantuntijat",3972]
["351 Informaatio- ja tietoliikenneteknologian teknikot sekä käyttäjätukihenkilöt",3944]
["3511 Käytön operaattorit",4115]
["3512 Käytön tukihenkilöt",3704]
["3513 Tietoverkkoteknikot",4530]
["3514 Webmasterit ja -teknikot",4194]
["352 Teleliikenne- sekä radio- ja tv-teknikot",4187]
["3521 Lähetys- ja audiovisuaaliteknikot",3701]
["3522 Televiestinnän tekniset asiantuntijat",4495]
["4 Toimisto- ja asiakaspalvelutyöntekijät",3215]
["41 Toimistotyöntekijät",3191]
["411 Toimistoavustajat",2991]
["4110 Toimistoavustajat",2991]
["412 Yleissihteerit",3203]
["4120 Yleissihteerit",3203]
["413 Tekstinkäsittelijät ja tallentajat",3112]
["4131 Tekstinkäsittelijät",3154]
["4132 Tallentajat",3075]
["42 Asiakaspalvelutyöntekijät",3099]
["421 Rahaliikenteen asiakaspalvelutyöntekijät",3417]
["4211 Pankki- ym. toimihenkilöt",3460]
["4214 Maksujenperijät",3015]
["422 Muut asiakaspalvelutyöntekijät",2876]
["4221 Matkatoimistovirkailijat",3379]
["4222 Puhelinpalveluneuvojat",2783]
["4223 Puhelinvaihteenhoitajat",2816]
["4224 Hotellin vastaanottovirkailijat",2763]
["4225 Informaatiopisteen asiakasneuvojat",2798]
["4226 Vastaanoton ja neuvonnan hoitajat",2685]
["4227 Tutkimus- ja markkinatutkimushaastattelijat",3138]
["4229 Muualla luokittelemattomat asiakaspalvelutyöntekijät",3012]
["42299 Muut muualla luokittelemattomat asiakaspalvelutyöntekijät",3016]
["43 Laskennan ja varastoinnin toimistotyöntekijät",3325]
["431 Palkanlaskijat, vakuutuskäsittelijät ym.",3184]
["4311 Taloushallinnon toimistotyöntekijät",3130]
["4312 Tilasto-, rahoitus- ja vakuutusalan toimistotyöntekijät",3351]
["4313 Palkanlaskijat",3101]
["432 Kuljetuksen ja varastoinnin toimistotyöntekijät",3535]
["4321 Varastonhoitajat ym.",3581]
["4322 Tuotannon valmistelijat",3249]
["4323 Kuljetuksen toimistotyöntekijät",3521]
["43231 Raideliikenteen ohjaajat, ajojärjestelijät ym.",4526]
["43239 Muut kuljetuksen ja huolinnan toimistotyöntekijät",3449]
["44 Muut toimisto- ja asiakaspalvelutyöntekijät",3204]
["441 Muut toimisto- ja asiakaspalvelutyöntekijät",3204]
["4411 Kirjastotyöntekijät",2868]
["4412 Postinkantajat ja -lajittelijat",2740]
["44121 Postinkantajat","."]
["44122 Toimistovahtimestarit",2685]
["4413 Koodaajat, oikolukijat ym.",3367]
["4415 Arkistotyöntekijät",3279]
["4416 Henkilöstöhallinnon avustavat toimistotyöntekijät",3244]
["4419 Muut muualla luokittelemattomat toimisto- ja asiakaspalvelutyöntekijät",3357]
["5 Palvelu- ja myyntityöntekijät",2928]
["51 Palvelutyöntekijät",2854]
["511 Matkustuspalvelutyöntekijät, konduktöörit ja oppaat",3319]
["5113 Matkaoppaat",2857]
["512 Ravintola- ja suurtaloustyöntekijät",2897]
["5120 Ravintola- ja suurtaloustyöntekijät",2897]
["51201 Kokit, keittäjät ja kylmäköt",2630]
["51202 Ravintolaesimiehet ja vuoropäälliköt",3105]
["513 Tarjoilutyöntekijät",2661]
["5131 Tarjoilijat",2638]
["5132 Baarimestarit",3077]
["514 Kampaajat, parturit, kosmetologit ym.",2631]
["5141 Kampaajat ja parturit",2557]
["5142 Kosmetologit ym.",2758]
["515 Kiinteistöhuollon ja siivoustyön esimiehet",2835]
["5151 Siivoustyön esimiehet toimistoissa, hotelleissa ja muissa laitoksissa",3353]
["5152 Yksityiskotien taloudenhoitajat","."]
["5153 Kiinteistöhuollon työntekijät",2705]
["516 Muut henkilökohtaisen palvelun työntekijät",2709]
["5163 Hautauspalvelutyöntekijät",3191]
["51632 Muut hautaustyöntekijät",3265]
["5164 Eläintenhoitajat ja lemmikkieläinten trimmaajat",2565]
["5165 Ajo-opettajat",3271]
["5169 Muualla luokittelemattomat henkilökohtaisen palvelun työntekijät",2869]
["52 Myyjät, kauppiaat ym.",3042]
["521 Katu- ja torikauppiaat","."]
["5211 Kioski- ja torimyyjät","."]
["522 Myyjät ja kauppiaat",3066]
["5222 Myymäläesimiehet",3527]
["5223 Myyjät",2902]
["523 Kassanhoitajat ja lipunmyyjät",2529]
["5230 Kassanhoitajat ja lipunmyyjät",2529]
["524 Muut myyntityöntekijät",2947]
["5242 Tuote-esittelijät",3406]
["5243 Suoramyyjät",3691]
["5244 Puhelin- ja asiakaspalvelukeskusten myyjät",2944]
["5245 Huoltamotyöntekijät",2614]
["5246 Kahvila- ja baarimyyjät",2505]
["5249 Muut muualla luokittelemattomat myyntityöntekijät",4017]
["53 Hoivapalvelun ja terveydenhuollon työntekijät",2825]
["531 Lastenhoitajat ja koulunkäyntiavustajat",2450]
["5311 Lastenhoitotyöntekijät",2460]
["53111 Päiväkotien ja muiden laitosten lastenhoitajat ym.",2448]
["53112 Perhepäivähoitajat",2277]
["53113 Lastenkerhojen ohjaajat ym.",2635]
["5312 Koulunkäyntiavustajat",2365]
["532 Lähihoitajat, muut terveydenhuollon työntekijät ja kodinhoitajat",2881]
["5321 Lähihoitajat",2925]
["53211 Mielenterveyshoitajat",2907]
["53212 Kehitysvammaisten hoitajat",2946]
["53213 Sosiaalialan hoitajat",2923]
["53219 Muut lähihoitajat",2932]
["5322 Kodinhoitajat (kotipalvelutoiminta)",2728]
["53221 Kotityöpalvelutyöntekijät",2817]
["53222 Henkilökohtaiset avustajat, omaishoitajat ym.",2507]
["5329 Muut terveydenhuoltoalan työntekijät",2571]
["53291 Hammashoitajat",2824]
["53292 Välinehuoltajat",2522]
["53293 Apteekkien lääketyöntekijät",2331]
["53294 Hierojat ja kuntohoitajat",3020]
["54 Suojelu- ja vartiointityöntekijät",3134]
["541 Suojelu- ja vartiointityöntekijät",3134]
["5411 Palomiehet",3664]
["5414 Vartijat",3131]
["5419 Muut suojelu- ja vartiointityöntekijät",3004]
["6 Maanviljelijät, metsätyöntekijät ym.",2664]
["61 Maanviljelijät ja eläintenkasvattajat ym.",2657]
["611 Pelto- ja puutarhaviljelijät",2782]
["6113 Puutarhurit, kasvihuoneviljelijät ja -työntekijät",2783]
["61131 Puutarhurit ja kasvihuoneviljelijät",2766]
["61132 Puutarha- ja kasvihuonetyönjohtajat ja - työntekijät",2464]
["612 Eläintenkasvattajat",2411]
["6121 Liha- ja lypsykarjan kasvattajat sekä muiden kotieläinten kasvattajat",2407]
["61212 Karjanhoitajat ym.",2236]
["6129 Muut eläinten kasvattajat ja hoitajat",2236]
["613 Yhdistetyn maanviljelyn ja eläintenkasvatuksen harjoittajat",2720]
["6130 Yhdistetyn maanviljelyn ja eläintenkasvatuksen harjoittajat",2718]
["62 Metsä- ja kalatalouden työntekijät",2718]
["621 Metsurit ja metsätyöntekijät",3317]
["6210 Metsurit ja metsätyöntekijät",2887]
["7 Rakennus-, korjaus- ja valmistustyöntekijät",3208]
["71 Rakennustyöntekijät ym. (pl. sähköasentajat)","."]
["711 Rakennustyöntekijät ym.","."]
["7111 Talonrakentajat","."]
["7115 Kirvesmiehet ja rakennuspuusepät","."]
["7119 Muut rakennustyöntekijät","."]
["712 Rakennusten viimeistelytyöntekijät","."]
["7121 Kattoasentajat ja -korjaajat",3490]
["7126 Putkiasentajat",3249]
["7127 Ilmastointi- ja jäähdytyslaiteasentajat",3033]
["713 Maalarit ja rakennuspuhdistajat","."]
["7131 Rakennusmaalarit ym.","."]
["7132 Ruiskumaalaajat ja -lakkaajat",2972]
["72 Konepaja- ja valimotyöntekijät sekä asentajat ja korjaajat",3376]
["721 Valimotyöntekijät, hitsaajat, levysepät ym.","."]
["7212 Hitsaajat ja kaasuleikkaajat","."]
["7213 Ohutlevysepät","."]
["722 Sepät, työkaluntekijät ja koneenasettajat",2817]
["7222 Työkaluntekijät ja lukkosepät",2855]
["7223 Koneenasettajat ja koneistajat",3134]
["723 Koneasentajat ja -korjaajat",3379]
["7231 Moottoriajoneuvojen asentajat ja korjaajat",3244]
["7232 Lentokoneasentajat ja -korjaajat",3901]
["7233 Maatalous- ja teollisuuskoneasentajat ja -korjaajat",3485]
["73 Käsityötuotteiden valmistajat, hienomekaanikot sekä painoalan työntekijät",3034]
["731 Käsityötuotteiden valmistajat ja hienomekaanikot",3172]
["7311 Kellosepät ja muut hienomekaanisten instrumenttien tekijät ja korjaajat",3077]
["7312 Soittimien tekijät ja virittäjät","."]
["7313 Koru-, kulta- ja hopeasepät",2986]
["7318 Tekstiili-, nahka- yms. käsityötuotteiden tekijät",2557]
["732 Painoalan työntekijät",2703]
["7321 Painopinnanvalmistajat",4062]
["7322 Painajat",2741]
["7323 Jälkikäsittelijät ja sitomotyöntekijät","."]
["74 Sähkö- ja elektroniikka-alan työntekijät",3518]
["741 Sähkölaitteiden asentajat ja korjaajat",3586]
["7411 Rakennussähköasentajat",3584]
["7412 Muut sähköasentajat",3573]
["7413 Linja-asentajat ja -korjaajat","."]
["742 Elektroniikka- ja tietoliikenneasentajat ja -korjaajat",3463]
["7421 Elektroniikka- ja automaatiolaitteiden asentajat ja korjaajat",3865]
["74211 Elektroniikka-asentajat ja -korjaajat",3624]
["74212 Automaatioasentajat ja -korjaajat",4111]
["7422 Tieto- ja viestintäteknologian asentajat ja korjaajat",3201]
["75 Elintarvike-, puutyö- ja vaatetus- ja jalkinealan valmistustyöntekijät ym.",3058]
["751 Lihanleikkaajat, leipurit, meijeristit ym.",2838]
["7511 Lihanleikkaajat, kalankäsittelijät ym.","."]
["7512 Leipurit ja kondiittorit",2690]
["7513 Meijeristit, juustomestarit ym.",3953]
["7514 Hedelmä- ja vihannestuotteiden valmistajat",2930]
["7515 Ruokien ja juomien laaduntarkkailijat","."]
["752 Puutavaran käsittelijät, puusepät ym.",2920]
["7521 Raakapuun käsittelijät","."]
["7522 Huonekalupuusepät ym.",2849]
["7523 Konepuusepät",3332]
["753 Vaatetusalan työntekijät ym.",2817]
["7531 Vaatturit, pukuompelijat, turkkurit ja hatuntekijät",2745]
["7533 Koru- ja muut tekstiiliompelijat",2329]
["7536 Suutarit ym.","."]
["754 Muut pääluokkaan 7 luokiteltavat työntekijät",3205]
["7543 Luokittelijat ja laaduntarkkailijat (pl. ruoat ja juomat)",3201]
["8 Prosessi- ja kuljetustyöntekijät",3277]
["81 Prosessityöntekijät",3103]
["811 Kaivos- ja louhintatyön koneenkäyttäjät","."]
["8111 Kaivos- ja louhostyöntekijät","."]
["8114 Betonituote- ym. teollisuuden prosessityöntekijät","."]
["812 Metalliteollisuuden prosessityöntekijät ja viimeistelijät","."]
["813 Kemianteollisuuden ja valokuvatuotteiden valmistuksen prosessityöntekijät",3142]
["8131 Kemianteollisuuden prosessityöntekijät ym.",3175]
["8132 Valokuvatuotteiden valmistuksen prosessityöntekijät",2646]
["814 Kumi-, muovi- ja paperituotteiden valmistuksen prosessityöntekijät","."]
["8141 Kumituoteteollisuuden prosessityöntekijät","."]
["8142 Muovituoteteollisuuden prosessityöntekijät","."]
["815 Tekstiili-, turkis- ja nahkatuoteteollisuuden prosessityöntekijät",2259]
["8153 Teollisuusompelijat",3016]
["8157 Pesulatyöntekijät",2208]
["816 Elintarviketeollisuuden prosessityöntekijät",3137]
["8160 Elintarviketeollisuuden prosessityöntekijät",3137]
["817 Sahatavaran sekä paperin ja kartongin valmistuksen prosessityöntekijät","."]
["8171 Paperimassan sekä paperin ja kartongin valmistuksen prosessityöntekijät","."]
["8172 Puu- ja sahatavaran prosessityöntekijät","."]
["818 Muut prosessityöntekijät",3325]
["8182 Höyrykoneiden ja lämmityskattiloiden hoitajat, lämmittäjät ym.",3576]
["81821 Voima- ja jätteenkäsittelylaitosten laitosmiehet",3568]
["81822 Muut laitosmiehet ym.","."]
["8183 Pakkaus-, pullotus- ja etiketöintikoneiden hoitajat",2909]
["8189 Muut muualla luokittelemattomat prosessityöntekijät",3473]
["82 Teollisuustuotteiden kokoonpanijat",3152]
["821 Teollisuustuotteiden kokoonpanijat",3152]
["8211 Konepaja- ja metallituotteiden kokoonpanijat","."]
["8212 Sähkö- ja elektroniikkalaitteiden kokoonpanijat",3325]
["8219 Muut teollisuustuotteiden kokoonpanijat",2895]
["83 Kuljetustyöntekijät",3350]
["831 Raideliikenteen kuljettajat ja työntekijät",4168]
["8311 Veturinkuljettajat",4309]
["8312 Jarru-, turvalaite- ja vaihdetyöntekijät",3801]
["832 Henkilö- ja pakettiauton- sekä moottoripyöränkuljettajat",2669]
["8322 Henkilö-, taksi- ja pakettiautonkuljettajat",2655]
["833 Raskaiden moottoriajoneuvojen kuljettajat","."]
["8331 Linja-auton- ja raitiovaununkuljettajat","."]
["8332 Kuorma-auton ja erikoisajoneuvojen kuljettajat",2619]
["834 Työkoneiden kuljettajat","."]
["8341 Maa- ja metsätaloustyökoneiden kuljettajat","."]
["8342 Maansiirtokoneiden ym. kuljettajat","."]
["8344 Ahtaajat ja trukinkuljettajat ym.",3464]
["83442 Trukinkuljettajat ym.",3489]
["835 Kansimiehistö ym. vesiliikenteen työntekijät",3468]
["8350 Kansimiehistö ym. vesiliikenteen työntekijät",3468]
["9 Muut työntekijät",2587]
["91 Siivoojat, kotiapulaiset ja muut puhdistustyöntekijät",2397]
["911 Koti-, hotelli- ja toimistosiivoojat ym.",2382]
["9111 Kotiapulaiset ja -siivoojat","."]
["9112 Toimisto- ja laitossiivoojat ym.",2383]
["91121 Toimistosiivoojat ym.",2344]
["91122 Hotellisiivoojat",2409]
["91123 Sairaala- ja laitosapulaiset",2419]
["91124 Päiväkotiapulaiset",2099]
["91129 Muut muualla luokittelemattomat siivoojat",2729]
["912 Ajoneuvojen puhdistajat, ikkunanpesijät ym.",3213]
["9122 Ajoneuvojen pesijät",2630]
["92 Maa-, metsä- ja kalatalouden avustavat työntekijät",2044]
["921 Maa-, metsä- ja kalatalouden avustavat työntekijät",2044]
["9211 Maanviljelyn avustavat työntekijät",3152]
["9214 Avustavat puutarhatyöntekijät",1999]
["93 Teollisuuden ja rakentamisen avustavat työntekijät",2831]
["931 Avustavat kaivos- ja rakennustyöntekijät",3993]
["9312 Maa- ja vesirakentamisen avustavat työntekijät",4047]
["9313 Rakennusalan avustavat työntekijät",3312]
["932 Valmistusalan avustavat työntekijät","."]
["9329 Muut valmistusalan avustavat työntekijät","."]
["933 Rahdinkäsittelijät ja varastotyöntekijät ym.",2789]
["9333 Rahdinkäsittelijät, varastotyöntekijät ym.",2788]
["9334 Hyllyjen täyttäjät",2953]
["94 Avustavat keittiö- ja ruokatyöntekijät",2346]
["941 Avustavat keittiö- ja ruokatyöntekijät",2346]
["9411 Pikaruokatyöntekijät",2406]
["9412 Avustavat keittiötyöntekijät",2339]
["96 Katujen puhtaanapidon ja jätehuollon työntekijät ym.",2772]
["961 Jätehuoltotyöntekijät",2678]
["9611 Jätteiden kerääjät",2750]
["9612 Jätteiden lajittelijat",2468]
["962 Sanomalehtien jakajat, lähetit ym.",2881]
["9621 Sanomalehtien jakajat, lähetit ja kantajat",2021]
["9622 Satunnaistöiden tekijät",2327]
["9623 Mittareiden lukijat ym.",2121]
["9629 Muut muualla luokittelemattomat työntekijät",3092]
["X Tuntematon",4372]
[]
[]
[]
[]
[]
[]
[]
[]
[]
[]
[]
[]
[]
[]
[]
[]
[]
["Yleissihteeri, tallentaja, palkanlaskija (412, 431) keskimäärin:",{"$f":"(B322+B342)/2","v":3193.5}]
["Toimistoavustaja ja tallentaja (411, 4132) keskimäärin:",{"$f":"(B320+B326)/2","v":3033}]
["* Puuttuvien tietojen osalta on käytetty uusinta saatavilla olevaa palkkatietoa"]
[".. Tieto on liian epävarma esitettäväksi \n - Ei yhtään havaintoa \n <A HREF=http://tilastokeskus.fi/til/yskp/meta.html/ >Tilaston kuvaus</A>\n <A HREF=http://tilastokeskus.fi/til/yskp/laa.html/ >Laatuselosteet</A>\n<A HREF=http://tilastokeskus.fi/til/yskp/kas.html/ >Käsitteet ja määritelmät</A>"]
["Ammattiluokitus 2010:"]
["Tilastokeskuksen Ammattiluokitus 2010 on vuonna 2010 käyttöönotettu EU:n standardiluokitukseen ISCO-08:aan perustuva kansallinen versio."]
[]
["Lähde: Tilastokeskus, Yksityisen sektorin kuukausipalkat"]
["Suomen virallinen tilasto (SVT): Yksityisen sektorin kuukausipalkat [verkkojulkaisu]."]
["ISSN=1798-3894. Helsinki: Tilastokeskus [viitattu: 28.2.2020]."]
["Saantitapa: http://www.stat.fi/til/yskp/index.html"]
[]
[]
["Tilastotietokannat:"]
[]
["Sisäinen viitekoodi:"]

{"sheet":"Päivityshistoria","index":16,"n_rows":68,"n_cols":1,"rows_kept":68,"cut":false,"hidden":false,"merged":[]}
["Päivityshistoria"]
[]
["Päivitys versiosta 1.21 (2023) versioon 1.22 (2025) / 6.3.2025"]
["• Päivitetty elinkustannusindeksi v. 2024"]
["• Päivitetty Apu1_Yritystilastot vuoden 2023 tiedoilla"]
["• Päivitetty ohjeistustekstejä"]
[]
["Päivitys versiosta 1.20 (2023) versioon 1.21 (2024) / 19.9.2024"]
["• Päivitetty elinkustannusindeksi v. 2023"]
["• Päivitetty palkkatilastot 2023"]
["• Päivitetty Apu1_Yritystilastot vuoden 2022 tiedoilla"]
[]
["Päivitys versiosta 1.19 (2023) versioon 1.20 (2023) / 21.11.2023"]
["• Päivitetty palkkatilastot 2022 ja siirretty oletuksissa tallentaja toimistoavustajan kanssa samaan palkkaluokkaan"]
["• Muutettu perusvuosi vuoteen 2023"]
["• Päivitetty ohjetekstit uuden hallitusohjelman mukaisiksi (Orpon hallitus) ja päivitetty vanhentuneet linkit apuvälilehdellä 5."]
[]
["Päivitys versiosta 1.18 (2022) versioon 1.19 (2023) / 8.2.2023"]
["• Päivitetty palkkatilastot 2021"]
["• Päivitetty elinkustannusindeksi v. 2022"]
[]
["Päivitys versiosta 1.17 (2021) versioon 1.18 (2022) / 26.1.2022"]
["• Päivitetty laskuri vastaamaan työ- ja elinkeinoministeriön visuaalista ilmettä ja esteettömyysvaatimuksia"]
["• Korjattu yhteenvetosivun pyöristyssääntöjä"]
["• Päivitetty palkkatilastot 2020"]
["• Päivitetty elinkustannusindeksi v. 2021"]
["• Päivitetty Apu1_Yritystilastot vuoden 2020 tiedoilla"]
[]
["Päivitys versiosta 1.16 (2021) versioon 1.17 (2021) / 5.7.2021"]
["• Korjattu kaavavirhe Yhteenvedon kannustimessa lainvalmistelijalle"]
[]
["Päivitys versiosta 1.15 (2020) versioon 1.16 (2021) / 15.1.2021"]
["• Päivitetty elinkustannusindeksi v. 2020"]
[]
["Päivitys versiosta 1.13 (2019) versioon 1.15 (2020) / 28.2.2020, 4.9.2020 ja 24.9.2020"]
["• Lisätty mahdollisuus muuttaa Business-as-Usual-oletusta"]
["• Päivitetty EKI ja palkkatilastot v. 2019 ja 2018"]
["• Päivitetty ohjeistuksia"]
["• Korjattu kaavavirhe 4.9.2020 ja toinen 24.9.2020"]
[]
["Päivitys versiosta 1.13 (2018) versioon 1.14 (2019) / 17.1.2019"]
["• Päivitetty EKI ja palkkatilastot v. 2018 ja 2017"]
["• Päivitetty välilehti Apu1_Yritystilastot vuoden 2017 tilastoilla. Samalla täydennetty tilastoja liikevaihdolla, henkilöstön määrällä ja yritysten koon jakaumalla"]
[]
["Päivitys versiosta 1.12 versioon 1.13 (2018) / 22.1.2018"]
["• Korjattu rivinlisäysmakro niin, että uusi tyhjä rivi päätyy aina viimeiseksi."]
["• Laskentavälilehdeltä 1 muutettu esimerkkivuosi (2018->2019) ja perusvuoden taustaväri sekä oheisen selitystekstin fontti"]
["• Lisätty välilehti ”Päivityshistoria”"]
[]
["Päivitys versiosta 1.11 versioon 1.12 / 18.1.2018"]
["• Lisätty apuvälilehti 1, jossa TK:n yritystilastot"]
["• Muokattu välilehtien nimiä"]
["• Päivitetty erillinen käyttöohje"]
["• Päivitetty EKI v. 2017"]
[]
["Päivitys versiosta 1.1 versioon 1.11 / 8.12.2017"]
["• Korjattu epäjohdonmukainen arvo Yhteenveto-välilehdellä kohdassa ”Kustannukset yhteensä per yritys”"]
["• Lisätty Velvoiteluettelo-välilehdelle täydentävä kysymys muutoksen kohteena yritysjoukon koosta"]
["• Korjattu nettonykyarvon annualisointi niin, että annualisointi tehdään AINA 10 vuoden aikajänteellä velvoitteen kestosta riippumatta"]
["• Lisätty ensimmäiselle sivulle otsikko ja laskurin tekijöiden nimet"]
["• Päivitetty Ohjeistus"]
["• Päivitetty lähdeviitteitä, perustelulaattikkoja, otsikoita ja muuta ulkoasua"]
[]
["Päivitys versiosta 1.02 versioon 1.1 / 13.10.2017"]
["• Laskuria on selkiytetty: valmistelijan tarvitsemat keltaiset täyttösolut on pyritty tuomaan paremmin esille ja muita seikkoja on siirretty sivuun. Välilaskutietoja yms. on säilytetty kuitenkin sivujen alaosissa tai oikealla, jotta tiedot ja laskukaavat ovat tarkistettavissa."]
["• Muutettu inflaation ja kasvun huomioiminen nykyarvon laskennassa. Inflaatio: valmisteluvuoden rahassa lasketut kustannukset deflatoidaan elinkustannusindeksillä perusvuoteen. Perusvuodeksi on valittu 2017. Kaikki kustannuserät vertaillaan tämän perusvuoden rahassa ja arvossa. Diskonttaus tapahtuu vuoden 2017 alkuun. Diskonttaus reaalisella korolla, koska inflaatio puhdistettu edellä esitetysti."]
["• Yhteenvetotaulukkoon (Välilehti 5_Yhteeveto) on tehty pyöristyskaavat. Tarkemmat arvot ovat edelleen nähtävissä välilehden oikeassa reunassa."]
["• Muokattu velvoitenimet päivittymään kaikille syöttövälilehdille. Ulkoasua selkiytetty."]